Workbook

Sheet notes (hidden)
A1: FY20 Chapter 70
A3: Tabs | B3: What happens on this sheet | C3: Data source (if any) | D3: Notes
A4: Parameters | B4: Allows the user to adjust all of the policy levers in Chapter 70, except for changes to foundation. Foundation budget scenarios can be changed, but they must 1st be run separately and dropped into localcont (all the way to the right). Up to 11 alternatives can be included. | D4: Updated table for graph re: "additional increments toward target" to include 175%CEY increment
A5: Index | B5: Controls the district being viewed for all reports except regional dist members | C5: Dropdown box reads LEAs
A6: Rates | B6: CY and PY foundation budget rates Used to calculate foundation budget report | C6: Copied in from found file
A7: Foundation Budget | B7: 1 district report showing build-up of foundation budget | C7: Rates, dist435 | D7: labels
A8: Municipal Contribution | B8: 1 city/town report showing build-up of required local contribution (municipal level) | C8: townwide contributions | D8: labels
A9: Regional Allocation | B9: 1 city/town report showing allocation of total municipal required local contribution based on proportion of foundation budget at each district to which it belongs | C9: localcont | D9: labels
A10: Summary | B10: 1 district report summarizing C70 calculation and comparison to PY | C10: aid436, disthist | D10: labels
A11: Regional Dist Members | B11: 1 regional district report summarizing enrollment and local contribution for each member town Changed in FY18 to vlookup on localcont | C11: localcont, leas | D11: labels
A12: LocalCont | B12: Results from distfrac get copied into the far right (up to 11 versions of foundation budget can be entered). Toggle is on parameters sheet. Data is organized in 5 row format for each city/town (municipality and its districts, blanks are 998 and total is 999). Used to calculate each municipal-district combination's RLC. | C12: found file, distfrac (allocate sheet) | D12: Copied in FY19 foundation budget, %s, RLCs and enro.
A14: Comparison to FY19 | B14: 2 year comparison for operating districts | C14: aid436, disthist, localcont
A15: Townwide Contributions | B15: Calculates municipal required local contributions | C15: DOR (EQV, Income, MRGFs), PY file (RLCs), parameters | D15: Copied in FY19 RLCs into PY RLC column
A16: Aid436 | B16: Calculates district Ch 70 aid | C16: disthist, localcont, frac, parameters Starting w/ LEA 406, in col J (target aid %), formula changes to pull from frac tab.
A17: Frac | B17: Calculates target aid percentage for regional districts | D17: updated
A18: DistHist | B18: ***Don't forget to copy in target aid %s from PY Historical C70 data used in summary report, and other places | D18: Copied in FY19 FB, RLC and Aid Copied in target aid %s from FY19***
A19: Dist435 | B19: Data source for foundation budget report, shows detailed enrollment and budget columns | C19: found20prelim
A21: Data | B21: Source | C21: Updated? | D21: Notes
A22: Inflation | B22: BEA website | C22: Q3 Dec | D22: 3.75% Q3
A23: Wage Adjustment Factor Inputs | B23: EOLWD | C23: FY20 | D23: 2018-12-31
A24: EQV | B24: DOR | C24: 2018 EQV | D24: DOR file Dec. 2018
A25: Income | B25: DOR | C25: 2016 Income | D25: 1/5/18 from DOR
A26: Enrollment | B26: DESE | C26: FY20 | D26: found20prelim
A27: Postgrad Enrollment | B27: DESE-CVTE office | C27: FY20 | D27: FY20
A28: MRGFs | B28: DOR/ANF | C28: FY20 | D28: Rcvd from DOR 1/3/18

Sheet parameters (hidden)
A1: Cyr | B1: ="FY"&C1 -> FY20 | C1: 20
A2: Pyr | B2: ="FY"&C2 -> FY19 | C2: 19
A3: As of | B3: 2019-01-17
A5: Parameters | D5: Base | K5: Analysis of Aggregate Wealth Model Implementation
B6: Which version of foundation budget? | C6: 1 | D6: 1 | G6: FY19 C70 | H6: =4906614765.80212+308558 -> 4906923324
B7: Effort reduction | C7: 1 | D7: 0 | K7: Progress Towards Target Local Share
B8: Pct downpayment on target aid share | C8: 0 | D8: 0 | G8: FY20 foundation aid increase | H8: ='Aid436'!K448 -> 193270682.3
D9: 0 | L9: FY07 | M9: FY08 | N9: FY09 | O9: FY10 | P9: FY11 | Q9: FY12 | R9: FY13 | S9: FY14 | T9: FY15 | U9: FY16 | V9: FY17 | W9: FY18 | X9: FY19 | Y9: FY20
G10: Minimum per pupil aid increase | H10: ='Aid436'!AH448 -> 7878165 | K10: excess effort before effort reduction | L10: 621.084157 | M10: 494.058912 | N10: 372.382091 | O10: 228.110232 | P10: 366 | Q10: 293.3 | R10: 229.8 | S10: 234.5 | T10: 307.903014 | U10: 235.358789 | V10: 299.86437 | W10: 151.670894 | X10: 68.664221 | Y10: ='Townwide Contributions'!T361/1000000 -> 45.194958
G11: Non-op reduction | H11: ='Aid436'!AJ448 -> 163047.5184 | K11: effort reduction | L11: 124.2168314 | M11: 123.514728 | N11: 122.88609 | O11: 34.216535 | P11: 109.8 | Q11: 58.7 | R11: 34.5 | S11: 35.2 | T11: 153.951507 | U11: 117.6793945 | V11: 254.8847145 | W11: 128.9202599 | X11: 68.664221 | Y11: ='Townwide Contributions'!U361/1000000 -> 45.194958
G12: FY20 Chapter 70 | H12: ='Aid436'!AL448 -> 5107600566 | K12: net excess after effort reduction | L12: 496.8673256 | M12: 370.544184 | N12: 249.496001 | O12: 193.893697 | P12: 256.2 | Q12: =Q10-Q11 -> 234.6 | R12: =R10-R11 -> 195.3 | S12: 199.3 | T12: 152.0806983 | U12: 117.4829132 | V12: 44.97879348 | W12: 22.74921402 | X12: 0 | Y12: ='Townwide Contributions'!AB361/1000000 -> 0
G13: Devens | H13: =308558 -> 308558 | K13: shortfall below target before increment | L13: -321.452322 | M13: -352.174875 | N13: -359.193563 | O13: -427.2 | P13: -228 | Q13: -211 | R13: -200 | S13: -180.2 | T13: -162.972215 | U13: -132.627218 | V13: -96.928091 | W13: -103.17317 | X13: -117.254713 | Y13: ='Townwide Contributions'!Z361/1000000 -> -171.484934
B14: Per pupil guaranteed increase | C14: 20 | D14: 0 | K14: additional increments toward target | L14: 0 | M14: -19.739149 | N14: -21.387588 | O14: -121.2 | P14: -10.6 | Q14: -10 | R14: -4.2 | S14: -3.9 | T14: -7.563093 | U14: -5.848739 | V14: -2.474215 | W14: -3.628178 | X14: -5.320349 | Y14: =('Townwide Contributions'!S361/1000000*-1)+('Townwide Contributions'!V361/1000000*-1) -> -15.912433
B15: Which version of mrgf? | C15: 1 | D15: 1 | G15: Change in C70 Appropriation | H15: =H12+H13-H6 -> 200985799.7 | K15: net shortfall below target after increment | L15: -321.452322 | M15: -332.435726 | N15: -337.805975 | O15: -306 | P15: -217.4 | Q15: -200.9 | R15: -195.7 | S15: -176.3 | T15: -155.409122 | U15: -126.778479 | V15: -94.453876 | W15: -99.544992 | X15: -111.934364 | Y15: ='Townwide Contributions'!AA361/1000000 -> -155.572501
B16: Below effort threshold 1 | C16: 2.5 | D16: 2.5 | G16: Percent Change | H16: =H15/H6 -> 0.04095963733 | K16: n of municipalities with effort too high | L16: 232 | M16: 218 | N16: 214 | O16: 193 | P16: 282 | Q16: 257 | R16: 249 | S16: 255 | T16: 279 | U16: 278 | V16: 303 | W16: 291 | X16: 0 | Y16: ='Townwide Contributions'!AB364 -> 0
B17: Below effort threshold 2 | C17: 7.5 | D17: 7.5
B18: Below effort contribution increment, 5-10% under | C18: 0.01 | D18: 0.01 | G18: N of Foundation Aid Districts | H18: ='Aid436'!Z448 -> 141
B19: Below effort contribution increment, >10% under | C19: 0.02 | D19: 0.02 | G19: N of Districts with an Aid Increase | H19: ='Comparison to FY19'!O331 -> 318
B20: Maximum local contribution pct of foundation | C20: 0.825 | D20: 0.825 | G20: Total C70 Including Devens | H20: =H12+H13 -> 5107909124
B21: Statewide target for local contribution % of foundation | C21: 0.59 | D21: 0.59
B22: Cap contributions at fixed percentage of foundation | C22: 0.9 | D22: 0.9
B23: Percentage cut to base aid | C23: 0 | D23: 0
A24: Eqv/income percentages
B26: Target effort | C26: =C21*localcont!K1765 -> 6642078537
B27: Effort based upon following percentages | C27: ='Townwide Contributions'!J361 -> 6642078530
B28: Difference from target | C28: =IF(ABS(C27-C26)<10,0,C27-C26) -> 0
B29: Percentage of EQV | C29: 0.003417843586
B30: Percentage of INCOME | C30: =C29*1/C34 -> 0.01481618863
B32: Total EQV | C32: ='Townwide Contributions'!C361 -> 1249672575100
B33: Total Income | C33: ='Townwide Contributions'!E361 -> 2.882782813e+11
B34: State Average % of EQV | C34: =C33/C32 -> 0.2306830502
A37: See Progress Towards Targets
K42: Progress Towards Target Aid Share
L44: FY07 | M44: FY08 | N44: FY09 | O44: FY10 | P44: FY11 | Q44: FY12 | R44: FY13 | S44: FY14 | T44: FY15 | U44: FY16 | V44: FY17 | W44: FY18 | X44: FY19 | Y44: FY20
K45: aid above target | L45: 394.9 | M45: 421 | N45: 440.4 | O45: 413.5991456 | P45: 489.2905867 | Q45: 360.5802896 | R45: 372.9139726 | S45: 385.3 | T45: 404.6539336 | U45: 419.0730779 | V45: 488.1362137 | W45: 497.4038449 | X45: 487.8069694 | Y45: ='Aid436'!AS449/1000000 -> 491.955471
K46: aid below target | L46: -176.3 | M46: -143 | N46: -105.5 | O46: -97.82363262 | P46: -75.73073977 | Q46: -110.4290612 | R46: -84.70629692 | S46: -66.9 | T46: -49.39921427 | U46: -44.48798888 | V46: -13.01302676 | W46: -7.202688836 | X46: -0.01809683687 | Y46: ='Aid436'!AS450/1000000 -> -0.00372121276
C50: =TEXT(effortred,"0%") -> 100%

Sheet localcont (hidden)
I1: c70fy19 | J1: c70fy19 | O1: c70fy19 | R1: c70fy19 | CM1: Lookup table for foundation budget scenarios | CN1: 1 | CO1: 2
CN2: 2 | CO2: 8
D3: 1 | E3: 2 | F3: 3 | G3: 4 | H3: 5 | I3: 6 | J3: 7 | K3: 8 | L3: 9 | M3: 10 | N3: 11 | O3: 12 | P3: 13 | Q3: 14 | R3: 15 | S3: 16 | T3: 17 | U3: 18 | V3: 19 | W3: 20 | X3: 21 | Y3: 1 | Z3: 2 | AA3: 3 | AB3: 4 | AC3: 5 | AD3: 6 | AE3: 7 | AF3: 8 | AG3: 9 | AH3: 10 | AI3: 11 | AJ3: 12 | AK3: 13 | AL3: 14 | AM3: 15 | AN3: 16 | AO3: 17 | AP3: 18 | AQ3: 19 | AR3: 20 | AS3: 21 | AT3: 22 | AU3: 23 | AV3: 24 | AW3: 25 | AX3: 26 | AY3: 27 | AZ3: 28 | BA3: 29 | BB3: 30 | BC3: 31 | BD3: 32 | BE3: 33 | BF3: 34 | BG3: 35 | BH3: 36 | BI3: 37 | BJ3: 38 | BK3: 39 | BL3: 40 | BM3: 41 | BN3: 42 | BO3: 43 | BP3: 44 | BQ3: 45 | BR3: 46 | BS3: 47 | BT3: 48 | BU3: 49 | BV3: 50 | BW3: 51 | BX3: 52 | BY3: 53 | BZ3: 54 | CA3: 55 | CB3: 56 | CC3: 57 | CD3: 58 | CE3: 59 | CF3: 60 | CG3: 61 | CH3: 62 | CI3: 63 | CJ3: 64 | CK3: 65 | CL3: 66 | CN3: 3 | CO3: 14 | CR3: 62 | CS3: 63 | CT3: 64 | CU3: 65 | CV3: 66
G4: lea1755 | K4: found1755 | N4: prelcont1755 | O4: pynetJin | R4: pyenro | W4: enro1755 | CN4: 4 | CO4: 20
Z5: 1 | AF5: 2 | AL5: 3 | AR5: 4 | AX5: 5 | BD5: 6 | BJ5: 7 | BP5: 8 | BV5: 9 | CB5: 10 | CH5: 11 | CN5: 5 | CO5: 26 | CR5: FY19
T6: =parameters!$C$6 -> 1 | Z6: House 1 | CN6: 6 | CO6: 32 | CR6: FY19
I7: =PYr -> FY19 | J7: =PYr -> FY19 | K7: =CYr -> FY20 | L7: =CYr -> FY20 | M7: =CYr -> FY20 | N7: =CYr -> FY20 | O7: =PYr -> FY19 | CN7: 7 | CO7: 38 | CW7: FY19 | CX7: FY19
I8: Foundation | J8: Share of Total | K8: Foundation | L8: Share of Total | M8: Townwide | N8: Net Minimum | O8: Net Minimum | P8: =PYr&" to "&CYr -> FY19 to FY20 | Q8: Percent | R8: =PYr -> FY19 | W8: final | X8: foundation | AC8: final | AD8: foundation | AE8: Share of Total | AI8: final | AJ8: foundation | AK8: Share of Total | AO8: final | AP8: foundation | AQ8: Share of Total | AU8: final | AV8: foundation | AW8: Share of Total | BA8: final | BB8: foundation | BC8: Share of Total | BG8: final | BH8: foundation | BI8: Share of Total | BM8: final | BN8: foundation | BO8: Share of Total | BS8: final | BT8: foundation | BY8: final | BZ8: foundation | CE8: final | CF8: foundation | CK8: final | CL8: foundation | CN8: 8 | CO8: 44 | CU8: final | CV8: foundation | CW8: Share of Total | CX8: Net Minimum
A9: TownLEA | B9: Town | C9: LEA | D9: Order | E9: Town | F9: City or Town | G9: LEA | H9: School District | I9: Budget | J9: Foundation | K9: Budget | L9: Foundation | M9: Contribution | N9: Contribution | O9: Contribution | P9: Change | Q9: Change | R9: Enrollment | T9: Town | U9: LEA | V9: Order | W9: enrollment | X9: budget | Z9: Town | AA9: LEA | AB9: Order | AC9: enrollment | AD9: budget | AE9: Foundation | AF9: Town | AG9: LEA | AH9: Order | AI9: enrollment | AJ9: budget | AK9: Foundation | AL9: Town | AM9: LEA | AN9: Order | AO9: enrollment | AP9: budget | AQ9: Foundation | AR9: Town | AS9: LEA | AT9: Order | AU9: enrollment | AV9: budget | AW9: Foundation | AX9: Town | AY9: LEA | AZ9: Order | BA9: enrollment | BB9: budget | BC9: Foundation | BD9: Town | BE9: LEA | BF9: Order | BG9: enrollment | BH9: budget | BI9: Foundation | BJ9: Town | BK9: LEA | BL9: Order | BM9: enrollment | BN9: budget | BO9: Foundation | BP9: Town | BQ9: LEA | BR9: Order | BS9: enrollment | BT9: budget | BV9: Town | BW9: LEA | BX9: Order | BY9: enrollment | BZ9: budget | CB9: Town | CC9: LEA | CD9: Order | CE9: enrollment | CF9: budget | CH9: Town | CI9: LEA | CJ9: Order | CK9: enrollment | CL9: budget | CN9: 9 | CO9: 50 | CR9: Town | CS9: LEA | CT9: Order | CU9: enrollment | CV9: budget | CW9: Foundation | CX9: Contribution
A10: =B10&C10 -> 00010001 | B10: 0001 | C10: 0001 | D10: 1 | E10: 1 | F10: Abington | G10: 1 | H10: Abington | I10: 21515960.21 | J10: 0.917737123 | K10: =X10 -> 23355621.44 | L10: =IF(K14>0, K10/K14, 0) -> 0.9338528784 | N10: =ROUND(M14*L10,0) -> 14467200 | O10: 13701008 | P10: =N10-O10 -> 766192 | Q10: =IF(O10>0,P10*100/O10,IF(P10>0,100,0)) -> 5.592230878 | R10: 2024 | T10: =VLOOKUP($D10, foundoptions, VLOOKUP($T$6, foundoptcell, 2, FALSE), FALSE) -> 1 | U10: =VLOOKUP($D10, foundoptions, VLOOKUP($T$6, foundoptcell, 2, FALSE)+1, FALSE) -> 1 | V10: =VLOOKUP($D10, foundoptions, VLOOKUP($T$6, foundoptcell, 2, FALSE)+2, FALSE) -> 1 | W10: =VLOOKUP($D10, foundoptions, VLOOKUP($T$6, foundoptcell, 2, FALSE)+3, FALSE) -> 2105 | X10: =VLOOKUP($D10, foundoptions, VLOOKUP($T$6, foundoptcell, 2, FALSE)+4, FALSE) -> 23355621.44 | Y10: =D10 -> 1 | Z10: 1 | AA10: 1 | AB10: 1 | AC10: 2105 | AD10: 23355621.44 | CN10: 10 | CO10: 56 | CR10: 1 | CS10: 1 | CT10: 1 | CU10: 2024 | CV10: 21515960.21 | CW10: 0.917737123 | CX10: 13701008
A11: 00010873 | B11: 0001 | C11: 0873 | D11: 2 | E11: 1 | F11: Abington | G11: 873 | H11: South Shore | I11: 1928618.495 | J11: 0.08226287702 | K11: =X11 -> 1654336.745 | L11: =IF(K14>0, K11/K14, 0) -> 0.06614712157 | N11: =ROUND(M14*L11,0) -> 1024748 | O11: 1228112 | P11: =N11-O11 -> -203364 | Q11: -16.55907605 | R11: 115 | T11: 1 | U11: 873 | V11: 2 | W11: 94.64716007 | X11: 1654336.745 | Y11: =D11 -> 2 | Z11: 1 | AA11: 873 | AB11: 2 | AC11: 94.64716007 | AD11: 1654336.745 | CN11: 11 | CO11: 62 | CR11: 1 | CS11: 873 | CT11: 2 | CU11: 115 | CV11: 1928618.495 | CW11: 0.08226287702 | CX11: 1228112
A12: 00010998 | B12: 0001 | C12: 0998 | D12: 3 | E12: 1 | G12: 998 | I12: 0 | J12: 0 | K12: =X12 -> 0 | L12: =IF(K14>0, K12/K14, 0) -> 0 | N12: =ROUND(M14*L12,0) -> 0 | O12: 0 | P12: =N12-O12 -> 0 | Q12: 0 | R12: 0 | T12: 1 | U12: 998 | V12: 3 | W12: 0 | X12: 0 | Y12: 3 | Z12: 1 | AA12: 998 | AB12: 3 | AC12: 0 | AD12: 0 | CR12: 1 | CS12: 998 | CT12: 3 | CU12: 0 | CV12: 0 | CW12: 0 | CX12: 0
A13: 00010998 | B13: 0001 | C13: 0998 | D13: 4 | E13: 1 | G13: 998 | I13: 0 | J13: 0 | K13: =X13 -> 0 | L13: =IF(K14>0, K13/K14, 0) -> 0 | N13: =ROUND(M14*L13,0) -> 0 | O13: 0 | P13: =N13-O13 -> 0 | Q13: 0 | R13: 0 | T13: 1 | U13: 998 | V13: 4 | W13: 0 | X13: 0 | Y13: 4 | Z13: 1 | AA13: 998 | AB13: 4 | AC13: 0 | AD13: 0 | CR13: 1 | CS13: 998 | CT13: 4 | CU13: 0 | CV13: 0 | CW13: 0 | CX13: 0
A14: 00010999 | B14: 0001 | C14: 0999 | D14: 5 | E14: 1 | F14: Abington | G14: 999 | H14: Total | I14: 23444578.71 | J14: 1 | K14: =SUM(K10:K13) -> 25009958.19 | L14: =SUM(L10:L13) -> 1 | M14: =VLOOKUP(E14,town351,23) -> 15491948 | N14: =SUM(N10:N13) -> 15491948 | O14: 14929120 | P14: =SUM(P10:P13) -> 562828 | Q14: 3.770001179 | R14: 2139 | T14: 1 | U14: 999 | V14: 5 | W14: 2199.64716 | X14: 25009958.19 | Y14: 5 | Z14: 1 | AA14: 999 | AB14: 5 | AC14: 2199.64716 | AD14: 25009958.19 | CR14: 1 | CS14: 999 | CT14: 5 | CU14: 2139 | CV14: 23444578.71 | CW14: 1 | CX14: 14929120
A15: 00020002 | B15: 0002 | C15: 0002 | D15: 6 | E15: 2 | F15: Acton | G15: 2 | H15: Acton | I15: 0 | J15: 0 | K15: =X15 -> 0 | L15: =IF(K19>0, K15/K19, 0) -> 0 | N15: =ROUND(M19*L15,0) -> 0 | O15: 0 | P15: =N15-O15 -> 0 | Q15: 0 | R15: 0 | T15: 2 | U15: 2 | V15: 6 | W15: 0 | X15: 0 | Y15: 6 | Z15: 2 | AA15: 2 | AB15: 6 | AC15: 0 | AD15: 0 | CR15: 2 | CS15: 2 | CT15: 6 | CU15: 0 | CV15: 0 | CW15: 0 | CX15: 0
A16: 00020600 | B16: 0002 | C16: 0600 | D16: 7 | E16: 2 | F16: Acton | G16: 600 | H16: Acton Boxborough | I16: 46559239.31 | J16: 0.9866805097 | K16: 48537926.95 | L16: =IF(K19>0, K16/K19, 0) -> 0.9880961503 | N16: =ROUND(M19*L16,0) -> 37736345 | O16: 35990717 | P16: =N16-O16 -> 1745628 | Q16: 4.850217349 | R16: 4587.53929 | T16: 2 | U16: 600 | V16: 7 | W16: 4585.679103 | X16: 48537926.95 | Y16: 7 | Z16: 2 | AA16: 600 | AB16: 7 | AC16: 4585.679103 | AD16: 48537926.95 | CR16: 2 | CS16: 600 | CT16: 7 | CU16: 4587.53929 | CV16: 46559239.31 | CW16: 0.9866805097 | CX16: 35990717
A17: 00020830 | B17: 0002 | C17: 0830 | D17: 8 | E17: 2 | F17: Acton | G17: 830 | H17: Minuteman | I17: 628516.8595 | J17: 0.01331949028 | K17: 584748.9504 | L17: =IF(K19>0, K17/K19, 0) -> 0.01190384969 | N17: =ROUND(M19*L17,0) -> 454620 | O17: 485849 | P17: =N17-O17 -> -31229 | Q17: -6.427717254 | R17: 35.1026393 | T17: 2 | U17: 830 | V17: 8 | W17: 32 | X17: 584748.9504 | Y17: 8 | Z17: 2 | AA17: 830 | AB17: 8 | AC17: 32 | AD17: 584748.9504 | CR17: 2 | CS17: 830 | CT17: 8 | CU17: 35.1026393 | CV17: 628516.8595 | CW17: 0.01331949028 | CX17: 485849
A18: 00020998 | B18: 0002 | C18: 0998 | D18: 9 | E18: 2 | G18: 998 | I18: 0 | J18: 0 | K18: 0 | L18: =IF(K19>0, K18/K19, 0) -> 0 | N18: =ROUND(M19*L18,0) -> 0 | O18: 0 | P18: =N18-O18 -> 0 | Q18: 0 | R18: 0 | T18: 2 | U18: 998 | V18: 9 | W18: 0 | X18: 0 | Y18: 9 | Z18: 2 | AA18: 998 | AB18: 9 | AC18: 0 | AD18: 0 | CR18: 2 | CS18: 998 | CT18: 9 | CU18: 0 | CV18: 0 | CW18: 0 | CX18: 0
A19: 00020999 | B19: 0002 | C19: 0999 | D19: 10 | E19: 2 | F19: Acton | G19: 999 | H19: Total | I19: 47187756.17 | J19: 1 | K19: =SUM(K15:K18) -> 49122675.9 | L19: =SUM(L15:L18) -> 1 | M19: =VLOOKUP(E19,town351,23) -> 38190965 | N19: =SUM(N15:N18) -> 38190965 | O19: 36476566 | P19: =SUM(P15:P18) -> 1714399 | Q19: =IF(O19>0,P19*100/O19,IF(P19>0,100,0)) -> 4.700001091 | R19: 4622.641929 | T19: 2 | U19: 999 | V19: 10 | W19: 4617.679103 | X19: 49122675.9 | Y19: 10 | Z19: 2 | AA19: 999 | AB19: 10 | AC19: 4617.679103 | AD19: 49122675.9 | CR19: 2 | CS19: 999 | CT19: 10 | CU19: 4622.641929 | CV19: 47187756.17 | CW19: 1 | CX19: 36476566
A20: 00030003 | B20: 0003 | C20: 0003 | D20: 11 | E20: 3 | F20: Acushnet | G20: 3 | H20: Acushnet | I20: 12395984.84 | J20: 0.8408793154 | K20: =X20 -> 13413747.12 | L20: =IF(K24>0, K20/K24, 0) -> 0.8524500439 | N20: =ROUND(M24*L20,0) -> 7496928 | O20: 7125126 | P20: =N20-O20 -> 371802 | Q20: 5.218181405 | R20: 1227 | T20: 3 | U20: 3 | V20: 11 | W20: 1272 | X20: 13413747.12 | Y20: 11 | Z20: 3 | AA20: 3 | AB20: 11 | AC20: 1272 | AD20: 13413747.12 | CR20: 3 | CS20: 3 | CT20: 11 | CU20: 1227 | CV20: 12395984.84 | CW20: 0.8408793154 | CX20: 7125126
A21: 00030855 | B21: 0003 | C21: 0855 | D21: 12 | E21: 3 | F21: Acushnet | G21: 855 | H21: Old Colony | I21: 2136088.548 | J21: 0.1449011675 | K21: 2116974.075 | L21: =IF(K24>0, K21/K24, 0) -> 0.1345347148 | N21: =ROUND(M24*L21,0) -> 1183174 | O21: 1227809 | P21: =N21-O21 -> -44635 | Q21: -3.635337418 | R21: 133 | T21: 3 | U21: 855 | V21: 12 | W21: 127 | X21: 2116974.075 | Y21: 12 | Z21: 3 | AA21: 855 | AB21: 12 | AC21: 127 | AD21: 2116974.075 | CR21: 3 | CS21: 855 | CT21: 12 | CU21: 133 | CV21: 2136088.548 | CW21: 0.1449011675 | CX21: 1227809
A22: 00030910 | B22: 0003 | C22: 0910 | D22: 13 | E22: 3 | F22: Acushnet | G22: 910 | H22: Bristol County | I22: 209619.7569 | J22: 0.01421951704 | K22: 204801.6272 | L22: =IF(K24>0, K22/K24, 0) -> 0.01301524134 | N22: =ROUND(M24*L22,0) -> 114463 | O22: 120488 | P22: =N22-O22 -> -6025 | Q22: -5.000497975 | R22: 13 | T22: 3 | U22: 910 | V22: 13 | W22: 12 | X22: 204801.6272 | Y22: 13 | Z22: 3 | AA22: 910 | AB22: 13 | AC22: 12 | AD22: 204801.6272 | CR22: 3 | CS22: 910 | CT22: 13 | CU22: 13 | CV22: 209619.7569 | CW22: 0.01421951704 | CX22: 120488
A23: 00030998 | B23: 0003 | C23: 0998 | D23: 14 | E23: 3 | G23: 998 | I23: 0 | J23: 0 | K23: 0 | L23: =IF(K24>0, K23/K24, 0) -> 0 | N23: =ROUND(M24*L23,0) -> 0 | O23: 0 | P23: =N23-O23 -> 0 | Q23: 0 | R23: 0 | T23: 3 | U23: 998 | V23: 14 | W23: 0 | X23: 0 | Y23: 14 | Z23: 3 | AA23: 998 | AB23: 14 | AC23: 0 | AD23: 0 | CR23: 3 | CS23: 998 | CT23: 14 | CU23: 0 | CV23: 0 | CW23: 0 | CX23: 0
A24: 00030999 | B24: 0003 | C24: 0999 | D24: 15 | E24: 3 | F24: Acushnet | G24: 999 | H24: Total | I24: 14741693.14 | J24: 1 | K24: =SUM(K20:K23) -> 15735522.82 | L24: =SUM(L20:L23) -> 1 | M24: =VLOOKUP(E24,town351,23) -> 8794566 | N24: =SUM(N20:N23) -> 8794565 | O24: 8473423 | P24: =SUM(P20:P23) -> 321142 | Q24: 3.789991365 | R24: 1373 | T24: 3 | U24: 999 | V24: 15 | W24: 1411 | X24: 15735522.82 | Y24: 15 | Z24: 3 | AA24: 999 | AB24: 15 | AC24: 1411 | AD24: 15735522.82 | CR24: 3 | CS24: 999 | CT24: 15 | CU24: 1373 | CV24: 14741693.14 | CW24: 1 | CX24: 8473423
A25: 00040004 | B25: 0004 | C25: 0004 | D25: 16 | E25: 4 | F25: Adams | G25: 4 | H25: Adams | I25: 0 | J25: 0 | K25: =X25 -> 0 | L25: =IF(K29>0, K25/K29, 0) -> 0 | N25: =ROUND(M29*L25,0) -> 0 | O25: 0 | P25: =N25-O25 -> 0 | Q25: 0 | R25: 0 | T25: 4 | U25: 4 | V25: 16 | W25: 0 | X25: 0 | Y25: 16 | Z25: 4 | AA25: 4 | AB25: 16 | AC25: 0 | AD25: 0 | CR25: 4 | CS25: 4 | CT25: 16 | CU25: 0 | CV25: 0 | CW25: 0 | CX25: 0
A26: 00040603 | B26: 0004 | C26: 0603 | D26: 17 | E26: 4 | F26: Adams | G26: 603 | H26: Adams Cheshire | I26: 11011705.79 | J26: 0.8352437046 | K26: 11127079.74 | L26: =IF(K29>0, K26/K29, 0) -> 0.8267972738 | N26: =ROUND(M29*L26,0) -> 3757565 | O26: 3713168 | P26: =N26-O26 -> 44397 | Q26: 1.195663649 | R26: 975.2043636 | T26: 4 | U26: 603 | V26: 17 | W26: 937.4886536 | X26: 11127079.74 | Y26: 17 | Z26: 4 | AA26: 603 | AB26: 17 | AC26: 937.4886536 | AD26: 11127079.74 | CR26: 4 | CS26: 603 | CT26: 17 | CU26: 975.2043636 | CV26: 11011705.79 | CW26: 0.8352437046 | CX26: 3713168
A27: 00040851 | B27: 0004 | C27: 0851 | D27: 18 | E27: 4 | F27: Adams | G27: 851 | H27: Northern Berkshire | I27: 2172117.959 | J27: 0.1647562954 | K27: 2330971.093 | L27: =IF(K29>0, K27/K29, 0) -> 0.1732027262 | N27: =ROUND(M29*L27,0) -> 787158 | O27: 732442 | P27: =N27-O27 -> 54716 | Q27: 7.470352601 | R27: 129 | T27: 4 | U27: 851 | V27: 18 | W27: 134 | X27: 2330971.093 | Y27: 18 | Z27: 4 | AA27: 851 | AB27: 18 | AC27: 134 | AD27: 2330971.093 | CR27: 4 | CS27: 851 | CT27: 18 | CU27: 129 | CV27: 2172117.959 | CW27: 0.1647562954 | CX27: 732442
A28: 00040998 | B28: 0004 | C28: 0998 | D28: 19 | E28: 4 | G28: 998 | I28: 0 | J28: 0 | K28: 0 | L28: =IF(K29>0, K28/K29, 0) -> 0 | N28: =ROUND(M29*L28,0) -> 0 | O28: 0 | P28: =N28-O28 -> 0 | Q28: 0 | R28: 0 | T28: 4 | U28: 998 | V28: 19 | W28: 0 | X28: 0 | Y28: 19 | Z28: 4 | AA28: 998 | AB28: 19 | AC28: 0 | AD28: 0 | CR28: 4 | CS28: 998 | CT28: 19 | CU28: 0 | CV28: 0 | CW28: 0 | CX28: 0
A29: 00040999 | B29: 0004 | C29: 0999 | D29: 20 | E29: 4 | F29: Adams | G29: 999 | H29: Total | I29: 13183823.75 | J29: 1 | K29: =SUM(K25:K28) -> 13458050.83 | L29: =SUM(L25:L28) -> 1 | M29: =VLOOKUP(E29,town351,23) -> 4544723 | N29: =SUM(N25:N28) -> 4544723 | O29: 4445610 | P29: =SUM(P25:P28) -> 99113 | Q29: 2.229457825 | R29: 1104.204364 | T29: 4 | U29: 999 | V29: 20 | W29: 1071.488654 | X29: 13458050.83 | Y29: 20 | Z29: 4 | AA29: 999 | AB29: 20 | AC29: 1071.488654 | AD29: 13458050.83 | CR29: 4 | CS29: 999 | CT29: 20 | CU29: 1104.204364 | CV29: 13183823.75 | CW29: 1 | CX29: 4445610
A30: 00050005 | B30: 0005 | C30: 0005 | D30: 21 | E30: 5 | F30: Agawam | G30: 5 | H30: Agawam | I30: 41326070.32 | J30: 1 | K30: =X30 -> 41841475.45 | L30: =IF(K34>0, K30/K34, 0) -> 1 | N30: =ROUND(M34*L30,0) -> 22698814 | O30: 22474431 | P30: =N30-O30 -> 224383 | Q30: 0.9983923508 | R30: 3773 | T30: 5 | U30: 5 | V30: 21 | W30: 3677 | X30: 41841475.45 | Y30: 21 | Z30: 5 | AA30: 5 | AB30: 21 | AC30: 3677 | AD30: 41841475.45 | CR30: 5 | CS30: 5 | CT30: 21 | CU30: 3773 | CV30: 41326070.32 | CW30: 1 | CX30: 22474431
A31: 00050998 | B31: 0005 | C31: 0998 | D31: 22 | E31: 5 | G31: 998 | I31: 0 | J31: 0 | K31: 0 | L31: =IF(K34>0, K31/K34, 0) -> 0 | N31: =ROUND(M34*L31,0) -> 0 | O31: 0 | P31: =N31-O31 -> 0 | Q31: 0 | R31: 0 | T31: 5 | U31: 998 | V31: 22 | W31: 0 | X31: 0 | Y31: 22 | Z31: 5 | AA31: 998 | AB31: 22 | AC31: 0 | AD31: 0 | CR31: 5 | CS31: 998 | CT31: 22 | CU31: 0 | CV31: 0 | CW31: 0 | CX31: 0
A32: 00050998 | B32: 0005 | C32: 0998 | D32: 23 | E32: 5 | G32: 998 | I32: 0 | J32: 0 | K32: 0 | L32: =IF(K34>0, K32/K34, 0) -> 0 | N32: =ROUND(M34*L32,0) -> 0 | O32: 0 | P32: =N32-O32 -> 0 | Q32: 0 | R32: 0 | T32: 5 | U32: 998 | V32: 23 | W32: 0 | X32: 0 | Y32: 23 | Z32: 5 | AA32: 998 | AB32: 23 | AC32: 0 | AD32: 0 | CR32: 5 | CS32: 998 | CT32: 23 | CU32: 0 | CV32: 0 | CW32: 0 | CX32: 0
A33: 00050998 | B33: 0005 | C33: 0998 | D33: 24 | E33: 5 | G33: 998 | I33: 0 | J33: 0 | K33: 0 | L33: =IF(K34>0, K33/K34, 0) -> 0 | N33: =ROUND(M34*L33,0) -> 0 | O33: 0 | P33: =N33-O33 -> 0 | Q33: 0 | R33: 0 | T33: 5 | U33: 998 | V33: 24 | W33: 0 | X33: 0 | Y33: 24 | Z33: 5 | AA33: 998 | AB33: 24 | AC33: 0 | AD33: 0 | CR33: 5 | CS33: 998 | CT33: 24 | CU33: 0 | CV33: 0 | CW33: 0 | CX33: 0
A34: 00050999 | B34: 0005 | C34: 0999 | D34: 25 | E34: 5 | F34: Agawam | G34: 999 | H34: Total | I34: 41326070.32 | J34: 1 | K34: =SUM(K30:K33) -> 41841475.45 | L34: =SUM(L30:L33) -> 1 | M34: =VLOOKUP(E34,town351,23) -> 22698814 | N34: =SUM(N30:N33) -> 22698814 | O34: 22474431 | P34: =SUM(P30:P33) -> 224383 | Q34: 0.9983923508 | R34: 3773 | T34: 5 | U34: 999 | V34: 25 | W34: 3677 | X34: 41841475.45 | Y34: 25 | Z34: 5 | AA34: 999 | AB34: 25 | AC34: 3677 | AD34: 41841475.45 | CR34: 5 | CS34: 999 | CT34: 25 | CU34: 3773 | CV34: 41326070.32 | CW34: 1 | CX34: 22474431
A35: 00060006 | B35: 0006 | C35: 0006 | D35: 26 | E35: 6 | F35: Alford | G35: 6 | H35: Alford | I35: 0 | J35: 0 | K35: =X35 -> 0 | L35: =IF(K39>0, K35/K39, 0) -> 0 | N35: =ROUND(M39*L35,0) -> 0 | O35: 0 | P35: =N35-O35 -> 0 | Q35: 0 | R35: 0 | T35: 6 | U35: 6 | V35: 26 | W35: 0 | X35: 0 | Y35: 26 | Z35: 6 | AA35: 6 | AB35: 26 | AC35: 0 | AD35: 0 | CR35: 6 | CS35: 6 | CT35: 26 | CU35: 0 | CV35: 0 | CW35: 0 | CX35: 0
A36: 00060765 | B36: 0006 | C36: 0765 | D36: 27 | E36: 6 | F36: Alford | G36: 765 | H36: Southern Berkshire | I36: 275789.3386 | J36: 1 | K36: 259018.5658 | L36: =IF(K39>0, K36/K39, 0) -> 1 | N36: =ROUND(M39*L36,0) -> 213690 | O36: 185505 | P36: =N36-O36 -> 28185 | Q36: 15.19366055 | R36: 25.33131619 | T36: 6 | U36: 765 | V36: 27 | W36: 22.4619883 | X36: 259018.5658 | Y36: 27 | Z36: 6 | AA36: 765 | AB36: 27 | AC36: 22.4619883 | AD36: 259018.5658 | CR36: 6 | CS36: 765 | CT36: 27 | CU36: 25.33131619 | CV36: 275789.3386 | CW36: 1 | CX36: 185505
A37: 00060998 | B37: 0006 | C37: 0998 | D37: 28 | E37: 6 | G37: 998 | I37: 0 | J37: 0 | K37: 0 | L37: =IF(K39>0, K37/K39, 0) -> 0 | N37: =ROUND(M39*L37,0) -> 0 | O37: 0 | P37: =N37-O37 -> 0 | Q37: 0 | R37: 0 | T37: 6 | U37: 998 | V37: 28 | W37: 0 | X37: 0 | Y37: 28 | Z37: 6 | AA37: 998 | AB37: 28 | AC37: 0 | AD37: 0 | CR37: 6 | CS37: 998 | CT37: 28 | CU37: 0 | CV37: 0 | CW37: 0 | CX37: 0
A38: 00060998 | B38: 0006 | C38: 0998 | D38: 29 | E38: 6 | G38: 998 | I38: 0 | J38: 0 | K38: 0 | L38: =IF(K39>0, K38/K39, 0) -> 0 | N38: =ROUND(M39*L38,0) -> 0 | O38: 0 | P38: =N38-O38 -> 0 | Q38: 0 | R38: 0 | T38: 6 | U38: 998 | V38: 29 | W38: 0 | X38: 0 | Y38: 29 | Z38: 6 | AA38: 998 | AB38: 29 | AC38: 0 | AD38: 0 | CR38: 6 | CS38: 998 | CT38: 29 | CU38: 0 | CV38: 0 | CW38: 0 | CX38: 0
A39: 00060999 | B39: 0006 | C39: 0999 | D39: 30 | E39: 6 | F39: Alford | G39: 999 | H39: Total | I39: 275789.3386 | J39: 1 | K39: =SUM(K35:K38) -> 259018.5658 | L39: =SUM(L35:L38) -> 1 | M39: =VLOOKUP(E39,town351,23) -> 213690 | N39: =SUM(N35:N38) -> 213690 | O39: 185505 | P39: =SUM(P35:P38) -> 28185 | Q39: 15.19366055 | R39: 25.33131619 | T39: 6 | U39: 999 | V39: 30 | W39: 22.4619883 | X39: 259018.5658 | Y39: 30 | Z39: 6 | AA39: 999 | AB39: 30 | AC39: 22.4619883 | AD39: 259018.5658 | CR39: 6 | CS39: 999 | CT39: 30 | CU39: 25.33131619 | CV39: 275789.3386 | CW39: 1 | CX39: 185505
A40: 00070007 | B40: 0007 | C40: 0007 | D40: 31 | E40: 7 | F40: Amesbury | G40: 7 | H40: Amesbury | I40: 22830750.46 | J40: 0.9490965242 | K40: =X40 -> 22976448.76 | L40: =IF(K44>0, K40/K44, 0) -> 0.9330728199 | N40: =ROUND(M44*L40,0) -> 15558600 | O40: 15155898 | P40: =N40-O40 -> 402702 | Q40: 2.657064596 | R40: 2198 | T40: 7 | U40: 7 | V40: 31 | W40: 2112 | X40: 22976448.76 | Y40: 31 | Z40: 7 | AA40: 7 | AB40: 31 | AC40: 2112 | AD40: 22976448.76 | CR40: 7 | CS40: 7 | CT40: 31 | CU40: 2198 | CV40: 22830750.46 | CW40: 0.9490965242 | CX40: 15155898
A41: 00070885 | B41: 0007 | C41: 0885 | D41: 32 | E41: 7 | F41: Amesbury | G41: 885 | H41: Whittier | I41: 1224495.637 | J41: 0.05090347576 | K41: 1648048.14 | L41: =IF(K44>0, K41/K44, 0) -> 0.06692718012 | N41: =ROUND(M44*L41,0) -> 1115983 | O41: 812866 | P41: =N41-O41 -> 303117 | Q41: 37.28991002 | R41: 74 | T41: 7 | U41: 885 | V41: 32 | W41: 96.26827171 | X41: 1648048.14 | Y41: 32 | Z41: 7 | AA41: 885 | AB41: 32 | AC41: 96.26827171 | AD41: 1648048.14 | CR41: 7 | CS41: 885 | CT41: 32 | CU41: 74 | CV41: 1224495.637 | CW41: 0.05090347576 | CX41: 812866
A42: 00070998 | B42: 0007 | C42: 0998 | D42: 33 | E42: 7 | G42: 998 | I42: 0 | J42: 0 | K42: 0 | L42: =IF(K44>0, K42/K44, 0) -> 0 | N42: =ROUND(M44*L42,0) -> 0 | O42: 0 | P42: =N42-O42 -> 0 | Q42: 0 | R42: 0 | T42: 7 | U42: 998 | V42: 33 | W42: 0 | X42: 0 | Y42: 33 | Z42: 7 | AA42: 998 | AB42: 33 | AC42: 0 | AD42: 0 | CR42: 7 | CS42: 998 | CT42: 33 | CU42: 0 | CV42: 0 | CW42: 0 | CX42: 0
A43: 00070998 | B43: 0007 | C43: 0998 | D43: 34 | E43: 7 | G43: 998 | I43: 0 | J43: 0 | K43: 0 | L43: =IF(K44>0, K43/K44, 0) -> 0 | N43: =ROUND(M44*L43,0) -> 0 | O43: 0 | P43: =N43-O43 -> 0 | Q43: 0 | R43: 0 | T43: 7 | U43: 998 | V43: 34 | W43: 0 | X43: 0 | Y43: 34 | Z43: 7 | AA43: 998 | AB43: 34 | AC43: 0 | AD43: 0 | CR43: 7 | CS43: 998 | CT43: 34 | CU43: 0 | CV43: 0 | CW43: 0 | CX43: 0
A44: 00070999 | B44: 0007 | C44: 0999 | D44: 35 | E44: 7 | F44: Amesbury | G44: 999 | H44: Total | I44: 24055246.1 | J44: 1 | K44: =SUM(K40:K43) -> 24624496.9 | L44: =SUM(L40:L43) -> 1 | M44: =VLOOKUP(E44,town351,23) -> 16674583 | N44: =SUM(N40:N43) -> 16674583 | O44: 15968764 | P44: =SUM(P40:P43) -> 705819 | Q44: 4.41999769 | R44: 2272 | T44: 7 | U44: 999 | V44: 35 | W44: 2208.268272 | X44: 24624496.9 | Y44: 35 | Z44: 7 | AA44: 999 | AB44: 35 | AC44: 2208.268272 | AD44: 24624496.9 | CR44: 7 | CS44: 999 | CT44: 35 | CU44: 2272 | CV44: 24055246.1 | CW44: 1 | CX44: 15968764
A45: 00080008 | B45: 0008 | C45: 0008 | D45: 36 | E45: 8 | F45: Amherst | G45: 8 | H45: Amherst | I45: 11969353.38 | J45: 0.4813199267 | K45: =X45 -> 12626074.06 | L45: =IF(K49>0, K45/K49, 0) -> 0.4882365614 | N45: =ROUND(M49*L45,0) -> 9385583 | O45: 8946746 | P45: =N45-O45 -> 438837 | Q45: 4.904990038 | R45: 1106 | T45: 8 | U45: 8 | V45: 36 | W45: 1134 | X45: 12626074.06 | Y45: 36 | Z45: 8 | AA45: 8 | AB45: 36 | AC45: 1134 | AD45: 12626074.06 | CR45: 8 | CS45: 8 | CT45: 36 | CU45: 1106 | CV45: 11969353.38 | CW45: 0.4813199267 | CX45: 8946746
A46: 00080605 | B46: 0008 | C46: 0605 | D46: 37 | E46: 8 | F46: Amherst | G46: 605 | H46: Amherst Pelham | I46: 12898416.93 | J46: 0.5186800733 | K46: 13234492.43 | L46: =IF(K49>0, K46/K49, 0) -> 0.5117634386 | N46: =ROUND(M49*L46,0) -> 9837850 | O46: 9641195 | P46: =N46-O46 -> 196655 | Q46: 2.039736775 | R46: 1152 | T46: 8 | U46: 605 | V46: 37 | W46: 1123 | X46: 13234492.43 | Y46: 37 | Z46: 8 | AA46: 605 | AB46: 37 | AC46: 1123 | AD46: 13234492.43 | CR46: 8 | CS46: 605 | CT46: 37 | CU46: 1152 | CV46: 12898416.93 | CW46: 0.5186800733 | CX46: 9641195
A47: 00080998 | B47: 0008 | C47: 0998 | D47: 38 | E47: 8 | G47: 998 | I47: 0 | J47: 0 | K47: 0 | L47: =IF(K49>0, K47/K49, 0) -> 0 | N47: =ROUND(M49*L47,0) -> 0 | O47: 0 | P47: =N47-O47 -> 0 | Q47: 0 | R47: 0 | T47: 8 | U47: 998 | V47: 38 | W47: 0 | X47: 0 | Y47: 38 | Z47: 8 | AA47: 998 | AB47: 38 | AC47: 0 | AD47: 0 | CR47: 8 | CS47: 998 | CT47: 38 | CU47: 0 | CV47: 0 | CW47: 0 | CX47: 0
A48: 00080998 | B48: 0008 | C48: 0998 | D48: 39 | E48: 8 | G48: 998 | I48: 0 | J48: 0 | K48: 0 | L48: =IF(K49>0, K48/K49, 0) -> 0 | N48: =ROUND(M49*L48,0) -> 0 | O48: 0 | P48: =N48-O48 -> 0 | Q48: 0 | R48: 0 | T48: 8 | U48: 998 | V48: 39 | W48: 0 | X48: 0 | Y48: 39 | Z48: 8 | AA48: 998 | AB48: 39 | AC48: 0 | AD48: 0 | CR48: 8 | CS48: 998 | CT48: 39 | CU48: 0 | CV48: 0 | CW48: 0 | CX48: 0
A49: 00080999 | B49: 0008 | C49: 0999 | D49: 40 | E49: 8 | F49: Amherst | G49: 999 | H49: Total | I49: 24867770.31 | J49: 1 | K49: =SUM(K45:K48) -> 25860566.49 | L49: =SUM(L45:L48) -> 1 | M49: =VLOOKUP(E49,town351,23) -> 19223433 | N49: =SUM(N45:N48) -> 19223433 | O49: 18587941 | P49: =SUM(P45:P48) -> 635492 | Q49: 3.418840204 | R49: 2258 | T49: 8 | U49: 999 | V49: 40 | W49: 2257 | X49: 25860566.49 | Y49: 40 | Z49: 8 | AA49: 999 | AB49: 40 | AC49: 2257 | AD49: 25860566.49 | CR49: 8 | CS49: 999 | CT49: 40 | CU49: 2258 | CV49: 24867770.31 | CW49: 1 | CX49: 18587941
A50: 00090009 | B50: 0009 | C50: 0009 | D50: 41 | E50: 9 | F50: Andover | G50: 9 | H50: Andover | I50: 60546641.05 | J50: 0.9910091393 | K50: =X50 -> 63633273.61 | L50: =IF(K54>0, K50/K54, 0) -> 0.9903519044 | N50: =ROUND(M54*L50,0) -> 52179130 | O50: 49950979 | P50: =N50-O50 -> 2228151 | Q50: 4.460675335 | R50: 5805 | T50: 9 | U50: 9 | V50: 41 | W50: 5835 | X50: 63633273.61 | Y50: 41 | Z50: 9 | AA50: 9 | AB50: 41 | AC50: 5835 | AD50: 63633273.61 | CR50: 9 | CS50: 9 | CT50: 41 | CU50: 5805 | CV50: 60546641.05 | CW50: 0.9910091393 | CX50: 49950979
A51: 00090823 | B51: 0009 | C51: 0823 | D51: 42 | E51: 9 | F51: Andover | G51: 823 | H51: Greater Lawrence | I51: 549305.1397 | J51: 0.00899086067 | K51: 619920.9615 | L51: =IF(K54>0, K51/K54, 0) -> 0.009648095563 | N51: =ROUND(M54*L51,0) -> 508334 | O51: 453177 | P51: =N51-O51 -> 55157 | Q51: 12.17118256 | R51: 29 | T51: 9 | U51: 823 | V51: 42 | W51: 31.00000001 | X51: 619920.9615 | Y51: 42 | Z51: 9 | AA51: 823 | AB51: 42 | AC51: 31.00000001 | AD51: 619920.9615 | CR51: 9 | CS51: 823 | CT51: 42 | CU51: 29 | CV51: 549305.1397 | CW51: 0.00899086067 | CX51: 453177
A52: 00090998 | B52: 0009 | C52: 0998 | D52: 43 | E52: 9 | G52: 998 | I52: 0 | J52: 0 | K52: 0 | L52: =IF(K54>0, K52/K54, 0) -> 0 | N52: =ROUND(M54*L52,0) -> 0 | O52: 0 | P52: =N52-O52 -> 0 | Q52: 0 | R52: 0 | T52: 9 | U52: 998 | V52: 43 | W52: 0 | X52: 0 | Y52: 43 | Z52: 9 | AA52: 998 | AB52: 43 | AC52: 0 | AD52: 0 | CR52: 9 | CS52: 998 | CT52: 43 | CU52: 0 | CV52: 0 | CW52: 0 | CX52: 0
A53: 00090998 | B53: 0009 | C53: 0998 | D53: 44 | E53: 9 | G53: 998 | I53: 0 | J53: 0 | K53: 0 | L53: =IF(K54>0, K53/K54, 0) -> 0 | N53: =ROUND(M54*L53,0) -> 0 | O53: 0 | P53: =N53-O53 -> 0 | Q53: 0 | R53: 0 | T53: 9 | U53: 998 | V53: 44 | W53: 0 | X53: 0 | Y53: 44 | Z53: 9 | AA53: 998 | AB53: 44 | AC53: 0 | AD53: 0 | CR53: 9 | CS53: 998 | CT53: 44 | CU53: 0 | CV53: 0 | CW53: 0 | CX53: 0
A54: 00090999 | B54: 0009 | C54: 0999 | D54: 45 | E54: 9 | F54: Andover | G54: 999 | H54: Total | I54: 61095946.19 | J54: 1 | K54: =SUM(K50:K53) -> 64253194.57 | L54: =SUM(L50:L53) -> 1 | M54: =VLOOKUP(E54,town351,23) -> 52687464 | N54: =SUM(N50:N53) -> 52687464 | O54: 50404156 | P54: =SUM(P50:P53) -> 2283308 | Q54: 4.529999471 | R54: 5834 | T54: 9 | U54: 999 | V54: 45 | W54: 5866 | X54: 64253194.57 | Y54: 45 | Z54: 9 | AA54: 999 | AB54: 45 | AC54: 5866 | AD54: 64253194.57 | CR54: 9 | CS54: 999 | CT54: 45 | CU54: 5834 | CV54: 61095946.19 | CW54: 1 | CX54: 50404156
A55: 00100010 | B55: 0010 | C55: 0010 | D55: 46 | E55: 10 | F55: Arlington | G55: 10 | H55: Arlington | I55: 58002940.65 | J55: 0.965620222 | K55: =X55 -> 62154198.23 | L55: =IF(K59>0, K55/K59, 0) -> 0.9659221357 | N55: =ROUND(M59*L55,0) -> 48337415 | O55: 46237018 | P55: =N55-O55 -> 2100397 | Q55: 4.542674011 | R55: 5785 | T55: 10 | U55: 10 | V55: 46 | W55: 5980 | X55: 62154198.23 | Y55: 46 | Z55: 10 | AA55: 10 | AB55: 46 | AC55: 5980 | AD55: 62154198.23 | CR55: 10 | CS55: 10 | CT55: 46 | CU55: 5785 | CV55: 58002940.65 | CW55: 0.965620222 | CX55: 46237018
A56: 00100830 | B56: 0010 | C56: 0830 | D56: 47 | E56: 10 | F56: Arlington | G56: 830 | H56: Minuteman | I56: 2065126.824 | J56: 0.03437977799 | K56: 2192808.564 | L56: =IF(K59>0, K56/K59, 0) -> 0.03407786428 | N56: =ROUND(M59*L56,0) -> 1705351 | O56: 1646215 | P56: =N56-O56 -> 59136 | Q56: 3.592240382 | R56: 115.3372434 | T56: 10 | U56: 830 | V56: 47 | W56: 120 | X56: 2192808.564 | Y56: 47 | Z56: 10 | AA56: 830 | AB56: 47 | AC56: 120 | AD56: 2192808.564 | CR56: 10 | CS56: 830 | CT56: 47 | CU56: 115.3372434 | CV56: 2065126.824 | CW56: 0.03437977799 | CX56: 1646215
A57: 00100998 | B57: 0010 | C57: 0998 | D57: 48 | E57: 10 | G57: 998 | I57: 0 | J57: 0 | K57: 0 | L57: =IF(K59>0, K57/K59, 0) -> 0 | N57: =ROUND(M59*L57,0) -> 0 | O57: 0 | P57: =N57-O57 -> 0 | Q57: 0 | R57: 0 | T57: 10 | U57: 998 | V57: 48 | W57: 0 | X57: 0 | Y57: 48 | Z57: 10 | AA57: 998 | AB57: 48 | AC57: 0 | AD57: 0 | CR57: 10 | CS57: 998 | CT57: 48 | CU57: 0 | CV57: 0 | CW57: 0 | CX57: 0
A58: 00100998 | B58: 0010 | C58: 0998 | D58: 49 | E58: 10 | G58: 998 | I58: 0 | J58: 0 | K58: 0 | L58: =IF(K59>0, K58/K59, 0) -> 0 | N58: =ROUND(M59*L58,0) -> 0 | O58: 0 | P58: =N58-O58 -> 0 | Q58: 0 | R58: 0 | T58: 10 | U58: 998 | V58: 49 | W58: 0 | X58: 0 | Y58: 49 | Z58: 10 | AA58: 998 | AB58: 49 | AC58: 0 | AD58: 0 | CR58: 10 | CS58: 998 | CT58: 49 | CU58: 0 | CV58: 0 | CW58: 0 | CX58: 0
A59: 00100999 | B59: 0010 | C59: 0999 | D59: 50 | E59: 10 | F59: Arlington | G59: 999 | H59: Total | I59: 60068067.47 | J59: 1 | K59: =SUM(K55:K58) -> 64347006.79 | L59: =SUM(L55:L58) -> 1 | M59: =VLOOKUP(E59,town351,23) -> 50042766 | N59: =SUM(N55:N58) -> 50042766 | O59: 47883233 | P59: =SUM(P55:P58) -> 2159533 | Q59: 4.509998312 | R59: 5900.337243 | T59: 10 | U59: 999 | V59: 50 | W59: 6100 | X59: 64347006.79 | Y59: 50 | Z59: 10 | AA59: 999 | AB59: 50 | AC59: 6100 | AD59: 64347006.79 | CR59: 10 | CS59: 999 | CT59: 50 | CU59: 5900.337243 | CV59: 60068067.47 | CW59: 1 | CX59: 47883233
A60: 00110011 | B60: 0011 | C60: 0011 | D60: 51 | E60: 11 | F60: Ashburnham | G60: 11 | H60: Ashburnham | I60: 0 | J60: 0 | K60: =X60 -> 0 | L60: =IF(K64>0, K60/K64, 0) -> 0 | N60: =ROUND(M64*L60,0) -> 0 | O60: 0 | P60: =N60-O60 -> 0 | Q60: 0 | R60: 0 | T60: 11 | U60: 11 | V60: 51 | W60: 0 | X60: 0 | Y60: 51 | Z60: 11 | AA60: 11 | AB60: 51 | AC60: 0 | AD60: 0 | CR60: 11 | CS60: 11 | CT60: 51 | CU60: 0 | CV60: 0 | CW60: 0 | CX60: 0
A61: 00110610 | B61: 0011 | C61: 0610 | D61: 52 | E61: 11 | F61: Ashburnham | G61: 610 | H61: Ashburnham Westminster | I61: 10862999.7 | J61: 0.9127346045 | K61: 10673159.89 | L61: =IF(K64>0, K61/K64, 0) -> 0.9145686057 | N61: =ROUND(M64*L61,0) -> 4916771 | O61: 4717731 | P61: =N61-O61 -> 199040 | Q61: 4.218977301 | R61: 1076.284344 | T61: 11 | U61: 610 | V61: 52 | W61: 1020.045276 | X61: 10673159.89 | Y61: 52 | Z61: 11 | AA61: 610 | AB61: 52 | AC61: 1020.045276 | AD61: 10673159.89 | CR61: 11 | CS61: 610 | CT61: 52 | CU61: 1076.284344 | CV61: 10862999.7 | CW61: 0.9127346045 | CX61: 4717731
A62: 00110832 | B62: 0011 | C62: 0832 | D62: 53 | E62: 11 | F62: Ashburnham | G62: 832 | H62: Montachusett | I62: 1038597.594 | J62: 0.08726539548 | K62: 996997.8476 | L62: =IF(K64>0, K62/K64, 0) -> 0.0854313943 | N62: =ROUND(M64*L62,0) -> 459284 | O62: 451056 | P62: =N62-O62 -> 8228 | Q62: 1.82416374 | R62: 64.04306865 | T62: 11 | U62: 832 | V62: 53 | W62: 59 | X62: 996997.8476 | Y62: 53 | Z62: 11 | AA62: 832 | AB62: 53 | AC62: 59 | AD62: 996997.8476 | CR62: 11 | CS62: 832 | CT62: 53 | CU62: 64.04306865 | CV62: 1038597.594 | CW62: 0.08726539548 | CX62: 451056
A63: 00110998 | B63: 0011 | C63: 0998 | D63: 54 | E63: 11 | G63: 998 | I63: 0 | J63: 0 | K63: 0 | L63: =IF(K64>0, K63/K64, 0) -> 0 | N63: =ROUND(M64*L63,0) -> 0 | O63: 0 | P63: =N63-O63 -> 0 | Q63: 0 | R63: 0 | T63: 11 | U63: 998 | V63: 54 | W63: 0 | X63: 0 | Y63: 54 | Z63: 11 | AA63: 998 | AB63: 54 | AC63: 0 | AD63: 0 | CR63: 11 | CS63: 998 | CT63: 54 | CU63: 0 | CV63: 0 | CW63: 0 | CX63: 0
A64: 00110999 | B64: 0011 | C64: 0999 | D64: 55 | E64: 11 | F64: Ashburnham | G64: 999 | H64: Total | I64: 11901597.29 | J64: 1 | K64: =SUM(K60:K63) -> 11670157.74 | L64: =SUM(L60:L63) -> 1 | M64: =VLOOKUP(E64,town351,23) -> 5376055 | N64: =SUM(N60:N63) -> 5376055 | O64: 5168787 | P64: =SUM(P60:P63) -> 207268 | Q64: 4.00999306 | R64: 1140.327412 | T64: 11 | U64: 999 | V64: 55 | W64: 1079.045276 | X64: 11670157.74 | Y64: 55 | Z64: 11 | AA64: 999 | AB64: 55 | AC64: 1079.045276 | AD64: 11670157.74 | CR64: 11 | CS64: 999 | CT64: 55 | CU64: 1140.327412 | CV64: 11901597.29 | CW64: 1 | CX64: 5168787
A65: 00120012 | B65: 0012 | C65: 0012 | D65: 56 | E65: 12 | F65: Ashby | G65: 12 | H65: Ashby | I65: 0 | J65: 0 | K65: =X65 -> 0 | L65: =IF(K69>0, K65/K69, 0) -> 0 | N65: =ROUND(M69*L65,0) -> 0 | O65: 0 | P65: =N65-O65 -> 0 | Q65: 0 | R65: 0 | T65: 12 | U65: 12 | V65: 56 | W65: 0 | X65: 0 | Y65: 56 | Z65: 12 | AA65: 12 | AB65: 56 | AC65: 0 | AD65: 0 | CR65: 12 | CS65: 12 | CT65: 56 | CU65: 0 | CV65: 0 | CW65: 0 | CX65: 0
A66: 00120735 | B66: 0012 | C66: 0735 | D66: 57 | E66: 12 | F66: Ashby | G66: 735 | H66: North Middlesex | I66: 3774894.734 | J66: 0.8891500395 | K66: 3847641.807 | L66: =IF(K69>0, K66/K69, 0) -> 0.8767782629 | N66: =ROUND(M69*L66,0) -> 2203416 | O66: 2175126 | P66: =N66-O66 -> 28290 | Q66: 1.300614309 | R66: 370.7240412 | T66: 12 | U66: 735 | V66: 57 | W66: 363.1624413 | X66: 3847641.807 | Y66: 57 | Z66: 12 | AA66: 735 | AB66: 57 | AC66: 363.1624413 | AD66: 3847641.807 | CR66: 12 | CS66: 735 | CT66: 57 | CU66: 370.7240412 | CV66: 3774894.734 | CW66: 0.8891500395 | CX66: 2175126
A67: 00120832 | B67: 0012 | C67: 0832 | D67: 58 | E67: 12 | F67: Ashby | G67: 832 | H67: Montachusett | I67: 470614.5348 | J67: 0.1108499605 | K67: 540744.5954 | L67: =IF(K69>0, K67/K69, 0) -> 0.1232217371 | N67: =ROUND(M69*L67,0) -> 309666 | O67: 271172 | P67: =N67-O67 -> 38494 | Q67: 14.19541841 | R67: 29.01951547 | T67: 12 | U67: 832 | V67: 58 | W67: 32 | X67: 540744.5954 | Y67: 58 | Z67: 12 | AA67: 832 | AB67: 58 | AC67: 32 | AD67: 540744.5954 | CR67: 12 | CS67: 832 | CT67: 58 | CU67: 29.01951547 | CV67: 470614.5348 | CW67: 0.1108499605 | CX67: 271172
A68: 00120998 | B68: 0012 | C68: 0998 | D68: 59 | E68: 12 | G68: 998 | I68: 0 | J68: 0 | K68: 0 | L68: =IF(K69>0, K68/K69, 0) -> 0 | N68: =ROUND(M69*L68,0) -> 0 | O68: 0 | P68: =N68-O68 -> 0 | Q68: 0 | R68: 0 | T68: 12 | U68: 998 | V68: 59 | W68: 0 | X68: 0 | Y68: 59 | Z68: 12 | AA68: 998 | AB68: 59 | AC68: 0 | AD68: 0 | CR68: 12 | CS68: 998 | CT68: 59 | CU68: 0 | CV68: 0 | CW68: 0 | CX68: 0
A69: 00120999 | B69: 0012 | C69: 0999 | D69: 60 | E69: 12 | F69: Ashby | G69: 999 | H69: Total | I69: 4245509.269 | J69: 1 | K69: =SUM(K65:K68) -> 4388386.402 | L69: =SUM(L65:L68) -> 1 | M69: =VLOOKUP(E69,town351,23) -> 2513082 | N69: =SUM(N65:N68) -> 2513082 | O69: 2446298 | P69: =SUM(P65:P68) -> 66784 | Q69: 2.730002641 | R69: 399.7435566 | T69: 12 | U69: 999 | V69: 60 | W69: 395.1624413 | X69: 4388386.402 | Y69: 60 | Z69: 12 | AA69: 999 | AB69: 60 | AC69: 395.1624413 | AD69: 4388386.402 | CR69: 12 | CS69: 999 | CT69: 60 | CU69: 399.7435566 | CV69: 4245509.269 | CW69: 1 | CX69: 2446298
A70: 00130013 | B70: 0013 | C70: 0013 | D70: 61 | E70: 13 | F70: Ashfield | G70: 13 | H70: Ashfield | I70: 233861.83 | J70: 0.1066373907 | K70: =X70 -> 100602.5808 | L70: =IF(K74>0, K70/K74, 0) -> 0.04916472115 | N70: =ROUND(M74*L70,0) -> 74995 | O70: 163542 | P70: =N70-O70 -> -88547 | Q70: -54.14327818 | R70: 15 | T70: 13 | U70: 13 | V70: 61 | W70: 7 | X70: 100602.5808 | Y70: 61 | Z70: 13 | AA70: 13 | AB70: 61 | AC70: 7 | AD70: 100602.5808 | CR70: 13 | CS70: 13 | CT70: 61 | CU70: 15 | CV70: 233861.83 | CW70: 0.1066373907 | CX70: 163542
A71: 00130717 | B71: 0013 | C71: 0717 | D71: 62 | E71: 13 | F71: Ashfield | G71: 717 | H71: Mohawk Trail | I71: 1959194.738 | J71: 0.8933626093 | K71: 1945632.574 | L71: =IF(K74>0, K71/K74, 0) -> 0.9508352788 | N71: =ROUND(M74*L71,0) -> 1450392 | O71: 1370082 | P71: =N71-O71 -> 80310 | Q71: 5.86169295 | R71: 179.693617 | T71: 13 | U71: 717 | V71: 62 | W71: 172.2222222 | X71: 1945632.574 | Y71: 62 | Z71: 13 | AA71: 717 | AB71: 62 | AC71: 172.2222222 | AD71: 1945632.574 | CR71: 13 | CS71: 717 | CT71: 62 | CU71: 179.693617 | CV71: 1959194.738 | CW71: 0.8933626093 | CX71: 1370082
A72: 00130998 | B72: 0013 | C72: 0998 | D72: 63 | E72: 13 | G72: 998 | I72: 0 | J72: 0 | K72: 0 | L72: =IF(K74>0, K72/K74, 0) -> 0 | N72: =ROUND(M74*L72,0) -> 0 | O72: 0 | P72: =N72-O72 -> 0 | Q72: 0 | R72: 0 | T72: 13 | U72: 998 | V72: 63 | W72: 0 | X72: 0 | Y72: 63 | Z72: 13 | AA72: 998 | AB72: 63 | AC72: 0 | AD72: 0 | CR72: 13 | CS72: 998 | CT72: 63 | CU72: 0 | CV72: 0 | CW72: 0 | CX72: 0
A73: 00130998 | B73: 0013 | C73: 0998 | D73: 64 | E73: 13 | G73: 998 | I73: 0 | J73: 0 | K73: 0 | L73: =IF(K74>0, K73/K74, 0) -> 0 | N73: =ROUND(M74*L73,0) -> 0 | O73: 0 | P73: =N73-O73 -> 0 | Q73: 0 | R73: 0 | T73: 13 | U73: 998 | V73: 64 | W73: 0 | X73: 0 | Y73: 64 | Z73: 13 | AA73: 998 | AB73: 64 | AC73: 0 | AD73: 0 | CR73: 13 | CS73: 998 | CT73: 64 | CU73: 0 | CV73: 0 | CW73: 0 | CX73: 0
A74: =B74&C74 -> 00130999 | B74: 0013 | C74: 0999 | D74: 65 | E74: 13 | F74: Ashfield | G74: 999 | H74: Total | I74: 2193056.568 | J74: 1 | K74: =SUM(K70:K73) -> 2046235.155 | L74: =SUM(L70:L73) -> 1 | M74: =VLOOKUP(E74,town351,23) -> 1525387 | N74: =SUM(N70:N73) -> 1525387 | O74: 1533624 | P74: =SUM(P70:P73) -> -8237 | Q74: -0.5370938379 | R74: 194.693617 | T74: =VLOOKUP($D74, foundoptions, VLOOKUP($T$6, foundoptcell, 2, FALSE), FALSE) -> 13 | U74: =VLOOKUP($D74, foundoptions, VLOOKUP($T$6, foundoptcell, 2, FALSE)+1, FALSE) -> 999 | V74: =VLOOKUP($D74, foundoptions, VLOOKUP($T$6, foundoptcell, 2, FALSE)+2, FALSE) -> 65 | W74: =VLOOKUP($D74, foundoptions, VLOOKUP($T$6, foundoptcell, 2, FALSE)+3, FALSE) -> 179.2222222 | X74: =VLOOKUP($D74, foundoptions, VLOOKUP($T$6, foundoptcell, 2, FALSE)+4, FALSE) -> 2046235.155 | Y74: 65 | Z74: 13 | AA74: 999 | AB74: 65 | AC74: 179.2222222 | AD74: 2046235.155 | CR74: 13 | CS74: 999 | CT74: 65 | CU74: 194.693617 | CV74: 2193056.568 | CW74: 1 | CX74: 1533624
A75: 00140014 | B75: 0014 | C75: 0014 | D75: 66 | E75: 14 | F75: Ashland | G75: 14 | H75: Ashland | I75: 26344731.8 | J75: 0.9575405389 | K75: =X75 -> 29132140.57 | L75: =IF(K79>0, K75/K79, 0) -> 0.9660113788 | N75: =ROUND(M79*L75,0) -> 21341608 | O75: 20247938 | P75: =N75-O75 -> 1093670 | Q75: 5.401389514 | R75: 2581 | T75: 14 | U75: 14 | V75: 66 | W75: 2764 | X75: 29132140.57 | Y75: =D75 -> 66 | Z75: 14 | AA75: 14 | AB75: 66 | AC75: 2764 | AD75: 29132140.57 | CR75: 14 | CS75: 14 | CT75: 66 | CU75: 2581 | CV75: 26344731.8 | CW75: 0.9575405389 | CX75: 20247938
A76: 00140829 | B76: 0014 | C76: 0829 | D76: 67 | E76: 14 | F76: Ashland | G76: 829 | H76: South Middlesex | I76: 1168183.558 | J76: 0.04245946106 | K76: 1024999.614 | L76: =IF(K79>0, K76/K79, 0) -> 0.03398862118 | N76: =ROUND(M79*L76,0) -> 750894 | O76: 897838 | P76: =N76-O76 -> -146944 | Q76: -16.36642691 | R76: 66 | T76: 14 | U76: 829 | V76: 67 | W76: 55 | X76: 1024999.614 | Y76: 67 | Z76: 14 | AA76: 829 | AB76: 67 | AC76: 55 | AD76: 1024999.614 | CR76: 14 | CS76: 829 | CT76: 67 | CU76: 66 | CV76: 1168183.558 | CW76: 0.04245946106 | CX76: 897838
A77: 00140998 | B77: 0014 | C77: 0998 | D77: 68 | E77: 14 | G77: 998 | I77: 0 | J77: 0 | K77: 0 | L77: =IF(K79>0, K77/K79, 0) -> 0 | N77: =ROUND(M79*L77,0) -> 0 | O77: 0 | P77: =N77-O77 -> 0 | Q77: 0 | R77: 0 | T77: 14 | U77: 998 | V77: 68 | W77: 0 | X77: 0 | Y77: 68 | Z77: 14 | AA77: 998 | AB77: 68 | AC77: 0 | AD77: 0 | CR77: 14 | CS77: 998 | CT77: 68 | CU77: 0 | CV77: 0 | CW77: 0 | CX77: 0
A78: 00140998 | B78: 0014 | C78: 0998 | D78: 69 | E78: 14 | G78: 998 | I78: 0 | J78: 0 | K78: 0 | L78: =IF(K79>0, K78/K79, 0) -> 0 | N78: =ROUND(M79*L78,0) -> 0 | O78: 0 | P78: =N78-O78 -> 0 | Q78: 0 | R78: 0 | T78: 14 | U78: 998 | V78: 69 | W78: 0 | X78: 0 | Y78: 69 | Z78: 14 | AA78: 998 | AB78: 69 | AC78: 0 | AD78: 0 | CR78: 14 | CS78: 998 | CT78: 69 | CU78: 0 | CV78: 0 | CW78: 0 | CX78: 0
A79: 00140999 | B79: 0014 | C79: 0999 | D79: 70 | E79: 14 | F79: Ashland | G79: 999 | H79: Total | I79: 27512915.35 | J79: 1 | K79: =SUM(K75:K78) -> 30157140.19 | L79: =SUM(L75:L78) -> 1 | M79: =VLOOKUP(E79,town351,23) -> 22092502 | N79: =SUM(N75:N78) -> 22092502 | O79: 21145776 | P79: =SUM(P75:P78) -> 946726 | Q79: 4.477140021 | R79: 2647 | T79: 14 | U79: 999 | V79: 70 | W79: 2819 | X79: 30157140.19 | Y79: 70 | Z79: 14 | AA79: 999 | AB79: 70 | AC79: 2819 | AD79: 30157140.19 | CR79: 14 | CS79: 999 | CT79: 70 | CU79: 2647 | CV79: 27512915.35 | CW79: 1 | CX79: 21145776
A80: 00150015 | B80: 0015 | C80: 0015 | D80: 71 | E80: 15 | F80: Athol | G80: 15 | H80: Athol | I80: 13837.16 | J80: 0.0007016448517 | K80: =X80 -> 0 | L80: =IF(K84>0, K80/K84, 0) -> 0 | N80: =ROUND(M84*L80,0) -> 0 | O80: 2099 | P80: =N80-O80 -> -2099 | Q80: =IF(O80>0,P80*100/O80,IF(P80>0,100,0)) -> -100 | R80: 1 | T80: 15 | U80: 15 | V80: 71 | W80: 0 | X80: 0 | Y80: 71 | Z80: 15 | AA80: 15 | AB80: 71 | AC80: 0 | AD80: 0 | CR80: 15 | CS80: 15 | CT80: 71 | CU80: 1 | CV80: 13837.16 | CW80: 0.0007016448517 | CX80: 2099
A81: 00150615 | B81: 0015 | C81: 0615 | D81: 72 | E81: 15 | F81: Athol | G81: 615 | H81: Athol Royalston | I81: 18262894.24 | J81: 0.9260618308 | K81: 18780938.89 | L81: =IF(K84>0, K81/K84, 0) -> 0.918209669 | N81: =ROUND(M84*L81,0) -> 2907921 | O81: 2770441 | P81: =N81-O81 -> 137480 | Q81: =IF(O81>0,P81*100/O81,IF(P81>0,100,0)) -> 4.962386855 | R81: 1628.887892 | T81: 15 | U81: 615 | V81: 72 | W81: 1617.073696 | X81: 18780938.89 | Y81: 72 | Z81: 15 | AA81: 615 | AB81: 72 | AC81: 1617.073696 | AD81: 18780938.89 | CR81: 15 | CS81: 615 | CT81: 72 | CU81: 1628.887892 | CV81: 18262894.24 | CW81: 0.9260618308 | CX81: 2770441
A82: 00150832 | B82: 0015 | C82: 0832 | D82: 73 | E82: 15 | F82: Athol | G82: 832 | H82: Montachusett | I82: 1444299.779 | J82: 0.0732365243 | K82: 1672928.592 | L82: =IF(K84>0, K82/K84, 0) -> 0.081790331 | N82: =ROUND(M84*L82,0) -> 259026 | O82: 219097 | P82: =N82-O82 -> 39929 | Q82: =IF(O82>0,P82*100/O82,IF(P82>0,100,0)) -> 18.22434812 | R82: 89.05989233 | T82: 15 | U82: 832 | V82: 73 | W82: 98.99999999 | X82: 1672928.592 | Y82: 73 | Z82: 15 | AA82: 832 | AB82: 73 | AC82: 98.99999999 | AD82: 1672928.592 | CR82: 15 | CS82: 832 | CT82: 73 | CU82: 89.05989233 | CV82: 1444299.779 | CW82: 0.0732365243 | CX82: 219097
A83: 00150998 | B83: 0015 | C83: 0998 | D83: 74 | E83: 15 | G83: 998 | I83: 0 | J83: 0 | K83: 0 | L83: =IF(K84>0, K83/K84, 0) -> 0 | N83: =ROUND(M84*L83,0) -> 0 | O83: 0 | P83: =N83-O83 -> 0 | Q83: =IF(O83>0,P83*100/O83,IF(P83>0,100,0)) -> 0 | R83: 0 | T83: 15 | U83: 998 | V83: 74 | W83: 0 | X83: 0 | Y83: 74 | Z83: 15 | AA83: 998 | AB83: 74 | AC83: 0 | AD83: 0 | CR83: 15 | CS83: 998 | CT83: 74 | CU83: 0 | CV83: 0 | CW83: 0 | CX83: 0
A84: 00150999 | B84: 0015 | C84: 0999 | D84: 75 | E84: 15 | F84: Athol | G84: 999 | H84: Total | I84: 19721031.18 | J84: 1 | K84: =SUM(K80:K83) -> 20453867.48 | L84: =SUM(L80:L83) -> 1 | M84: =VLOOKUP(E84,town351,23) -> 3166947 | N84: =SUM(N80:N83) -> 3166947 | O84: 2991637 | P84: =SUM(P80:P83) -> 175310 | Q84: =IF(O84>0,P84*100/O84,IF(P84>0,100,0)) -> 5.8600024 | R84: 1718.947785 | T84: 15 | U84: 999 | V84: 75 | W84: 1716.073696 | X84: 20453867.48 | Y84: 75 | Z84: 15 | AA84: 999 | AB84: 75 | AC84: 1716.073696 | AD84: 20453867.48 | CR84: 15 | CS84: 999 | CT84: 75 | CU84: 1718.947785 | CV84: 19721031.18 | CW84: 1 | CX84: 2991637
A85: 00160016 | B85: 0016 | C85: 0016 | D85: 76 | E85: 16 | F85: Attleboro | G85: 16 | H85: Attleboro | I85: 72980818.83 | J85: 0.9927616586 | K85: =X85 -> 77130991.23 | L85: =IF(K89>0, K85/K89, 0) -> 0.9940611805 | N85: =ROUND(M89*L85,0) -> 36638359 | O85: 35206834 | P85: =N85-O85 -> 1431525 | Q85: 4.066042973 | R85: 6311 | T85: 16 | U85: 16 | V85: 76 | W85: 6355 | X85: 77130991.23 | Y85: 76 | Z85: 16 | AA85: 16 | AB85: 76 | AC85: 6355 | AD85: 77130991.23 | CR85: 16 | CS85: 16 | CT85: 76 | CU85: 6311 | CV85: 72980818.83 | CW85: 0.9927616586 | CX85: 35206834
A86: 00160910 | B86: 0016 | C86: 0910 | D86: 77 | E86: 16 | F86: Attleboro | G86: 910 | H86: Bristol County | I86: 532111.6905 | J86: 0.007238341429 | K86: 460803.6612 | L86: =IF(K89>0, K86/K89, 0) -> 0.005938819456 | N86: =ROUND(M89*L86,0) -> 218889 | O86: 256697 | P86: =N86-O86 -> -37808 | Q86: -14.72864895 | R86: 33 | T86: 16 | U86: 910 | V86: 77 | W86: 27 | X86: 460803.6612 | Y86: 77 | Z86: 16 | AA86: 910 | AB86: 77 | AC86: 27 | AD86: 460803.6612 | CR86: 16 | CS86: 910 | CT86: 77 | CU86: 33 | CV86: 532111.6905 | CW86: 0.007238341429 | CX86: 256697
A87: 00160998 | B87: 0016 | C87: 0998 | D87: 78 | E87: 16 | G87: 998 | I87: 0 | J87: 0 | K87: 0 | L87: =IF(K89>0, K87/K89, 0) -> 0 | N87: =ROUND(M89*L87,0) -> 0 | O87: 0 | P87: =N87-O87 -> 0 | Q87: 0 | R87: 0 | T87: 16 | U87: 998 | V87: 78 | W87: 0 | X87: 0 | Y87: 78 | Z87: 16 | AA87: 998 | AB87: 78 | AC87: 0 | AD87: 0 | CR87: 16 | CS87: 998 | CT87: 78 | CU87: 0 | CV87: 0 | CW87: 0 | CX87: 0
A88: 00160998 | B88: 0016 | C88: 0998 | D88: 79 | E88: 16 | G88: 998 | I88: 0 | J88: 0 | K88: 0 | L88: =IF(K89>0, K88/K89, 0) -> 0 | N88: =ROUND(M89*L88,0) -> 0 | O88: 0 | P88: =N88-O88 -> 0 | Q88: 0 | R88: 0 | T88: 16 | U88: 998 | V88: 79 | W88: 0 | X88: 0 | Y88: 79 | Z88: 16 | AA88: 998 | AB88: 79 | AC88: 0 | AD88: 0 | CR88: 16 | CS88: 998 | CT88: 79 | CU88: 0 | CV88: 0 | CW88: 0 | CX88: 0
A89: 00160999 | B89: 0016 | C89: 0999 | D89: 80 | E89: 16 | F89: Attleboro | G89: 999 | H89: Total | I89: 73512930.52 | J89: 1 | K89: =SUM(K85:K88) -> 77591794.89 | L89: =SUM(L85:L88) -> 1 | M89: =VLOOKUP(E89,town351,23) -> 36857248 | N89: =SUM(N85:N88) -> 36857248 | O89: 35463531 | P89: =SUM(P85:P88) -> 1393717 | Q89: 3.930000653 | R89: 6344 | T89: 16 | U89: 999 | V89: 80 | W89: 6382 | X89: 77591794.89 | Y89: 80 | Z89: 16 | AA89: 999 | AB89: 80 | AC89: 6382 | AD89: 77591794.89 | CR89: 16 | CS89: 999 | CT89: 80 | CU89: 6344 | CV89: 73512930.52 | CW89: 1 | CX89: 35463531
A90: 00170017 | B90: 0017 | C90: 0017 | D90: 81 | E90: 17 | F90: Auburn | G90: 17 | H90: Auburn | I90: 25672129.78 | J90: 0.9495990138 | K90: =X90 -> 26752111.76 | L90: =IF(K94>0, K90/K94, 0) -> 0.9487874835 | N90: =ROUND(M94*L90,0) -> 14914189 | O90: 14624535 | P90: =N90-O90 -> 289654 | Q90: 1.980603144 | R90: 2495 | T90: 17 | U90: 17 | V90: 81 | W90: 2494 | X90: 26752111.76 | Y90: 81 | Z90: 17 | AA90: 17 | AB90: 81 | AC90: 2494 | AD90: 26752111.76 | CR90: 17 | CS90: 17 | CT90: 81 | CU90: 2495 | CV90: 25672129.78 | CW90: 0.9495990138 | CX90: 14624535
A91: 00170876 | B91: 0017 | C91: 0876 | D91: 82 | E91: 17 | F91: Auburn | G91: 876 | H91: Southern Worcester | I91: 1362575.824 | J91: 0.05040098621 | K91: 1443993.507 | L91: =IF(K94>0, K91/K94, 0) -> 0.05121251652 | N91: =ROUND(M94*L91,0) -> 805020 | O91: 776213 | P91: =N91-O91 -> 28807 | Q91: 3.711223595 | R91: 84 | T91: 17 | U91: 876 | V91: 82 | W91: 86 | X91: 1443993.507 | Y91: 82 | Z91: 17 | AA91: 876 | AB91: 82 | AC91: 86 | AD91: 1443993.507 | CR91: 17 | CS91: 876 | CT91: 82 | CU91: 84 | CV91: 1362575.824 | CW91: 0.05040098621 | CX91: 776213
A92: 00170998 | B92: 0017 | C92: 0998 | D92: 83 | E92: 17 | G92: 998 | I92: 0 | J92: 0 | K92: 0 | L92: =IF(K94>0, K92/K94, 0) -> 0 | N92: =ROUND(M94*L92,0) -> 0 | O92: 0 | P92: =N92-O92 -> 0 | Q92: 0 | R92: 0 | T92: 17 | U92: 998 | V92: 83 | W92: 0 | X92: 0 | Y92: 83 | Z92: 17 | AA92: 998 | AB92: 83 | AC92: 0 | AD92: 0 | CR92: 17 | CS92: 998 | CT92: 83 | CU92: 0 | CV92: 0 | CW92: 0 | CX92: 0
A93: 00170998 | B93: 0017 | C93: 0998 | D93: 84 | E93: 17 | G93: 998 | I93: 0 | J93: 0 | K93: 0 | L93: =IF(K94>0, K93/K94, 0) -> 0 | N93: =ROUND(M94*L93,0) -> 0 | O93: 0 | P93: =N93-O93 -> 0 | Q93: 0 | R93: 0 | T93: 17 | U93: 998 | V93: 84 | W93: 0 | X93: 0 | Y93: 84 | Z93: 17 | AA93: 998 | AB93: 84 | AC93: 0 | AD93: 0 | CR93: 17 | CS93: 998 | CT93: 84 | CU93: 0 | CV93: 0 | CW93: 0 | CX93: 0
A94: 00170999 | B94: 0017 | C94: 0999 | D94: 85 | E94: 17 | F94: Auburn | G94: 999 | H94: Total | I94: 27034705.6 | J94: 1 | K94: =SUM(K90:K93) -> 28196105.26 | L94: =SUM(L90:L93) -> 1 | M94: =VLOOKUP(E94,town351,23) -> 15719209 | N94: =SUM(N90:N93) -> 15719209 | O94: 15400748 | P94: =SUM(P90:P93) -> 318461 | Q94: 2.067828134 | R94: 2579 | T94: 17 | U94: 999 | V94: 85 | W94: 2580 | X94: 28196105.26 | Y94: 85 | Z94: 17 | AA94: 999 | AB94: 85 | AC94: 2580 | AD94: 28196105.26 | CR94: 17 | CS94: 999 | CT94: 85 | CU94: 2579 | CV94: 27034705.6 | CW94: 1 | CX94: 15400748
A95: 00180018 | B95: 0018 | C95: 0018 | D95: 86 | E95: 18 | F95: Avon | G95: 18 | H95: Avon | I95: 6193899.03 | J95: 0.8546657806 | K95: =X95 -> 6564824.891 | L95: =IF(K99>0, K95/K99, 0) -> 0.8628912325 | N95: =ROUND(M99*L95,0) -> 4481795 | O95: 4386495 | P95: =N95-O95 -> 95300 | Q95: 2.172577422 | R95: 561 | T95: 18 | U95: 18 | V95: 86 | W95: 563 | X95: 6564824.891 | Y95: 86 | Z95: 18 | AA95: 18 | AB95: 86 | AC95: 563 | AD95: 6564824.891 | CR95: 18 | CS95: 18 | CT95: 86 | CU95: 561 | CV95: 6193899.03 | CW95: 0.8546657806 | CX95: 4386495
A96: 00180806 | B96: 0018 | C96: 0806 | D96: 87 | E96: 18 | F96: Avon | G96: 806 | H96: Blue Hills | I96: 984907.1615 | J96: 0.1359025137 | K96: 954261.7874 | L96: =IF(K99>0, K96/K99, 0) -> 0.1254297172 | N96: =ROUND(M99*L96,0) -> 651473 | O96: 697507 | P96: =N96-O96 -> -46034 | Q96: -6.599790396 | R96: 58 | T96: 18 | U96: 806 | V96: 87 | W96: 54 | X96: 954261.7874 | Y96: 87 | Z96: 18 | AA96: 806 | AB96: 87 | AC96: 54 | AD96: 954261.7874 | CR96: 18 | CS96: 806 | CT96: 87 | CU96: 58 | CV96: 984907.1615 | CW96: 0.1359025137 | CX96: 697507
A97: 00180915 | B97: 0018 | C97: 0915 | D97: 88 | E97: 18 | F97: Avon | G97: 915 | H97: Norfolk County | I97: 68353.07351 | J97: 0.009431705722 | K97: 88853.51583 | L97: =IF(K99>0, K97/K99, 0) -> 0.01167905025 | N97: =ROUND(M99*L97,0) -> 60660 | O97: 48407 | P97: =N97-O97 -> 12253 | Q97: 25.31245481 | R97: 3.999999999 | T97: 18 | U97: 915 | V97: 88 | W97: 5 | X97: 88853.51583 | Y97: 88 | Z97: 18 | AA97: 915 | AB97: 88 | AC97: 5 | AD97: 88853.51583 | CR97: 18 | CS97: 915 | CT97: 88 | CU97: 3.999999999 | CV97: 68353.07351 | CW97: 0.009431705722 | CX97: 48407
A98: 00180998 | B98: 0018 | C98: 0998 | D98: 89 | E98: 18 | G98: 998 | I98: 0 | J98: 0 | K98: 0 | L98: =IF(K99>0, K98/K99, 0) -> 0 | N98: =ROUND(M99*L98,0) -> 0 | O98: 0 | P98: =N98-O98 -> 0 | Q98: 0 | R98: 0 | T98: 18 | U98: 998 | V98: 89 | W98: 0 | X98: 0 | Y98: 89 | Z98: 18 | AA98: 998 | AB98: 89 | AC98: 0 | AD98: 0 | CR98: 18 | CS98: 998 | CT98: 89 | CU98: 0 | CV98: 0 | CW98: 0 | CX98: 0
A99: 00180999 | B99: 0018 | C99: 0999 | D99: 90 | E99: 18 | F99: Avon | G99: 999 | H99: Total | I99: 7247159.265 | J99: 1 | K99: =SUM(K95:K98) -> 7607940.194 | L99: =SUM(L95:L98) -> 1 | M99: =VLOOKUP(E99,town351,23) -> 5193928 | N99: =SUM(N95:N98) -> 5193928 | O99: 5132409 | P99: =SUM(P95:P98) -> 61519 | Q99: 1.198637911 | R99: 623 | T99: 18 | U99: 999 | V99: 90 | W99: 622 | X99: 7607940.194 | Y99: 90 | Z99: 18 | AA99: 999 | AB99: 90 | AC99: 622 | AD99: 7607940.194 | CR99: 18 | CS99: 999 | CT99: 90 | CU99: 623 | CV99: 7247159.265 | CW99: 1 | CX99: 5132409
A100: 00190019 | B100: 0019 | C100: 0019 | D100: 91 | E100: 19 | F100: Ayer | G100: 19 | H100: Ayer | I100: 0 | J100: 0 | K100: =X100 -> 0 | L100: =IF(K104>0, K100/K104, 0) -> 0 | N100: =ROUND(M104*L100,0) -> 0 | O100: 0 | P100: =N100-O100 -> 0 | Q100: 0 | R100: 0 | T100: 19 | U100: 19 | V100: 91 | W100: 0 | X100: 0 | Y100: 91 | Z100: 19 | AA100: 19 | AB100: 91 | AC100: 0 | AD100: 0 | CR100: 19 | CS100: 19 | CT100: 91 | CU100: 0 | CV100: 0 | CW100: 0 | CX100: 0
A101: 00190616 | B101: 0019 | C101: 0616 | D101: 92 | E101: 19 | F101: Ayer | G101: 616 | H101: Ayer Shirley | I101: 9988703.748 | J101: 0.9274031692 | K101: 10743428.76 | L101: =IF(K104>0, K101/K104, 0) -> 0.9252940656 | N101: =ROUND(M104*L101,0) -> 7565796 | O101: 7215157 | P101: =N101-O101 -> 350639 | Q101: 4.859755651 | R101: 953.354394 | T101: 19 | U101: 616 | V101: 92 | W101: 979.8717654 | X101: 10743428.76 | Y101: 92 | Z101: 19 | AA101: 616 | AB101: 92 | AC101: 979.8717654 | AD101: 10743428.76 | CR101: 19 | CS101: 616 | CT101: 92 | CU101: 953.354394 | CV101: 9988703.748 | CW101: 0.9274031692 | CX101: 7215157
A102: 00190852 | B102: 0019 | C102: 0852 | D102: 93 | E102: 19 | F102: Ayer | G102: 852 | H102: Nashoba Valley | I102: 781912.613 | J102: 0.07259683075 | K102: 867397.6357 | L102: =IF(K104>0, K102/K104, 0) -> 0.07470593444 | N102: =ROUND(M104*L102,0) -> 610843 | O102: 564800 | P102: =N102-O102 -> 46043 | Q102: 8.152089235 | R102: 48 | T102: 19 | U102: 852 | V102: 93 | W102: 51 | X102: 867397.6357 | Y102: 93 | Z102: 19 | AA102: 852 | AB102: 93 | AC102: 51 | AD102: 867397.6357 | CR102: 19 | CS102: 852 | CT102: 93 | CU102: 48 | CV102: 781912.613 | CW102: 0.07259683075 | CX102: 564800
A103: 00190998 | B103: 0019 | C103: 0998 | D103: 94 | E103: 19 | G103: 998 | I103: 0 | J103: 0 | K103: 0 | L103: =IF(K104>0, K103/K104, 0) -> 0 | N103: =ROUND(M104*L103,0) -> 0 | O103: 0 | P103: =N103-O103 -> 0 | Q103: 0 | R103: 0 | T103: 19 | U103: 998 | V103: 94 | W103: 0 | X103: 0 | Y103: 94 | Z103: 19 | AA103: 998 | AB103: 94 | AC103: 0 | AD103: 0 | CR103: 19 | CS103: 998 | CT103: 94 | CU103: 0 | CV103: 0 | CW103: 0 | CX103: 0
A104: 00190999 | B104: 0019 | C104: 0999 | D104: 95 | E104: 19 | F104: Ayer | G104: 999 | H104: Total | I104: 10770616.36 | J104: 1 | K104: =SUM(K100:K103) -> 11610826.4 | L104: =SUM(L100:L103) -> 1 | M104: =VLOOKUP(E104,town351,23) -> 8176639 | N104: =SUM(N100:N103) -> 8176639 | O104: 7779957 | P104: =SUM(P100:P103) -> 396682 | Q104: 5.098768541 | R104: 1001.354394 | T104: 19 | U104: 999 | V104: 95 | W104: 1030.871765 | X104: 11610826.4 | Y104: 95 | Z104: 19 | AA104: 999 | AB104: 95 | AC104: 1030.871765 | AD104: 11610826.4 | CR104: 19 | CS104: 999 | CT104: 95 | CU104: 1001.354394 | CV104: 10770616.36 | CW104: 1 | CX104: 7779957
A105: 00200020 | B105: 0020 | C105: 0020 | D105: 96 | E105: 20 | F105: Barnstable | G105: 20 | H105: Barnstable | I105: 60393953.44 | J105: 0.952336101 | K105: =X105 -> 62927319.31 | L105: =IF(K109>0, K105/K109, 0) -> 0.9524301624 | N105: =ROUND(M109*L105,0) -> 51299915 | O105: 49825012 | P105: =N105-O105 -> 1474903 | Q105: 2.96016587 | R105: 5480 | T105: 20 | U105: 20 | V105: 96 | W105: 5444 | X105: 62927319.31 | Y105: 96 | Z105: 20 | AA105: 20 | AB105: 96 | AC105: 5444 | AD105: 62927319.31 | CR105: 20 | CS105: 20 | CT105: 96 | CU105: 5480 | CV105: 60393953.44 | CW105: 0.952336101 | CX105: 49825012
A106: 00200815 | B106: 0020 | C106: 0815 | D106: 97 | E106: 20 | F106: Barnstable | G106: 815 | H106: Cape Cod | I106: 3022684.212 | J106: 0.047663899 | K106: 3142952.082 | L106: =IF(K109>0, K106/K109, 0) -> 0.04756983763 | N106: =ROUND(M109*L106,0) -> 2562213 | O106: 2493714 | P106: =N106-O106 -> 68499 | Q106: 2.746866722 | R106: 179 | T106: 20 | U106: 815 | V106: 97 | W106: 177 | X106: 3142952.082 | Y106: 97 | Z106: 20 | AA106: 815 | AB106: 97 | AC106: 177 | AD106: 3142952.082 | CR106: 20 | CS106: 815 | CT106: 97 | CU106: 179 | CV106: 3022684.212 | CW106: 0.047663899 | CX106: 2493714
A107: 00200998 | B107: 0020 | C107: 0998 | D107: 98 | E107: 20 | G107: 998 | I107: 0 | J107: 0 | K107: 0 | L107: =IF(K109>0, K107/K109, 0) -> 0 | N107: =ROUND(M109*L107,0) -> 0 | O107: 0 | P107: =N107-O107 -> 0 | Q107: 0 | R107: 0 | T107: 20 | U107: 998 | V107: 98 | W107: 0 | X107: 0 | Y107: 98 | Z107: 20 | AA107: 998 | AB107: 98 | AC107: 0 | AD107: 0 | CR107: 20 | CS107: 998 | CT107: 98 | CU107: 0 | CV107: 0 | CW107: 0 | CX107: 0
A108: 00200998 | B108: 0020 | C108: 0998 | D108: 99 | E108: 20 | G108: 998 | I108: 0 | J108: 0 | K108: 0 | L108: =IF(K109>0, K108/K109, 0) -> 0 | N108: =ROUND(M109*L108,0) -> 0 | O108: 0 | P108: =N108-O108 -> 0 | Q108: 0 | R108: 0 | T108: 20 | U108: 998 | V108: 99 | W108: 0 | X108: 0 | Y108: 99 | Z108: 20 | AA108: 998 | AB108: 99 | AC108: 0 | AD108: 0 | CR108: 20 | CS108: 998 | CT108: 99 | CU108: 0 | CV108: 0 | CW108: 0 | CX108: 0
A109: 00200999 | B109: 0020 | C109: 0999 | D109: 100 | E109: 20 | F109: Barnstable | G109: 999 | H109: Total | I109: 63416637.65 | J109: 1 | K109: =SUM(K105:K108) -> 66070271.4 | L109: =SUM(L105:L108) -> 1 | M109: =VLOOKUP(E109,town351,23) -> 53862128 | N109: =SUM(N105:N108) -> 53862128 | O109: 52318726 | P109: =SUM(P105:P108) -> 1543402 | Q109: 2.949999203 | R109: 5659 | T109: 20 | U109: 999 | V109: 100 | W109: 5621 | X109: 66070271.4 | Y109: 100 | Z109: 20 | AA109: 999 | AB109: 100 | AC109: 5621 | AD109: 66070271.4 | CR109: 20 | CS109: 999 | CT109: 100 | CU109: 5659 | CV109: 63416637.65 | CW109: 1 | CX109: 52318726
A110: 00210021 | B110: 0021 | C110: 0021 | D110: 101 | E110: 21 | F110: Barre | G110: 21 | H110: Barre | I110: 0 | J110: 0 | K110: =X110 -> 0 | L110: =IF(K114>0, K110/K114, 0) -> 0 | N110: =ROUND(M114*L110,0) -> 0 | O110: 0 | P110: =N110-O110 -> 0 | Q110: 0 | R110: 0 | T110: 21 | U110: 21 | V110: 101 | W110: 0 | X110: 0 | Y110: 101 | Z110: 21 | AA110: 21 | AB110: 101 | AC110: 0 | AD110: 0 | CR110: 21 | CS110: 21 | CT110: 101 | CU110: 0 | CV110: 0 | CW110: 0 | CX110: 0
A111: 00210753 | B111: 0021 | C111: 0753 | D111: 102 | E111: 21 | F111: Barre | G111: 753 | H111: Quabbin | I111: 8357183.38 | J111: 0.9212855705 | K111: 8318835.199 | L111: =IF(K114>0, K111/K114, 0) -> 0.8897502435 | N111: =ROUND(M114*L111,0) -> 3227004 | O111: 3282113 | P111: =N111-O111 -> -55109 | Q111: -1.679070769 | R111: 790.1778412 | T111: 21 | U111: 753 | V111: 102 | W111: 756.7442806 | X111: 8318835.199 | Y111: 102 | Z111: 21 | AA111: 753 | AB111: 102 | AC111: 756.7442806 | AD111: 8318835.199 | CR111: 21 | CS111: 753 | CT111: 102 | CU111: 790.1778412 | CV111: 8357183.38 | CW111: 0.9212855705 | CX111: 3282113
A112: 00210832 | B112: 0021 | C112: 0832 | D112: 103 | E112: 21 | F112: Barre | G112: 832 | H112: Montachusett | I112: 714035.8459 | J112: 0.07871442946 | K112: 1030794.385 | L112: =IF(K114>0, K112/K114, 0) -> 0.1102497565 | N112: =ROUND(M114*L112,0) -> 399861 | O112: 280423 | P112: =N112-O112 -> 119438 | Q112: 42.5920841 | R112: 44.02960968 | T112: 21 | U112: 832 | V112: 103 | W112: 61.00000001 | X112: 1030794.385 | Y112: 103 | Z112: 21 | AA112: 832 | AB112: 103 | AC112: 61.00000001 | AD112: 1030794.385 | CR112: 21 | CS112: 832 | CT112: 103 | CU112: 44.02960968 | CV112: 714035.8459 | CW112: 0.07871442946 | CX112: 280423
A113: 00210998 | B113: 0021 | C113: 0998 | D113: 104 | E113: 21 | G113: 998 | I113: 0 | J113: 0 | K113: 0 | L113: =IF(K114>0, K113/K114, 0) -> 0 | N113: =ROUND(M114*L113,0) -> 0 | O113: 0 | P113: =N113-O113 -> 0 | Q113: 0 | R113: 0 | T113: 21 | U113: 998 | V113: 104 | W113: 0 | X113: 0 | Y113: 104 | Z113: 21 | AA113: 998 | AB113: 104 | AC113: 0 | AD113: 0 | CR113: 21 | CS113: 998 | CT113: 104 | CU113: 0 | CV113: 0 | CW113: 0 | CX113: 0
A114: 00210999 | B114: 0021 | C114: 0999 | D114: 105 | E114: 21 | F114: Barre | G114: 999 | H114: Total | I114: 9071219.226 | J114: 1 | K114: =SUM(K110:K113) -> 9349629.584 | L114: =SUM(L110:L113) -> 1 | M114: =VLOOKUP(E114,town351,23) -> 3626865 | N114: =SUM(N110:N113) -> 3626865 | O114: 3562536 | P114: =SUM(P110:P113) -> 64329 | Q114: 1.805708069 | R114: 834.2074509 | T114: 21 | U114: 999 | V114: 105 | W114: 817.7442806 | X114: 9349629.584 | Y114: 105 | Z114: 21 | AA114: 999 | AB114: 105 | AC114: 817.7442806 | AD114: 9349629.584 | CR114: 21 | CS114: 999 | CT114: 105 | CU114: 834.2074509 | CV114: 9071219.226 | CW114: 1 | CX114: 3562536
A115: 00220022 | B115: 0022 | C115: 0022 | D115: 106 | E115: 22 | F115: Becket | G115: 22 | H115: Becket | I115: 206187.51 | J115: 0.08517180085 | K115: =X115 -> 143717.9726 | L115: =IF(K119>0, K115/K119, 0) -> 0.05625403153 | N115: =ROUND(M119*L115,0) -> 109742 | O115: 157270 | P115: =N115-O115 -> -47528 | Q115: -30.22063966 | R115: 13 | T115: 22 | U115: 22 | V115: 106 | W115: 10 | X115: 143717.9726 | Y115: 106 | Z115: 22 | AA115: 22 | AB115: 106 | AC115: 10 | AD115: 143717.9726 | CR115: 22 | CS115: 22 | CT115: 106 | CU115: 13 | CV115: 206187.51 | CW115: 0.08517180085 | CX115: 157270
A116: 00220635 | B116: 0022 | C116: 0635 | D116: 107 | E116: 22 | F116: Becket | G116: 635 | H116: Central Berkshire | I116: 2214654.928 | J116: 0.9148281992 | K116: 2411085.099 | L116: =IF(K119>0, K116/K119, 0) -> 0.9437459685 | N116: =ROUND(M119*L116,0) -> 1841089 | O116: 1689234 | P116: =N116-O116 -> 151855 | Q116: 8.989577524 | R116: 205.0704225 | T116: 22 | U116: 635 | V116: 107 | W116: 213.5022166 | X116: 2411085.099 | Y116: 107 | Z116: 22 | AA116: 635 | AB116: 107 | AC116: 213.5022166 | AD116: 2411085.099 | CR116: 22 | CS116: 635 | CT116: 107 | CU116: 205.0704225 | CV116: 2214654.928 | CW116: 0.9148281992 | CX116: 1689234
A117: 00220998 | B117: 0022 | C117: 0998 | D117: 108 | E117: 22 | G117: 998 | I117: 0 | J117: 0 | K117: 0 | L117: =IF(K119>0, K117/K119, 0) -> 0 | N117: =ROUND(M119*L117,0) -> 0 | O117: 0 | P117: =N117-O117 -> 0 | Q117: 0 | R117: 0 | T117: 22 | U117: 998 | V117: 108 | W117: 0 | X117: 0 | Y117: 108 | Z117: 22 | AA117: 998 | AB117: 108 | AC117: 0 | AD117: 0 | CR117: 22 | CS117: 998 | CT117: 108 | CU117: 0 | CV117: 0 | CW117: 0 | CX117: 0
A118: 00220998 | B118: 0022 | C118: 0998 | D118: 109 | E118: 22 | G118: 998 | I118: 0 | J118: 0 | K118: 0 | L118: =IF(K119>0, K118/K119, 0) -> 0 | N118: =ROUND(M119*L118,0) -> 0 | O118: 0 | P118: =N118-O118 -> 0 | Q118: 0 | R118: 0 | T118: 22 | U118: 998 | V118: 109 | W118: 0 | X118: 0 | Y118: 109 | Z118: 22 | AA118: 998 | AB118: 109 | AC118: 0 | AD118: 0 | CR118: 22 | CS118: 998 | CT118: 109 | CU118: 0 | CV118: 0 | CW118: 0 | CX118: 0
A119: 00220999 | B119: 0022 | C119: 0999 | D119: 110 | E119: 22 | F119: Becket | G119: 999 | H119: Total | I119: 2420842.438 | J119: 1 | K119: =SUM(K115:K118) -> 2554803.072 | L119: =SUM(L115:L118) -> 1 | M119: =VLOOKUP(E119,town351,23) -> 1950831 | N119: =SUM(N115:N118) -> 1950831 | O119: 1846504 | P119: =SUM(P115:P118) -> 104327 | Q119: 5.649974222 | R119: 218.0704225 | T119: 22 | U119: 999 | V119: 110 | W119: 223.5022166 | X119: 2554803.072 | Y119: 110 | Z119: 22 | AA119: 999 | AB119: 110 | AC119: 223.5022166 | AD119: 2554803.072 | CR119: 22 | CS119: 999 | CT119: 110 | CU119: 218.0704225 | CV119: 2420842.438 | CW119: 1 | CX119: 1846504
A120: 00230023 | B120: 0023 | C120: 0023 | D120: 111 | E120: 23 | F120: Bedford | G120: 23 | H120: Bedford | I120: 27912085.89 | J120: 0.9892623389 | K120: =X120 -> 29526357.67 | L120: =IF(K124>0, K120/K124, 0) -> 0.9855490724 | N120: =ROUND(M124*L120,0) -> 24097264 | O120: 23027471 | P120: =N120-O120 -> 1069793 | Q120: 4.645725099 | R120: 2661 | T120: 23 | U120: 23 | V120: 111 | W120: 2693 | X120: 29526357.67 | Y120: 111 | Z120: 23 | AA120: 23 | AB120: 111 | AC120: 2693 | AD120: 29526357.67 | CR120: 23 | CS120: 23 | CT120: 111 | CU120: 2661 | CV120: 27912085.89 | CW120: 0.9892623389 | CX120: 23027471
A121: 00230871 | B121: 0023 | C121: 0871 | D121: 112 | E121: 23 | F121: Bedford | G121: 871 | H121: Shawsheen Valley | I121: 302963.6389 | J121: 0.01073766107 | K121: 432939.6364 | L121: =IF(K124>0, K121/K124, 0) -> 0.0144509276 | N121: =ROUND(M124*L121,0) -> 353334 | O121: 249945 | P121: =N121-O121 -> 103389 | Q121: 41.36470023 | R121: 19 | T121: 23 | U121: 871 | V121: 112 | W121: 26 | X121: 432939.6364 | Y121: 112 | Z121: 23 | AA121: 871 | AB121: 112 | AC121: 26 | AD121: 432939.6364 | CR121: 23 | CS121: 871 | CT121: 112 | CU121: 19 | CV121: 302963.6389 | CW121: 0.01073766107 | CX121: 249945
A122: 00230998 | B122: 0023 | C122: 0998 | D122: 113 | E122: 23 | G122: 998 | I122: 0 | J122: 0 | K122: 0 | L122: =IF(K124>0, K122/K124, 0) -> 0 | N122: =ROUND(M124*L122,0) -> 0 | O122: 0 | P122: =N122-O122 -> 0 | Q122: 0 | R122: 0 | T122: 23 | U122: 998 | V122: 113 | W122: 0 | X122: 0 | Y122: 113 | Z122: 23 | AA122: 998 | AB122: 113 | AC122: 0 | AD122: 0 | CR122: 23 | CS122: 998 | CT122: 113 | CU122: 0 | CV122: 0 | CW122: 0 | CX122: 0
A123: 00230998 | B123: 0023 | C123: 0998 | D123: 114 | E123: 23 | G123: 998 | I123: 0 | J123: 0 | K123: 0 | L123: =IF(K124>0, K123/K124, 0) -> 0 | N123: =ROUND(M124*L123,0) -> 0 | O123: 0 | P123: =N123-O123 -> 0 | Q123: 0 | R123: 0 | T123: 23 | U123: 998 | V123: 114 | W123: 0 | X123: 0 | Y123: 114 | Z123: 23 | AA123: 998 | AB123: 114 | AC123: 0 | AD123: 0 | CR123: 23 | CS123: 998 | CT123: 114 | CU123: 0 | CV123: 0 | CW123: 0 | CX123: 0
A124: 00230999 | B124: 0023 | C124: 0999 | D124: 115 | E124: 23 | F124: Bedford | G124: 999 | H124: Total | I124: 28215049.53 | J124: 1 | K124: =SUM(K120:K123) -> 29959297.31 | L124: =SUM(L120:L123) -> 1 | M124: =VLOOKUP(E124,town351,23) -> 24450598 | N124: =SUM(N120:N123) -> 24450598 | O124: 23277416 | P124: =SUM(P120:P123) -> 1173182 | Q124: 5.040001004 | R124: 2680 | T124: 23 | U124: 999 | V124: 115 | W124: 2719 | X124: 29959297.31 | Y124: 115 | Z124: 23 | AA124: 999 | AB124: 115 | AC124: 2719 | AD124: 29959297.31 | CR124: 23 | CS124: 999 | CT124: 115 | CU124: 2680 | CV124: 28215049.53 | CW124: 1 | CX124: 23277416
A125: 00240024 | B125: 0024 | C125: 0024 | D125: 116 | E125: 24 | F125: Belchertown | G125: 24 | H125: Belchertown | I125: 23863029.98 | J125: 0.9302301329 | K125: =X125 -> 24486398.65 | L125: =IF(K129>0, K125/K129, 0) -> 0.9298637522 | N125: =ROUND(M129*L125,0) -> 12055268 | O125: 11563925 | P125: =N125-O125 -> 491343 | Q125: 4.248929321 | R125: 2344 | T125: 24 | U125: 24 | V125: 116 | W125: 2310 | X125: 24486398.65 | Y125: 116 | Z125: 24 | AA125: 24 | AB125: 116 | AC125: 2310 | AD125: 24486398.65 | CR125: 24 | CS125: 24 | CT125: 116 | CU125: 2344 | CV125: 23863029.98 | CW125: 0.9302301329 | CX125: 11563925
A126: 00240860 | B126: 0024 | C126: 0860 | D126: 117 | E126: 24 | F126: Belchertown | G126: 860 | H126: Pathfinder | I126: 1789794.128 | J126: 0.06976986706 | K126: 1846920.175 | L126: =IF(K129>0, K126/K129, 0) -> 0.07013624784 | N126: =ROUND(M129*L126,0) -> 909285 | O126: 867327 | P126: =N126-O126 -> 41958 | Q126: 4.837621797 | R126: 106 | T126: 24 | U126: 860 | V126: 117 | W126: 105 | X126: 1846920.175 | Y126: 117 | Z126: 24 | AA126: 860 | AB126: 117 | AC126: 105 | AD126: 1846920.175 | CR126: 24 | CS126: 860 | CT126: 117 | CU126: 106 | CV126: 1789794.128 | CW126: 0.06976986706 | CX126: 867327
A127: 00240998 | B127: 0024 | C127: 0998 | D127: 118 | E127: 24 | G127: 998 | I127: 0 | J127: 0 | K127: 0 | L127: =IF(K129>0, K127/K129, 0) -> 0 | N127: =ROUND(M129*L127,0) -> 0 | O127: 0 | P127: =N127-O127 -> 0 | Q127: 0 | R127: 0 | T127: 24 | U127: 998 | V127: 118 | W127: 0 | X127: 0 | Y127: 118 | Z127: 24 | AA127: 998 | AB127: 118 | AC127: 0 | AD127: 0 | CR127: 24 | CS127: 998 | CT127: 118 | CU127: 0 | CV127: 0 | CW127: 0 | CX127: 0
A128: 00240998 | B128: 0024 | C128: 0998 | D128: 119 | E128: 24 | G128: 998 | I128: 0 | J128: 0 | K128: 0 | L128: =IF(K129>0, K128/K129, 0) -> 0 | N128: =ROUND(M129*L128,0) -> 0 | O128: 0 | P128: =N128-O128 -> 0 | Q128: 0 | R128: 0 | T128: 24 | U128: 998 | V128: 119 | W128: 0 | X128: 0 | Y128: 119 | Z128: 24 | AA128: 998 | AB128: 119 | AC128: 0 | AD128: 0 | CR128: 24 | CS128: 998 | CT128: 119 | CU128: 0 | CV128: 0 | CW128: 0 | CX128: 0
A129: 00240999 | B129: 0024 | C129: 0999 | D129: 120 | E129: 24 | F129: Belchertown | G129: 999 | H129: Total | I129: 25652824.11 | J129: 1 | K129: =SUM(K125:K128) -> 26333318.82 | L129: =SUM(L125:L128) -> 1 | M129: =VLOOKUP(E129,town351,23) -> 12964553 | N129: =SUM(N125:N128) -> 12964553 | O129: 12431252 | P129: =SUM(P125:P128) -> 533301 | Q129: 4.290002326 | R129: 2450 | T129: 24 | U129: 999 | V129: 120 | W129: 2415 | X129: 26333318.82 | Y129: 120 | Z129: 24 | AA129: 999 | AB129: 120 | AC129: 2415 | AD129: 26333318.82 | CR129: 24 | CS129: 999 | CT129: 120 | CU129: 2450 | CV129: 25652824.11 | CW129: 1 | CX129: 12431252
A130: 00250025 | B130: 0025 | C130: 0025 | D130: 121 | E130: 25 | F130: Bellingham | G130: 25 | H130: Bellingham | I130: 23842628.52 | J130: 0.9440503857 | K130: =X130 -> 24520752.76 | L130: =IF(K134>0, K130/K134, 0) -> 0.9445520758 | N130: =ROUND(M134*L130,0) -> 16361737 | O130: 15794941 | P130: =N130-O130 -> 566796 | Q130: 3.588465446 | R130: 2330 | T130: 25 | U130: 25 | V130: 121 | W130: 2286 | X130: 24520752.76 | Y130: 121 | Z130: 25 | AA130: 25 | AB130: 121 | AC130: 2286 | AD130: 24520752.76 | CR130: 25 | CS130: 25 | CT130: 121 | CU130: 2330 | CV130: 23842628.52 | CW130: 0.9440503857 | CX130: 15794941
A131: 00250805 | B131: 0025 | C131: 0805 | D131: 122 | E131: 25 | F131: Bellingham | G131: 805 | H131: Blackstone Valley | I131: 1105456.372 | J131: 0.04377061504 | K131: 1066253.962 | L131: =IF(K134>0, K131/K134, 0) -> 0.04107265398 | N131: =ROUND(M134*L131,0) -> 711469 | O131: 732328 | P131: =N131-O131 -> -20859 | Q131: -2.84831387 | R131: 71 | T131: 25 | U131: 805 | V131: 122 | W131: 66 | X131: 1066253.962 | Y131: 122 | Z131: 25 | AA131: 805 | AB131: 122 | AC131: 66 | AD131: 1066253.962 | CR131: 25 | CS131: 805 | CT131: 122 | CU131: 71 | CV131: 1105456.372 | CW131: 0.04377061504 | CX131: 732328
A132: 00250915 | B132: 0025 | C132: 0915 | D132: 123 | E132: 25 | F132: Bellingham | G132: 915 | H132: Norfolk County | I132: 307588.8309 | J132: 0.01217899923 | K132: 373184.7665 | L132: =IF(K134>0, K132/K134, 0) -> 0.01437527018 | N132: =ROUND(M134*L132,0) -> 249012 | O132: 203767 | P132: =N132-O132 -> 45245 | Q132: 22.20428234 | R132: 18 | T132: 25 | U132: 915 | V132: 123 | W132: 21 | X132: 373184.7665 | Y132: 123 | Z132: 25 | AA132: 915 | AB132: 123 | AC132: 21 | AD132: 373184.7665 | CR132: 25 | CS132: 915 | CT132: 123 | CU132: 18 | CV132: 307588.8309 | CW132: 0.01217899923 | CX132: 203767
A133: 00250998 | B133: 0025 | C133: 0998 | D133: 124 | E133: 25 | G133: 998 | I133: 0 | J133: 0 | K133: 0 | L133: =IF(K134>0, K133/K134, 0) -> 0 | N133: =ROUND(M134*L133,0) -> 0 | O133: 0 | P133: =N133-O133 -> 0 | Q133: 0 | R133: 0 | T133: 25 | U133: 998 | V133: 124 | W133: 0 | X133: 0 | Y133: 124 | Z133: 25 | AA133: 998 | AB133: 124 | AC133: 0 | AD133: 0 | CR133: 25 | CS133: 998 | CT133: 124 | CU133: 0 | CV133: 0 | CW133: 0 | CX133: 0
A134: 00250999 | B134: 0025 | C134: 0999 | D134: 125 | E134: 25 | F134: Bellingham | G134: 999 | H134: Total | I134: 25255673.72 | J134: 1 | K134: =SUM(K130:K133) -> 25960191.49 | L134: =SUM(L130:L133) -> 1 | M134: =VLOOKUP(E134,town351,23) -> 17322218 | N134: =SUM(N130:N133) -> 17322218 | O134: 16731036 | P134: =SUM(P130:P133) -> 591182 | Q134: 3.533445269 | R134: 2419 | T134: 25 | U134: 999 | V134: 125 | W134: 2373 | X134: 25960191.49 | Y134: 125 | Z134: 25 | AA134: 999 | AB134: 125 | AC134: 2373 | AD134: 25960191.49 | CR134: 25 | CS134: 999 | CT134: 125 | CU134: 2419 | CV134: 25255673.72 | CW134: 1 | CX134: 16731036
A135: 00260026 | B135: 0026 | C135: 0026 | D135: 126 | E135: 26 | F135: Belmont | G135: 26 | H135: Belmont | I135: 45512607.46 | J135: 0.9913942987 | K135: =X135 -> 47670581.19 | L135: =IF(K139>0, K135/K139, 0) -> 0.9893808306 | N135: =ROUND(M139*L135,0) -> 38365802 | O135: 36735671 | P135: =N135-O135 -> 1630131 | Q135: 4.437460799 | R135: 4488 | T135: 26 | U135: 26 | V135: 126 | W135: 4517 | X135: 47670581.19 | Y135: 126 | Z135: 26 | AA135: 26 | AB135: 126 | AC135: 4517 | AD135: 47670581.19 | CR135: 26 | CS135: 26 | CT135: 126 | CU135: 4488 | CV135: 45512607.46 | CW135: 0.9913942987 | CX135: 36735671
A136: 00260830 | B136: 0026 | C136: 0830 | D136: 127 | E136: 26 | F136: Belmont | G136: 830 | H136: Minuteman | I136: 395067.7402 | J136: 0.008605701301 | K136: 511655.3316 | L136: =IF(K139>0, K136/K139, 0) -> 0.0106191694 | N136: =ROUND(M139*L136,0) -> 411786 | O136: 318880 | P136: =N136-O136 -> 92906 | Q136: 29.13509784 | R136: 22.06451613 | T136: 26 | U136: 830 | V136: 127 | W136: 28 | X136: 511655.3316 | Y136: 127 | Z136: 26 | AA136: 830 | AB136: 127 | AC136: 28 | AD136: 511655.3316 | CR136: 26 | CS136: 830 | CT136: 127 | CU136: 22.06451613 | CV136: 395067.7402 | CW136: 0.008605701301 | CX136: 318880
A137: 00260998 | B137: 0026 | C137: 0998 | D137: 128 | E137: 26 | G137: 998 | I137: 0 | J137: 0 | K137: 0 | L137: =IF(K139>0, K137/K139, 0) -> 0 | N137: =ROUND(M139*L137,0) -> 0 | O137: 0 | P137: =N137-O137 -> 0 | Q137: 0 | R137: 0 | T137: 26 | U137: 998 | V137: 128 | W137: 0 | X137: 0 | Y137: 128 | Z137: 26 | AA137: 998 | AB137: 128 | AC137: 0 | AD137: 0 | CR137: 26 | CS137: 998 | CT137: 128 | CU137: 0 | CV137: 0 | CW137: 0 | CX137: 0
A138: =B138&C138 -> 00260998 | B138: 0026 | C138: 0998 | D138: 129 | E138: 26 | G138: 998 | I138: 0 | J138: 0 | K138: 0 | L138: =IF(K139>0, K138/K139, 0) -> 0 | N138: =ROUND(M139*L138,0) -> 0 | O138: 0 | P138: =N138-O138 -> 0 | Q138: 0 | R138: 0 | T138: =VLOOKUP($D138, foundoptions, VLOOKUP($T$6, foundoptcell, 2, FALSE), FALSE) -> 26 | U138: =VLOOKUP($D138, foundoptions, VLOOKUP($T$6, foundoptcell, 2, FALSE)+1, FALSE) -> 998 | V138: =VLOOKUP($D138, foundoptions, VLOOKUP($T$6, foundoptcell, 2, FALSE)+2, FALSE) -> 129 | W138: =VLOOKUP($D138, foundoptions, VLOOKUP($T$6, foundoptcell, 2, FALSE)+3, FALSE) -> 0 | X138: =VLOOKUP($D138, foundoptions, VLOOKUP($T$6, foundoptcell, 2, FALSE)+4, FALSE) -> 0 | Y138: 129 | Z138: 26 | AA138: 998 | AB138: 129 | AC138: 0 | AD138: 0 | CR138: 26 | CS138: 998 | CT138: 129 | CU138: 0 | CV138: 0 | CW138: 0 | CX138: 0
A139: 00260999 | B139: 0026 | C139: 0999 | D139: 130 | E139: 26 | F139: Belmont | G139: 999 | H139: Total | I139: 45907675.2 | J139: 1 | K139: =SUM(K135:K138) -> 48182236.52 | L139: =SUM(L135:L138) -> 1 | M139: =VLOOKUP(E139,town351,23) -> 38777588 | N139: =SUM(N135:N138) -> 38777588 | O139: 37054551 | P139: =SUM(P135:P138) -> 1723037 | Q139: 4.650001021 | R139: 4510.064516 | T139: 26 | U139: 999 | V139: 130 | W139: 4545 | X139: 48182236.52 | Y139: =D139 -> 130 | Z139: 26 | AA139: 999 | AB139: 130 | AC139: 4545 | AD139: 48182236.52 | CR139: 26 | CS139: 999 | CT139: 130 | CU139: 4510.064516 | CV139: 45907675.2 | CW139: 1 | CX139: 37054551
A140: 00270027 | B140: 0027 | C140: 0027 | D140: 131 | E140: 27 | F140: Berkley | G140: 27 | H140: Berkley | I140: 7541762.29 | J140: 0.6173477677 | K140: =X140 -> 7577773.18 | L140: =IF(K144>0, K140/K144, 0) -> 0.6112135305 | N140: =ROUND(M144*L140,0) -> 3948630 | O140: 3837447 | P140: =N140-O140 -> 111183 | Q140: 2.897316888 | R140: 774 | T140: 27 | U140: 27 | V140: 131 | W140: 742 | X140: 7577773.18 | Y140: 131 | Z140: 27 | AA140: 27 | AB140: 131 | AC140: 742 | AD140: 7577773.18 | CR140: 27 | CS140: 27 | CT140: 131 | CU140: 774 | CV140: 7541762.29 | CW140: 0.6173477677 | CX140: 3837447
A141: 00270763 | B141: 0027 | C141: 0763 | D141: 132 | E141: 27 | F141: Berkley | G141: 763 | H141: Somerset Berkley | I141: 2968320.139 | J141: 0.2429784633 | K141: 3146714.562 | L141: =IF(K144>0, K141/K144, 0) -> 0.2538099876 | N141: =ROUND(M144*L141,0) -> 1639692 | O141: 1510359 | P141: =N141-O141 -> 129333 | Q141: 8.563063484 | R141: 265 | T141: 27 | U141: 763 | V141: 132 | W141: 270 | X141: 3146714.562 | Y141: 132 | Z141: 27 | AA141: 763 | AB141: 132 | AC141: 270 | AD141: 3146714.562 | CR141: 27 | CS141: 763 | CT141: 132 | CU141: 265 | CV141: 2968320.139 | CW141: 0.2429784633 | CX141: 1510359
A142: 00270810 | B142: 0027 | C142: 0810 | D142: 133 | E142: 27 | F142: Berkley | G142: 810 | H142: Bristol Plymouth | I142: 1512814.346 | J142: 0.1238347913 | K142: 1502758.878 | L142: =IF(K144>0, K142/K144, 0) -> 0.1212106166 | N142: =ROUND(M144*L142,0) -> 783058 | O142: 769760 | P142: =N142-O142 -> 13298 | Q142: 1.727551445 | R142: 93.21104387 | T142: 27 | U142: 810 | V142: 133 | W142: 89.19970082 | X142: 1502758.878 | Y142: 133 | Z142: 27 | AA142: 810 | AB142: 133 | AC142: 89.19970082 | AD142: 1502758.878 | CR142: 27 | CS142: 810 | CT142: 133 | CU142: 93.21104387 | CV142: 1512814.346 | CW142: 0.1238347913 | CX142: 769760
A143: 00270910 | B143: 0027 | C143: 0910 | D143: 134 | E143: 27 | F143: Berkley | G143: 910 | H143: Bristol County | I143: 193495.1602 | J143: 0.01583897776 | K143: 170668.0227 | L143: =IF(K144>0, K143/K144, 0) -> 0.01376586527 | N143: =ROUND(M144*L143,0) -> 88932 | O143: 98455 | P143: =N143-O143 -> -9523 | Q143: -9.672439185 | R143: 12 | T143: 27 | U143: 910 | V143: 134 | W143: 10 | X143: 170668.0227 | Y143: 134 | Z143: 27 | AA143: 910 | AB143: 134 | AC143: 10 | AD143: 170668.0227 | CR143: 27 | CS143: 910 | CT143: 134 | CU143: 12 | CV143: 193495.1602 | CW143: 0.01583897776 | CX143: 98455
A144: 00270999 | B144: 0027 | C144: 0999 | D144: 135 | E144: 27 | F144: Berkley | G144: 999 | H144: Total | I144: 12216391.94 | J144: 1 | K144: =SUM(K140:K143) -> 12397914.64 | L144: =SUM(L140:L143) -> 1 | M144: =VLOOKUP(E144,town351,23) -> 6460312 | N144: =SUM(N140:N143) -> 6460312 | O144: 6216021 | P144: =SUM(P140:P143) -> 244291 | Q144: =IF(O144>0,P144*100/O144,IF(P144>0,100,0)) -> 3.930022115 | R144: 1144.211044 | T144: 27 | U144: 999 | V144: 135 | W144: 1111.199701 | X144: 12397914.64 | Y144: 135 | Z144: 27 | AA144: 999 | AB144: 135 | AC144: 1111.199701 | AD144: 12397914.64 | CR144: 27 | CS144: 999 | CT144: 135 | CU144: 1144.211044 | CV144: 12216391.94 | CW144: 1 | CX144: 6216021
A145: 00280028 | B145: 0028 | C145: 0028 | D145: 136 | E145: 28 | F145: Berlin | G145: 28 | H145: Berlin | I145: 1639651.663 | J145: 0.409965727 | K145: =X145 -> 0 | L145: =IF(K149>0, K145/K149, 0) -> 0 | N145: =ROUND(M149*L145,0) -> 0 | O145: 1352713 | P145: =N145-O145 -> -1352713 | Q145: -100 | R145: 159 | T145: 28 | U145: 28 | V145: 136 | W145: 0 | X145: 0 | Y145: 136 | Z145: 28 | AA145: 28 | AB145: 136 | AC145: 0 | AD145: 0 | CR145: 28 | CS145: 28 | CT145: 136 | CU145: 159 | CV145: 1639651.663 | CW145: 0.409965727 | CX145: 1352713
A146: 00280620 | B146: 0028 | C146: 0620 | D146: 137 | E146: 28 | F146: Berlin | G146: 620 | H146: Berlin Boylston | I146: 1939567.246 | J146: 0.4849542828 | K146: 3535409.78 | L146: =IF(K149>0, K146/K149, 0) -> 0.8985175322 | N146: =ROUND(M149*L146,0) -> 2916713 | O146: 1600143 | P146: =N146-O146 -> 1316570 | Q146: 82.27827138 | R146: 189.6860254 | T146: 28 | U146: 620 | V146: 137 | W146: 341.1392931 | X146: 3535409.78 | Y146: 137 | Z146: 28 | AA146: 620 | AB146: 137 | AC146: 341.1392931 | AD146: 3535409.78 | CR146: 28 | CS146: 620 | CT146: 137 | CU146: 189.6860254 | CV146: 1939567.246 | CW146: 0.4849542828 | CX146: 1600143
A147: 00280801 | B147: 0028 | C147: 0801 | D147: 138 | E147: 28 | F147: Berlin | G147: 801 | H147: Assabet Valley | I147: 420265.8159 | J147: 0.1050799902 | K147: 399304.5171 | L147: =IF(K149>0, K147/K149, 0) -> 0.1014824678 | N147: =ROUND(M149*L147,0) -> 329426 | O147: 346719 | P147: =N147-O147 -> -17293 | Q147: -4.987612447 | R147: 24 | T147: 28 | U147: 801 | V147: 138 | W147: 22 | X147: 399304.5171 | Y147: 138 | Z147: 28 | AA147: 801 | AB147: 138 | AC147: 22 | AD147: 399304.5171 | CR147: 28 | CS147: 801 | CT147: 138 | CU147: 24 | CV147: 420265.8159 | CW147: 0.1050799902 | CX147: 346719
A148: 00280998 | B148: 0028 | C148: 0998 | D148: 139 | E148: 28 | G148: 998 | I148: 0 | J148: 0 | K148: 0 | L148: =IF(K149>0, K148/K149, 0) -> 0 | N148: =ROUND(M149*L148,0) -> 0 | O148: 0 | P148: =N148-O148 -> 0 | Q148: 0 | R148: 0 | T148: 28 | U148: 998 | V148: 139 | W148: 0 | X148: 0 | Y148: 139 | Z148: 28 | AA148: 998 | AB148: 139 | AC148: 0 | AD148: 0 | CR148: 28 | CS148: 998 | CT148: 139 | CU148: 0 | CV148: 0 | CW148: 0 | CX148: 0
A149: 00280999 | B149: 0028 | C149: 0999 | D149: 140 | E149: 28 | F149: Berlin | G149: 999 | H149: Total | I149: 3999484.725 | J149: 1 | K149: =SUM(K145:K148) -> 3934714.297 | L149: =SUM(L145:L148) -> 1 | M149: =VLOOKUP(E149,town351,23) -> 3246139 | N149: =SUM(N145:N148) -> 3246139 | O149: 3299575 | P149: =SUM(P145:P148) -> -53436 | Q149: -1.619481297 | R149: 372.6860254 | T149: 28 | U149: 999 | V149: 140 | W149: 363.1392931 | X149: 3934714.297 | Y149: 140 | Z149: 28 | AA149: 999 | AB149: 140 | AC149: 363.1392931 | AD149: 3934714.297 | CR149: 28 | CS149: 999 | CT149: 140 | CU149: 372.6860254 | CV149: 3999484.725 | CW149: 1 | CX149: 3299575
A150: 00290029 | B150: 0029 | C150: 0029 | D150: 141 | E150: 29 | F150: Bernardston | G150: 29 | H150: Bernardston | I150: 0 | J150: 0 | K150: =X150 -> 0 | L150: =IF(K154>0, K150/K154, 0) -> 0 | N150: =ROUND(M154*L150,0) -> 0 | O150: 0 | P150: =N150-O150 -> 0 | Q150: 0 | R150: 0 | T150: 29 | U150: 29 | V150: 141 | W150: 0 | X150: 0 | Y150: 141 | Z150: 29 | AA150: 29 | AB150: 141 | AC150: 0 | AD150: 0 | CR150: 29 | CS150: 29 | CT150: 141 | CU150: 0 | CV150: 0 | CW150: 0 | CX150: 0
A151: 00290750 | B151: 0029 | C151: 0750 | D151: 142 | E151: 29 | F151: Bernardston | G151: 750 | H151: Pioneer | I151: 2510445.984 | J151: 0.8462046523 | K151: 2560129.042 | L151: =IF(K154>0, K151/K154, 0) -> 0.8343297107 | N151: =ROUND(M154*L151,0) -> 1364886 | O151: 1412356 | P151: =N151-O151 -> -47470 | Q151: -3.361050613 | R151: 239.6345609 | T151: 29 | U151: 750 | V151: 142 | W151: 236.223176 | X151: 2560129.042 | Y151: 142 | Z151: 29 | AA151: 750 | AB151: 142 | AC151: 236.223176 | AD151: 2560129.042 | CR151: 29 | CS151: 750 | CT151: 142 | CU151: 239.6345609 | CV151: 2510445.984 | CW151: 0.8462046523 | CX151: 1412356
A152: 00290818 | B152: 0029 | C152: 0818 | D152: 143 | E152: 29 | F152: Bernardston | G152: 818 | H152: Franklin County | I152: 456266.592 | J152: 0.1537953477 | K152: 508356.9642 | L152: =IF(K154>0, K152/K154, 0) -> 0.1656702893 | N152: =ROUND(M154*L152,0) -> 271021 | O152: 256692 | P152: =N152-O152 -> 14329 | Q152: 5.582176305 | R152: 27 | T152: 29 | U152: 818 | V152: 143 | W152: 29 | X152: 508356.9642 | Y152: 143 | Z152: 29 | AA152: 818 | AB152: 143 | AC152: 29 | AD152: 508356.9642 | CR152: 29 | CS152: 818 | CT152: 143 | CU152: 27 | CV152: 456266.592 | CW152: 0.1537953477 | CX152: 256692
A153: 00290998 | B153: 0029 | C153: 0998 | D153: 144 | E153: 29 | G153: 998 | I153: 0 | J153: 0 | K153: 0 | L153: =IF(K154>0, K153/K154, 0) -> 0 | N153: =ROUND(M154*L153,0) -> 0 | O153: 0 | P153: =N153-O153 -> 0 | Q153: 0 | R153: 0 | T153: 29 | U153: 998 | V153: 144 | W153: 0 | X153: 0 | Y153: 144 | Z153: 29 | AA153: 998 | AB153: 144 | AC153: 0 | AD153: 0 | CR153: 29 | CS153: 998 | CT153: 144 | CU153: 0 | CV153: 0 | CW153: 0 | CX153: 0
A154: 00290999 | B154: 0029 | C154: 0999 | D154: 145 | E154: 29 | F154: Bernardston | G154: 999 | H154: Total | I154: 2966712.576 | J154: 1 | K154: =SUM(K150:K153) -> 3068486.006 | L154: =SUM(L150:L153) -> 1 | M154: =VLOOKUP(E154,town351,23) -> 1635907 | N154: =SUM(N150:N153) -> 1635907 | O154: 1669048 | P154: =SUM(P150:P153) -> -33141 | Q154: -1.985622942 | R154: 266.6345609 | T154: 29 | U154: 999 | V154: 145 | W154: 265.223176 | X154: 3068486.006 | Y154: 145 | Z154: 29 | AA154: 999 | AB154: 145 | AC154: 265.223176 | AD154: 3068486.006 | CR154: 29 | CS154: 999 | CT154: 145 | CU154: 266.6345609 | CV154: 2966712.576 | CW154: 1 | CX154: 1669048
A155: 00300030 | B155: 0030 | C155: 0030 | D155: 146 | E155: 30 | F155: Beverly | G155: 30 | H155: Beverly | I155: 46490353.89 | J155: 0.9572881994 | K155: =X155 -> 49115286.14 | L155: =IF(K159>0, K155/K159, 0) -> 0.9616546555 | N155: =ROUND(M159*L155,0) -> 40178550 | O155: 38354542 | P155: =N155-O155 -> 1824008 | Q155: 4.755650582 | R155: 4398 | T155: 30 | U155: 30 | V155: 146 | W155: 4458 | X155: 49115286.14 | Y155: 146 | Z155: 30 | AA155: 30 | AB155: 146 | AC155: 4458 | AD155: 49115286.14 | CR155: 30 | CS155: 30 | CT155: 146 | CU155: 4398 | CV155: 46490353.89 | CW155: 0.9572881994 | CX155: 38354542
A156: 00300817 | B156: 0030 | C156: 0817 | D156: 147 | E156: 30 | F156: Beverly | G156: 817 | H156: Essex North Shore | I156: 2074283.092 | J156: 0.04271180062 | K156: 1958439.61 | L156: =IF(K159>0, K156/K159, 0) -> 0.03834534453 | N156: =ROUND(M159*L156,0) -> 1602093 | O156: 1711284 | P156: =N156-O156 -> -109191 | Q156: -6.380647514 | R156: 128 | T156: 30 | U156: 817 | V156: 147 | W156: 117 | X156: 1958439.61 | Y156: 147 | Z156: 30 | AA156: 817 | AB156: 147 | AC156: 117 | AD156: 1958439.61 | CR156: 30 | CS156: 817 | CT156: 147 | CU156: 128 | CV156: 2074283.092 | CW156: 0.04271180062 | CX156: 1711284
A157: 00300998 | B157: 0030 | C157: 0998 | D157: 148 | E157: 30 | G157: 998 | I157: 0 | J157: 0 | K157: 0 | L157: =IF(K159>0, K157/K159, 0) -> 0 | N157: =ROUND(M159*L157,0) -> 0 | O157: 0 | P157: =N157-O157 -> 0 | Q157: 0 | R157: 0 | T157: 30 | U157: 998 | V157: 148 | W157: 0 | X157: 0 | Y157: 148 | Z157: 30 | AA157: 998 | AB157: 148 | AC157: 0 | AD157: 0 | CR157: 30 | CS157: 998 | CT157: 148 | CU157: 0 | CV157: 0 | CW157: 0 | CX157: 0
A158: 00300998 | B158: 0030 | C158: 0998 | D158: 149 | E158: 30 | G158: 998 | I158: 0 | J158: 0 | K158: 0 | L158: =IF(K159>0, K158/K159, 0) -> 0 | N158: =ROUND(M159*L158,0) -> 0 | O158: 0 | P158: =N158-O158 -> 0 | Q158: 0 | R158: 0 | T158: 30 | U158: 998 | V158: 149 | W158: 0 | X158: 0 | Y158: 149 | Z158: 30 | AA158: 998 | AB158: 149 | AC158: 0 | AD158: 0 | CR158: 30 | CS158: 998 | CT158: 149 | CU158: 0 | CV158: 0 | CW158: 0 | CX158: 0
A159: 00300999 | B159: 0030 | C159: 0999 | D159: 150 | E159: 30 | F159: Beverly | G159: 999 | H159: Total | I159: 48564636.98 | J159: 1 | K159: =SUM(K155:K158) -> 51073725.75 | L159: =SUM(L155:L158) -> 1 | M159: =VLOOKUP(E159,town351,23) -> 41780643 | N159: =SUM(N155:N158) -> 41780643 | O159: 40065826 | P159: =SUM(P155:P158) -> 1714817 | Q159: 4.279999119 | R159: 4526 | T159: 30 | U159: 999 | V159: 150 | W159: 4575 | X159: 51073725.75 | Y159: 150 | Z159: 30 | AA159: 999 | AB159: 150 | AC159: 4575 | AD159: 51073725.75 | CR159: 30 | CS159: 999 | CT159: 150 | CU159: 4526 | CV159: 48564636.98 | CW159: 1 | CX159: 40065826
A160: 00310031 | B160: 0031 | C160: 0031 | D160: 151 | E160: 31 | F160: Billerica | G160: 31 | H160: Billerica | I160: 50010476.06 | J160: 0.832729159 | K160: =X160 -> 51856702.21 | L160: =IF(K164>0, K160/K164, 0) -> 0.8466654428 | N160: =ROUND(M164*L160,0) -> 39372912 | O160: 37025362 | P160: =N160-O160 -> 2347550 | Q160: 6.340383654 | R160: 4912 | T160: 31 | U160: 31 | V160: 151 | W160: 4866 | X160: 51856702.21 | Y160: 151 | Z160: 31 | AA160: 31 | AB160: 151 | AC160: 4866 | AD160: 51856702.21 | CR160: 31 | CS160: 31 | CT160: 151 | CU160: 4912 | CV160: 50010476.06 | CW160: 0.832729159 | CX160: 37025362
A161: 00310871 | B161: 0031 | C161: 0871 | D161: 152 | E161: 31 | F161: Billerica | G161: 871 | H161: Shawsheen Valley | I161: 10045636.45 | J161: 0.167270841 | K161: 9391459.805 | L161: =IF(K164>0, K161/K164, 0) -> 0.1533345572 | N161: =ROUND(M164*L161,0) -> 7130595 | O161: 7437308 | P161: =N161-O161 -> -306713 | Q161: -4.12397873 | R161: 630 | T161: 31 | U161: 871 | V161: 152 | W161: 564 | X161: 9391459.805 | Y161: 152 | Z161: 31 | AA161: 871 | AB161: 152 | AC161: 564 | AD161: 9391459.805 | CR161: 31 | CS161: 871 | CT161: 152 | CU161: 630 | CV161: 10045636.45 | CW161: 0.167270841 | CX161: 7437308
A162: 00310998 | B162: 0031 | C162: 0998 | D162: 153 | E162: 31 | G162: 998 | I162: 0 | J162: 0 | K162: 0 | L162: =IF(K164>0, K162/K164, 0) -> 0 | N162: =ROUND(M164*L162,0) -> 0 | O162: 0 | P162: =N162-O162 -> 0 | Q162: 0 | R162: 0 | T162: 31 | U162: 998 | V162: 153 | W162: 0 | X162: 0 | Y162: 153 | Z162: 31 | AA162: 998 | AB162: 153 | AC162: 0 | AD162: 0 | CR162: 31 | CS162: 998 | CT162: 153 | CU162: 0 | CV162: 0 | CW162: 0 | CX162: 0
A163: 00310998 | B163: 0031 | C163: 0998 | D163: 154 | E163: 31 | G163: 998 | I163: 0 | J163: 0 | K163: 0 | L163: =IF(K164>0, K163/K164, 0) -> 0 | N163: =ROUND(M164*L163,0) -> 0 | O163: 0 | P163: =N163-O163 -> 0 | Q163: 0 | R163: 0 | T163: 31 | U163: 998 | V163: 154 | W163: 0 | X163: 0 | Y163: 154 | Z163: 31 | AA163: 998 | AB163: 154 | AC163: 0 | AD163: 0 | CR163: 31 | CS163: 998 | CT163: 154 | CU163: 0 | CV163: 0 | CW163: 0 | CX163: 0
A164: 00310999 | B164: 0031 | C164: 0999 | D164: 155 | E164: 31 | F164: Billerica | G164: 999 | H164: Total | I164: 60056112.51 | J164: 1 | K164: =SUM(K160:K163) -> 61248162.02 | L164: =SUM(L160:L163) -> 1 | M164: =VLOOKUP(E164,town351,23) -> 46503507 | N164: =SUM(N160:N163) -> 46503507 | O164: 44462670 | P164: =SUM(P160:P163) -> 2040837 | Q164: 4.590001005 | R164: 5542 | T164: 31 | U164: 999 | V164: 155 | W164: 5430 | X164: 61248162.02 | Y164: 155 | Z164: 31 | AA164: 999 | AB164: 155 | AC164: 5430 | AD164: 61248162.02 | CR164: 31 | CS164: 999 | CT164: 155 | CU164: 5542 | CV164: 60056112.51 | CW164: 1 | CX164: 44462670
A165: 00320032 | B165: 0032 | C165: 0032 | D165: 156 | E165: 32 | F165: Blackstone | G165: 32 | H165: Blackstone | I165: 303047.63 | J165: 0.02048401944 | K165: =X165 -> 357718.729 | L165: =IF(K169>0, K165/K169, 0) -> 0.0233201652 | N165: =ROUND(M169*L165,0) -> 174215 | O165: 146874 | P165: =N165-O165 -> 27341 | Q165: 18.61527568 | R165: 20 | T165: 32 | U165: 32 | V165: 156 | W165: 23 | X165: 357718.729 | Y165: 156 | Z165: 32 | AA165: 32 | AB165: 156 | AC165: 23 | AD165: 357718.729 | CR165: 32 | CS165: 32 | CT165: 156 | CU165: 20 | CV165: 303047.63 | CW165: 0.02048401944 | CX165: 146874
A166: 00320622 | B166: 0032 | C166: 0622 | D166: 157 | E166: 32 | F166: Blackstone | G166: 622 | H166: Blackstone Millville | I166: 13152292.87 | J166: 0.8890081829 | K166: 13543913.43 | L166: =IF(K169>0, K166/K169, 0) -> 0.8829459379 | N166: =ROUND(M169*L166,0) -> 6596125 | O166: 6374329 | P166: =N166-O166 -> 221796 | Q166: 3.479519178 | R166: 1279.134454 | T166: 32 | U166: 622 | V166: 157 | W166: 1263.439864 | X166: 13543913.43 | Y166: 157 | Z166: 32 | AA166: 622 | AB166: 157 | AC166: 1263.439864 | AD166: 13543913.43 | CR166: 32 | CS166: 622 | CT166: 157 | CU166: 1279.134454 | CV166: 13152292.87 | CW166: 0.8890081829 | CX166: 6374329
A167: 00320805 | B167: 0032 | C167: 0805 | D167: 158 | E167: 32 | F167: Blackstone | G167: 805 | H167: Blackstone Valley | I167: 1339003.493 | J167: 0.09050779768 | K167: 1437827.313 | L167: =IF(K169>0, K167/K169, 0) -> 0.09373389691 | N167: =ROUND(M169*L167,0) -> 700247 | O167: 648955 | P167: =N167-O167 -> 51292 | Q167: 7.903783775 | R167: 86 | T167: 32 | U167: 805 | V167: 158 | W167: 89 | X167: 1437827.313 | Y167: 158 | Z167: 32 | AA167: 805 | AB167: 158 | AC167: 89 | AD167: 1437827.313 | CR167: 32 | CS167: 805 | CT167: 158 | CU167: 86 | CV167: 1339003.493 | CW167: 0.09050779768 | CX167: 648955
A168: 00320998 | B168: 0032 | C168: 0998 | D168: 159 | E168: 32 | G168: 998 | I168: 0 | J168: 0 | K168: 0 | L168: =IF(K169>0, K168/K169, 0) -> 0 | N168: =ROUND(M169*L168,0) -> 0 | O168: 0 | P168: =N168-O168 -> 0 | Q168: 0 | R168: 0 | T168: 32 | U168: 998 | V168: 159 | W168: 0 | X168: 0 | Y168: 159 | Z168: 32 | AA168: 998 | AB168: 159 | AC168: 0 | AD168: 0 | CR168: 32 | CS168: 998 | CT168: 159 | CU168: 0 | CV168: 0 | CW168: 0 | CX168: 0
A169: 00320999 | B169: 0032 | C169: 0999 | D169: 160 | E169: 32 | F169: Blackstone | G169: 999 | H169: Total | I169: 14794343.99 | J169: 1 | K169: =SUM(K165:K168) -> 15339459.47 | L169: =SUM(L165:L168) -> 1 | M169: =VLOOKUP(E169,town351,23) -> 7470588 | N169: =SUM(N165:N168) -> 7470587 | O169: 7170158 | P169: =SUM(P165:P168) -> 300429 | Q169: 4.18999135 | R169: 1385.134454 | T169: 32 | U169: 999 | V169: 160 | W169: 1375.439864 | X169: 15339459.47 | Y169: 160 | Z169: 32 | AA169: 999 | AB169: 160 | AC169: 1375.439864 | AD169: 15339459.47 | CR169: 32 | CS169: 999 | CT169: 160 | CU169: 1385.134454 | CV169: 14794343.99 | CW169: 1 | CX169: 7170158
A170: 00330033 | B170: 0033 | C170: 0033 | D170: 161 | E170: 33 | F170: Blandford | G170: 33 | H170: Blandford | I170: 110697.28 | J170: 0.08659184341 | K170: =X170 -> 114974.378 | L170: =IF(K174>0, K170/K174, 0) -> 0.08399617611 | N170: =ROUND(M174*L170,0) -> 92007 | O170: 91325 | P170: =N170-O170 -> 682 | Q170: 0.7467834656 | R170: 8 | T170: 33 | U170: 33 | V170: 161 | W170: 8 | X170: 114974.378 | Y170: 161 | Z170: 33 | AA170: 33 | AB170: 161 | AC170: 8 | AD170: 114974.378 | CR170: 33 | CS170: 33 | CT170: 161 | CU170: 8 | CV170: 110697.28 | CW170: 0.08659184341 | CX170: 91325
A171: 00330672 | B171: 0033 | C171: 0672 | D171: 162 | E171: 33 | F171: Blandford | G171: 672 | H171: Gateway | I171: 1167682.711 | J171: 0.9134081566 | K171: 1253830.529 | L171: =IF(K174>0, K171/K174, 0) -> 0.9160038239 | N171: =ROUND(M174*L171,0) -> 1003366 | O171: 963338 | P171: =N171-O171 -> 40028 | Q171: 4.155135581 | R171: 108.006795 | T171: 33 | U171: 672 | V171: 162 | W171: 111.0305776 | X171: 1253830.529 | Y171: 162 | Z171: 33 | AA171: 672 | AB171: 162 | AC171: 111.0305776 | AD171: 1253830.529 | CR171: 33 | CS171: 672 | CT171: 162 | CU171: 108.006795 | CV171: 1167682.711 | CW171: 0.9134081566 | CX171: 963338
A172: 00330998 | B172: 0033 | C172: 0998 | D172: 163 | E172: 33 | G172: 998 | I172: 0 | J172: 0 | K172: 0 | L172: =IF(K174>0, K172/K174, 0) -> 0 | N172: =ROUND(M174*L172,0) -> 0 | O172: 0 | P172: =N172-O172 -> 0 | Q172: 0 | R172: 0 | T172: 33 | U172: 998 | V172: 163 | W172: 0 | X172: 0 | Y172: 163 | Z172: 33 | AA172: 998 | AB172: 163 | AC172: 0 | AD172: 0 | CR172: 33 | CS172: 998 | CT172: 163 | CU172: 0 | CV172: 0 | CW172: 0 | CX172: 0
A173: 00330998 | B173: 0033 | C173: 0998 | D173: 164 | E173: 33 | G173: 998 | I173: 0 | J173: 0 | K173: 0 | L173: =IF(K174>0, K173/K174, 0) -> 0 | N173: =ROUND(M174*L173,0) -> 0 | O173: 0 | P173: =N173-O173 -> 0 | Q173: 0 | R173: 0 | T173: 33 | U173: 998 | V173: 164 | W173: 0 | X173: 0 | Y173: 164 | Z173: 33 | AA173: 998 | AB173: 164 | AC173: 0 | AD173: 0 | CR173: 33 | CS173: 998 | CT173: 164 | CU173: 0 | CV173: 0 | CW173: 0 | CX173: 0
A174: 00330999 | B174: 0033 | C174: 0999 | D174: 165 | E174: 33 | F174: Blandford | G174: 999 | H174: Total | I174: 1278379.991 | J174: 1 | K174: =SUM(K170:K173) -> 1368804.907 | L174: =SUM(L170:L173) -> 1 | M174: =VLOOKUP(E174,town351,23) -> 1095373 | N174: =SUM(N170:N173) -> 1095373 | O174: 1054663 | P174: =SUM(P170:P173) -> 40710 | Q174: 3.860000777 | R174: 116.006795 | T174: 33 | U174: 999 | V174: 165 | W174: 119.0305776 | X174: 1368804.907 | Y174: 165 | Z174: 33 | AA174: 999 | AB174: 165 | AC174: 119.0305776 | AD174: 1368804.907 | CR174: 33 | CS174: 999 | CT174: 165 | CU174: 116.006795 | CV174: 1278379.991 | CW174: 1 | CX174: 1054663
A175: 00340034 | B175: 0034 | C175: 0034 | D175: 166 | E175: 34 | F175: Bolton | G175: 34 | H175: Bolton | I175: 14264.24656 | J175: 0.001335325678 | K175: =X175 -> 14861.54204 | L175: =IF(K179>0, K175/K179, 0) -> 0.001354732819 | N175: =ROUND(M179*L175,0) -> 12118 | O175: 11464 | P175: =N175-O175 -> 654 | Q175: 5.704815073 | R175: 1 | T175: 34 | U175: 34 | V175: 166 | W175: 1 | X175: 14861.54204 | Y175: 166 | Z175: 34 | AA175: 34 | AB175: 166 | AC175: 1 | AD175: 14861.54204 | CR175: 34 | CS175: 34 | CT175: 166 | CU175: 1 | CV175: 14264.24656 | CW175: 0.001335325678 | CX175: 11464
A176: 00340725 | B176: 0034 | C176: 0725 | D176: 167 | E176: 34 | F176: Bolton | G176: 725 | H176: Nashoba | I176: 10452467.17 | J176: 0.9784917668 | K176: 10754221.81 | L176: =IF(K179>0, K176/K179, 0) -> 0.9803220413 | N176: =ROUND(M179*L176,0) -> 8769091 | O176: 8400729 | P176: =N176-O176 -> 368362 | Q176: 4.38488136 | R176: 1037.266117 | T176: 34 | U176: 725 | V176: 167 | W176: 1020.401112 | X176: 10754221.81 | Y176: 167 | Z176: 34 | AA176: 725 | AB176: 167 | AC176: 1020.401112 | AD176: 10754221.81 | CR176: 34 | CS176: 725 | CT176: 167 | CU176: 1037.266117 | CV176: 10452467.17 | CW176: 0.9784917668 | CX176: 8400729
A177: 00340830 | B177: 0034 | C177: 0830 | D177: 168 | E177: 34 | F177: Bolton | G177: 830 | H177: Minuteman | I177: 215491.4947 | J177: 0.02017290749 | K177: 201007.4517 | L177: =IF(K179>0, K177/K179, 0) -> 0.01832322588 | N177: =ROUND(M179*L177,0) -> 163903 | O177: 173192 | P177: =N177-O177 -> -9289 | Q177: -5.363411705 | R177: 12.03519062 | T177: 34 | U177: 830 | V177: 168 | W177: 11 | X177: 201007.4517 | Y177: 168 | Z177: 34 | AA177: 830 | AB177: 168 | AC177: 11 | AD177: 201007.4517 | CR177: 34 | CS177: 830 | CT177: 168 | CU177: 12.03519062 | CV177: 215491.4947 | CW177: 0.02017290749 | CX177: 173192
A178: 00340998 | B178: 0034 | C178: 0998 | D178: 169 | E178: 34 | G178: 998 | I178: 0 | J178: 0 | K178: 0 | L178: =IF(K179>0, K178/K179, 0) -> 0 | N178: =ROUND(M179*L178,0) -> 0 | O178: 0 | P178: =N178-O178 -> 0 | Q178: 0 | R178: 0 | T178: 34 | U178: 998 | V178: 169 | W178: 0 | X178: 0 | Y178: 169 | Z178: 34 | AA178: 998 | AB178: 169 | AC178: 0 | AD178: 0 | CR178: 34 | CS178: 998 | CT178: 169 | CU178: 0 | CV178: 0 | CW178: 0 | CX178: 0
A179: 00340999 | B179: 0034 | C179: 0999 | D179: 170 | E179: 34 | F179: Bolton | G179: 999 | H179: Total | I179: 10682222.92 | J179: 1 | K179: =SUM(K175:K178) -> 10970090.8 | L179: =SUM(L175:L178) -> 1 | M179: =VLOOKUP(E179,town351,23) -> 8945113 | N179: =SUM(N175:N178) -> 8945112 | O179: 8585385 | P179: =SUM(P175:P178) -> 359727 | Q179: 4.189992644 | R179: 1050.301307 | T179: 34 | U179: 999 | V179: 170 | W179: 1032.401112 | X179: 10970090.8 | Y179: 170 | Z179: 34 | AA179: 999 | AB179: 170 | AC179: 1032.401112 | AD179: 10970090.8 | CR179: 34 | CS179: 999 | CT179: 170 | CU179: 1050.301307 | CV179: 10682222.92 | CW179: 1 | CX179: 8585385
A180: 00350035 | B180: 0035 | C180: 0035 | D180: 171 | E180: 35 | F180: Boston | G180: 35 | H180: Boston | I180: 861999611.9 | J180: 1 | K180: =X180 -> 894636144.3 | L180: =IF(K184>0, K180/K184, 0) -> 1 | N180: =ROUND(M184*L180,0) -> 738074819 | O180: 711149680 | P180: =N180-O180 -> 26925139 | Q180: 3.786142321 | R180: 64508 | T180: 35 | U180: 35 | V180: 171 | W180: 63777 | X180: 894636144.3 | Y180: 171 | Z180: 35 | AA180: 35 | AB180: 171 | AC180: 63777 | AD180: 894636144.3 | CR180: 35 | CS180: 35 | CT180: 171 | CU180: 64508 | CV180: 861999611.9 | CW180: 1 | CX180: 711149680
A181: 00350998 | B181: 0035 | C181: 0998 | D181: 172 | E181: 35 | G181: 998 | I181: 0 | J181: 0 | K181: 0 | L181: =IF(K184>0, K181/K184, 0) -> 0 | N181: =ROUND(M184*L181,0) -> 0 | O181: 0 | P181: =N181-O181 -> 0 | Q181: 0 | R181: 0 | T181: 35 | U181: 998 | V181: 172 | W181: 0 | X181: 0 | Y181: 172 | Z181: 35 | AA181: 998 | AB181: 172 | AC181: 0 | AD181: 0 | CR181: 35 | CS181: 998 | CT181: 172 | CU181: 0 | CV181: 0 | CW181: 0 | CX181: 0
A182: 00350998 | B182: 0035 | C182: 0998 | D182: 173 | E182: 35 | G182: 998 | I182: 0 | J182: 0 | K182: 0 | L182: =IF(K184>0, K182/K184, 0) -> 0 | N182: =ROUND(M184*L182,0) -> 0 | O182: 0 | P182: =N182-O182 -> 0 | Q182: 0 | R182: 0 | T182: 35 | U182: 998 | V182: 173 | W182: 0 | X182: 0 | Y182: 173 | Z182: 35 | AA182: 998 | AB182: 173 | AC182: 0 | AD182: 0 | CR182: 35 | CS182: 998 | CT182: 173 | CU182: 0 | CV182: 0 | CW182: 0 | CX182: 0
A183: 00350998 | B183: 0035 | C183: 0998 | D183: 174 | E183: 35 | G183: 998 | I183: 0 | J183: 0 | K183: 0 | L183: =IF(K184>0, K183/K184, 0) -> 0 | N183: =ROUND(M184*L183,0) -> 0 | O183: 0 | P183: =N183-O183 -> 0 | Q183: 0 | R183: 0 | T183: 35 | U183: 998 | V183: 174 | W183: 0 | X183: 0 | Y183: 174 | Z183: 35 | AA183: 998 | AB183: 174 | AC183: 0 | AD183: 0 | CR183: 35 | CS183: 998 | CT183: 174 | CU183: 0 | CV183: 0 | CW183: 0 | CX183: 0
A184: 00350999 | B184: 0035 | C184: 0999 | D184: 175 | E184: 35 | F184: Boston | G184: 999 | H184: Total | I184: 861999611.9 | J184: 1 | K184: =SUM(K180:K183) -> 894636144.3 | L184: =SUM(L180:L183) -> 1 | M184: =VLOOKUP(E184,town351,23) -> 738074819 | N184: =SUM(N180:N183) -> 738074819 | O184: 711149680 | P184: =SUM(P180:P183) -> 26925139 | Q184: 3.786142321 | R184: 64508 | T184: 35 | U184: 999 | V184: 175 | W184: 63777 | X184: 894636144.3 | Y184: 175 | Z184: 35 | AA184: 999 | AB184: 175 | AC184: 63777 | AD184: 894636144.3 | CR184: 35 | CS184: 999 | CT184: 175 | CU184: 64508 | CV184: 861999611.9 | CW184: 1 | CX184: 711149680
A185: 00360036 | B185: 0036 | C185: 0036 | D185: 176 | E185: 36 | F185: Bourne | G185: 36 | H185: Bourne | I185: 21368782.29 | J185: 0.8829556615 | K185: =X185 -> 21952491.19 | L185: =IF(K189>0, K185/K189, 0) -> 0.8927494095 | N185: =ROUND(M189*L185,0) -> 18110806 | O185: 17629245 | P185: =N185-O185 -> 481561 | Q185: 2.731603083 | R185: 2038 | T185: 36 | U185: 36 | V185: 176 | W185: 2001 | X185: 21952491.19 | Y185: 176 | Z185: 36 | AA185: 36 | AB185: 176 | AC185: 2001 | AD185: 21952491.19 | CR185: 36 | CS185: 36 | CT185: 176 | CU185: 2038 | CV185: 21368782.29 | CW185: 0.8829556615 | CX185: 17629245
A186: 00360879 | B186: 0036 | C186: 0879 | D186: 177 | E186: 36 | F186: Bourne | G186: 879 | H186: Upper Cape Cod | I186: 2832639.392 | J186: 0.1170443385 | K186: 2637265.977 | L186: =IF(K189>0, K186/K189, 0) -> 0.1072505905 | N186: =ROUND(M189*L186,0) -> 2175744 | O186: 2336928 | P186: =N186-O186 -> -161184 | Q186: -6.897259993 | R186: 175 | T186: 36 | U186: 879 | V186: 177 | W186: 157 | X186: 2637265.977 | Y186: 177 | Z186: 36 | AA186: 879 | AB186: 177 | AC186: 157 | AD186: 2637265.977 | CR186: 36 | CS186: 879 | CT186: 177 | CU186: 175 | CV186: 2832639.392 | CW186: 0.1170443385 | CX186: 2336928
A187: 00360998 | B187: 0036 | C187: 0998 | D187: 178 | E187: 36 | G187: 998 | I187: 0 | J187: 0 | K187: 0 | L187: =IF(K189>0, K187/K189, 0) -> 0 | N187: =ROUND(M189*L187,0) -> 0 | O187: 0 | P187: =N187-O187 -> 0 | Q187: 0 | R187: 0 | T187: 36 | U187: 998 | V187: 178 | W187: 0 | X187: 0 | Y187: 178 | Z187: 36 | AA187: 998 | AB187: 178 | AC187: 0 | AD187: 0 | CR187: 36 | CS187: 998 | CT187: 178 | CU187: 0 | CV187: 0 | CW187: 0 | CX187: 0
A188: 00360998 | B188: 0036 | C188: 0998 | D188: 179 | E188: 36 | G188: 998 | I188: 0 | J188: 0 | K188: 0 | L188: =IF(K189>0, K188/K189, 0) -> 0 | N188: =ROUND(M189*L188,0) -> 0 | O188: 0 | P188: =N188-O188 -> 0 | Q188: 0 | R188: 0 | T188: 36 | U188: 998 | V188: 179 | W188: 0 | X188: 0 | Y188: 179 | Z188: 36 | AA188: 998 | AB188: 179 | AC188: 0 | AD188: 0 | CR188: 36 | CS188: 998 | CT188: 179 | CU188: 0 | CV188: 0 | CW188: 0 | CX188: 0
A189: 00360999 | B189: 0036 | C189: 0999 | D189: 180 | E189: 36 | F189: Bourne | G189: 999 | H189: Total | I189: 24201421.68 | J189: 1 | K189: =SUM(K185:K188) -> 24589757.17 | L189: =SUM(L185:L188) -> 1 | M189: =VLOOKUP(E189,town351,23) -> 20286550 | N189: =SUM(N185:N188) -> 20286550 | O189: 19966173 | P189: =SUM(P185:P188) -> 320377 | Q189: 1.604598938 | R189: 2213 | T189: 36 | U189: 999 | V189: 180 | W189: 2158 | X189: 24589757.17 | Y189: 180 | Z189: 36 | AA189: 999 | AB189: 180 | AC189: 2158 | AD189: 24589757.17 | CR189: 36 | CS189: 999 | CT189: 180 | CU189: 2213 | CV189: 24201421.68 | CW189: 1 | CX189: 19966173
A190: 00370037 | B190: 0037 | C190: 0037 | D190: 181 | E190: 37 | F190: Boxborough | G190: 37 | H190: Boxborough | I190: 106694.35 | J190: 0.01223870901 | K190: =X190 -> 127474.5305 | L190: =IF(K194>0, K190/K194, 0) -> 0.01407974486 | N190: =ROUND(M194*L190,0) -> 104984 | O190: 87553 | P190: =N190-O190 -> 17431 | Q190: 19.90908364 | R190: 7 | T190: 37 | U190: 37 | V190: 181 | W190: 8 | X190: 127474.5305 | Y190: 181 | Z190: 37 | AA190: 37 | AB190: 181 | AC190: 8 | AD190: 127474.5305 | CR190: 37 | CS190: 37 | CT190: 181 | CU190: 7 | CV190: 106694.35 | CW190: 0.01223870901 | CX190: 87553
A191: 00370600 | B191: 0037 | C191: 0600 | D191: 182 | E191: 37 | F191: Boxborough | G191: 600 | H191: Acton Boxborough | I191: 8611083.801 | J191: 0.987761291 | K191: 8926278.347 | L191: =IF(K194>0, K191/K194, 0) -> 0.9859202551 | N191: =ROUND(M194*L191,0) -> 7351369 | O191: 7066196 | P191: =N191-O191 -> 285173 | Q191: 4.035735776 | R191: 848.4607105 | T191: 37 | U191: 600 | V191: 182 | W191: 843.3208969 | X191: 8926278.347 | Y191: 182 | Z191: 37 | AA191: 600 | AB191: 182 | AC191: 843.3208969 | AD191: 8926278.347 | CR191: 37 | CS191: 600 | CT191: 182 | CU191: 848.4607105 | CV191: 8611083.801 | CW191: 0.987761291 | CX191: 7066196
A192: 00370830 | B192: 0037 | C192: 0830 | D192: 183 | E192: 37 | G192: 998 | I192: 0 | J192: 0 | K192: 0 | L192: =IF(K194>0, K192/K194, 0) -> 0 | N192: =ROUND(M194*L192,0) -> 0 | O192: 0 | P192: =N192-O192 -> 0 | Q192: 0 | R192: 0 | T192: 37 | U192: 998 | V192: 183 | W192: 0 | X192: 0 | Y192: 183 | Z192: 37 | AA192: 998 | AB192: 183 | AC192: 0 | AD192: 0 | CR192: 37 | CS192: 830 | CT192: 183 | CU192: 0 | CV192: 0 | CW192: 0 | CX192: 0
A193: 00370998 | B193: 0037 | C193: 0998 | D193: 184 | E193: 37 | G193: 998 | I193: 0 | J193: 0 | K193: 0 | L193: =IF(K194>0, K193/K194, 0) -> 0 | N193: =ROUND(M194*L193,0) -> 0 | O193: 0 | P193: =N193-O193 -> 0 | Q193: 0 | R193: 0 | T193: 37 | U193: 998 | V193: 184 | W193: 0 | X193: 0 | Y193: 184 | Z193: 37 | AA193: 998 | AB193: 184 | AC193: 0 | AD193: 0 | CR193: 37 | CS193: 998 | CT193: 184 | CU193: 0 | CV193: 0 | CW193: 0 | CX193: 0
A194: 00370999 | B194: 0037 | C194: 0999 | D194: 185 | E194: 37 | F194: Boxborough | G194: 999 | H194: Total | I194: 8717778.151 | J194: 1 | K194: =SUM(K190:K193) -> 9053752.878 | L194: =SUM(L190:L193) -> 1 | M194: =VLOOKUP(E194,town351,23) -> 7456353 | N194: =SUM(N190:N193) -> 7456353 | O194: 7153749 | P194: =SUM(P190:P193) -> 302604 | Q194: 4.230005833 | R194: 855.4607105 | T194: 37 | U194: 999 | V194: 185 | W194: 851.3208969 | X194: 9053752.878 | Y194: 185 | Z194: 37 | AA194: 999 | AB194: 185 | AC194: 851.3208969 | AD194: 9053752.878 | CR194: 37 | CS194: 999 | CT194: 185 | CU194: 855.4607105 | CV194: 8717778.151 | CW194: 1 | CX194: 7153749
A195: 00380038 | B195: 0038 | C195: 0038 | D195: 186 | E195: 38 | F195: Boxford | G195: 38 | H195: Boxford | I195: 6655216.908 | J195: 0.4677186164 | K195: =X195 -> 7004418.418 | L195: =IF(K199>0, K195/K199, 0) -> 0.4719426404 | N195: =ROUND(M199*L195,0) -> 5768948 | O195: 5490554 | P195: =N195-O195 -> 278394 | Q195: 5.070417302 | R195: 704 | T195: 38 | U195: 38 | V195: 186 | W195: 705 | X195: 7004418.418 | Y195: 186 | Z195: 38 | AA195: 38 | AB195: 186 | AC195: 705 | AD195: 7004418.418 | CR195: 38 | CS195: 38 | CT195: 186 | CU195: 704 | CV195: 6655216.908 | CW195: 0.4677186164 | CX195: 5490554
A196: 00380705 | B196: 0038 | C196: 0705 | D196: 187 | E196: 38 | F196: Boxford | G196: 705 | H196: Masconomet | I196: 7282191.189 | J196: 0.5117814241 | K196: 7535956.338 | L196: =IF(K199>0, K196/K199, 0) -> 0.5077565217 | N196: =ROUND(M199*L196,0) -> 6206730 | O196: 6007808 | P196: =N196-O196 -> 198922 | Q196: 3.311057877 | R196: 700.7592191 | T196: 38 | U196: 705 | V196: 187 | W196: 697.5204806 | X196: 7535956.338 | Y196: 187 | Z196: 38 | AA196: 705 | AB196: 187 | AC196: 697.5204806 | AD196: 7535956.338 | CR196: 38 | CS196: 705 | CT196: 187 | CU196: 700.7592191 | CV196: 7282191.189 | CW196: 0.5117814241 | CX196: 6007808
A197: 00380817 | B197: 0038 | C197: 0817 | D197: 188 | E197: 38 | F197: Boxford | G197: 817 | H197: Essex North Shore | I197: 291696.0598 | J197: 0.02049995956 | K197: 301298.4016 | L197: =IF(K199>0, K197/K199, 0) -> 0.02030083795 | N197: =ROUND(M199*L197,0) -> 248154 | O197: 240649 | P197: =N197-O197 -> 7505 | Q197: 3.118649984 | R197: 18 | T197: 38 | U197: 817 | V197: 188 | W197: 18 | X197: 301298.4016 | Y197: 188 | Z197: 38 | AA197: 817 | AB197: 188 | AC197: 18 | AD197: 301298.4016 | CR197: 38 | CS197: 817 | CT197: 188 | CU197: 18 | CV197: 291696.0598 | CW197: 0.02049995956 | CX197: 240649
A198: 00380998 | B198: 0038 | C198: 0998 | D198: 189 | E198: 38 | G198: 998 | I198: 0 | J198: 0 | K198: 0 | L198: =IF(K199>0, K198/K199, 0) -> 0 | N198: =ROUND(M199*L198,0) -> 0 | O198: 0 | P198: =N198-O198 -> 0 | Q198: 0 | R198: 0 | T198: 38 | U198: 998 | V198: 189 | W198: 0 | X198: 0 | Y198: 189 | Z198: 38 | AA198: 998 | AB198: 189 | AC198: 0 | AD198: 0 | CR198: 38 | CS198: 998 | CT198: 189 | CU198: 0 | CV198: 0 | CW198: 0 | CX198: 0
A199: 00380999 | B199: 0038 | C199: 0999 | D199: 190 | E199: 38 | F199: Boxford | G199: 999 | H199: Total | I199: 14229104.16 | J199: 1 | K199: =SUM(K195:K198) -> 14841673.16 | L199: =SUM(L195:L198) -> 1 | M199: =VLOOKUP(E199,town351,23) -> 12223832 | N199: =SUM(N195:N198) -> 12223832 | O199: 11739011 | P199: =SUM(P195:P198) -> 484821 | Q199: 4.129998686 | R199: 1422.759219 | T199: 38 | U199: 999 | V199: 190 | W199: 1420.520481 | X199: 14841673.16 | Y199: 190 | Z199: 38 | AA199: 999 | AB199: 190 | AC199: 1420.520481 | AD199: 14841673.16 | CR199: 38 | CS199: 999 | CT199: 190 | CU199: 1422.759219 | CV199: 14229104.16 | CW199: 1 | CX199: 11739011
A200: 00390039 | B200: 0039 | C200: 0039 | D200: 191 | E200: 39 | F200: Boylston | G200: 39 | H200: Boylston | I200: 2856144.64 | J200: 0.4346535656 | K200: =X200 -> 429577.7153 | L200: =IF(K204>0, K200/K204, 0) -> 0.06335036488 | N200: =ROUND(M204*L200,0) -> 346172 | O200: 2256220 | P200: =N200-O200 -> -1910048 | Q200: -84.65699267 | R200: 286 | T200: 39 | U200: 39 | V200: 191 | W200: 28 | X200: 429577.7153 | Y200: 191 | Z200: 39 | AA200: 39 | AB200: 191 | AC200: 28 | AD200: 429577.7153 | CR200: 39 | CS200: 39 | CT200: 191 | CU200: 286 | CV200: 2856144.64 | CW200: 0.4346535656 | CX200: 2256220
... 362 more rows

Sheet Index
A1: Massachusetts Department of Elementary and Secondary Education | J1: 2019-01-23
A2: =parameters!B1& " Chapter 70 and Net School Spending Formula Spreadsheet" -> FY20 Chapter 70 and Net School Spending Formula Spreadsheet
B3: Select or type full district name below | C3: LEA code
A4: =C4 -> 999 | B4: Select a district | C4: =VLOOKUP(B4,leas!$E$4:$F$446,2,FALSE) -> 999
B6: Use the drop-down menu to select a municipal or regional district and then go to any of the first four links below.
B7: Only municipal district selections will activate the Municipal Contribution Requirement and Regional Allocation reports.
B8: A list of LEAs by code begins on row 26 of this sheet.
B10: We recommend that you save this workbook to your computer before proceeding, then leave this browser, and open the workbook using Excel or My Computer.
B12: Summary
B13: Foundation Budget
B14: Municipal Contribution Requirement
B15: Regional Allocation
B17: Regional District Detail | D17: (go to this sheet to see any particular regional district's comparison of enrollment and minimum contributions to the prior year)
B19: There are also a number of "hidden" sheets which contain the underlying spreadsheet calculations.
B20: They can be accessed by right-clicking on any of the tabs below and choosing a sheet to unhide.
B22: Questions or comments about Chapter 70 may be directed to:
B23: Rob O'Donnell | D23: rodonnell@doe.mass.edu | G23: 781-338-6512
B24: Rob Hanna | D24: robert.hanna@doe.mass.edu | G24: 781-338-6525
A26: LEA | B26: District
A27: 1 | B27: Abington
A28: 2 | B28: Acton
A29: 3 | B29: Acushnet
A30: 4 | B30: Adams
A31: 5 | B31: Agawam
A32: 6 | B32: Alford
A33: 7 | B33: Amesbury
A34: 8 | B34: Amherst
A35: 9 | B35: Andover
A36: 10 | B36: Arlington
A37: 11 | B37: Ashburnham
A38: 12 | B38: Ashby
A39: 13 | B39: Ashfield
A40: 14 | B40: Ashland
A41: 15 | B41: Athol
A42: 16 | B42: Attleboro
A43: 17 | B43: Auburn
A44: 18 | B44: Avon
A45: 19 | B45: Ayer
A46: 20 | B46: Barnstable
A47: 21 | B47: Barre
A48: 22 | B48: Becket
A49: 23 | B49: Bedford
A50: 24 | B50: Belchertown
A51: 25 | B51: Bellingham
A52: 26 | B52: Belmont
A53: 27 | B53: Berkley
A54: 28 | B54: Berlin
A55: 29 | B55: Bernardston
A56: 30 | B56: Beverly
A57: 31 | B57: Billerica
A58: 32 | B58: Blackstone
A59: 33 | B59: Blandford
A60: 34 | B60: Bolton
A61: 35 | B61: Boston
A62: 36 | B62: Bourne
A63: 37 | B63: Boxborough
A64: 38 | B64: Boxford
A65: 39 | B65: Boylston
A66: 40 | B66: Braintree
A67: 41 | B67: Brewster
A68: 42 | B68: Bridgewater
A69: 43 | B69: Brimfield
A70: 44 | B70: Brockton
A71: 45 | B71: Brookfield
A72: 46 | B72: Brookline
A73: 47 | B73: Buckland
A74: 48 | B74: Burlington
A75: 49 | B75: Cambridge
A76: 50 | B76: Canton
A77: 51 | B77: Carlisle
A78: 52 | B78: Carver
A79: 53 | B79: Charlemont
A80: 54 | B80: Charlton
A81: 55 | B81: Chatham
A82: 56 | B82: Chelmsford
A83: 57 | B83: Chelsea
A84: 58 | B84: Cheshire
A85: 59 | B85: Chester
A86: 60 | B86: Chesterfield
A87: 61 | B87: Chicopee
A88: 62 | B88: Chilmark
A89: 63 | B89: Clarksburg
A90: 64 | B90: Clinton
A91: 65 | B91: Cohasset
A92: 66 | B92: Colrain
A93: 67 | B93: Concord
A94: 68 | B94: Conway
A95: 69 | B95: Cummington
A96: 70 | B96: Dalton
A97: 71 | B97: Danvers
A98: 72 | B98: Dartmouth
A99: 73 | B99: Dedham
A100: 74 | B100: Deerfield
A101: 75 | B101: Dennis
A102: 76 | B102: Dighton
A103: 77 | B103: Douglas
A104: 78 | B104: Dover
A105: 79 | B105: Dracut
A106: 80 | B106: Dudley
A107: 81 | B107: Dunstable
A108: 82 | B108: Duxbury
A109: 83 | B109: East Bridgewater
A110: 84 | B110: East Brookfield
A111: 85 | B111: Eastham
A112: 86 | B112: Easthampton
A113: 87 | B113: East Longmeadow
A114: 88 | B114: Easton
A115: 89 | B115: Edgartown
A116: 90 | B116: Egremont
A117: 91 | B117: Erving
A118: 92 | B118: Essex
A119: 93 | B119: Everett
A120: 94 | B120: Fairhaven
A121: 95 | B121: Fall River
A122: 96 | B122: Falmouth
A123: 97 | B123: Fitchburg
A124: 98 | B124: Florida
A125: 99 | B125: Foxborough
A126: 100 | B126: Framingham
A127: 101 | B127: Franklin
A128: 102 | B128: Freetown
A129: 103 | B129: Gardner
A130: 104 | B130: Gay Head
A131: 105 | B131: Georgetown
A132: 106 | B132: Gill
A133: 107 | B133: Gloucester
A134: 108 | B134: Goshen
A135: 109 | B135: Gosnold
A136: 110 | B136: Grafton
A137: 111 | B137: Granby
A138: 112 | B138: Granville
A139: 113 | B139: Great Barrington
A140: 114 | B140: Greenfield
A141: 115 | B141: Groton
A142: 116 | B142: Groveland
A143: 117 | B143: Hadley
A144: 118 | B144: Halifax
A145: 119 | B145: Hamilton
A146: 120 | B146: Hampden
A147: 121 | B147: Hancock
A148: 122 | B148: Hanover
A149: 123 | B149: Hanson
A150: 124 | B150: Hardwick
A151: 125 | B151: Harvard
A152: 126 | B152: Harwich
A153: 127 | B153: Hatfield
A154: 128 | B154: Haverhill
A155: 129 | B155: Hawley
A156: 130 | B156: Heath
A157: 131 | B157: Hingham
A158: 132 | B158: Hinsdale
A159: 133 | B159: Holbrook
A160: 134 | B160: Holden
A161: 135 | B161: Holland
A162: 136 | B162: Holliston
A163: 137 | B163: Holyoke
A164: 138 | B164: Hopedale
A165: 139 | B165: Hopkinton
A166: 140 | B166: Hubbardston
A167: 141 | B167: Hudson
A168: 142 | B168: Hull
A169: 143 | B169: Huntington
A170: 144 | B170: Ipswich
A171: 145 | B171: Kingston
A172: 146 | B172: Lakeville
A173: 147 | B173: Lancaster
A174: 148 | B174: Lanesborough
A175: 149 | B175: Lawrence
A176: 150 | B176: Lee
A177: 151 | B177: Leicester
A178: 152 | B178: Lenox
A179: 153 | B179: Leominster
A180: 154 | B180: Leverett
A181: 155 | B181: Lexington
A182: 156 | B182: Leyden
A183: 157 | B183: Lincoln
A184: 158 | B184: Littleton
A185: 159 | B185: Longmeadow
A186: 160 | B186: Lowell
A187: 161 | B187: Ludlow
A188: 162 | B188: Lunenburg
A189: 163 | B189: Lynn
A190: 164 | B190: Lynnfield
A191: 165 | B191: Malden
A192: 166 | B192: Manchester
A193: 167 | B193: Mansfield
A194: 168 | B194: Marblehead
A195: 169 | B195: Marion
A196: 170 | B196: Marlborough
A197: 171 | B197: Marshfield
A198: 172 | B198: Mashpee
A199: 173 | B199: Mattapoisett
A200: 174 | B200: Maynard
A201: 175 | B201: Medfield
A202: 176 | B202: Medford
A203: 177 | B203: Medway
A204: 178 | B204: Melrose
A205: 179 | B205: Mendon
A206: 180 | B206: Merrimac
A207: 181 | B207: Methuen
... 257 more rows

Sheet MoreAboutData
B1: FY20 Chapter 70 and Net School Spending Formula | C1: FY18 Chapter 70 and Net School Spending Formula Spreadsheet | D1: FY18 Chapter 70 and Net School Spending Formula Spreadsheet | E1: FY18 Chapter 70 and Net School Spending Formula Spreadsheet | F1: FY18 Chapter 70 and Net School Spending Formula Spreadsheet | G1: Return to Index
B2: More about the data
A3: TABLE OF CONTENTS
A4: Index | E4: Back to the top
A5: Select the district you're interested in from the dropdown list on this sheet.
A7: Foundation Budget | E7: Back to the top
A8: This report displays the foundation enrollment and foundation budget for a single district. A district’s foundation budget is updated each year and it is derived by multiplying the number of pupils in thirteen enrollment categories by cost rates in eleven functional areas. More on calculating the foundation budget can be found here:
A10: http://www.doe.mass.edu/finance/chapter70/
A11: Key Terms
A12: Foundation Enrollment: A count of the students for whom a school district is financially responsible on October 1st of any given year. Inflation: Foundation budget rates are adjusted each year by a statutorily defined inflationary factor. It affects all districts in the same way. Wage Adjustment Factor (WAF): Gives a district credit for having higher school costs if it is located in a geographic area where average wages are higher than in other areas of the state. Calculated using the latest available average wage data supplied by the state’s Executive Office of Labor and Workforce Development (EOLWD). Economically Disadvantaged Decile: Determined based on the relative concentration of economically disadvantaged students served in the district (decile 10 includes the districts with the greatest concentration of these students). Corresponds to a foundation budget rate for economically disadvantaged students.
A13: Municipal Contribution | E13: Back to the top
A14: This report displays the required local contribution for a single municipality. Each municipality has a target local share of its foundation budget, based on local ability to pay. The required local contribution for each municipality is based on the previous year's required contribution, and includes some transition factors so that the shift toward the target levels occurs over a period of several years.
A16: Key Terms
A17: Equalized Valuation (EQV): Calculated by DOR every two years. Full and fair cash value of all taxable property for each municipality. Income: Derived annually by DOR from state income tax returns. Includes all forms of wage, pension, interest, business, investment, and capital gains income. Combined Effort Yield (CEY): Sum of property and income effort. Based on DESE-calculated property and income percentages, which, when applied to all municipalities in the Commonwealth, yields 59% of statewide foundation coming from local revenue. Target Local Contribution/Share: Calculated for each municipality as an equitable share of its foundation budget based on property wealth and income. Municipal Revenue Growth Factor (MRGF): Calculated each year by DOR and quantifies the most recent annual percentage change in each community's local revenues (such as the annual increase in the Proposition 2½ levy limit) that should be available for schools.
A18: Regional Allocation | E18: Back to the top
A19: This report displays the allocation of a municipality's required local contribution across the districts to which it belongs. The municipality's required contribution is allocated in direct proportion to the district's share of the municipality's foundation budget.
A21: Summary | E21: Back to the top
A22: This report displays the Chapter 70 aid calculation for a single district. The aid calculation begins with each district's prior year Chapter 70 amount. The difference between each district's foundation budget and its required contribution equals foundation aid. In FY20, each district is guaranteed to receive at least $20 per pupil in additional Chapter 70 aid. On the right-hand side, there is a comparison to the prior year.
A24: Key Terms
A25: Foundation Aid: The amount of aid needed by a district to reach its foundation budget, after factoring in this year's required local contribution. Foundation budget - Required Local Contribution = Foundation Aid Minimum Aid: A guaranteed per pupil aid increase over the prior year. Required Net School Spending (NSS): The sum of this year's required local contribution and Chapter 70 aid. A district must spend this amount to be in compliance.
A26: Regional District Members | E26: Back to the top
A27: This report displays relevant data for municipal members of a single regional district.
A29: Key Terms
A30: District Foundation Enrollment: Foundation enrollment for the selected district, in total and by member. District Required Minimum Contribution: Total required minimum contribution for the selected district, in total and by member. District's Share of Town Foundation Budget: The proportion of the town's total foundation budget related to students at the selected district. Municipalities often belong to more than one district. Town Required Local Contribution: The total municipal required local contribution for all of its students across all of the districts to which it belongs.
A31: Comparison to FY19 | E31: Back to the top
A32: This report displays prior year and current year foundation enrollment, foundation budget, required local contribution and Chapter 70 aid for all operating districts.
A34: Rates | E34: Back to the top
A35: This sheet displays the FY20 foundation budget rates. Rates are annually adjusted for inflation.
A37: Townwide Contributions | E37: Back to the top
A38: This sheet calculates FY20 required local contributions for each municipality.
A40: Aid436 | E40: Back to the top
A41: This sheet calculates FY20 Chapter 70 aid for each district.

Sheet Foundation Budget
A1: Return to Index | V1: More about the data
A2: Massachusetts Department of Elementary and Secondary Education
A3: Office of School Finance | C3: 2019-01-23
A4: =parameters!B1&" Chapter 70 Foundation Budget" -> FY20 Chapter 70 Foundation Budget
A5: =lea -> 999 | B5: =IF(lea=999,"State total cannot be computed on this page; Please enter an lea code on the index sheet",VLOOKUP(A5,dist915,2)) -> State total cannot be computed on this page; Please enter an lea code on the index sheet | C5: 1 | D5: 2 | E5: 3 | F5: 4 | G5: 5 | H5: 6 | I5: 7 | J5: 8 | K5: 9 | L5: 10 | M5: 11 | N5: 12 | O5: 13 | P5: 14 | Q5: 15 | W5: 17723
C6: Base Foundation Components | K6: Incremental Costs Above the Base
C7: 1 | D7: 2 | E7: 3 | F7: 4 | G7: 5 | H7: 6 | I7: 7 | J7: 10 | K7: 11 | L7: 12 | M7: 13 | N7: 14 | O7: 15 | P7: 19 | Q7: 20 | R7: 21
C8: Pre- | D8: ------ Kindergarten ------ | G8: Jr High/ | H8: High | I8: Early College | K8: Special Ed | L8: Special Ed | M8: EL | N8: EL | O8: EL | Q8: High Needs
C9: School | D9: Half-Day | E9: Full-Day | F9: Elementary | G9: Middle | H9: School | I9: or Innovation Pathways | J9: Vocational | K9: In District | L9: Out of Dist | M9: PK-5 | N9: 6-8 | O9: High | P9: EcoDis | Q9: Increment | R9: TOTAL*
B10: Foundation Enrollment | C10: =IF($A$5<>999,VLOOKUP(lea,dist915,VALUE(C$7)+2),0) -> 0 | D10: 0 | E10: 0 | F10: 0 | G10: 0 | H10: 0 | I10: 0 | J10: 0 | K10: 0 | L10: 0 | M10: 0 | N10: 0 | O10: 0 | P10: =IF($A$5<>999,VLOOKUP(lea,dist915,VALUE(P$7)+2),0) -> 0 | Q10: =IF($A$5<>999,VLOOKUP(lea,dist915,VALUE(Q$7)+2),0) -> 0 | R10: =IF($A$5<>999,VLOOKUP(lea,dist915,VALUE(R$7)+2),0) -> 0
A12: 1 | B12: Administration | C12: =(VLOOKUP(VALUE(C$7),newrates,$A12+2)*C$10*waf) -> 0 | D12: 0 | E12: 0 | F12: 0 | G12: 0 | H12: 0 | I12: 0 | J12: =(VLOOKUP(VALUE(J$7)-2,newrates,$A12+2)*J$10*waf) -> 0 | K12: 0 | L12: 0 | M12: 0 | N12: 0 | O12: 0 | P12: =(VLOOKUP(VALUE(P$7)+$C$27-6, newrates, $A12+2, FALSE))*P$10*waf -> 0 | Q12: =(VLOOKUP(VALUE(Q$7)+4, newrates, $A12+2, FALSE))*Q$10*waf -> 0 | R12: =SUM(C12:Q12) -> 0
A13: 2 | B13: Instructional Leadership | C13: 0 | D13: 0 | E13: 0 | F13: 0 | G13: 0 | H13: 0 | I13: 0 | J13: 0 | K13: 0 | L13: 0 | M13: 0 | N13: 0 | O13: 0 | P13: =(VLOOKUP(VALUE(P$7)+$C$27-6, newrates, $A13+2, FALSE))*P$10*waf -> 0 | Q13: =(VLOOKUP(VALUE(Q$7)+4, newrates, $A13+2, FALSE))*Q$10*waf -> 0 | R13: =SUM(C13:Q13) -> 0
A14: 3 | B14: Classroom and Specialist Teachers | C14: 0 | D14: 0 | E14: 0 | F14: 0 | G14: 0 | H14: 0 | I14: 0 | J14: 0 | K14: 0 | L14: 0 | M14: 0 | N14: 0 | O14: 0 | P14: =(VLOOKUP(VALUE(P$7)+$C$27-6, newrates, $A14+2, FALSE))*P$10*waf -> 0 | Q14: =(VLOOKUP(VALUE(Q$7)+4, newrates, $A14+2, FALSE))*Q$10*waf -> 0 | R14: 0
A15: 4 | B15: Other Teaching Services | C15: 0 | D15: 0 | E15: 0 | F15: 0 | G15: 0 | H15: 0 | I15: 0 | J15: 0 | K15: 0 | L15: 0 | M15: 0 | N15: 0 | O15: 0 | P15: =(VLOOKUP(VALUE(P$7)+$C$27-6, newrates, $A15+2, FALSE))*P$10*waf -> 0 | Q15: =(VLOOKUP(VALUE(Q$7)+4, newrates, $A15+2, FALSE))*Q$10*waf -> 0 | R15: 0
A16: 5 | B16: Professional Development | C16: 0 | D16: 0 | E16: 0 | F16: 0 | G16: 0 | H16: 0 | I16: 0 | J16: 0 | K16: 0 | L16: 0 | M16: 0 | N16: 0 | O16: 0 | P16: =(VLOOKUP(VALUE(P$7)+$C$27-6, newrates, $A16+2, FALSE))*P$10*waf -> 0 | Q16: =(VLOOKUP(VALUE(Q$7)+4, newrates, $A16+2, FALSE))*Q$10*waf -> 0 | R16: 0
A17: 6 | B17: Instructional Equipment & Tech* | C17: =(VLOOKUP(VALUE(C$7),newrates,$A17+2)*C$10) -> 0 | D17: 0 | E17: 0 | F17: 0 | G17: 0 | H17: 0 | I17: 0 | J17: =(VLOOKUP(VALUE(J$7)-2,newrates,$A17+2)*J$10) -> 0 | K17: 0 | L17: 0 | M17: 0 | N17: 0 | O17: 0 | P17: =(VLOOKUP(VALUE(P$7)+$C$27-6, newrates, $A17+2, FALSE))*P$10 -> 0 | Q17: =(VLOOKUP(VALUE(Q$7)+4, newrates, $A17+2, FALSE))*Q$10 -> 0 | R17: 0
A18: 7 | B18: Guidance and Psychological | C18: =(VLOOKUP(VALUE(C$7),newrates,$A18+2)*C$10*waf) -> 0 | D18: 0 | E18: 0 | F18: 0 | G18: 0 | H18: 0 | I18: 0 | J18: =(VLOOKUP(VALUE(J$7)-2,newrates,$A18+2)*J$10*waf) -> 0 | K18: 0 | L18: 0 | M18: 0 | N18: 0 | O18: 0 | P18: =(VLOOKUP(VALUE(P$7)+$C$27-6, newrates, $A18+2, FALSE))*P$10*waf -> 0 | Q18: =(VLOOKUP(VALUE(Q$7)+4, newrates, $A18+2, FALSE))*Q$10*waf -> 0 | R18: 0
A19: 8 | B19: Pupil Services | C19: 0 | D19: 0 | E19: 0 | F19: 0 | G19: 0 | H19: 0 | I19: 0 | J19: 0 | K19: 0 | L19: 0 | M19: 0 | N19: 0 | O19: 0 | P19: =(VLOOKUP(VALUE(P$7)+$C$27-6, newrates, $A19+2, FALSE))*P$10*waf -> 0 | Q19: =(VLOOKUP(VALUE(Q$7)+4, newrates, $A19+2, FALSE))*Q$10*waf -> 0 | R19: 0
A20: 9 | B20: Operations and Maintenance | C20: 0 | D20: 0 | E20: 0 | F20: 0 | G20: 0 | H20: 0 | I20: 0 | J20: 0 | K20: 0 | L20: 0 | M20: 0 | N20: 0 | O20: 0 | P20: =(VLOOKUP(VALUE(P$7)+$C$27-6, newrates, $A20+2, FALSE))*P$10*waf -> 0 | Q20: =(VLOOKUP(VALUE(Q$7)+4, newrates, $A20+2, FALSE))*Q$10*waf -> 0 | R20: 0
A21: 10 | B21: Employee Benefits/Fixed Charges* | C21: =(VLOOKUP(VALUE(C$7),newrates,$A21+2)*C$10) -> 0 | D21: 0 | E21: 0 | F21: 0 | G21: 0 | H21: 0 | I21: 0 | J21: =(VLOOKUP(VALUE(J$7)-2,newrates,$A21+2)*J$10) -> 0 | K21: 0 | L21: 0 | M21: 0 | N21: 0 | O21: 0 | P21: =(VLOOKUP(VALUE(P$7)+$C$27-6, newrates, $A21+2, FALSE))*P$10 -> 0 | Q21: =(VLOOKUP(VALUE(Q$7)+4, newrates, $A21+2, FALSE))*Q$10 -> 0 | R21: 0
A22: 11 | B22: Special Ed Tuition* | C22: 0 | D22: 0 | E22: 0 | F22: 0 | G22: 0 | H22: 0 | I22: 0 | J22: 0 | K22: 0 | L22: 0 | M22: 0 | N22: 0 | O22: 0 | P22: =(VLOOKUP(VALUE(P$7)+$C$27-6, newrates, $A22+2, FALSE))*P$10 -> 0 | Q22: =(VLOOKUP(VALUE(Q$7)+4, newrates, $A22+2, FALSE))*Q$10 -> 0 | R22: 0
A24: 12 | B24: Total | C24: =SUM(C12:C22) -> 0 | D24: 0 | E24: 0 | F24: 0 | G24: 0 | H24: 0 | I24: 0 | J24: =SUM(J12:J22) -> 0 | K24: 0 | L24: 0 | M24: 0 | N24: 0 | O24: 0 | P24: 0 | Q24: 0 | R24: =SUM(R12:R23) -> 0
A26: 13 | B26: Wage Adjustment Factor | C26: =VLOOKUP(lea,dist915,24) -> 1 | N26: Foundation Budget per Pupil | R26: =IF(A5<>999,R24/R10," ") -> 
A27: 14 | B27: Economically Disadvantaged Decile | C27: =VLOOKUP(lea,dist915,25) -> 0
B28: *The wage adjustment factor is applied to underlying rates in all functions except instructional equipment, benefits and special education tuition.
L29: English learner foundation budget as % total foundation budget | R29: =IF(A5=999,"",SUM(M24:O24)/R24) -> 
B30: Total foundation enrollment does not include incremental costs above the base. The pupils are already counted in columns 1 to 8. | L30: Economically disadvantaged foundation budget as % total foundation budget | R30: =IF(A5=999,"",P24/R24) -> 
B31: Total foundation enrollment assigns pupils in pre-kindergarten and half-time kindergarten an enrollment count of .5.
B32: Special education in-district enrollment is an assumed percentage, representing 3.75 percent of K to 12 non-vocational enrollment and 4.75 percent of vocational enrollment.
B33: Special education out-of-district enrollment is also an assumed percentage, representing 1 percent of non-vocational K-12 enrollment.
B34: Economically disadvantaged enrollment is the total enrollment of students who are directly certified as eligible for the Supplemental Nutrition
B35: Assistance Program (SNAP); the Transitional Assistance for Families with Dependent Children (TAFDC); and MassHealth (Medicaid).
B36: English learner enrollment includes students with low English proficiency as measured by the statewide ACCESS for ELLs test.
B37: Each component of the foundation budget represents the enrollment on line 10 multiplied by the appropriate state-wide foundation allotment.
B38: The foundation budget shown on this page may differ from the final number used in the formula, due to rounding error.
B39: Return to Index

Sheet Municipal Contribution
M1: =IF(VLOOKUP(A6,town351,17)>0,"lo","hi") -> hi
A2: Return to Index | G2: More about the data
A3: Massachusetts Department of Elementary and Secondary Education
A4: Office of School Finance
A5: =parameters!B1&" Chapter 70 Determination of City and Town Total Required Contribution" -> FY20 Chapter 70 Determination of City and Town Total Required Contribution
A6: =lea -> 999 | B6: =IF(lea>351, "This lea code does not refer to a city or a town - this table shows municipal data only.",VLOOKUP(A6,aidcalc,2)) -> This lea code does not refer to a city or a town - this table shows municipal data only.
A8: Effort Goal | E8: =parameters!B1&" Increments Toward Goal" -> FY20 Increments Toward Goal
A10: 1) | B10: 2018 equalized valuation | C10: =IF(A6<352,VLOOKUP($A$6,town351,3)," ") ->  | E10: 13) | F10: Required local contribution FY19 | G10: =IF(A6<352,VLOOKUP($A$6,town351,13)," ") -> 
A11: 2) | B11: Uniform property percentage | C11: =IF(A6<352,'Townwide Contributions'!D5," ") ->  | E11: 14) | F11: Municipal revenue growth factor (DOR) | G11: =IF(A$6<352,VLOOKUP($A$6,town351,14)," ") -> 
A12: 3) | B12: Local effort from property wealth | C12: =IF(A6<352,VLOOKUP($A$6,town351,4)," ") ->  | E12: 15) | F12: =parameters!B1&" preliminary contribution (13 raised by 14)" -> FY20 preliminary contribution (13 raised by 14) | G12: =IF(A$6<352,VLOOKUP($A$6,town351,15)," ") -> 
E13: 16) | F13: Preliminary contribution pct of foundation (15 / 8) | G13: =IF(A$6<352,VLOOKUP($A$6,town351,16)/100," ") -> 
A14: 4) | B14: 2016 income | C14: =IF(A6<352,VLOOKUP($A$6,town351,5)," ") -> 
A15: 5) | B15: Uniform income percentage | C15: =IF(A6<352,'Townwide Contributions'!F5," ") ->  | E15: If preliminary contribution is above the target share:
A16: 6) | B16: Local effort from income | C16: =IF(A6<352,VLOOKUP($A$6,town351,6)," ") ->  | E16: 17) | F16: Excess local effort (15 - 10) | G16: =IF(AND(A$6<352,M$1="hi"),VLOOKUP($A$6,town351,20)," ") -> 
E17: 18) | F17: =parameters!$C$50&" reduction toward target (17 x "&parameters!$C$50&")" -> 100% reduction toward target (17 x 100%) | G17: =IF(AND(A$6<352,M$1="hi"),VLOOKUP($A$6,town351,21)," ") -> 
A18: 7) | B18: Combined effort yield (3 + 6) | C18: =IF(A6<352,VLOOKUP($A$6,town351,7)," ") ->  | E18: 19) | F18: =parameters!B1&" required local contribution (15 - 18), capped at 90% of foundation" -> FY20 required local contribution (15 - 18), capped at 90% of foundation | G18: =IF(AND(A$6<352,M$1="hi"),VLOOKUP($A$6,town351,23)," ") -> 
E19: 20) | F19: Contribution as percentage of foundation (19 / 8) | G19: =IF(AND(A$6<352,M$1="hi"),VLOOKUP($A$6,town351,24)," ") -> 
A20: 8) | B20: =parameters!B1&" Foundation budget" -> FY20 Foundation budget | C20: =IF(A6<352,VLOOKUP($A$6,town351,8)," ") -> 
A21: 9) | B21: Maximum local contribution (82.5% * 8) | C21: =IF(A6<352,VLOOKUP($A$6,town351,9)," ") ->  | E21: If preliminary contribution is below the target share:
E22: 21) | F22: Shortfall from target local share (11 - 16) | G22: =IF(AND(A$6<352,M1="lo"),VLOOKUP($A$6,town351,17)/100," ") -> 
A23: 10) | B23: Target local contribution (lesser of 7 or 9) | C23: =IF(A6<352,VLOOKUP($A$6,town351,10)," ") ->  | E23: 22) | F23: Added increment toward target (13 x 1% or 2%)* | G23: =IF(AND(A$6<352,M1="lo"),VLOOKUP($A$6,town351,19)," ") -> 
F24: *1% if shortfall is between 2.5% and 7.5%; 2% if shortfall > 7.5%
A25: 11) | B25: Target local share (10 as % of 8) | C25: =IF(A6<352,VLOOKUP(lea,town351,11)/100," ") ->  | E25: 23) | F25: Special increment toward 82.5% target** | G25: =IF(AND(A$6<352,M1="lo"),VLOOKUP($A$6,town351,22)," ") -> 
A26: 12) | B26: Target aid share (100% minus 11) | C26: =IF(A6<352,VLOOKUP(lea,aidcalc,12)/100," ") ->  | F26: **if combined effort yield > 175% foundation & target local share = 82.5%
F27: Combined effort yield as % of foundation | G27: =IF(AND(A6<352,VLOOKUP(lea,town351,22)>0),VLOOKUP(lea,town351,12)," ") -> 
E28: 24) | F28: Shortfall from target after adding increments (10 - 15 - 22 - 23) | G28: =IF(AND(A$6<352,M1="lo"),VLOOKUP($A$6,town351,27)," ") -> 
B29: See a listing of all 351 communities | E29: 25) | F29: =parameters!B1&" required local contribution (15 + 22 + 23)" -> FY20 required local contribution (15 + 22 + 23) | G29: =IF(AND(A$6<352,M1="lo"),VLOOKUP($A$6,town351,23)," ") -> 
E30: 26) | F30: Contribution as percentage of foundation (25 / 8) | G30: =IF(AND(A$6<352,M1="lo"),VLOOKUP($A$6,town351,24)/100," ") -> 

Sheet Regl Allocation
J1: More about the data
D2: Return to Index
D3: Massachusetts Department of Elementary and Secondary Education
D4: Office of School Finance
D5: FY20 Chapter 70 Apportionment of Local Contribution Across School Districts
E7: 4 | F7: 4 | G7: 3 | H7: 2 | I7: 1
A9: 5 | D9: =lea -> 999 | E9: =IF($D$9>351, "", IF(AND($D$9>0, VLOOKUP($D$9*5-E$7, order1755, $A9)<>0), VLOOKUP($D$9*5-E$7, order1755, $A9), "")) ->  | F9: =IF(OR($D$9="", $D$9>351), "", IF(AND($D$9>0, VLOOKUP($D$9*5-F$7, order1755, $A9)<>0), VLOOKUP($D$9*5-F$7, order1755, $A9), "")) ->  | G9: =IF(OR($D$9="", $D$9>351), "", IF(AND($D$9>0, VLOOKUP($D$9*5-G$7, order1755, $A9)<>0), VLOOKUP($D$9*5-G$7, order1755, $A9), "")) ->  | H9: =IF(OR($D$9="", $D$9>351), "", IF(AND($D$9>0, VLOOKUP($D$9*5-H$7, order1755, $A9)<>0), VLOOKUP($D$9*5-H$7, order1755, $A9), "")) ->  | I9: =IF(OR($D$9="", $D$9>351), "", IF(AND($D$9>0, VLOOKUP($D$9*5-I$7, order1755, $A9)<>0), VLOOKUP($D$9*5-I$7, order1755, $A9), "")) ->  | J9: Combined Total for All Districts
A10: 6
E11: Prior Year Data (for comparison purposes)
A13: 15 | D13: 1 | E13: =parameters!B2&" foundation enrollment" -> FY19 foundation enrollment | F13: =IF(OR($D$9="", $D$9>351), "", IF(AND($D$9>0, VLOOKUP($D$9*5-F$7, order1755, $A13)<>0), VLOOKUP($D$9*5-F$7, order1755, $A13), "")) ->  | J13: =IF(OR($D$9="", $D$9>351), "", VLOOKUP($D$9*5, order1755, $A13)) -> 
A14: 6 | D14: 2 | E14: =parameters!B2&" foundation budget" -> FY19 foundation budget | J14: =IF(OR($D$9="", $D$9>351), "", VLOOKUP($D$9*5, order1755, $A14)) -> 
A15: 7 | D15: 3 | E15: ="Each district's share of municipality's combined "& parameters!B2&" foundation" -> Each district's share of municipality's combined FY19 foundation | J15: =IF(OR($D$9="", $D$9>351), "", VLOOKUP($D$9*5, order1755, $A15)) -> 
A16: 12 | D16: 4 | E16: =parameters!B2&" required contribution" -> FY19 required contribution | J16: =IF(OR($D$9="", $D$9>351), "", VLOOKUP($D$9*5, order1755, $A16)) -> 
E17: =parameters!B1& " apportionment of contribution among community's districts" -> FY20 apportionment of contribution among community's districts
D18: 5 | E18: =parameters!B1&" total unapportioned required contribution ('municipal contribution' sheet row 19 or 25)" -> FY20 total unapportioned required contribution ('municipal contribution' sheet row 19 or 25) | J18: =IF(OR($D$9="", $D$9>351), "", VLOOKUP($D$9,town351,22)) -> 
A19: 20 | D19: 6 | E19: =parameters!B1&" foundation enrollment" -> FY20 foundation enrollment | F19: =IF(OR($D$9="", $D$9>351), "", IF(AND($D$9>0, VLOOKUP($D$9*5-F$7, order1755, $A19)<>0), VLOOKUP($D$9*5-F$7, order1755, $A19), "")) ->  | J19: =IF(OR($D$9="", $D$9>351), "", VLOOKUP($D$9*5, order1755, $A19)) -> 
A20: 8 | D20: 7 | E20: =parameters!B1&" foundation budget" -> FY20 foundation budget | J20: =IF(OR($D$9="", $D$9>351), "", VLOOKUP($D$9*5, order1755, $A20)) -> 
A21: 9 | D21: 8 | E21: ="Each district's share of municipality's total "& parameters!B1&" foundation " -> Each district's share of municipality's total FY20 foundation | J21: =IF(OR($D$9="", $D$9>351), "", VLOOKUP($D$9*5, order1755, $A21)) -> 
A22: 11 | D22: 9 | E22: =parameters!B1&" Required Contribution" -> FY20 Required Contribution | J22: =VLOOKUP($D$9*5, order1755, $A22) -> 6486506020
A24: 13 | D24: 10 | E24: ="Change "&parameters!B1&" to "&parameters!B2& " (9 - 4)" -> Change FY20 to FY19 (9 - 4) | F24: =IF(OR($D$9="", $D$9>351), "", IF(AND($D$9>0, VLOOKUP($D$9*5-F$7, order1755, $A24)<>0), VLOOKUP($D$9*5-F$7, order1755, $A24), "")) ->  | G24: =IF(OR($D$9="", $D$9>351), "", IF(AND($D$9>0, VLOOKUP($D$9*5-G$7, order1755, $A24)<>0), VLOOKUP($D$9*5-G$7, order1755, $A24), "")) ->  | H24: =IF(OR($D$9="", $D$9>351), "", IF(AND($D$9>0, VLOOKUP($D$9*5-H$7, order1755, $A24)<>0), VLOOKUP($D$9*5-H$7, order1755, $A24), "")) ->  | I24: =IF(OR($D$9="", $D$9>351), "", IF(AND($D$9>0, VLOOKUP($D$9*5-I$7, order1755, $A24)<>0), VLOOKUP($D$9*5-I$7, order1755, $A24), "")) ->  | J24: =IF(OR($D$9="", $D$9>351), "", VLOOKUP($D$9*5, order1755, $A24)) -> 

Sheet Summary
A1: Return to Index | J1: More about the data
A3: Massachusetts Department of Elementary and Secondary Education
A4: FY20 Chapter 70 Summary
A6: =lea -> 999 | B6: =PROPER(VLOOKUP(A6,dist915,2)) -> State Total
A8: Aid Calculation FY20 | E8: ="Comparison to "& PYr -> Comparison to FY19
F10: =PYr -> FY19 | G10: =CYr -> FY20 | H10: Change | I10: Pct Chg | U10: FY06 | V10: FY07 | W10: FY08 | X10: FY09 | Y10: FY10 | Z10: FY11 | AA10: FY12 | AB10: FY13 | AC10: FY14 | AD10: FY15 | AE10: FY16 | AF10: FY17 | AG10: FY18 | AH10: FY19 | AI10: FY20
A11: Prior Year Aid | E11: Enrollment | F11: =VLOOKUP(A6,aidcalc,19) -> 941411 | G11: =VLOOKUP(A6,aidcalc,20) -> 939683 | H11: =G11-F11 -> -1728 | I11: =IF(F11>0, H11/F11, 0) -> -0.001835542606 | T11: Foundation Budget | U11: =VLOOKUP($A$6,disthist,4) -> 7551933454 | V11: =VLOOKUP($A$6,disthist,7) -> 8014672861 | W11: =VLOOKUP($A$6,disthist,10) -> 8406096436 | X11: =VLOOKUP($A$6,disthist,13) -> 8811314229 | Y11: =VLOOKUP($A$6,disthist,17) -> 9088557473 | Z11: =VLOOKUP($A$6,disthist,21) -> 8921047970 | AA11: =VLOOKUP($A$6,disthist,26) -> 9119340580 | AB11: =VLOOKUP($A$6,disthist,29) -> 9467117141 | AC11: =VLOOKUP($A$6,disthist, 32) -> 9711217585 | AD11: =VLOOKUP($A$6,disthist, 35) -> 9866011313 | AE11: =VLOOKUP($A$6,disthist, 38) -> 1.009017727e+10 | AF11: =VLOOKUP($A$6,disthist, 41) -> 1.012823838e+10 | AG11: =VLOOKUP($A$6,disthist, 44) -> 1.037917384e+10 | AH11: =VLOOKUP($A$6,disthist, 47) -> 1.077758855e+10 | AI11: =VLOOKUP($A$6, aidcalc, 8) -> 1.125776023e+10
A12: 1 | B12: ="Chapter 70 "&PYr -> Chapter 70 FY19 | C12: =VLOOKUP(A6,aidcalc,7) -> 4906614766 | E12: Foundation budget | F12: =VLOOKUP(A6,aidcalc,4) -> 1.077758855e+10 | G12: =VLOOKUP(A6,aidcalc,8) -> 1.125776023e+10 | H12: =G12-F12 -> 480171680.3 | I12: =IF(F12>0, H12/F12, 0) -> 0.04455279379 | T12: Required District Contribution | U12: =VLOOKUP($A$6,disthist,5) -> 4743946672 | V12: =VLOOKUP($A$6,disthist,8) -> 4876428772 | W12: =VLOOKUP($A$6,disthist,11) -> 4997705374 | X12: =VLOOKUP($A$6,disthist,14) -> 5110365426 | Y12: =VLOOKUP($A$6,disthist,18) -> 5250106061 | Z12: =VLOOKUP($A$6,disthist,22) -> 5302200670 | AA12: =VLOOKUP($A$6,disthist,27) -> 5413602268 | AB12: =VLOOKUP($A$6,disthist,30) -> 5582113529 | AC12: =VLOOKUP($A$6,disthist, 33) -> 5748475145 | AD12: =VLOOKUP($A$6,disthist, 36) -> 5817618237 | AE12: =VLOOKUP($A$6,disthist, 39) -> 5943909029 | AF12: =VLOOKUP($A$6,disthist, 42) -> 5926185567 | AG12: =VLOOKUP($A$6,disthist, 45) -> 6046916786 | AH12: =VLOOKUP($A$6,disthist, 48) -> 6246842886 | AI12: =VLOOKUP($A$6, aidcalc, 9) -> 6486506020
E13: Required district contribution | F13: =VLOOKUP(A6,disthist,48) -> 6246842886 | G13: =VLOOKUP($A$6, aidcalc, 9) -> 6486506020 | H13: =G13-F13 -> 239663134 | I13: =IF(F13>0, H13/F13, 0) -> 0.03836548131 | T13: C70 Aid | U13: =VLOOKUP($A$6,disthist,6) -> 3288603062 | V13: =VLOOKUP($A$6,disthist,9) -> 3505192039 | W13: =VLOOKUP($A$6,disthist,12) -> 3725343327 | X13: =VLOOKUP($A$6,disthist,15)+VLOOKUP($A$6,disthist,16) -> 3948496062 | Y13: =VLOOKUP($A$6,disthist,19)+VLOOKUP($A$6,disthist,20) -> 4043156700 | Z13: =VLOOKUP($A$6,disthist,23)+VLOOKUP($A$6,disthist,24)+VLOOKUP($A$6,disthist,25) -> 4072032853 | AA13: =VLOOKUP($A$6,disthist,28) -> 3990504093 | AB13: =VLOOKUP($A$6,disthist,31) -> 4173223954 | AC13: =VLOOKUP($A$6,disthist,34) -> 4300854366 | AD13: =VLOOKUP($A$6,disthist,37) -> 4400335962 | AE13: =VLOOKUP($A$6,disthist,40) -> 4511521974 | AF13: =VLOOKUP($A$6,disthist,43) -> 4627705061 | AG13: =VLOOKUP($A$6,disthist,46) -> 4745645156 | AH13: =VLOOKUP($A$6,disthist,49) -> 4906614766 | AI13: =VLOOKUP($A$6, aidcalc, 38) -> 5107600566
A14: Foundation Aid | E14: Chapter 70 aid | F14: =VLOOKUP(A6,disthist,49) -> 4906614766 | G14: =VLOOKUP($A$6, aidcalc, 38) -> 5107600566 | H14: =G14-F14 -> 200985799.7 | I14: =IF(F14>0, H14/F14, 0) -> 0.04096221312 | P14: =O14+parameters!H13 -> 308558
A15: 2 | B15: Foundation budget FY20 | C15: =VLOOKUP($A$6, aidcalc, 8) -> 1.125776023e+10 | E15: Required net school spending (NSS) | F15: =F13+F14 -> 1.115345765e+10 | G15: =G13+G14 -> 1.159410659e+10 | H15: =G15-F15 -> 440648933.7 | I15: =IF(F15>0, H15/F15, 0) -> 0.03950783223
A16: 3 | B16: ="Required district contribution "& CYr -> Required district contribution FY20 | C16: =VLOOKUP($A$6, aidcalc, 9) -> 6486506020
A17: 4 | B17: Foundation aid (2 -3) | C17: =VLOOKUP($A$6, aidcalc, 10) -> 4771254212 | E17: Target aid share | F17: =VLOOKUP(A$6,disthist,3)/100 -> 0.41 | G17: =VLOOKUP(A6,aidcalc,12)/100 -> 0.41
A18: 5 | B18: ="Increase over " & PYr&" (4 - 1)" -> Increase over FY19 (4 - 1) | C18: =VLOOKUP($A$6, aidcalc, 11) -> 193270682.3 | E18: C70 % of foundation | F18: =IF(F12>0,F14/F12,IF(F14>0,1,0)) -> 0.4552609095 | G18: =IF(G12>0,G14/G12,IF(G14>0,1,0)) -> 0.4536959804
A20: Minimum Aid | E20: Required NSS % of foundation | F20: =IF(F12>0,F15/F12,IF(F15>0,1,0)) -> 1.034875065 | G20: =IF(G12>0,G15/G12,IF(G15>0,1,0)) -> 1.029876845
A21: 6 | B21: Minimum $20 per pupil increase | C21: =VLOOKUP($A$6, aidcalc, 34, FALSE) -> 7878165
A23: Non-Operating District Reduction to Foundation
A24: 7 | B24: Reduction to foundation | C24: =VLOOKUP($A$6, aidcalc, 36) -> 163047.5184
A26: =CYr&" Chapter 70 Aid" -> FY20 Chapter 70 Aid
A27: 10 | B27: Sum of line 1, 5, & 6 minus 7 | C27: =VLOOKUP($A$6, aidcalc, 38) -> 5107600566

Sheet Regl Dist Members
E2: Return to Index | V2: More about the data
F3: Select or type full regional district name below
E4: =VLOOKUP(reg_order, regdistricts, 3, FALSE) -> 700 | F4: Marthas Vineyard | G4: =VLOOKUP(F4,leas!$E$358:$H$446,4,FALSE) -> 33
E6: Massachusetts Department of Elementary and Secondary Education
E7: Office of School Finance
E8: =CYr&" Chapter 70" -> FY20 Chapter 70
E9: Regional District Enrollment and Contributions by Member City or Town
B11: =VLOOKUP(E4, leas!D6:G446, 4, FALSE) -> 0700 | D11: 2 | E11: =VLOOKUP(reg_order, regdistricts, 2, FALSE) -> 700 Marthas Vineyard
G13: District Foundation Enrollment | K13: District Required Minimum Contribution | N13: District's Share of Town Foundation Budget | Q13: Town Required Local Contribution | T13: Town Target v Actual Local Share
B15: =VLOOKUP($E$4, regcount, 2, FALSE) -> 6 | E15: LEA | F15: Member | G15: =PYr -> FY19 | H15: =CYr -> FY20 | I15: Change | J15: Pct of Town Enrollment | K15: =PYr -> FY19 | L15: =CYr -> FY20 | M15: Change | N15: =PYr -> FY19 | O15: =CYr -> FY20 | P15: Change | Q15: =PYr -> FY19 | R15: =CYr -> FY20 | S15: Change | T15: Target | U15: Actual | V15: Above/Below Target
F17: District Total | G17: =SUM(G19:G66) -> 675 | H17: =SUM(H19:H66) -> 677 | I17: =SUM(I19:I61) -> 1.999999993 | K17: =SUM(K19:K66) -> 7199058 | L17: =SUM(L19:L66) -> 7812490 | M17: =SUM(M19:M61) -> 613432
A19: =IF($C19<=$B$15,VLOOKUP(E19,leas!D6:G446,4,FALSE),"") -> 0062 | B19: =$E$4*100+C19 -> 70001 | C19: 1 | E19: =IF($C19<=$B$15, VLOOKUP($B19, regdetail, 5), " ") -> 62 | F19: =IF($C19<=$B$15, VLOOKUP($B19, regdetail, 6), " ") -> CHILMARK | G19: =IF($C19<=$B$15,VLOOKUP(A19&$B$11, localcont!A10:X1764, 18, FALSE), "") -> 28 | H19: =IF($C19<=$B$15,VLOOKUP(A19&$B$11, localcont!$A$10:$X$1764, 23, FALSE), "") -> 32 | I19: =IF($C19<=$B$15, H19-G19, " ") -> 3.999999999 | J19: =IF($C19<=$B$15,H19/VLOOKUP(A19&"0999", localcont!$A$10:$X$1764, 23, FALSE), "") -> 0.277259569 | K19: =IF($C19<=$B$15,VLOOKUP(A19&$B$11, localcont!$A$10:$X$1764, 15, FALSE), "") -> 301179 | L19: =IF($C19<=$B$15,VLOOKUP(A19&$B$11, localcont!$A$10:$X$1764, 14, FALSE),"") -> 371902 | M19: =IF($C19<=$B$15, L19-K19, " ") -> 70723 | N19: =IF($C19<=$B$15,VLOOKUP(A19&$B$11, localcont!$A$10:$X$1764, 10, FALSE), "") -> 0.3096829317 | O19: =IF($C19<=$B$15,VLOOKUP(A19&$B$11, localcont!$A$10:$X$1764, 12, FALSE), "") -> 0.339704797 | P19: =IF($C19<=$B$15, O19-N19, " ") -> 0.03002186526 | Q19: =IF($C19<=$B$15,VLOOKUP(E19, town351, 13, FALSE), "") -> 972539 | R19: =IF($C19<=$B$15,VLOOKUP(E19, town351, 23, FALSE), "") -> 1094781 | S19: =IF($C19<=$B$15, R19-Q19, " ") -> 122242 | T19: =IF($C19<=$B$15,VLOOKUP(E19, town351, 11, FALSE), "") -> 82.5 | U19: =IF($C19<=$B$15,VLOOKUP(E19, town351, 23, FALSE), "") -> 1094781 | V19: =IF(U19<T19, "Below", IF(U19>T19, "Above", "")) -> Above
A20: =IF($C20<=$B$15,VLOOKUP(E20,leas!D7:G447,4,FALSE),"") -> 0089 | B20: =$E$4*100+C20 -> 70002 | C20: 2 | E20: 89 | F20: EDGARTOWN | G20: =IF($C20<=$B$15,VLOOKUP(A20&$B$11, localcont!A11:X1765, 18, FALSE), "") -> 177 | H20: =IF($C20<=$B$15,VLOOKUP(A20&$B$11, localcont!$A$10:$X$1764, 23, FALSE), "") -> 181 | I20: =IF($C20<=$B$15, H20-G20, " ") -> 3.999999998 | J20: =IF($C20<=$B$15,H20/VLOOKUP(A20&"0999", localcont!$A$10:$X$1764, 23, FALSE), "") -> 0.2924071082 | K20: =IF($C20<=$B$15,VLOOKUP(A20&$B$11, localcont!$A$10:$X$1764, 15, FALSE), "") -> 1877407 | L20: =IF($C20<=$B$15,VLOOKUP(A20&$B$11, localcont!$A$10:$X$1764, 14, FALSE),"") -> 2103572 | M20: =IF($C20<=$B$15, L20-K20, " ") -> 226165 | N20: =IF($C20<=$B$15,VLOOKUP(A20&$B$11, localcont!$A$10:$X$1764, 10, FALSE), "") -> 0.3450507295 | O20: =IF($C20<=$B$15,VLOOKUP(A20&$B$11, localcont!$A$10:$X$1764, 12, FALSE), "") -> 0.3464776285 | P20: =IF($C20<=$B$15, O20-N20, " ") -> 0.001426898985 | Q20: 5440959 | R20: 6071306 | S20: =IF($C20<=$B$15, R20-Q20, " ") -> 630347 | T20: 82.5 | U20: 6071306 | V20: =IF(U20<T20, "Below", IF(U20>T20, "Above", "")) -> Above
A21: =IF($C21<=$B$15,VLOOKUP(E21,leas!D8:G448,4,FALSE),"") -> 0104 | B21: 70003 | C21: 3 | E21: 104 | F21: AQUINNAH | G21: =IF($C21<=$B$15,VLOOKUP(A21&$B$11, localcont!A12:X1766, 18, FALSE), "") -> 13 | H21: =IF($C21<=$B$15,VLOOKUP(A21&$B$11, localcont!$A$10:$X$1764, 23, FALSE), "") -> 11 | I21: -2 | J21: =IF($C21<=$B$15,H21/VLOOKUP(A21&"0999", localcont!$A$10:$X$1764, 23, FALSE), "") -> 0.1651398516 | K21: =IF($C21<=$B$15,VLOOKUP(A21&$B$11, localcont!$A$10:$X$1764, 15, FALSE), "") -> 102884 | L21: =IF($C21<=$B$15,VLOOKUP(A21&$B$11, localcont!$A$10:$X$1764, 14, FALSE),"") -> 127841 | M21: 24957 | N21: =IF($C21<=$B$15,VLOOKUP(A21&$B$11, localcont!$A$10:$X$1764, 10, FALSE), "") -> 0.2437129582 | O21: =IF($C21<=$B$15,VLOOKUP(A21&$B$11, localcont!$A$10:$X$1764, 12, FALSE), "") -> 0.2096584298 | P21: -0.03405452843 | Q21: 422151 | R21: 609760 | S21: 187609 | T21: 82.5 | U21: 609760 | V21: Above
A22: =IF($C22<=$B$15,VLOOKUP(E22,leas!D9:G449,4,FALSE),"") -> 0221 | B22: 70004 | C22: 4 | E22: 221 | F22: OAK BLUFFS | G22: =IF($C22<=$B$15,VLOOKUP(A22&$B$11, localcont!A13:X1767, 18, FALSE), "") -> 181 | H22: =IF($C22<=$B$15,VLOOKUP(A22&$B$11, localcont!$A$10:$X$1764, 23, FALSE), "") -> 178 | I22: -3.000000002 | J22: =IF($C22<=$B$15,H22/VLOOKUP(A22&"0999", localcont!$A$10:$X$1764, 23, FALSE), "") -> 0.2848 | K22: =IF($C22<=$B$15,VLOOKUP(A22&$B$11, localcont!$A$10:$X$1764, 15, FALSE), "") -> 1948375 | L22: =IF($C22<=$B$15,VLOOKUP(A22&$B$11, localcont!$A$10:$X$1764, 14, FALSE),"") -> 2013140 | M22: 64765 | N22: =IF($C22<=$B$15,VLOOKUP(A22&$B$11, localcont!$A$10:$X$1764, 10, FALSE), "") -> 0.3408693419 | O22: =IF($C22<=$B$15,VLOOKUP(A22&$B$11, localcont!$A$10:$X$1764, 12, FALSE), "") -> 0.3411468921 | P22: 0.000277550189 | Q22: 5715899 | R22: 5901094 | S22: 185195 | T22: 82.5 | U22: 5901094 | V22: Above
A23: =IF($C23<=$B$15,VLOOKUP(E23,leas!D10:G450,4,FALSE),"") -> 0296 | B23: 70005 | C23: 5 | E23: 296 | F23: TISBURY | G23: =IF($C23<=$B$15,VLOOKUP(A23&$B$11, localcont!A14:X1768, 18, FALSE), "") -> 169 | H23: =IF($C23<=$B$15,VLOOKUP(A23&$B$11, localcont!$A$10:$X$1764, 23, FALSE), "") -> 185 | I23: 16 | J23: =IF($C23<=$B$15,H23/VLOOKUP(A23&"0999", localcont!$A$10:$X$1764, 23, FALSE), "") -> 0.3477443609 | K23: =IF($C23<=$B$15,VLOOKUP(A23&$B$11, localcont!$A$10:$X$1764, 15, FALSE), "") -> 1817411 | L23: =IF($C23<=$B$15,VLOOKUP(A23&$B$11, localcont!$A$10:$X$1764, 14, FALSE),"") -> 2150060 | M23: 332649 | N23: =IF($C23<=$B$15,VLOOKUP(A23&$B$11, localcont!$A$10:$X$1764, 10, FALSE), "") -> 0.3559275597 | O23: =IF($C23<=$B$15,VLOOKUP(A23&$B$11, localcont!$A$10:$X$1764, 12, FALSE), "") -> 0.4082244394 | P23: 0.05229687973 | Q23: 5106126 | R23: 5266857 | S23: 160731 | T23: 82.5 | U23: 5266857 | V23: Above
A24: =IF($C24<=$B$15,VLOOKUP(E24,leas!D11:G451,4,FALSE),"") -> 0334 | B24: 70006 | C24: 6 | E24: 334 | F24: WEST TISBURY | G24: =IF($C24<=$B$15,VLOOKUP(A24&$B$11, localcont!A15:X1769, 18, FALSE), "") -> 107 | H24: =IF($C24<=$B$15,VLOOKUP(A24&$B$11, localcont!$A$10:$X$1764, 23, FALSE), "") -> 90 | I24: -17 | J24: =IF($C24<=$B$15,H24/VLOOKUP(A24&"0999", localcont!$A$10:$X$1764, 23, FALSE), "") -> 0.2374830107 | K24: =IF($C24<=$B$15,VLOOKUP(A24&$B$11, localcont!$A$10:$X$1764, 15, FALSE), "") -> 1151802 | L24: =IF($C24<=$B$15,VLOOKUP(A24&$B$11, localcont!$A$10:$X$1764, 14, FALSE),"") -> 1045975 | M24: -105827 | N24: =IF($C24<=$B$15,VLOOKUP(A24&$B$11, localcont!$A$10:$X$1764, 10, FALSE), "") -> 0.3415538726 | O24: =IF($C24<=$B$15,VLOOKUP(A24&$B$11, localcont!$A$10:$X$1764, 12, FALSE), "") -> 0.2946215706 | P24: -0.04693230198 | Q24: 3372240 | R24: 3550232 | S24: 177992 | T24: 82.5 | U24: 3550232 | V24: Above
A25: =IF($C25<=$B$15,VLOOKUP(E25,leas!D12:G452,4,FALSE),"") ->  | B25: 70007 | C25: 7 | G25: =IF($C25<=$B$15,VLOOKUP(A25&$B$11, localcont!A16:X1770, 18, FALSE), "") ->  | H25: =IF($C25<=$B$15,VLOOKUP(A25&$B$11, localcont!$A$10:$X$1764, 23, FALSE), "") ->  | J25: =IF($C25<=$B$15,H25/VLOOKUP(A25&"0999", localcont!$A$10:$X$1764, 23, FALSE), "") ->  | K25: =IF($C25<=$B$15,VLOOKUP(A25&$B$11, localcont!$A$10:$X$1764, 15, FALSE), "") ->  | L25: =IF($C25<=$B$15,VLOOKUP(A25&$B$11, localcont!$A$10:$X$1764, 14, FALSE),"") ->  | N25: =IF($C25<=$B$15,VLOOKUP(A25&$B$11, localcont!$A$10:$X$1764, 10, FALSE), "") ->  | O25: =IF($C25<=$B$15,VLOOKUP(A25&$B$11, localcont!$A$10:$X$1764, 12, FALSE), "") -> 
A26: =IF($C26<=$B$15,VLOOKUP(E26,leas!D13:G453,4,FALSE),"") ->  | B26: 70008 | C26: 8 | G26: =IF($C26<=$B$15,VLOOKUP(A26&$B$11, localcont!A17:X1771, 18, FALSE), "") ->  | H26: =IF($C26<=$B$15,VLOOKUP(A26&$B$11, localcont!$A$10:$X$1764, 23, FALSE), "") ->  | J26: =IF($C26<=$B$15,H26/VLOOKUP(A26&"0999", localcont!$A$10:$X$1764, 23, FALSE), "") ->  | K26: =IF($C26<=$B$15,VLOOKUP(A26&$B$11, localcont!$A$10:$X$1764, 15, FALSE), "") ->  | L26: =IF($C26<=$B$15,VLOOKUP(A26&$B$11, localcont!$A$10:$X$1764, 14, FALSE),"") ->  | N26: =IF($C26<=$B$15,VLOOKUP(A26&$B$11, localcont!$A$10:$X$1764, 10, FALSE), "") ->  | O26: =IF($C26<=$B$15,VLOOKUP(A26&$B$11, localcont!$A$10:$X$1764, 12, FALSE), "") -> 
A27: =IF($C27<=$B$15,VLOOKUP(E27,leas!D14:G454,4,FALSE),"") ->  | B27: 70009 | C27: 9 | G27: =IF($C27<=$B$15,VLOOKUP(A27&$B$11, localcont!A18:X1772, 18, FALSE), "") ->  | H27: =IF($C27<=$B$15,VLOOKUP(A27&$B$11, localcont!$A$10:$X$1764, 23, FALSE), "") ->  | J27: =IF($C27<=$B$15,H27/VLOOKUP(A27&"0999", localcont!$A$10:$X$1764, 23, FALSE), "") ->  | K27: =IF($C27<=$B$15,VLOOKUP(A27&$B$11, localcont!$A$10:$X$1764, 15, FALSE), "") ->  | L27: =IF($C27<=$B$15,VLOOKUP(A27&$B$11, localcont!$A$10:$X$1764, 14, FALSE),"") ->  | N27: =IF($C27<=$B$15,VLOOKUP(A27&$B$11, localcont!$A$10:$X$1764, 10, FALSE), "") ->  | O27: =IF($C27<=$B$15,VLOOKUP(A27&$B$11, localcont!$A$10:$X$1764, 12, FALSE), "") -> 
A28: =IF($C28<=$B$15,VLOOKUP(E28,leas!D15:G455,4,FALSE),"") ->  | B28: 70010 | C28: 10 | G28: =IF($C28<=$B$15,VLOOKUP(A28&$B$11, localcont!A19:X1773, 18, FALSE), "") ->  | H28: =IF($C28<=$B$15,VLOOKUP(A28&$B$11, localcont!$A$10:$X$1764, 23, FALSE), "") ->  | J28: =IF($C28<=$B$15,H28/VLOOKUP(A28&"0999", localcont!$A$10:$X$1764, 23, FALSE), "") ->  | K28: =IF($C28<=$B$15,VLOOKUP(A28&$B$11, localcont!$A$10:$X$1764, 15, FALSE), "") ->  | L28: =IF($C28<=$B$15,VLOOKUP(A28&$B$11, localcont!$A$10:$X$1764, 14, FALSE),"") ->  | N28: =IF($C28<=$B$15,VLOOKUP(A28&$B$11, localcont!$A$10:$X$1764, 10, FALSE), "") ->  | O28: =IF($C28<=$B$15,VLOOKUP(A28&$B$11, localcont!$A$10:$X$1764, 12, FALSE), "") -> 
A29: =IF($C29<=$B$15,VLOOKUP(E29,leas!D16:G456,4,FALSE),"") ->  | B29: 70011 | C29: 11 | G29: =IF($C29<=$B$15,VLOOKUP(A29&$B$11, localcont!A20:X1774, 18, FALSE), "") ->  | H29: =IF($C29<=$B$15,VLOOKUP(A29&$B$11, localcont!$A$10:$X$1764, 23, FALSE), "") ->  | J29: =IF($C29<=$B$15,H29/VLOOKUP(A29&"0999", localcont!$A$10:$X$1764, 23, FALSE), "") ->  | K29: =IF($C29<=$B$15,VLOOKUP(A29&$B$11, localcont!$A$10:$X$1764, 15, FALSE), "") ->  | L29: =IF($C29<=$B$15,VLOOKUP(A29&$B$11, localcont!$A$10:$X$1764, 14, FALSE),"") ->  | N29: =IF($C29<=$B$15,VLOOKUP(A29&$B$11, localcont!$A$10:$X$1764, 10, FALSE), "") ->  | O29: =IF($C29<=$B$15,VLOOKUP(A29&$B$11, localcont!$A$10:$X$1764, 12, FALSE), "") -> 
A30: =IF($C30<=$B$15,VLOOKUP(E30,leas!D17:G457,4,FALSE),"") ->  | B30: 70012 | C30: 12 | G30: =IF($C30<=$B$15,VLOOKUP(A30&$B$11, localcont!A21:X1775, 18, FALSE), "") ->  | H30: =IF($C30<=$B$15,VLOOKUP(A30&$B$11, localcont!$A$10:$X$1764, 23, FALSE), "") ->  | J30: =IF($C30<=$B$15,H30/VLOOKUP(A30&"0999", localcont!$A$10:$X$1764, 23, FALSE), "") ->  | K30: =IF($C30<=$B$15,VLOOKUP(A30&$B$11, localcont!$A$10:$X$1764, 15, FALSE), "") ->  | L30: =IF($C30<=$B$15,VLOOKUP(A30&$B$11, localcont!$A$10:$X$1764, 14, FALSE),"") ->  | N30: =IF($C30<=$B$15,VLOOKUP(A30&$B$11, localcont!$A$10:$X$1764, 10, FALSE), "") ->  | O30: =IF($C30<=$B$15,VLOOKUP(A30&$B$11, localcont!$A$10:$X$1764, 12, FALSE), "") -> 
A31: =IF($C31<=$B$15,VLOOKUP(E31,leas!D18:G458,4,FALSE),"") ->  | B31: 70013 | C31: 13 | G31: =IF($C31<=$B$15,VLOOKUP(A31&$B$11, localcont!A22:X1776, 18, FALSE), "") ->  | H31: =IF($C31<=$B$15,VLOOKUP(A31&$B$11, localcont!$A$10:$X$1764, 23, FALSE), "") ->  | J31: =IF($C31<=$B$15,H31/VLOOKUP(A31&"0999", localcont!$A$10:$X$1764, 23, FALSE), "") ->  | K31: =IF($C31<=$B$15,VLOOKUP(A31&$B$11, localcont!$A$10:$X$1764, 15, FALSE), "") ->  | L31: =IF($C31<=$B$15,VLOOKUP(A31&$B$11, localcont!$A$10:$X$1764, 14, FALSE),"") ->  | N31: =IF($C31<=$B$15,VLOOKUP(A31&$B$11, localcont!$A$10:$X$1764, 10, FALSE), "") ->  | O31: =IF($C31<=$B$15,VLOOKUP(A31&$B$11, localcont!$A$10:$X$1764, 12, FALSE), "") -> 
A32: =IF($C32<=$B$15,VLOOKUP(E32,leas!D19:G459,4,FALSE),"") ->  | B32: 70014 | C32: 14 | G32: =IF($C32<=$B$15,VLOOKUP(A32&$B$11, localcont!A23:X1777, 18, FALSE), "") ->  | H32: =IF($C32<=$B$15,VLOOKUP(A32&$B$11, localcont!$A$10:$X$1764, 23, FALSE), "") ->  | J32: =IF($C32<=$B$15,H32/VLOOKUP(A32&"0999", localcont!$A$10:$X$1764, 23, FALSE), "") ->  | K32: =IF($C32<=$B$15,VLOOKUP(A32&$B$11, localcont!$A$10:$X$1764, 15, FALSE), "") ->  | L32: =IF($C32<=$B$15,VLOOKUP(A32&$B$11, localcont!$A$10:$X$1764, 14, FALSE),"") ->  | N32: =IF($C32<=$B$15,VLOOKUP(A32&$B$11, localcont!$A$10:$X$1764, 10, FALSE), "") ->  | O32: =IF($C32<=$B$15,VLOOKUP(A32&$B$11, localcont!$A$10:$X$1764, 12, FALSE), "") -> 
A33: =IF($C33<=$B$15,VLOOKUP(E33,leas!D20:G460,4,FALSE),"") ->  | B33: 70015 | C33: 15 | G33: =IF($C33<=$B$15,VLOOKUP(A33&$B$11, localcont!A24:X1778, 18, FALSE), "") ->  | H33: =IF($C33<=$B$15,VLOOKUP(A33&$B$11, localcont!$A$10:$X$1764, 23, FALSE), "") ->  | J33: =IF($C33<=$B$15,H33/VLOOKUP(A33&"0999", localcont!$A$10:$X$1764, 23, FALSE), "") ->  | K33: =IF($C33<=$B$15,VLOOKUP(A33&$B$11, localcont!$A$10:$X$1764, 15, FALSE), "") ->  | L33: =IF($C33<=$B$15,VLOOKUP(A33&$B$11, localcont!$A$10:$X$1764, 14, FALSE),"") ->  | N33: =IF($C33<=$B$15,VLOOKUP(A33&$B$11, localcont!$A$10:$X$1764, 10, FALSE), "") ->  | O33: =IF($C33<=$B$15,VLOOKUP(A33&$B$11, localcont!$A$10:$X$1764, 12, FALSE), "") -> 
A34: =IF($C34<=$B$15,VLOOKUP(E34,leas!D21:G461,4,FALSE),"") ->  | B34: 70016 | C34: 16 | G34: =IF($C34<=$B$15,VLOOKUP(A34&$B$11, localcont!A25:X1779, 18, FALSE), "") ->  | H34: =IF($C34<=$B$15,VLOOKUP(A34&$B$11, localcont!$A$10:$X$1764, 23, FALSE), "") ->  | J34: =IF($C34<=$B$15,H34/VLOOKUP(A34&"0999", localcont!$A$10:$X$1764, 23, FALSE), "") ->  | K34: =IF($C34<=$B$15,VLOOKUP(A34&$B$11, localcont!$A$10:$X$1764, 15, FALSE), "") ->  | L34: =IF($C34<=$B$15,VLOOKUP(A34&$B$11, localcont!$A$10:$X$1764, 14, FALSE),"") ->  | N34: =IF($C34<=$B$15,VLOOKUP(A34&$B$11, localcont!$A$10:$X$1764, 10, FALSE), "") ->  | O34: =IF($C34<=$B$15,VLOOKUP(A34&$B$11, localcont!$A$10:$X$1764, 12, FALSE), "") -> 
A35: =IF($C35<=$B$15,VLOOKUP(E35,leas!D22:G462,4,FALSE),"") ->  | B35: 70017 | C35: 17 | G35: =IF($C35<=$B$15,VLOOKUP(A35&$B$11, localcont!A26:X1780, 18, FALSE), "") ->  | H35: =IF($C35<=$B$15,VLOOKUP(A35&$B$11, localcont!$A$10:$X$1764, 23, FALSE), "") ->  | J35: =IF($C35<=$B$15,H35/VLOOKUP(A35&"0999", localcont!$A$10:$X$1764, 23, FALSE), "") ->  | K35: =IF($C35<=$B$15,VLOOKUP(A35&$B$11, localcont!$A$10:$X$1764, 15, FALSE), "") ->  | L35: =IF($C35<=$B$15,VLOOKUP(A35&$B$11, localcont!$A$10:$X$1764, 14, FALSE),"") ->  | N35: =IF($C35<=$B$15,VLOOKUP(A35&$B$11, localcont!$A$10:$X$1764, 10, FALSE), "") ->  | O35: =IF($C35<=$B$15,VLOOKUP(A35&$B$11, localcont!$A$10:$X$1764, 12, FALSE), "") -> 
A36: =IF($C36<=$B$15,VLOOKUP(E36,leas!D23:G463,4,FALSE),"") ->  | B36: 70018 | C36: 18 | G36: =IF($C36<=$B$15,VLOOKUP(A36&$B$11, localcont!A27:X1781, 18, FALSE), "") ->  | H36: =IF($C36<=$B$15,VLOOKUP(A36&$B$11, localcont!$A$10:$X$1764, 23, FALSE), "") ->  | J36: =IF($C36<=$B$15,H36/VLOOKUP(A36&"0999", localcont!$A$10:$X$1764, 23, FALSE), "") ->  | K36: =IF($C36<=$B$15,VLOOKUP(A36&$B$11, localcont!$A$10:$X$1764, 15, FALSE), "") ->  | L36: =IF($C36<=$B$15,VLOOKUP(A36&$B$11, localcont!$A$10:$X$1764, 14, FALSE),"") ->  | N36: =IF($C36<=$B$15,VLOOKUP(A36&$B$11, localcont!$A$10:$X$1764, 10, FALSE), "") ->  | O36: =IF($C36<=$B$15,VLOOKUP(A36&$B$11, localcont!$A$10:$X$1764, 12, FALSE), "") -> 
A37: =IF($C37<=$B$15,VLOOKUP(E37,leas!D24:G464,4,FALSE),"") ->  | B37: 70019 | C37: 19 | G37: =IF($C37<=$B$15,VLOOKUP(A37&$B$11, localcont!A28:X1782, 18, FALSE), "") ->  | H37: =IF($C37<=$B$15,VLOOKUP(A37&$B$11, localcont!$A$10:$X$1764, 23, FALSE), "") ->  | J37: =IF($C37<=$B$15,H37/VLOOKUP(A37&"0999", localcont!$A$10:$X$1764, 23, FALSE), "") ->  | K37: =IF($C37<=$B$15,VLOOKUP(A37&$B$11, localcont!$A$10:$X$1764, 15, FALSE), "") ->  | L37: =IF($C37<=$B$15,VLOOKUP(A37&$B$11, localcont!$A$10:$X$1764, 14, FALSE),"") ->  | N37: =IF($C37<=$B$15,VLOOKUP(A37&$B$11, localcont!$A$10:$X$1764, 10, FALSE), "") ->  | O37: =IF($C37<=$B$15,VLOOKUP(A37&$B$11, localcont!$A$10:$X$1764, 12, FALSE), "") -> 
A38: =IF($C38<=$B$15,VLOOKUP(E38,leas!D25:G465,4,FALSE),"") ->  | B38: 70020 | C38: 20 | G38: =IF($C38<=$B$15,VLOOKUP(A38&$B$11, localcont!A29:X1783, 18, FALSE), "") ->  | H38: =IF($C38<=$B$15,VLOOKUP(A38&$B$11, localcont!$A$10:$X$1764, 23, FALSE), "") ->  | J38: =IF($C38<=$B$15,H38/VLOOKUP(A38&"0999", localcont!$A$10:$X$1764, 23, FALSE), "") ->  | K38: =IF($C38<=$B$15,VLOOKUP(A38&$B$11, localcont!$A$10:$X$1764, 15, FALSE), "") ->  | L38: =IF($C38<=$B$15,VLOOKUP(A38&$B$11, localcont!$A$10:$X$1764, 14, FALSE),"") ->  | N38: =IF($C38<=$B$15,VLOOKUP(A38&$B$11, localcont!$A$10:$X$1764, 10, FALSE), "") ->  | O38: =IF($C38<=$B$15,VLOOKUP(A38&$B$11, localcont!$A$10:$X$1764, 12, FALSE), "") -> 
A39: =IF($C39<=$B$15,VLOOKUP(E39,leas!D26:G466,4,FALSE),"") ->  | B39: 70021 | C39: 21 | G39: =IF($C39<=$B$15,VLOOKUP(A39&$B$11, localcont!A30:X1784, 18, FALSE), "") ->  | H39: =IF($C39<=$B$15,VLOOKUP(A39&$B$11, localcont!$A$10:$X$1764, 23, FALSE), "") ->  | J39: =IF($C39<=$B$15,H39/VLOOKUP(A39&"0999", localcont!$A$10:$X$1764, 23, FALSE), "") ->  | K39: =IF($C39<=$B$15,VLOOKUP(A39&$B$11, localcont!$A$10:$X$1764, 15, FALSE), "") ->  | L39: =IF($C39<=$B$15,VLOOKUP(A39&$B$11, localcont!$A$10:$X$1764, 14, FALSE),"") ->  | N39: =IF($C39<=$B$15,VLOOKUP(A39&$B$11, localcont!$A$10:$X$1764, 10, FALSE), "") ->  | O39: =IF($C39<=$B$15,VLOOKUP(A39&$B$11, localcont!$A$10:$X$1764, 12, FALSE), "") -> 
A40: =IF($C40<=$B$15,VLOOKUP(E40,leas!D27:G467,4,FALSE),"") ->  | B40: 70022 | C40: 22 | G40: =IF($C40<=$B$15,VLOOKUP(A40&$B$11, localcont!A31:X1785, 18, FALSE), "") ->  | H40: =IF($C40<=$B$15,VLOOKUP(A40&$B$11, localcont!$A$10:$X$1764, 23, FALSE), "") ->  | J40: =IF($C40<=$B$15,H40/VLOOKUP(A40&"0999", localcont!$A$10:$X$1764, 23, FALSE), "") ->  | K40: =IF($C40<=$B$15,VLOOKUP(A40&$B$11, localcont!$A$10:$X$1764, 15, FALSE), "") ->  | L40: =IF($C40<=$B$15,VLOOKUP(A40&$B$11, localcont!$A$10:$X$1764, 14, FALSE),"") ->  | N40: =IF($C40<=$B$15,VLOOKUP(A40&$B$11, localcont!$A$10:$X$1764, 10, FALSE), "") ->  | O40: =IF($C40<=$B$15,VLOOKUP(A40&$B$11, localcont!$A$10:$X$1764, 12, FALSE), "") -> 
A41: =IF($C41<=$B$15,VLOOKUP(E41,leas!D28:G468,4,FALSE),"") ->  | B41: 70023 | C41: 23 | G41: =IF($C41<=$B$15,VLOOKUP(A41&$B$11, localcont!A32:X1786, 18, FALSE), "") ->  | H41: =IF($C41<=$B$15,VLOOKUP(A41&$B$11, localcont!$A$10:$X$1764, 23, FALSE), "") ->  | J41: =IF($C41<=$B$15,H41/VLOOKUP(A41&"0999", localcont!$A$10:$X$1764, 23, FALSE), "") ->  | K41: =IF($C41<=$B$15,VLOOKUP(A41&$B$11, localcont!$A$10:$X$1764, 15, FALSE), "") ->  | L41: =IF($C41<=$B$15,VLOOKUP(A41&$B$11, localcont!$A$10:$X$1764, 14, FALSE),"") ->  | N41: =IF($C41<=$B$15,VLOOKUP(A41&$B$11, localcont!$A$10:$X$1764, 10, FALSE), "") ->  | O41: =IF($C41<=$B$15,VLOOKUP(A41&$B$11, localcont!$A$10:$X$1764, 12, FALSE), "") -> 
A42: =IF($C42<=$B$15,VLOOKUP(E42,leas!D29:G469,4,FALSE),"") ->  | B42: 70024 | C42: 24 | G42: =IF($C42<=$B$15,VLOOKUP(A42&$B$11, localcont!A33:X1787, 18, FALSE), "") ->  | H42: =IF($C42<=$B$15,VLOOKUP(A42&$B$11, localcont!$A$10:$X$1764, 23, FALSE), "") ->  | J42: =IF($C42<=$B$15,H42/VLOOKUP(A42&"0999", localcont!$A$10:$X$1764, 23, FALSE), "") ->  | K42: =IF($C42<=$B$15,VLOOKUP(A42&$B$11, localcont!$A$10:$X$1764, 15, FALSE), "") ->  | L42: =IF($C42<=$B$15,VLOOKUP(A42&$B$11, localcont!$A$10:$X$1764, 14, FALSE),"") ->  | N42: =IF($C42<=$B$15,VLOOKUP(A42&$B$11, localcont!$A$10:$X$1764, 10, FALSE), "") ->  | O42: =IF($C42<=$B$15,VLOOKUP(A42&$B$11, localcont!$A$10:$X$1764, 12, FALSE), "") -> 
A43: =IF($C43<=$B$15,VLOOKUP(E43,leas!D30:G470,4,FALSE),"") ->  | B43: 70025 | C43: 25 | G43: =IF($C43<=$B$15,VLOOKUP(A43&$B$11, localcont!A34:X1788, 18, FALSE), "") ->  | H43: =IF($C43<=$B$15,VLOOKUP(A43&$B$11, localcont!$A$10:$X$1764, 23, FALSE), "") ->  | J43: =IF($C43<=$B$15,H43/VLOOKUP(A43&"0999", localcont!$A$10:$X$1764, 23, FALSE), "") ->  | K43: =IF($C43<=$B$15,VLOOKUP(A43&$B$11, localcont!$A$10:$X$1764, 15, FALSE), "") ->  | L43: =IF($C43<=$B$15,VLOOKUP(A43&$B$11, localcont!$A$10:$X$1764, 14, FALSE),"") ->  | N43: =IF($C43<=$B$15,VLOOKUP(A43&$B$11, localcont!$A$10:$X$1764, 10, FALSE), "") ->  | O43: =IF($C43<=$B$15,VLOOKUP(A43&$B$11, localcont!$A$10:$X$1764, 12, FALSE), "") -> 
A44: =IF($C44<=$B$15,VLOOKUP(E44,leas!D31:G471,4,FALSE),"") ->  | B44: 70026 | C44: 26 | G44: =IF($C44<=$B$15,VLOOKUP(A44&$B$11, localcont!A35:X1789, 18, FALSE), "") ->  | H44: =IF($C44<=$B$15,VLOOKUP(A44&$B$11, localcont!$A$10:$X$1764, 23, FALSE), "") ->  | J44: =IF($C44<=$B$15,H44/VLOOKUP(A44&"0999", localcont!$A$10:$X$1764, 23, FALSE), "") ->  | K44: =IF($C44<=$B$15,VLOOKUP(A44&$B$11, localcont!$A$10:$X$1764, 15, FALSE), "") ->  | L44: =IF($C44<=$B$15,VLOOKUP(A44&$B$11, localcont!$A$10:$X$1764, 14, FALSE),"") ->  | N44: =IF($C44<=$B$15,VLOOKUP(A44&$B$11, localcont!$A$10:$X$1764, 10, FALSE), "") ->  | O44: =IF($C44<=$B$15,VLOOKUP(A44&$B$11, localcont!$A$10:$X$1764, 12, FALSE), "") -> 
A45: =IF($C45<=$B$15,VLOOKUP(E45,leas!D32:G472,4,FALSE),"") ->  | B45: 70027 | C45: 27 | G45: =IF($C45<=$B$15,VLOOKUP(A45&$B$11, localcont!A36:X1790, 18, FALSE), "") ->  | H45: =IF($C45<=$B$15,VLOOKUP(A45&$B$11, localcont!$A$10:$X$1764, 23, FALSE), "") ->  | J45: =IF($C45<=$B$15,H45/VLOOKUP(A45&"0999", localcont!$A$10:$X$1764, 23, FALSE), "") ->  | K45: =IF($C45<=$B$15,VLOOKUP(A45&$B$11, localcont!$A$10:$X$1764, 15, FALSE), "") ->  | L45: =IF($C45<=$B$15,VLOOKUP(A45&$B$11, localcont!$A$10:$X$1764, 14, FALSE),"") ->  | N45: =IF($C45<=$B$15,VLOOKUP(A45&$B$11, localcont!$A$10:$X$1764, 10, FALSE), "") ->  | O45: =IF($C45<=$B$15,VLOOKUP(A45&$B$11, localcont!$A$10:$X$1764, 12, FALSE), "") -> 
A46: =IF($C46<=$B$15,VLOOKUP(E46,leas!D33:G473,4,FALSE),"") ->  | B46: 70028 | C46: 28 | G46: =IF($C46<=$B$15,VLOOKUP(A46&$B$11, localcont!A37:X1791, 18, FALSE), "") ->  | H46: =IF($C46<=$B$15,VLOOKUP(A46&$B$11, localcont!$A$10:$X$1764, 23, FALSE), "") ->  | J46: =IF($C46<=$B$15,H46/VLOOKUP(A46&"0999", localcont!$A$10:$X$1764, 23, FALSE), "") ->  | K46: =IF($C46<=$B$15,VLOOKUP(A46&$B$11, localcont!$A$10:$X$1764, 15, FALSE), "") ->  | L46: =IF($C46<=$B$15,VLOOKUP(A46&$B$11, localcont!$A$10:$X$1764, 14, FALSE),"") ->  | N46: =IF($C46<=$B$15,VLOOKUP(A46&$B$11, localcont!$A$10:$X$1764, 10, FALSE), "") ->  | O46: =IF($C46<=$B$15,VLOOKUP(A46&$B$11, localcont!$A$10:$X$1764, 12, FALSE), "") -> 
A47: =IF($C47<=$B$15,VLOOKUP(E47,leas!D34:G474,4,FALSE),"") ->  | B47: 70029 | C47: 29 | G47: =IF($C47<=$B$15,VLOOKUP(A47&$B$11, localcont!A38:X1792, 18, FALSE), "") ->  | H47: =IF($C47<=$B$15,VLOOKUP(A47&$B$11, localcont!$A$10:$X$1764, 23, FALSE), "") ->  | J47: =IF($C47<=$B$15,H47/VLOOKUP(A47&"0999", localcont!$A$10:$X$1764, 23, FALSE), "") ->  | K47: =IF($C47<=$B$15,VLOOKUP(A47&$B$11, localcont!$A$10:$X$1764, 15, FALSE), "") ->  | L47: =IF($C47<=$B$15,VLOOKUP(A47&$B$11, localcont!$A$10:$X$1764, 14, FALSE),"") ->  | N47: =IF($C47<=$B$15,VLOOKUP(A47&$B$11, localcont!$A$10:$X$1764, 10, FALSE), "") ->  | O47: =IF($C47<=$B$15,VLOOKUP(A47&$B$11, localcont!$A$10:$X$1764, 12, FALSE), "") -> 
A48: =IF($C48<=$B$15,VLOOKUP(E48,leas!D35:G475,4,FALSE),"") ->  | B48: 70030 | C48: 30 | G48: =IF($C48<=$B$15,VLOOKUP(A48&$B$11, localcont!A39:X1793, 18, FALSE), "") ->  | H48: =IF($C48<=$B$15,VLOOKUP(A48&$B$11, localcont!$A$10:$X$1764, 23, FALSE), "") ->  | J48: =IF($C48<=$B$15,H48/VLOOKUP(A48&"0999", localcont!$A$10:$X$1764, 23, FALSE), "") ->  | K48: =IF($C48<=$B$15,VLOOKUP(A48&$B$11, localcont!$A$10:$X$1764, 15, FALSE), "") ->  | L48: =IF($C48<=$B$15,VLOOKUP(A48&$B$11, localcont!$A$10:$X$1764, 14, FALSE),"") ->  | N48: =IF($C48<=$B$15,VLOOKUP(A48&$B$11, localcont!$A$10:$X$1764, 10, FALSE), "") ->  | O48: =IF($C48<=$B$15,VLOOKUP(A48&$B$11, localcont!$A$10:$X$1764, 12, FALSE), "") -> 
A49: =IF($C49<=$B$15,VLOOKUP(E49,leas!D36:G476,4,FALSE),"") ->  | B49: 70031 | C49: 31 | G49: =IF($C49<=$B$15,VLOOKUP(A49&$B$11, localcont!A40:X1794, 18, FALSE), "") ->  | H49: =IF($C49<=$B$15,VLOOKUP(A49&$B$11, localcont!$A$10:$X$1764, 23, FALSE), "") ->  | J49: =IF($C49<=$B$15,H49/VLOOKUP(A49&"0999", localcont!$A$10:$X$1764, 23, FALSE), "") ->  | K49: =IF($C49<=$B$15,VLOOKUP(A49&$B$11, localcont!$A$10:$X$1764, 15, FALSE), "") ->  | L49: =IF($C49<=$B$15,VLOOKUP(A49&$B$11, localcont!$A$10:$X$1764, 14, FALSE),"") ->  | N49: =IF($C49<=$B$15,VLOOKUP(A49&$B$11, localcont!$A$10:$X$1764, 10, FALSE), "") ->  | O49: =IF($C49<=$B$15,VLOOKUP(A49&$B$11, localcont!$A$10:$X$1764, 12, FALSE), "") -> 
A50: =IF($C50<=$B$15,VLOOKUP(E50,leas!D37:G477,4,FALSE),"") ->  | B50: 70032 | C50: 32 | G50: =IF($C50<=$B$15,VLOOKUP(A50&$B$11, localcont!A41:X1795, 18, FALSE), "") ->  | H50: =IF($C50<=$B$15,VLOOKUP(A50&$B$11, localcont!$A$10:$X$1764, 23, FALSE), "") ->  | J50: =IF($C50<=$B$15,H50/VLOOKUP(A50&"0999", localcont!$A$10:$X$1764, 23, FALSE), "") ->  | K50: =IF($C50<=$B$15,VLOOKUP(A50&$B$11, localcont!$A$10:$X$1764, 15, FALSE), "") ->  | L50: =IF($C50<=$B$15,VLOOKUP(A50&$B$11, localcont!$A$10:$X$1764, 14, FALSE),"") ->  | N50: =IF($C50<=$B$15,VLOOKUP(A50&$B$11, localcont!$A$10:$X$1764, 10, FALSE), "") ->  | O50: =IF($C50<=$B$15,VLOOKUP(A50&$B$11, localcont!$A$10:$X$1764, 12, FALSE), "") -> 
A51: =IF($C51<=$B$15,VLOOKUP(E51,leas!D38:G478,4,FALSE),"") ->  | B51: 70033 | C51: 33 | F51: =IF($C51<=$B$15, VLOOKUP($B51, regdetail, 6), " ") ->  | G51: =IF($C51<=$B$15,VLOOKUP(A51&$B$11, localcont!A42:X1796, 18, FALSE), "") ->  | H51: =IF($C51<=$B$15,VLOOKUP(A51&$B$11, localcont!$A$10:$X$1764, 23, FALSE), "") ->  | J51: =IF($C51<=$B$15,H51/VLOOKUP(A51&"0999", localcont!$A$10:$X$1764, 23, FALSE), "") ->  | K51: =IF($C51<=$B$15,VLOOKUP(A51&$B$11, localcont!$A$10:$X$1764, 15, FALSE), "") ->  | L51: =IF($C51<=$B$15,VLOOKUP(A51&$B$11, localcont!$A$10:$X$1764, 14, FALSE),"") ->  | N51: =IF($C51<=$B$15,VLOOKUP(A51&$B$11, localcont!$A$10:$X$1764, 10, FALSE), "") ->  | O51: =IF($C51<=$B$15,VLOOKUP(A51&$B$11, localcont!$A$10:$X$1764, 12, FALSE), "") ->  | Q51: =IF($C51<=$B$15,VLOOKUP(E51, town351, 13, FALSE), "") ->  | R51: =IF($C51<=$B$15,VLOOKUP(E51, town351, 23, FALSE), "") ->  | T51: =IF($C51<=$B$15,VLOOKUP(E51, town351, 11, FALSE), "") ->  | U51: =IF($C51<=$B$15,VLOOKUP(E51, town351, 23, FALSE), "") -> 
A52: =IF($C52<=$B$15,VLOOKUP(E52,leas!D39:G479,4,FALSE),"") ->  | B52: 70034 | C52: 34 | G52: =IF($C52<=$B$15,VLOOKUP(A52&$B$11, localcont!A43:X1797, 18, FALSE), "") ->  | H52: =IF($C52<=$B$15,VLOOKUP(A52&$B$11, localcont!$A$10:$X$1764, 23, FALSE), "") ->  | J52: =IF($C52<=$B$15,H52/VLOOKUP(A52&"0999", localcont!$A$10:$X$1764, 23, FALSE), "") ->  | K52: =IF($C52<=$B$15,VLOOKUP(A52&$B$11, localcont!$A$10:$X$1764, 15, FALSE), "") ->  | L52: =IF($C52<=$B$15,VLOOKUP(A52&$B$11, localcont!$A$10:$X$1764, 14, FALSE),"") ->  | N52: =IF($C52<=$B$15,VLOOKUP(A52&$B$11, localcont!$A$10:$X$1764, 10, FALSE), "") ->  | O52: =IF($C52<=$B$15,VLOOKUP(A52&$B$11, localcont!$A$10:$X$1764, 12, FALSE), "") -> 
A53: =IF($C53<=$B$15,VLOOKUP(E53,leas!D40:G480,4,FALSE),"") ->  | B53: 70035 | C53: 35 | G53: =IF($C53<=$B$15,VLOOKUP(A53&$B$11, localcont!A44:X1798, 18, FALSE), "") ->  | H53: =IF($C53<=$B$15,VLOOKUP(A53&$B$11, localcont!$A$10:$X$1764, 23, FALSE), "") ->  | J53: =IF($C53<=$B$15,H53/VLOOKUP(A53&"0999", localcont!$A$10:$X$1764, 23, FALSE), "") ->  | K53: =IF($C53<=$B$15,VLOOKUP(A53&$B$11, localcont!$A$10:$X$1764, 15, FALSE), "") ->  | L53: =IF($C53<=$B$15,VLOOKUP(A53&$B$11, localcont!$A$10:$X$1764, 14, FALSE),"") ->  | N53: =IF($C53<=$B$15,VLOOKUP(A53&$B$11, localcont!$A$10:$X$1764, 10, FALSE), "") ->  | O53: =IF($C53<=$B$15,VLOOKUP(A53&$B$11, localcont!$A$10:$X$1764, 12, FALSE), "") -> 
A54: =IF($C54<=$B$15,VLOOKUP(E54,leas!D41:G481,4,FALSE),"") ->  | B54: 70036 | C54: 36 | G54: =IF($C54<=$B$15,VLOOKUP(A54&$B$11, localcont!A45:X1799, 18, FALSE), "") ->  | H54: =IF($C54<=$B$15,VLOOKUP(A54&$B$11, localcont!$A$10:$X$1764, 23, FALSE), "") ->  | J54: =IF($C54<=$B$15,H54/VLOOKUP(A54&"0999", localcont!$A$10:$X$1764, 23, FALSE), "") ->  | K54: =IF($C54<=$B$15,VLOOKUP(A54&$B$11, localcont!$A$10:$X$1764, 15, FALSE), "") ->  | L54: =IF($C54<=$B$15,VLOOKUP(A54&$B$11, localcont!$A$10:$X$1764, 14, FALSE),"") ->  | N54: =IF($C54<=$B$15,VLOOKUP(A54&$B$11, localcont!$A$10:$X$1764, 10, FALSE), "") ->  | O54: =IF($C54<=$B$15,VLOOKUP(A54&$B$11, localcont!$A$10:$X$1764, 12, FALSE), "") -> 
A55: =IF($C55<=$B$15,VLOOKUP(E55,leas!D42:G482,4,FALSE),"") ->  | B55: 70037 | C55: 37 | G55: =IF($C55<=$B$15,VLOOKUP(A55&$B$11, localcont!A46:X1800, 18, FALSE), "") ->  | H55: =IF($C55<=$B$15,VLOOKUP(A55&$B$11, localcont!$A$10:$X$1764, 23, FALSE), "") ->  | J55: =IF($C55<=$B$15,H55/VLOOKUP(A55&"0999", localcont!$A$10:$X$1764, 23, FALSE), "") ->  | K55: =IF($C55<=$B$15,VLOOKUP(A55&$B$11, localcont!$A$10:$X$1764, 15, FALSE), "") ->  | L55: =IF($C55<=$B$15,VLOOKUP(A55&$B$11, localcont!$A$10:$X$1764, 14, FALSE),"") ->  | N55: =IF($C55<=$B$15,VLOOKUP(A55&$B$11, localcont!$A$10:$X$1764, 10, FALSE), "") ->  | O55: =IF($C55<=$B$15,VLOOKUP(A55&$B$11, localcont!$A$10:$X$1764, 12, FALSE), "") -> 
A56: =IF($C56<=$B$15,VLOOKUP(E56,leas!D43:G483,4,FALSE),"") ->  | B56: 70038 | C56: 38 | G56: =IF($C56<=$B$15,VLOOKUP(A56&$B$11, localcont!A47:X1801, 18, FALSE), "") ->  | H56: =IF($C56<=$B$15,VLOOKUP(A56&$B$11, localcont!$A$10:$X$1764, 23, FALSE), "") ->  | J56: =IF($C56<=$B$15,H56/VLOOKUP(A56&"0999", localcont!$A$10:$X$1764, 23, FALSE), "") ->  | K56: =IF($C56<=$B$15,VLOOKUP(A56&$B$11, localcont!$A$10:$X$1764, 15, FALSE), "") ->  | L56: =IF($C56<=$B$15,VLOOKUP(A56&$B$11, localcont!$A$10:$X$1764, 14, FALSE),"") ->  | N56: =IF($C56<=$B$15,VLOOKUP(A56&$B$11, localcont!$A$10:$X$1764, 10, FALSE), "") ->  | O56: =IF($C56<=$B$15,VLOOKUP(A56&$B$11, localcont!$A$10:$X$1764, 12, FALSE), "") -> 
A57: =IF($C57<=$B$15,VLOOKUP(E57,leas!D44:G484,4,FALSE),"") ->  | B57: 70039 | C57: 39 | G57: =IF($C57<=$B$15,VLOOKUP(A57&$B$11, localcont!A48:X1802, 18, FALSE), "") ->  | H57: =IF($C57<=$B$15,VLOOKUP(A57&$B$11, localcont!$A$10:$X$1764, 23, FALSE), "") ->  | J57: =IF($C57<=$B$15,H57/VLOOKUP(A57&"0999", localcont!$A$10:$X$1764, 23, FALSE), "") ->  | K57: =IF($C57<=$B$15,VLOOKUP(A57&$B$11, localcont!$A$10:$X$1764, 15, FALSE), "") ->  | L57: =IF($C57<=$B$15,VLOOKUP(A57&$B$11, localcont!$A$10:$X$1764, 14, FALSE),"") ->  | N57: =IF($C57<=$B$15,VLOOKUP(A57&$B$11, localcont!$A$10:$X$1764, 10, FALSE), "") ->  | O57: =IF($C57<=$B$15,VLOOKUP(A57&$B$11, localcont!$A$10:$X$1764, 12, FALSE), "") -> 
A58: =IF($C58<=$B$15,VLOOKUP(E58,leas!D45:G485,4,FALSE),"") ->  | B58: 70040 | C58: 40 | G58: =IF($C58<=$B$15,VLOOKUP(A58&$B$11, localcont!A49:X1803, 18, FALSE), "") ->  | H58: =IF($C58<=$B$15,VLOOKUP(A58&$B$11, localcont!$A$10:$X$1764, 23, FALSE), "") ->  | J58: =IF($C58<=$B$15,H58/VLOOKUP(A58&"0999", localcont!$A$10:$X$1764, 23, FALSE), "") ->  | K58: =IF($C58<=$B$15,VLOOKUP(A58&$B$11, localcont!$A$10:$X$1764, 15, FALSE), "") ->  | L58: =IF($C58<=$B$15,VLOOKUP(A58&$B$11, localcont!$A$10:$X$1764, 14, FALSE),"") ->  | N58: =IF($C58<=$B$15,VLOOKUP(A58&$B$11, localcont!$A$10:$X$1764, 10, FALSE), "") ->  | O58: =IF($C58<=$B$15,VLOOKUP(A58&$B$11, localcont!$A$10:$X$1764, 12, FALSE), "") -> 
A59: =IF($C59<=$B$15,VLOOKUP(E59,leas!D46:G486,4,FALSE),"") ->  | B59: 70041 | C59: 41 | G59: =IF($C59<=$B$15,VLOOKUP(A59&$B$11, localcont!A50:X1804, 18, FALSE), "") ->  | H59: =IF($C59<=$B$15,VLOOKUP(A59&$B$11, localcont!$A$10:$X$1764, 23, FALSE), "") ->  | J59: =IF($C59<=$B$15,H59/VLOOKUP(A59&"0999", localcont!$A$10:$X$1764, 23, FALSE), "") ->  | K59: =IF($C59<=$B$15,VLOOKUP(A59&$B$11, localcont!$A$10:$X$1764, 15, FALSE), "") ->  | L59: =IF($C59<=$B$15,VLOOKUP(A59&$B$11, localcont!$A$10:$X$1764, 14, FALSE),"") ->  | N59: =IF($C59<=$B$15,VLOOKUP(A59&$B$11, localcont!$A$10:$X$1764, 10, FALSE), "") ->  | O59: =IF($C59<=$B$15,VLOOKUP(A59&$B$11, localcont!$A$10:$X$1764, 12, FALSE), "") -> 
A60: =IF($C60<=$B$15,VLOOKUP(E60,leas!D47:G487,4,FALSE),"") ->  | B60: 70042 | C60: 42 | G60: =IF($C60<=$B$15,VLOOKUP(A60&$B$11, localcont!A51:X1805, 18, FALSE), "") ->  | H60: =IF($C60<=$B$15,VLOOKUP(A60&$B$11, localcont!$A$10:$X$1764, 23, FALSE), "") ->  | J60: =IF($C60<=$B$15,H60/VLOOKUP(A60&"0999", localcont!$A$10:$X$1764, 23, FALSE), "") ->  | K60: =IF($C60<=$B$15,VLOOKUP(A60&$B$11, localcont!$A$10:$X$1764, 15, FALSE), "") ->  | L60: =IF($C60<=$B$15,VLOOKUP(A60&$B$11, localcont!$A$10:$X$1764, 14, FALSE),"") ->  | N60: =IF($C60<=$B$15,VLOOKUP(A60&$B$11, localcont!$A$10:$X$1764, 10, FALSE), "") ->  | O60: =IF($C60<=$B$15,VLOOKUP(A60&$B$11, localcont!$A$10:$X$1764, 12, FALSE), "") -> 
A61: =IF($C61<=$B$15,VLOOKUP(E61,leas!D48:G488,4,FALSE),"") ->  | B61: 70043 | C61: 43 | G61: =IF($C61<=$B$15,VLOOKUP(A61&$B$11, localcont!A52:X1806, 18, FALSE), "") ->  | H61: =IF($C61<=$B$15,VLOOKUP(A61&$B$11, localcont!$A$10:$X$1764, 23, FALSE), "") ->  | J61: =IF($C61<=$B$15,H61/VLOOKUP(A61&"0999", localcont!$A$10:$X$1764, 23, FALSE), "") ->  | K61: =IF($C61<=$B$15,VLOOKUP(A61&$B$11, localcont!$A$10:$X$1764, 15, FALSE), "") ->  | L61: =IF($C61<=$B$15,VLOOKUP(A61&$B$11, localcont!$A$10:$X$1764, 14, FALSE),"") ->  | N61: =IF($C61<=$B$15,VLOOKUP(A61&$B$11, localcont!$A$10:$X$1764, 10, FALSE), "") ->  | O61: =IF($C61<=$B$15,VLOOKUP(A61&$B$11, localcont!$A$10:$X$1764, 12, FALSE), "") -> 
A62: =IF($C62<=$B$15,VLOOKUP(E62,leas!D49:G489,4,FALSE),"") ->  | B62: 70044 | C62: 44 | G62: =IF($C62<=$B$15,VLOOKUP(A62&$B$11, localcont!A53:X1807, 18, FALSE), "") ->  | H62: =IF($C62<=$B$15,VLOOKUP(A62&$B$11, localcont!$A$10:$X$1764, 23, FALSE), "") ->  | J62: =IF($C62<=$B$15,H62/VLOOKUP(A62&"0999", localcont!$A$10:$X$1764, 23, FALSE), "") ->  | K62: =IF($C62<=$B$15,VLOOKUP(A62&$B$11, localcont!$A$10:$X$1764, 15, FALSE), "") ->  | L62: =IF($C62<=$B$15,VLOOKUP(A62&$B$11, localcont!$A$10:$X$1764, 14, FALSE),"") ->  | N62: =IF($C62<=$B$15,VLOOKUP(A62&$B$11, localcont!$A$10:$X$1764, 10, FALSE), "") ->  | O62: =IF($C62<=$B$15,VLOOKUP(A62&$B$11, localcont!$A$10:$X$1764, 12, FALSE), "") -> 
A63: =IF($C63<=$B$15,VLOOKUP(E63,leas!D50:G490,4,FALSE),"") ->  | B63: 70045 | C63: 45 | G63: =IF($C63<=$B$15,VLOOKUP(A63&$B$11, localcont!A54:X1808, 18, FALSE), "") ->  | H63: =IF($C63<=$B$15,VLOOKUP(A63&$B$11, localcont!$A$10:$X$1764, 23, FALSE), "") ->  | J63: =IF($C63<=$B$15,H63/VLOOKUP(A63&"0999", localcont!$A$10:$X$1764, 23, FALSE), "") ->  | K63: =IF($C63<=$B$15,VLOOKUP(A63&$B$11, localcont!$A$10:$X$1764, 15, FALSE), "") ->  | L63: =IF($C63<=$B$15,VLOOKUP(A63&$B$11, localcont!$A$10:$X$1764, 14, FALSE),"") ->  | N63: =IF($C63<=$B$15,VLOOKUP(A63&$B$11, localcont!$A$10:$X$1764, 10, FALSE), "") ->  | O63: =IF($C63<=$B$15,VLOOKUP(A63&$B$11, localcont!$A$10:$X$1764, 12, FALSE), "") -> 
A64: =IF($C64<=$B$15,VLOOKUP(E64,leas!D51:G491,4,FALSE),"") ->  | B64: 70046 | C64: 46 | G64: =IF($C64<=$B$15,VLOOKUP(A64&$B$11, localcont!A55:X1809, 18, FALSE), "") ->  | H64: =IF($C64<=$B$15,VLOOKUP(A64&$B$11, localcont!$A$10:$X$1764, 23, FALSE), "") ->  | J64: =IF($C64<=$B$15,H64/VLOOKUP(A64&"0999", localcont!$A$10:$X$1764, 23, FALSE), "") ->  | K64: =IF($C64<=$B$15,VLOOKUP(A64&$B$11, localcont!$A$10:$X$1764, 15, FALSE), "") ->  | L64: =IF($C64<=$B$15,VLOOKUP(A64&$B$11, localcont!$A$10:$X$1764, 14, FALSE),"") ->  | N64: =IF($C64<=$B$15,VLOOKUP(A64&$B$11, localcont!$A$10:$X$1764, 10, FALSE), "") ->  | O64: =IF($C64<=$B$15,VLOOKUP(A64&$B$11, localcont!$A$10:$X$1764, 12, FALSE), "") -> 
A65: =IF($C65<=$B$15,VLOOKUP(E65,leas!D52:G492,4,FALSE),"") ->  | B65: 70047 | C65: 47 | G65: =IF($C65<=$B$15,VLOOKUP(A65&$B$11, localcont!A56:X1810, 18, FALSE), "") ->  | H65: =IF($C65<=$B$15,VLOOKUP(A65&$B$11, localcont!$A$10:$X$1764, 23, FALSE), "") ->  | J65: =IF($C65<=$B$15,H65/VLOOKUP(A65&"0999", localcont!$A$10:$X$1764, 23, FALSE), "") ->  | K65: =IF($C65<=$B$15,VLOOKUP(A65&$B$11, localcont!$A$10:$X$1764, 15, FALSE), "") ->  | L65: =IF($C65<=$B$15,VLOOKUP(A65&$B$11, localcont!$A$10:$X$1764, 14, FALSE),"") ->  | N65: =IF($C65<=$B$15,VLOOKUP(A65&$B$11, localcont!$A$10:$X$1764, 10, FALSE), "") ->  | O65: =IF($C65<=$B$15,VLOOKUP(A65&$B$11, localcont!$A$10:$X$1764, 12, FALSE), "") -> 
A66: =IF($C66<=$B$15,VLOOKUP(E66,leas!D53:G493,4,FALSE),"") ->  | B66: 70048 | C66: 48 | G66: =IF($C66<=$B$15,VLOOKUP(A66&$B$11, localcont!A57:X1811, 18, FALSE), "") ->  | H66: =IF($C66<=$B$15,VLOOKUP(A66&$B$11, localcont!$A$10:$X$1764, 23, FALSE), "") ->  | J66: =IF($C66<=$B$15,H66/VLOOKUP(A66&"0999", localcont!$A$10:$X$1764, 23, FALSE), "") ->  | K66: =IF($C66<=$B$15,VLOOKUP(A66&$B$11, localcont!$A$10:$X$1764, 15, FALSE), "") ->  | L66: =IF($C66<=$B$15,VLOOKUP(A66&$B$11, localcont!$A$10:$X$1764, 14, FALSE),"") ->  | N66: =IF($C66<=$B$15,VLOOKUP(A66&$B$11, localcont!$A$10:$X$1764, 10, FALSE), "") ->  | O66: =IF($C66<=$B$15,VLOOKUP(A66&$B$11, localcont!$A$10:$X$1764, 12, FALSE), "") -> 
A67: =IF($C67<=$B$15,VLOOKUP(E67,leas!D54:G494,4,FALSE),"") ->  | B67: 70049 | C67: 49 | G67: =IF($C67<=$B$15,VLOOKUP(A67&$B$11, localcont!A58:X1812, 18, FALSE), "") ->  | H67: =IF($C67<=$B$15,VLOOKUP(A67&$B$11, localcont!$A$10:$X$1764, 23, FALSE), "") ->  | J67: =IF($C67<=$B$15,H67/VLOOKUP(A67&"0999", localcont!$A$10:$X$1764, 23, FALSE), "") ->  | K67: =IF($C67<=$B$15,VLOOKUP(A67&$B$11, localcont!$A$10:$X$1764, 15, FALSE), "") ->  | L67: =IF($C67<=$B$15,VLOOKUP(A67&$B$11, localcont!$A$10:$X$1764, 14, FALSE),"") ->  | N67: =IF($C67<=$B$15,VLOOKUP(A67&$B$11, localcont!$A$10:$X$1764, 10, FALSE), "") ->  | O67: =IF($C67<=$B$15,VLOOKUP(A67&$B$11, localcont!$A$10:$X$1764, 12, FALSE), "") -> 

Sheet Townwide Contributions
A1: 1 | C1: From DOR, Dec 2018 3 | D1: 4 | E1: From DOR, updated Jan 2019 5 | F1: 6 | G1: 7 | H1: 8 | I1: 9 | J1: 10 | K1: 11 | L1: 12 | M1: 13 | N1: 14 | O1: 15 | P1: 16 | Q1: 17 | R1: 18 | S1: 19 | T1: 20 | U1: 21 | V1: 22 | W1: 23 | X1: 24 | Y1: 25 | Z1: 26 | AA1: 27 | AB1: 28 | AC1: 29 | AD1: 29 | AE1: 30 | AF1: 31 | AG1: 32
B2: Return to Index | C2: 1. Calculation of effort goal (target local share) | M2: 2. Calculation of annual increments toward goal (required local contribution) | Z2: Analysis of Gap Closing
B3: More about the data | R3: Increments | S3: Thresholds
D4: uniform property percentage | F4: uniform income percentage | N4: Version | R4: =parameters!C18 -> 0.01 | S4: =parameters!C16 -> 2.5 | U4: Effort Reduction | AG4: -0.05
D5: =parameters!C29 -> 0.003417843586 | F5: =parameters!C30 -> 0.01481618863 | N5: 1 | R5: =parameters!C19 -> 0.02 | S5: =parameters!C17 -> 7.5 | U5: =effortred -> 1 | AG5: -0.1 | AI5: Final from DOR 12/29/2018
I6: maximum | J6: target local | M6: required | P6: preliminary | R6: percentage | S6: dollar | AG6: 0.02
D7: local effort | E7: DOR total | F7: local effort | G7: combined | I7: local contribution | J7: contribution | K7: target | M7: local | O7: preliminary | P7: contribution | Q7: shortfall | R7: increment | S7: increment | U7: excess effort | V7: Target share 82.5% | W7: required | Z7: Before | AA7: After implementation | AG7: 0.01 | AI7: 1 | AJ7: 2 | AK7: 3 | AL7: 4 | AM7: 5 | AN7: 6 | AO7: 7
C8: total | D8: from property | E8: income | F8: from income | G8: effort | H8: =CYr -> FY20 | I8: foundation pct= | J8: (lesser of max local | K8: local | L8: CEY % | M8: contribution | N8: mrgf | O8: contribution | P8: percentage of | Q8: from target | R8: toward | S8: toward | T8: excess | U8: times effort | V8: CEY% > 175% | W8: contribution | X8: percentage | Z8: below effort | AA8: below effort | AB8: above effort | AC8: distance from | AE8: % distance | AF8: Points | AG8: x% of | AI8: mrgf | AJ8: mrgf | AK8: mrgf | AL8: mrgf | AM8: mrgf | AN8: mrgf | AO8: mrgf
A9: Lea | B9: District | C9: EQV 2018 | D9: wealth | E9: 2016 | F9: wealth | G9: yield | H9: foundation | I9: =maxloc -> 0.825 | J9: or effort yield) | K9: share | L9: Found | M9: =PYr -> FY19 | N9: =CYr -> FY20 | O9: =CYr -> FY20 | P9: foundation | Q9: local share | R9: target | S9: target | T9: effort | U9: reduction % | V9: increment | W9: =CYr -> FY20 | X9: of foundation | Z9: shortfall | AA9: shortfall | AB9: excess | AC9: target | AE9: from target | AF9: from target | AG9: the gap
A10: 1 | B10: Abington | C10: 2103633000 | D10: =D$5*C10 -> 7189888.556 | E10: 574456000 | F10: =E10*F$5 -> 8511248.457 | G10: =ROUND(D10+F10,0) -> 15701137 | H10: =(SUMIF(town1755,A10,found1755)/2) -> 25009958.19 | I10: =ROUND(H10*maxloc,0) -> 20633216 | J10: =MIN(G10,I10) -> 15701137 | K10: =IF(H10>0, ROUND((J10*100/H10), 2), 0) -> 62.78 | L10: =G10/H10 -> 0.6277954118 | M10: 14929120 | N10: =IF($N$5=1,AI10,IF($N$5=2,AJ10,IF($N$5=3,AK10,IF($N$5=4,AL10,IF($N$5=5,AM10,IF($N$5=6,AN10,IF($N$5=7,AO10,0))))))) -> 0.0377 | O10: =ROUND(M10*(1+N10),0) -> 15491948 | P10: =O10*100/H10 -> 61.94311835 | Q10: =IF(K10>P10,K10-P10,0) -> 0.8368816504 | R10: =IF(AND(Q10>$S$4,Q10<=$S$5),$R$4,IF(Q10>$S$5,$R$5,0)) -> 0 | S10: =ROUND(R10*M10,0) -> 0 | T10: =MAX(O10-J10,0) -> 0 | U10: =MAX(T10*(U$5),0) -> 0 | V10: =IF(AND(L10>1.75,K10=82.5),MAX(J10-(O10+S10-U10),0),0) -> 0 | W10: =MIN(H10*parameters!C$22,ROUND(O10+S10-U10+V10,0)) -> 15491948 | X10: =W10*100/H10 -> 61.94311835 | Z10: =IF(P10<K10, O10-J10, 0) -> -209189 | AA10: =MAX(J10-(O10+S10+V10),0) -> 209189 | AB10: =IF(P10>K10, W10-J10,0) -> 0 | AC10: =X10-K10 -> -0.8368816504 | AE10: =(O10-J10)/J10 -> -0.01332317526 | AF10: =P10-K10 -> -0.8368816504 | AG10: =IF(AE10<$AG$5, $AG$6*(M10), IF(AND(AE10<$AG$4, AE10>$AG$5), $AG$7*(M10), 0)) -> 0 | AI10: 0.0377
A11: 2 | B11: Acton | C11: 4597929200 | D11: 15715002.82 | E11: 1643014000 | F11: =E11*F$5 -> 24343205.35 | G11: 40058208 | H11: =(SUMIF(town1755,A11,found1755)/2) -> 49122675.9 | I11: 40526208 | J11: =MIN(G11,I11) -> 40058208 | K11: =IF(H11>0, ROUND((J11*100/H11), 2), 0) -> 81.55 | L11: =G11/H11 -> 0.8154728395 | M11: 36476566 | N11: =IF($N$5=1,AI11,IF($N$5=2,AJ11,IF($N$5=3,AK11,IF($N$5=4,AL11,IF($N$5=5,AM11,IF($N$5=6,AN11,IF($N$5=7,AO11,0))))))) -> 0.037 | O11: =ROUND(M11*(1+N11),0) -> 37826199 | P11: =O11*100/H11 -> 77.00353922 | Q11: =IF(K11>P11,K11-P11,0) -> 4.546460783 | R11: =IF(AND(Q11>$S$4,Q11<=$S$5),$R$4,IF(Q11>$S$5,$R$5,0)) -> 0.01 | S11: =ROUND(R11*M11,0) -> 364766 | T11: =MAX(O11-J11,0) -> 0 | U11: 0 | V11: =IF(AND(L11>1.75,K11=82.5),MAX(J11-(O11+S11-U11),0),0) -> 0 | W11: =MIN(H11*parameters!C$22,ROUND(O11+S11-U11+V11,0)) -> 38190965 | X11: =W11*100/H11 -> 77.74610056 | Z11: =IF(P11<K11, O11-J11, 0) -> -2232009 | AA11: =MAX(J11-(O11+S11+V11),0) -> 1867243 | AB11: =IF(P11>K11, W11-J11,0) -> 0 | AC11: =X11-K11 -> -3.803899443 | AE11: -0.0557191425 | AF11: =P11-K11 -> -4.546460783 | AG11: 364765.66 | AI11: 0.037
A12: 3 | B12: Acushnet | C12: 1214098100 | D12: 4149597.404 | E12: 319854000 | F12: =E12*F$5 -> 4739017.199 | G12: 8888615 | H12: 15735522.82 | I12: 12981806 | J12: 8888615 | K12: 56.49 | L12: 0.5648757337 | M12: 8473423 | N12: 0.0379 | O12: 8794566 | P12: 55.88988748 | Q12: 0.6001125194 | R12: 0 | S12: 0 | T12: 0 | U12: 0 | V12: 0 | W12: =MIN(H12*parameters!C$22,ROUND(O12+S12-U12+V12,0)) -> 8794566 | X12: 55.88988748 | Z12: -94049 | AA12: 94049 | AB12: 0 | AC12: -0.6001125194 | AE12: -0.01058083852 | AF12: -0.6001125194 | AG12: 0 | AI12: 0.0379
A13: 4 | B13: Adams | C13: 525826800 | D13: 1797193.756 | E13: 185441000 | F13: 2747528.836 | G13: 4544723 | H13: 13458050.83 | I13: 11102892 | J13: 4544723 | K13: 33.77 | L13: 0.3376954848 | M13: 4445610 | N13: 0.0369 | O13: 4609653 | P13: 34.25201062 | Q13: 0 | R13: 0 | S13: 0 | T13: 64930 | U13: 64930 | V13: 0 | W13: =MIN(H13*parameters!C$22,ROUND(O13+S13-U13+V13,0)) -> 4544723 | X13: 33.76954848 | Z13: 0 | AA13: 0 | AB13: 0 | AC13: -0.0004515193867 | AE13: 0.01428689933 | AF13: 0.4820106203 | AG13: 0 | AI13: 0.0369
A14: 5 | B14: Agawam | C14: 3067519900 | D14: 10484303.21 | E14: 824403000 | F14: 12214510.36 | G14: 22698814 | H14: 41841475.45 | I14: 34519217 | J14: 22698814 | K14: 54.25 | L14: 0.5424955444 | M14: 22474431 | N14: 0.0367 | O14: 23299243 | P14: 55.68456358 | Q14: 0 | R14: 0 | S14: 0 | T14: 600429 | U14: 600429 | V14: 0 | W14: =MIN(H14*parameters!C$22,ROUND(O14+S14-U14+V14,0)) -> 22698814 | X14: 54.24955444 | Z14: 0 | AA14: 0 | AB14: 0 | AC14: -0.0004455630069 | AE14: 0.02645199877 | AF14: 1.434563584 | AG14: 0 | AI14: 0.0367
A15: 6 | B15: Alford | C15: 279820300 | D15: 956382.0175 | E15: 14085000 | F15: 208686.0169 | G15: 1165068 | H15: 259018.5658 | I15: 213690 | J15: 213690 | K15: 82.5 | L15: 4.498009617 | M15: 185505 | N15: 0.051 | O15: 194966 | P15: 75.27105225 | Q15: 7.228947746 | R15: 0.01 | S15: 1855 | T15: 0 | U15: 0 | V15: =IF(AND(L15>1.75,K15=82.5),MAX(J15-(O15+S15-U15),0),0) -> 16869 | W15: =MIN(H15*parameters!C$22,ROUND(O15+S15-U15+V15,0)) -> 213690 | X15: 82.4998777 | Z15: -18724 | AA15: 0 | AB15: 0 | AC15: -0.000122297019 | AE15: -0.08762225654 | AF15: -7.228947746 | AG15: 1855.05 | AI15: 0.051
A16: 7 | B16: Amesbury | C16: 2273556700 | D16: 7770661.184 | E16: 613383000 | F16: 9087998.232 | G16: 16858659 | H16: 24624496.9 | I16: 20315210 | J16: 16858659 | K16: 68.46 | L16: 0.6846295811 | M16: 15968764 | N16: 0.0442 | O16: 16674583 | P16: 67.71542609 | Q16: 0.7445739114 | R16: 0 | S16: 0 | T16: 0 | U16: 0 | V16: 0 | W16: =MIN(H16*parameters!C$22,ROUND(O16+S16-U16+V16,0)) -> 16674583 | X16: 67.71542609 | Z16: -184076 | AA16: 184076 | AB16: 0 | AC16: -0.7445739114 | AE16: -0.01091878067 | AF16: -0.7445739114 | AG16: 0 | AI16: 0.0442
A17: 8 | B17: Amherst | C17: 2516974800 | D17: 8602626.176 | E17: 716838000 | F17: 10620807.03 | G17: 19223433 | H17: 25860566.49 | I17: 21334967 | J17: 19223433 | K17: 74.33 | L17: 0.7433492613 | M17: 18587941 | N17: 0.0423 | O17: 19374211 | P17: 74.91796827 | Q17: 0 | R17: 0 | S17: 0 | T17: 150778 | U17: 150778 | V17: 0 | W17: =MIN(H17*parameters!C$22,ROUND(O17+S17-U17+V17,0)) -> 19223433 | X17: 74.33492613 | Z17: 0 | AA17: 0 | AB17: 0 | AC17: 0.004926133239 | AE17: 0.00784344815 | AF17: 0.5879682721 | AG17: 0 | AI17: 0.0423
A18: 9 | B18: Andover | C18: 8453211200 | D18: 28891753.68 | E18: 2659092000 | F18: 39397608.66 | G18: 68289362 | H18: 64253194.57 | I18: 53008886 | J18: 53008886 | K18: 82.5 | L18: 1.062816603 | M18: 50404156 | N18: 0.0453 | O18: 52687464 | P18: 81.99975791 | Q18: 0.5002420903 | R18: 0 | S18: 0 | T18: 0 | U18: 0 | V18: 0 | W18: =MIN(H18*parameters!C$22,ROUND(O18+S18-U18+V18,0)) -> 52687464 | X18: 81.99975791 | Z18: -321422 | AA18: 321422 | AB18: 0 | AC18: -0.5002420903 | AE18: -0.006063549421 | AF18: -0.5002420903 | AG18: 0 | AI18: 0.0453
A19: 10 | B19: Arlington | C19: 10614146500 | D19: 36277492.53 | E19: 2537927000 | F19: 37602405.17 | G19: 73879898 | H19: 64347006.79 | I19: 53086281 | J19: 53086281 | K19: 82.5 | L19: 1.148148169 | M19: 47883233 | N19: 0.0351 | O19: 49563934 | P19: 77.02601329 | Q19: 5.473986713 | R19: 0.01 | S19: 478832 | T19: 0 | U19: 0 | V19: 0 | W19: =MIN(H19*parameters!C$22,ROUND(O19+S19-U19+V19,0)) -> 50042766 | X19: 77.77015357 | Z19: -3522347 | AA19: 3043515 | AB19: 0 | AC19: -4.729846428 | AE19: -0.0663513611 | AF19: -5.473986713 | AG19: 478832.33 | AI19: 0.0351
A20: 11 | B20: Ashburnham | C20: 640811300 | D20: 2190192.791 | E20: 219074000 | F20: 3245841.709 | G20: 5436035 | H20: 11670157.74 | I20: 9627880 | J20: 5436035 | K20: 46.58 | L20: 0.4658064715 | M20: 5168787 | N20: 0.0401 | O20: 5376055 | P20: 46.06668666 | Q20: 0.5133133393 | R20: 0 | S20: 0 | T20: 0 | U20: 0 | V20: 0 | W20: =MIN(H20*parameters!C$22,ROUND(O20+S20-U20+V20,0)) -> 5376055 | X20: 46.06668666 | Z20: -59980 | AA20: 59980 | AB20: 0 | AC20: -0.5133133393 | AE20: -0.01103377738 | AF20: -0.5133133393 | AG20: 0 | AI20: 0.0401
A21: 12 | B21: Ashby | C21: 319398200 | D21: 1091653.089 | E21: 99859000 | F21: 1479529.781 | G21: 2571183 | H21: 4388386.402 | I21: 3620419 | J21: 2571183 | K21: 58.59 | L21: 0.5859062453 | M21: 2446298 | N21: 0.0273 | O21: 2513082 | P21: 57.26665269 | Q21: 1.323347305 | R21: 0 | S21: 0 | T21: 0 | U21: 0 | V21: 0 | W21: =MIN(H21*parameters!C$22,ROUND(O21+S21-U21+V21,0)) -> 2513082 | X21: 57.26665269 | Z21: -58101 | AA21: 58101 | AB21: 0 | AC21: -1.323347305 | AE21: -0.02259699135 | AF21: -1.323347305 | AG21: 0 | AI21: 0.0273
A22: 13 | B22: Ashfield | C22: 248466800 | D22: 849220.6587 | E22: 45637000 | F22: 676166.4007 | G22: 1525387 | H22: 2046235.155 | I22: 1688144 | J22: 1525387 | K22: 74.55 | L22: 0.7454602647 | M22: 1533624 | N22: 0.0376 | O22: 1591288 | P22: 77.76662406 | Q22: 0 | R22: 0 | S22: 0 | T22: 65901 | U22: 65901 | V22: 0 | W22: =MIN(H22*parameters!C$22,ROUND(O22+S22-U22+V22,0)) -> 1525387 | X22: 74.54602647 | Z22: 0 | AA22: 0 | AB22: 0 | AC22: -0.003973527746 | AE22: 0.04320280689 | AF22: 3.216624059 | AG22: 0 | AI22: 0.0376
A23: 14 | B23: Ashland | C23: 2809780000 | D23: 9603388.551 | E23: 842937000 | F23: 12489113.6 | G23: 22092502 | H23: 30157140.19 | I23: 24879641 | J23: 22092502 | K23: 73.26 | L23: 0.7325794774 | M23: 21145776 | N23: 0.0511 | O23: 22226325 | P23: 73.70170003 | Q23: 0 | R23: 0 | S23: 0 | T23: 133823 | U23: 133823 | V23: 0 | W23: =MIN(H23*parameters!C$22,ROUND(O23+S23-U23+V23,0)) -> 22092502 | X23: 73.25794774 | Z23: 0 | AA23: 0 | AB23: 0 | AC23: -0.002052257188 | AE23: 0.006057394495 | AF23: 0.4417000322 | AG23: 0 | AI23: 0.0511
A24: 15 | B24: Athol | C24: 730647700 | D24: 2497239.555 | E24: 228535000 | F24: 3386017.669 | G24: 5883257 | H24: 20453867.48 | I24: 16874441 | J24: 5883257 | K24: 28.76 | L24: 0.2876354315 | M24: 2991637 | N24: 0.0386 | O24: 3107114 | P24: 15.19083861 | Q24: 13.56916139 | R24: 0.02 | S24: 59833 | T24: 0 | U24: 0 | V24: 0 | W24: =MIN(H24*parameters!C$22,ROUND(O24+S24-U24+V24,0)) -> 3166947 | X24: 15.4833652 | Z24: -2776143 | AA24: 2716310 | AB24: 0 | AC24: -13.2766348 | AE24: -0.471871788 | AF24: -13.56916139 | AG24: 59832.74 | AI24: 0.0386
A25: 16 | B25: Attleboro | C25: 4710804300 | D25: 16100792.26 | E25: 1412024000 | F25: 20920813.94 | G25: 37021606 | H25: 77591794.89 | I25: 64013231 | J25: 37021606 | K25: 47.71 | L25: 0.4771330016 | M25: 35463531 | N25: 0.0393 | O25: 36857248 | P25: 47.50147622 | Q25: 0.2085237798 | R25: 0 | S25: 0 | T25: 0 | U25: 0 | V25: 0 | W25: =MIN(H25*parameters!C$22,ROUND(O25+S25-U25+V25,0)) -> 36857248 | X25: 47.50147622 | Z25: -164358 | AA25: 164358 | AB25: 0 | AC25: -0.2085237798 | AE25: -0.004439515671 | AF25: -0.2085237798 | AG25: 0 | AI25: 0.0393
A26: 17 | B26: Auburn | C26: 2175990900 | D26: 7437196.54 | E26: 558984000 | F26: 8282012.387 | G26: 15719209 | H26: 28196105.26 | I26: 23261787 | J26: 15719209 | K26: 55.75 | L26: 0.5574957553 | M26: 15400748 | N26: 0.0431 | O26: 16064520 | P26: 56.97425176 | Q26: 0 | R26: 0 | S26: 0 | T26: 345311 | U26: 345311 | V26: 0 | W26: =MIN(H26*parameters!C$22,ROUND(O26+S26-U26+V26,0)) -> 15719209 | X26: 55.74957553 | Z26: 0 | AA26: 0 | AB26: 0 | AC26: -0.0004244726542 | AE26: 0.02196745396 | AF26: 1.224251761 | AG26: 0 | AI26: 0.0431
A27: 18 | B27: Avon | C27: 855860900 | D27: 2925198.687 | E27: 153125000 | F27: 2268728.884 | G27: 5193928 | H27: 7607940.194 | I27: 6276551 | J27: 5193928 | K27: 68.27 | L27: 0.6826983214 | M27: 5132410 | N27: 0.0489 | O27: 5383385 | P27: 70.76008568 | Q27: 0 | R27: 0 | S27: 0 | T27: 189457 | U27: 189457 | V27: 0 | W27: =MIN(H27*parameters!C$22,ROUND(O27+S27-U27+V27,0)) -> 5193928 | X27: 68.26983214 | Z27: 0 | AA27: 0 | AB27: 0 | AC27: -0.0001678580954 | AE27: 0.03647663194 | AF27: 2.490085682 | AG27: 0 | AI27: 0.0489
A28: 19 | B28: Ayer | C28: 1219304900 | D28: 4167393.432 | E28: 270599000 | F28: 4009245.828 | G28: 8176639 | H28: 11610826.4 | I28: 9578932 | J28: 8176639 | K28: 70.42 | L28: 0.7042254117 | M28: 7779957 | N28: 0.0618 | O28: 8260758 | P28: 71.14702879 | Q28: 0 | R28: 0 | S28: 0 | T28: 84119 | U28: 84119 | V28: 0 | W28: =MIN(H28*parameters!C$22,ROUND(O28+S28-U28+V28,0)) -> 8176639 | X28: 70.42254117 | Z28: 0 | AA28: 0 | AB28: 0 | AC28: 0.00254116874 | AE28: 0.01028772335 | AF28: 0.7270287902 | AG28: 0 | AI28: 0.0618
A29: 20 | B29: Barnstable | C29: 14932044600 | D29: 51035392.86 | E29: 1795132000 | F29: 26597014.33 | G29: 77632407 | H29: 66070271.4 | I29: 54507974 | J29: 54507974 | K29: 82.5 | L29: 1.17499755 | M29: 52318726 | N29: 0.0295 | O29: 53862128 | P29: 81.52248638 | Q29: 0.9775136195 | R29: 0 | S29: 0 | T29: 0 | U29: 0 | V29: 0 | W29: =MIN(H29*parameters!C$22,ROUND(O29+S29-U29+V29,0)) -> 53862128 | X29: 81.52248638 | Z29: -645846 | AA29: 645846 | AB29: 0 | AC29: -0.9775136195 | AE29: -0.01184865172 | AF29: -0.9775136195 | AG29: 0 | AI29: 0.0295
A30: 21 | B30: Barre | C30: 458372300 | D30: 1566644.825 | E30: 139052000 | F30: 2060220.662 | G30: 3626865 | H30: 9349629.584 | I30: 7713444 | J30: 3626865 | K30: 38.79 | L30: 0.3879153679 | M30: 3562536 | N30: 0.0362 | O30: 3691500 | P30: 39.4828476 | Q30: 0 | R30: 0 | S30: 0 | T30: 64635 | U30: 64635 | V30: 0 | W30: =MIN(H30*parameters!C$22,ROUND(O30+S30-U30+V30,0)) -> 3626865 | X30: 38.79153679 | Z30: 0 | AA30: 0 | AB30: 0 | AC30: 0.001536793598 | AE30: 0.01782117614 | AF30: 0.6928476035 | AG30: 0 | AI30: 0.0362
A31: 22 | B31: Becket | C31: 523623000 | D31: 1789661.512 | E31: 45016000 | F31: 666965.5475 | G31: 2456627 | H31: 2554803.072 | I31: 2107713 | J31: 2107713 | K31: 82.5 | L31: 0.9615719611 | M31: 1846504 | N31: 0.0365 | O31: 1913901 | P31: 74.91383665 | Q31: 7.586163349 | R31: 0.02 | S31: 36930 | T31: 0 | U31: 0 | V31: 0 | W31: =MIN(H31*parameters!C$22,ROUND(O31+S31-U31+V31,0)) -> 1950831 | X31: 76.35934924 | Z31: -193812 | AA31: 156882 | AB31: 0 | AC31: -6.140650761 | AE31: -0.09195369578 | AF31: -7.586163349 | AG31: 18465.04 | AI31: 0.0365
A32: 23 | B32: Bedford | C32: 3957585000 | D32: 13526406.51 | E32: 912941000 | F32: 13526306.07 | G32: 27052713 | H32: 29959297.31 | I32: 24716420 | J32: 24716420 | K32: 82.5 | L32: 0.9029822269 | M32: 23277416 | N32: 0.0504 | O32: 24450598 | P32: 81.61272192 | Q32: 0.8872780814 | R32: 0 | S32: 0 | T32: 0 | U32: 0 | V32: 0 | W32: =MIN(H32*parameters!C$22,ROUND(O32+S32-U32+V32,0)) -> 24450598 | X32: 81.61272192 | Z32: -265822 | AA32: 265822 | AB32: 0 | AC32: -0.8872780814 | AE32: -0.01075487469 | AF32: -0.8872780814 | AG32: 0 | AI32: 0.0504
A33: 24 | B33: Belchertown | C33: 1554339300 | D33: 5312488.607 | E33: 518919000 | F33: 7688401.789 | G33: 13000890 | H33: 26333318.82 | I33: 21724988 | J33: 13000890 | K33: 49.37 | L33: 0.4937049556 | M33: 12431252 | N33: 0.0429 | O33: 12964553 | P33: 49.23250688 | Q33: 0.1374931199 | R33: 0 | S33: 0 | T33: 0 | U33: 0 | V33: 0 | W33: =MIN(H33*parameters!C$22,ROUND(O33+S33-U33+V33,0)) -> 12964553 | X33: 49.23250688 | Z33: -36337 | AA33: 36337 | AB33: 0 | AC33: -0.1374931199 | AE33: -0.002794962499 | AF33: -0.1374931199 | AG33: 0 | AI33: 0.0429
A34: 25 | B34: Bellingham | C34: 2504502600 | D34: 8559998.147 | E34: 591395000 | F34: 8762219.877 | G34: 17322218 | H34: 25960191.49 | I34: 21417158 | J34: 17322218 | K34: 66.73 | L34: 0.6672607945 | M34: 16731036 | N34: 0.0414 | O34: 17423701 | P34: 67.11699721 | Q34: 0 | R34: 0 | S34: 0 | T34: 101483 | U34: 101483 | V34: 0 | W34: =MIN(H34*parameters!C$22,ROUND(O34+S34-U34+V34,0)) -> 17322218 | X34: 66.72607945 | Z34: 0 | AA34: 0 | AB34: 0 | AC34: -0.003920552043 | AE34: 0.005858545366 | AF34: 0.3869972115 | AG34: 0 | AI34: 0.0414
A35: 26 | B35: Belmont | C35: 7850565400 | D35: 26832004.6 | E35: 2154400000 | F35: 31919996.79 | G35: =ROUND(D35+F35,0) -> 58752001 | H35: =(SUMIF(town1755,A35,found1755)/2) -> 48182236.52 | I35: 39750345 | J35: 39750345 | K35: 82.5 | L35: =G35/H35 -> 1.219370566 | M35: 37054551 | N35: 0.0365 | O35: 38407042 | P35: 79.71203658 | Q35: =IF(K35>P35,K35-P35,0) -> 2.78796342 | R35: =IF(AND(Q35>$S$4,Q35<=$S$5),$R$4,IF(Q35>$S$5,$R$5,0)) -> 0.01 | S35: =ROUND(R35*M35,0) -> 370546 | T35: 0 | U35: 0 | V35: 0 | W35: =MIN(H35*parameters!C$22,ROUND(O35+S35-U35+V35,0)) -> 38777588 | X35: 80.48108764 | Z35: -1343303 | AA35: 972757 | AB35: 0 | AC35: -2.018912362 | AE35: -0.03379349286 | AF35: -2.78796342 | AG35: 0 | AI35: 0.0365
A36: 27 | B36: Berkley | C36: 880793800 | D36: 3010415.44 | E36: 247403000 | F36: 3665569.516 | G36: 6675985 | H36: 12397914.64 | I36: 10228280 | J36: 6675985 | K36: 53.85 | L36: 0.5384764448 | M36: 6216022 | N36: 0.0393 | O36: 6460312 | P36: 52.10805354 | Q36: 1.741946458 | R36: 0 | S36: 0 | T36: 0 | U36: 0 | V36: 0 | W36: =MIN(H36*parameters!C$22,ROUND(O36+S36-U36+V36,0)) -> 6460312 | X36: 52.10805354 | Z36: -215673 | AA36: 215673 | AB36: 0 | AC36: -1.741946458 | AE36: -0.03230579458 | AF36: -1.741946458 | AG36: 0 | AI36: 0.0393
A37: 28 | B37: Berlin | C37: 642333300 | D37: 2195394.749 | E37: 148937000 | F37: 2206678.686 | G37: 4402073 | H37: 3934714.297 | I37: 3246139 | J37: 3246139 | K37: 82.5 | L37: 1.118778307 | M37: 3299575 | N37: 0.0524 | O37: 3472473 | P37: 88.25222717 | Q37: 0 | R37: 0 | S37: 0 | T37: 226334 | U37: 226334 | V37: 0 | W37: =MIN(H37*parameters!C$22,ROUND(O37+S37-U37+V37,0)) -> 3246139 | X37: 82.4999925 | Z37: 0 | AA37: 0 | AB37: 0 | AC37: -7.502763324e-06 | AE37: 0.06972406296 | AF37: 5.752227168 | AG37: 0 | AI37: 0.0524
A38: 29 | B38: Bernardston | C38: 216624000 | D38: 740386.9489 | E38: 60442000 | F38: 895520.0734 | G38: 1635907 | H38: 3068486.006 | I38: 2531501 | J38: 1635907 | K38: 53.31 | L38: 0.5331316476 | M38: 1669048 | N38: 0.0366 | O38: 1730135 | P38: 56.38399513 | Q38: 0 | R38: 0 | S38: 0 | T38: 94228 | U38: 94228 | V38: 0 | W38: =MIN(H38*parameters!C$22,ROUND(O38+S38-U38+V38,0)) -> 1635907 | X38: 53.31316476 | Z38: 0 | AA38: 0 | AB38: 0 | AC38: 0.003164764049 | AE38: 0.05759985134 | AF38: 3.073995129 | AG38: 0 | AI38: 0.0366
A39: 30 | B39: Beverly | C39: 6939374700 | D39: 23717697.31 | E39: 1799695000 | F39: 26664620.6 | G39: 50382318 | H39: 51073725.75 | I39: 42135824 | J39: 42135824 | K39: 82.5 | L39: 0.986462555 | M39: 40065826 | N39: 0.0428 | O39: 41780643 | P39: 81.80457248 | Q39: 0.6954275237 | R39: 0 | S39: 0 | T39: 0 | U39: 0 | V39: 0 | W39: =MIN(H39*parameters!C$22,ROUND(O39+S39-U39+V39,0)) -> 41780643 | X39: 81.80457248 | Z39: -355181 | AA39: 355181 | AB39: 0 | AC39: -0.6954275237 | AE39: -0.008429430501 | AF39: -0.6954275237 | AG39: 0 | AI39: 0.0428
A40: 31 | B40: Billerica | C40: 6791697200 | D40: 23212958.71 | E40: 1577769000 | F40: 23376523.12 | G40: 46589482 | H40: 61248162.02 | I40: 50529734 | J40: 46589482 | K40: 76.07 | L40: 0.7606674301 | M40: 44462670 | N40: 0.0459 | O40: 46503507 | P40: 75.92637145 | Q40: 0.143628547 | R40: 0 | S40: 0 | T40: 0 | U40: 0 | V40: 0 | W40: =MIN(H40*parameters!C$22,ROUND(O40+S40-U40+V40,0)) -> 46503507 | X40: 75.92637145 | Z40: -85975 | AA40: 85975 | AB40: 0 | AC40: -0.143628547 | AE40: -0.001845373597 | AF40: -0.143628547 | AG40: 0 | AI40: 0.0459
A41: 32 | B41: Blackstone | C41: 972102100 | D41: 3322492.927 | E41: 285738000 | F41: 4233548.108 | G41: 7556041 | H41: 15339459.47 | I41: 12655054 | J41: 7556041 | K41: 49.26 | L41: 0.4925884783 | M41: 7170158 | N41: 0.0419 | O41: 7470588 | P41: 48.70176823 | Q41: 0.5582317722 | R41: 0 | S41: 0 | T41: 0 | U41: 0 | V41: 0 | W41: =MIN(H41*parameters!C$22,ROUND(O41+S41-U41+V41,0)) -> 7470588 | X41: 48.70176823 | Z41: -85453 | AA41: 85453 | AB41: 0 | AC41: -0.5582317722 | AE41: -0.01130922926 | AF41: -0.5582317722 | AG41: 0 | AI41: 0.0419
A42: 33 | B42: Blandford | C42: 174764000 | D42: 597316.0164 | E42: 37164000 | F42: 550628.8344 | G42: 1147945 | H42: 1368804.907 | I42: 1129264 | J42: 1129264 | K42: 82.5 | L42: 0.8386476364 | M42: 1054663 | N42: 0.0286 | O42: 1084826 | P42: 79.25351483 | Q42: 3.246485175 | R42: 0.01 | S42: 10547 | T42: 0 | U42: 0 | V42: 0 | W42: =MIN(H42*parameters!C$22,ROUND(O42+S42-U42+V42,0)) -> 1095373 | X42: 80.02404099 | Z42: -44438 | AA42: 33891 | AB42: 0 | AC42: -2.475959006 | AE42: -0.03935129429 | AF42: -3.246485175 | AG42: 0 | AI42: 0.0286
A43: 34 | B43: Bolton | C43: 1087848200 | D43: 3718094.993 | E43: 386836000 | F43: 5731435.146 | G43: 9449530 | H43: 10970090.8 | I43: 9050325 | J43: 9050325 | K43: 82.5 | L43: 0.8613903178 | M43: 8585385 | N43: 0.0419 | O43: 8945113 | P43: 81.54092034 | Q43: 0.9590796624 | R43: 0 | S43: 0 | T43: 0 | U43: 0 | V43: 0 | W43: =MIN(H43*parameters!C$22,ROUND(O43+S43-U43+V43,0)) -> 8945113 | X43: 81.54092034 | Z43: -105212 | AA43: 105212 | AB43: 0 | AC43: -0.9590796624 | AE43: -0.01162521788 | AF43: -0.9590796624 | AG43: 0 | AI43: 0.0419
A44: 35 | B44: Boston | C44: 179793040700 | D44: 614504490.9 | E44: 30176018000 | F44: 447093574.9 | G44: 1061598066 | H44: 894636144.3 | I44: 738074819 | J44: 738074819 | K44: 82.5 | L44: 1.186625504 | M44: 711149680 | N44: 0.0545 | O44: 749907338 | P44: 83.82260685 | Q44: 0 | R44: 0 | S44: 0 | T44: 11832519 | U44: 11832519 | V44: 0 | W44: =MIN(H44*parameters!C$22,ROUND(O44+S44-U44+V44,0)) -> 738074819 | X44: 82.49999999 | Z44: 0 | AA44: 0 | AB44: 0 | AC44: -6.763855254e-09 | AE44: 0.01603159828 | AF44: 1.322606851 | AG44: 0 | AI44: 0.0545
A45: 36 | B45: Bourne | C45: 4814391000 | D45: 16454835.4 | E45: 690854000 | F45: 10235823.18 | G45: 26690659 | H45: 24589757.17 | I45: 20286550 | J45: 20286550 | K45: 82.5 | L45: 1.085438088 | M45: 19966173 | N45: 0.0391 | O45: 20746850 | P45: 84.37191901 | Q45: 0 | R45: 0 | S45: 0 | T45: 460300 | U45: 460300 | V45: 0 | W45: =MIN(H45*parameters!C$22,ROUND(O45+S45-U45+V45,0)) -> 20286550 | X45: 82.50000137 | Z45: 0 | AA45: 0 | AB45: 0 | AC45: 1.373737007e-06 | AE45: 0.02268991031 | AF45: 1.871919005 | AG45: 0 | AI45: 0.0391
A46: 37 | B46: Boxborough | C46: 1177906300 | D46: 4025899.492 | E46: 334206000 | F46: 4951659.138 | G46: 8977559 | H46: 9053752.878 | I46: 7469346 | J46: 7469346 | K46: 82.5 | L46: 0.9915842768 | M46: 7153749 | N46: 0.0423 | O46: 7456353 | P46: 82.35648908 | Q46: =IF(K46>P46,K46-P46,0) -> 0.1435109206 | R46: 0 | S46: 0 | T46: 0 | U46: 0 | V46: 0 | W46: =MIN(H46*parameters!C$22,ROUND(O46+S46-U46+V46,0)) -> 7456353 | X46: 82.35648908 | Z46: -12993 | AA46: 12993 | AB46: 0 | AC46: -0.1435109206 | AE46: -0.001739509724 | AF46: -0.1435109206 | AG46: 0 | AI46: 0.0423
A47: 38 | B47: Boxford | C47: 1868910500 | D47: 6387643.765 | E47: 709595000 | F47: 10513493.37 | G47: 16901137 | H47: 14841673.16 | I47: 12244380 | J47: 12244380 | K47: 82.5 | L47: 1.138762242 | M47: 11739011 | N47: 0.0413 | O47: 12223832 | P47: 82.36154961 | Q47: 0.1384503918 | R47: 0 | S47: 0 | T47: 0 | U47: 0 | V47: 0 | W47: =MIN(H47*parameters!C$22,ROUND(O47+S47-U47+V47,0)) -> 12223832 | X47: 82.36154961 | Z47: -20548 | AA47: 20548 | AB47: 0 | AC47: -0.1384503918 | AE47: -0.001678157653 | AF47: -0.1384503918 | AG47: 0 | AI47: 0.0413
A48: 39 | B48: Boylston | C48: 766982300 | D48: 2621425.535 | E48: 250318000 | F48: 3708758.706 | G48: 6330184 | H48: 6780982.495 | I48: 5594311 | J48: 5594311 | K48: 82.5 | L48: 0.9335201801 | M48: 5190846 | N48: 0.0527 | O48: 5464404 | P48: 80.58425168 | Q48: 1.915748318 | R48: 0 | S48: 0 | T48: 0 | U48: 0 | V48: 0 | W48: =MIN(H48*parameters!C$22,ROUND(O48+S48-U48+V48,0)) -> 5464404 | X48: 80.58425168 | Z48: -129907 | AA48: 129907 | AB48: 0 | AC48: -1.915748318 | AE48: -0.02322126889 | AF48: -1.915748318 | AG48: 0 | AI48: 0.0527
A49: 40 | B49: Braintree | C49: 7187550000 | D49: 24565921.67 | E49: 1551692000 | F49: 22990161.37 | G49: 47556083 | H49: 65653388.91 | I49: 54164046 | J49: 47556083 | K49: 72.44 | L49: 0.7243507729 | M49: 44631771 | N49: 0.0472 | O49: 46738391 | P49: 71.18960922 | Q49: 1.250390785 | R49: 0 | S49: 0 | T49: 0 | U49: 0 | V49: 0 | W49: =MIN(H49*parameters!C$22,ROUND(O49+S49-U49+V49,0)) -> 46738391 | X49: 71.18960922 | Z49: -817692 | AA49: 817692 | AB49: 0 | AC49: -1.250390785 | AE49: -0.01719426724 | AF49: -1.250390785 | AG49: 0 | AI49: 0.0472
A50: 41 | B50: Brewster | C50: 4100984500 | D50: 14016523.57 | E50: 327643000 | F50: 4854420.492 | G50: 18870944 | H50: 12069159.94 | I50: 9957057 | J50: 9957057 | K50: 82.5 | L50: 1.563567314 | M50: 9492852 | N50: 0.0417 | O50: 9888704 | P50: 81.93365608 | Q50: 0.5663439243 | R50: 0 | S50: 0 | T50: 0 | U50: 0 | V50: 0 | W50: =MIN(H50*parameters!C$22,ROUND(O50+S50-U50+V50,0)) -> 9888704 | X50: 81.93365608 | Z50: -68353 | AA50: 68353 | AB50: 0 | AC50: -0.5663439243 | AE50: -0.006864779422 | AF50: -0.5663439243 | AG50: 0 | AI50: 0.0417
A51: 42 | B51: Bridgewater | C51: 3016111400 | D51: 10308597 | E51: 860796000 | F51: 12753715.91 | G51: 23062313 | H51: 36498799.14 | I51: 30111509 | J51: 23062313 | K51: 63.19 | L51: 0.6318649803 | M51: 22052979 | N51: 0.0463 | O51: 23074032 | P51: 63.21860594 | Q51: 0 | R51: 0 | S51: 0 | T51: 11719 | U51: 11719 | V51: 0 | W51: =MIN(H51*parameters!C$22,ROUND(O51+S51-U51+V51,0)) -> 23062313 | X51: 63.18649803 | Z51: 0 | AA51: 0 | AB51: 0 | AC51: -0.003501966376 | AE51: 0.0005081450417 | AF51: 0.0286059393 | AG51: 0 | AI51: 0.0463
A52: 43 | B52: Brimfield | C52: 439485600 | D52: 1502093.039 | E52: 127410000 | F52: 1887730.594 | G52: 3389824 | H52: 5994706.179 | I52: 4945633 | J52: 3389824 | K52: 56.55 | L52: 0.5654695825 | M52: 3331858 | N52: 0.0345 | O52: 3446807 | P52: 57.49751359 | Q52: 0 | R52: 0 | S52: 0 | T52: 56983 | U52: 56983 | V52: 0 | W52: =MIN(H52*parameters!C$22,ROUND(O52+S52-U52+V52,0)) -> 3389824 | X52: 56.54695825 | Z52: 0 | AA52: 0 | AB52: 0 | AC52: -0.003041751695 | AE52: 0.01681001728 | AF52: 0.9475135933 | AG52: 0 | AI52: 0.0345
A53: 44 | B53: Brockton | C53: 7675101300 | D53: 26232295.75 | E53: 1972261000 | F53: 29221391.01 | G53: 55453687 | H53: 246150429.1 | I53: 203074104 | J53: 55453687 | K53: 22.53 | L53: 0.2252837307 | M53: 46860681 | N53: 0.0441 | O53: 48927237 | P53: 19.87696596 | Q53: 2.653034044 | R53: 0.01 | S53: 468607 | T53: 0 | U53: 0 | V53: 0 | W53: =MIN(H53*parameters!C$22,ROUND(O53+S53-U53+V53,0)) -> 49395844 | X53: 20.06734019 | Z53: -6526450 | AA53: 6057843 | AB53: 0 | AC53: -2.462659808 | AE53: -0.1176919039 | AF53: -2.653034044 | AG53: 937213.62 | AI53: 0.0441
A54: 45 | B54: Brookfield | C54: 276658600 | D54: 945575.8215 | E54: 94919000 | F54: 1406337.809 | G54: 2351914 | H54: 5590427.069 | I54: 4612102 | J54: 2351914 | K54: 42.07 | L54: 0.4207038158 | M54: 2272162 | N54: 0.0577 | O54: 2403266 | P54: 42.98895183 | Q54: 0 | R54: 0 | S54: 0 | T54: 51352 | U54: 51352 | V54: 0 | W54: =MIN(H54*parameters!C$22,ROUND(O54+S54-U54+V54,0)) -> 2351914 | X54: 42.07038158 | Z54: 0 | AA54: 0 | AB54: 0 | AC54: 0.0003815802149 | AE54: 0.02183413169 | AF54: 0.9189518319 | AG54: 0 | AI54: 0.0577
A55: 46 | B55: Brookline | C55: 24547879100 | D55: 83900811.13 | E55: 4462915000 | F55: 66123390.49 | G55: 150024202 | H55: 83088018.49 | I55: 68547615 | J55: 68547615 | K55: 82.5 | L55: 1.805605727 | M55: 64824584 | N55: 0.0364 | O55: 67184199 | P55: 80.85906996 | Q55: 1.640930038 | R55: 0 | S55: 0 | T55: 0 | U55: 0 | V55: 1363416 | W55: =MIN(H55*parameters!C$22,ROUND(O55+S55-U55+V55,0)) -> 68547615 | X55: 82.49999969 | Z55: -1363416 | AA55: 0 | AB55: 0 | AC55: -3.053772843e-07 | AE55: -0.01989005744 | AF55: -1.640930038 | AG55: 0 | AI55: 0.0364
A56: 47 | B56: Buckland | C56: 216985500 | D56: 741622.4994 | E56: 39399460.5 | F56: 583749.8388 | G56: 1325372 | H56: 2425913.784 | I56: 2001379 | J56: 1325372 | K56: 54.63 | L56: 0.5463392841 | M56: 1371295 | N56: 0.0329 | O56: 1416411 | P56: 58.38669987 | Q56: 0 | R56: 0 | S56: 0 | T56: 91039 | U56: 91039 | V56: 0 | W56: =MIN(H56*parameters!C$22,ROUND(O56+S56-U56+V56,0)) -> 1325372 | X56: 54.63392841 | Z56: 0 | AA56: 0 | AB56: 0 | AC56: 0.003928411166 | AE56: 0.06868939437 | AF56: 3.756699866 | AG56: 0 | AI56: 0.0329
A57: 48 | B57: Burlington | C57: 7011898700 | D57: 23965573 | E57: 1196707000 | F57: 17730636.65 | G57: 41696210 | H57: 41135915.9 | I57: 33937131 | J57: 33937131 | K57: 82.5 | L57: 1.013620557 | M57: 32518139 | N57: 0.0513 | O57: 34186320 | P57: 83.10577085 | Q57: 0 | R57: 0 | S57: 0 | T57: 249189 | U57: 249189 | V57: 0 | W57: =MIN(H57*parameters!C$22,ROUND(O57+S57-U57+V57,0)) -> 33937131 | X57: 82.50000094 | Z57: 0 | AA57: 0 | AB57: 0 | AC57: 9.398303433e-07 | AE57: 0.007342665472 | AF57: 0.6057708481 | AG57: 0 | AI57: 0.0513
A58: 49 | B58: Cambridge | C58: 49449365600 | D58: 169010197 | E58: 6443305000 | F58: 95465222.3 | G58: 264475419 | H58: 94979850.26 | I58: 78358376 | J58: 78358376 | K58: 82.5 | L58: 2.784542387 | M58: 72855305 | N58: 0.0516 | O58: 76614639 | P58: 80.66409748 | Q58: 1.835902524 | R58: 0 | S58: 0 | T58: 0 | U58: 0 | V58: 1743737 | W58: =MIN(H58*parameters!C$22,ROUND(O58+S58-U58+V58,0)) -> 78358376 | X58: 82.49999951 | Z58: -1743737 | AA58: 0 | AB58: 0 | AC58: -4.928192965e-07 | AE58: -0.02225335808 | AF58: -1.835902524 | AG58: 0 | AI58: 0.0516
A59: 50 | B59: Canton | C59: 5111198800 | D59: 17469278.03 | E59: 1313754000 | F59: 19464827.08 | G59: 36934105 | H59: 37365024.81 | I59: 30826145 | J59: 30826145 | K59: 82.5 | L59: 0.988467295 | M59: 29739599 | N59: 0.0435 | O59: 31033272 | P59: 83.05433265 | Q59: 0 | R59: 0 | S59: 0 | T59: 207127 | U59: 207127 | V59: 0 | W59: =MIN(H59*parameters!C$22,ROUND(O59+S59-U59+V59,0)) -> 30826145 | X59: 82.49999875 | Z59: 0 | AA59: 0 | AB59: 0 | AC59: -1.248557879e-06 | AE59: 0.006719198914 | AF59: 0.5543326534 | AG59: 0 | AI59: 0.0435
A60: 51 | B60: Carlisle | C60: 1544199600 | D60: 5277832.698 | E60: 572602000 | F60: 8483779.244 | G60: 13761612 | H60: 9405327.189 | I60: 7759395 | J60: 7759395 | K60: 82.5 | L60: 1.463172064 | M60: 7472435 | N60: 0.0357 | O60: 7739201 | P60: 82.28529263 | Q60: 0.214707371 | R60: 0 | S60: 0 | T60: 0 | U60: 0 | V60: 0 | W60: =MIN(H60*parameters!C$22,ROUND(O60+S60-U60+V60,0)) -> 7739201 | X60: 82.28529263 | Z60: -20194 | AA60: 20194 | AB60: 0 | AC60: -0.214707371 | AE60: -0.00260252249 | AF60: -0.214707371 | AG60: 0 | AI60: 0.0357
A61: 52 | B61: Carver | C61: 1394846000 | D61: 4767365.454 | E61: 348353000 | F61: 5161263.759 | G61: 9928629 | H61: 18893290.84 | I61: 15586965 | J61: 9928629 | K61: 52.55 | L61: 0.5255108325 | M61: 9471877 | N61: 0.0401 | O61: 9851699 | P61: 52.14390167 | Q61: 0.4060983297 | R61: 0 | S61: 0 | T61: 0 | U61: 0 | V61: 0 | W61: =MIN(H61*parameters!C$22,ROUND(O61+S61-U61+V61,0)) -> 9851699 | X61: 52.14390167 | Z61: -76930 | AA61: 76930 | AB61: 0 | AC61: -0.4060983297 | AE61: -0.007748300395 | AF61: -0.4060983297 | AG61: 0 | AI61: 0.0401
A62: 53 | B62: Charlemont | C62: 142686500 | D62: 487680.1388 | E62: 26057000 | F62: 386065.4272 | G62: 873746 | H62: 1855756.408 | I62: 1530999 | J62: 873746 | K62: 47.08 | L62: 0.4708301135 | M62: 929036 | N62: 0.0518 | O62: 977160 | P62: 52.65561773 | Q62: 0 | R62: 0 | S62: 0 | T62: 103414 | U62: 103414 | V62: 0 | W62: =MIN(H62*parameters!C$22,ROUND(O62+S62-U62+V62,0)) -> 873746 | X62: 47.08301135 | Z62: 0 | AA62: 0 | AB62: 0 | AC62: 0.003011351307 | AE62: 0.1183570511 | AF62: 5.575617733 | AG62: 0 | AI62: 0.0518
A63: 54 | B63: Charlton | C63: 1610444700 | D63: 5504248.088 | E63: 488509000 | F63: 7237841.493 | G63: 12742090 | H63: 24169395.97 | I63: 19939752 | J63: 12742090 | K63: 52.72 | L63: 0.5271993563 | M63: 12147658 | N63: 0.0407 | O63: 12642068 | P63: 52.30609823 | Q63: 0.4139017663 | R63: 0 | S63: 0 | T63: 0 | U63: 0 | V63: 0 | W63: =MIN(H63*parameters!C$22,ROUND(O63+S63-U63+V63,0)) -> 12642068 | X63: 52.30609823 | Z63: -100022 | AA63: 100022 | AB63: 0 | AC63: -0.4139017663 | AE63: -0.007849732658 | AF63: -0.4139017663 | AG63: 0 | AI63: 0.0407
A64: 55 | B64: Chatham | C64: 7374670100 | D64: 25205468.9 | E64: 329994000 | F64: 4889253.352 | G64: 30094722 | H64: 5180612.4 | I64: 4274005 | J64: 4274005 | K64: 82.5 | L64: 5.809105117 | M64: 4410094 | N64: 0.0436 | O64: 4602374 | P64: 88.83841609 | Q64: 0 | R64: 0 | S64: 0 | T64: 328369 | U64: 328369 | V64: 0 | W64: =MIN(H64*parameters!C$22,ROUND(O64+S64-U64+V64,0)) -> 4274005 | X64: 82.49999556 | Z64: 0 | AA64: 0 | AB64: 0 | AC64: -4.437024629e-06 | AE64: 0.07682934391 | AF64: 6.338416094 | AG64: 0 | AI64: 0.0436
A65: 56 | B65: Chelmsford | C65: 5849923100 | D65: 19994122.15 | E65: 1870365000 | F65: 27711680.65 | G65: 47705803 | H65: 55997477.76 | I65: 46197919 | J65: 46197919 | K65: 82.5 | L65: 0.8519277101 | M65: 42772646 | N65: 0.0418 | O65: 44560543 | P65: 79.57598231 | Q65: 2.924017686 | R65: 0.01 | S65: 427726 | T65: 0 | U65: 0 | V65: 0 | W65: =MIN(H65*parameters!C$22,ROUND(O65+S65-U65+V65,0)) -> 44988269 | X65: 80.33981315 | Z65: -1637376 | AA65: 1209650 | AB65: 0 | AC65: -2.160186855 | AE65: -0.03544263541 | AF65: -2.924017686 | AG65: 0 | AI65: 0.0418
A66: 57 | B66: Chelsea | C66: 3534210300 | D66: 12079378 | E66: 707032000 | F66: 10475519.48 | G66: 22554897 | H66: 103766247.1 | I66: 85607154 | J66: 22554897 | K66: 21.74 | L66: 0.2173625589 | M66: 18073382 | N66: 0.0696 | O66: 19331289 | P66: 18.62965034 | Q66: 3.110349664 | R66: 0.01 | S66: 180734 | T66: 0 | U66: 0 | V66: 0 | W66: =MIN(H66*parameters!C$22,ROUND(O66+S66-U66+V66,0)) -> 19512023 | X66: 18.80382451 | Z66: -3223608 | AA66: 3042874 | AB66: 0 | AC66: -2.936175494 | AE66: -0.1429227542 | AF66: -3.110349664 | AG66: 361467.64 | AI66: 0.0696
A67: 58 | B67: Cheshire | C67: 308072500 | D67: 1052943.618 | E67: 92867000 | F67: 1375934.99 | G67: 2428879 | H67: 4943834.504 | I67: 4078663 | J67: 2428879 | K67: 49.13 | L67: 0.4912945605 | M67: 2396476 | N67: 0.0284 | O67: 2464536 | P67: 49.85069783 | Q67: 0 | R67: 0 | S67: 0 | T67: 35657 | U67: 35657 | V67: 0 | W67: =MIN(H67*parameters!C$22,ROUND(O67+S67-U67+V67,0)) -> 2428879 | X67: 49.12945605 | Z67: 0 | AA67: 0 | AB67: 0 | AC67: -0.0005439512592 | AE67: 0.01468043488 | AF67: 0.7206978291 | AG67: 0 | AI67: 0.0284
A68: 59 | B68: Chester | C68: 125043400 | D68: 427378.7826 | E68: 30751000 | F68: 455612.6167 | G68: 882991 | H68: 1717384.052 | I68: 1416842 | J68: 882991 | K68: 51.41 | L68: 0.5141488293 | M68: 879049 | N68: 0.0335 | O68: 908497 | P68: 52.90004869 | Q68: 0 | R68: 0 | S68: 0 | T68: 25506 | U68: 25506 | V68: 0 | W68: =MIN(H68*parameters!C$22,ROUND(O68+S68-U68+V68,0)) -> 882991 | X68: 51.41488293 | Z68: 0 | AA68: 0 | AB68: 0 | AC68: 0.004882927143 | AE68: 0.02888591163 | AF68: 1.490048692 | AG68: 0 | AI68: 0.0335
A69: 60 | B69: Chesterfield | C69: 157870800 | D69: 539577.7012 | E69: 27973000 | F69: 414453.2446 | G69: 954031 | H69: 1466117.387 | I69: 1209547 | J69: 954031 | K69: 65.07 | L69: 0.650719382 | M69: 952325 | N69: 0.0318 | O69: 982609 | P69: 67.02116821 | Q69: 0 | R69: 0 | S69: 0 | T69: 28578 | U69: 28578 | V69: 0 | W69: =MIN(H69*parameters!C$22,ROUND(O69+S69-U69+V69,0)) -> 954031 | X69: 65.0719382 | Z69: 0 | AA69: 0 | AB69: 0 | AC69: 0.001938204324 | AE69: 0.02995500146 | AF69: 1.951168208 | AG69: 0 | AI69: 0.0318
A70: 61 | B70: Chicopee | C70: 3998413400 | D70: 13665951.59 | E70: 1114483000 | F70: 16512390.36 | G70: 30178342 | H70: 97611074.16 | I70: 80529136 | J70: 30178342 | K70: 30.92 | L70: 0.309169244 | M70: 30063802 | N70: 0.0338 | O70: 31079959 | P70: 31.8406075 | Q70: 0 | R70: 0 | S70: 0 | T70: 901617 | U70: 901617 | V70: 0 | W70: =MIN(H70*parameters!C$22,ROUND(O70+S70-U70+V70,0)) -> 30178342 | X70: 30.9169244 | Z70: 0 | AA70: 0 | AB70: 0 | AC70: -0.003075603164 | AE70: 0.0298762934 | AF70: 0.9206075012 | AG70: 0 | AI70: 0.0338
A71: 62 | B71: Chilmark | C71: 3358805700 | D71: 11479872.52 | E71: 49205000 | F71: 729030.5617 | G71: 12208903 | H71: 1327006.732 | I71: 1094781 | J71: 1094781 | K71: 82.5 | L71: 9.200332376 | M71: 972539 | N71: 0.0474 | O71: 1018637 | P71: 76.76200696 | Q71: 5.737993041 | R71: 0.01 | S71: 9725 | T71: 0 | U71: 0 | V71: 66419 | W71: =MIN(H71*parameters!C$22,ROUND(O71+S71-U71+V71,0)) -> 1094781 | X71: 82.50003361 | Z71: -76144 | AA71: 0 | AB71: 0 | AC71: 3.361412591e-05 | AE71: -0.06955180991 | AF71: -5.737993041 | AG71: 9725.39 | AI71: 0.0474
A72: 63 | B72: Clarksburg | C72: 128418100 | D72: 438912.9794 | E72: 38787000 | F72: 574675.5085 | G72: 1013588 | H72: 2834628.097 | I72: 2338568 | J72: 1013588 | K72: 35.76 | L72: 0.3575735389 | M72: 929159 | N72: 0.0279 | O72: 955083 | P72: 33.69341471 | Q72: 2.066585295 | R72: 0 | S72: 0 | T72: 0 | U72: 0 | V72: 0 | W72: =MIN(H72*parameters!C$22,ROUND(O72+S72-U72+V72,0)) -> 955083 | X72: 33.69341471 | Z72: -58505 | AA72: 58505 | AB72: 0 | AC72: -2.066585295 | AE72: -0.05772069125 | AF72: -2.066585295 | AG72: 9291.59 | AI72: 0.0279
A73: 64 | B73: Clinton | C73: 1385425600 | D73: 4735168.001 | E73: 418699000 | F73: 6203523.365 | G73: 10938691 | H73: 23856887.15 | I73: 19681932 | J73: 10938691 | K73: 45.85 | L73: 0.4585129204 | M73: 10266561 | N73: 0.0393 | O73: 10670037 | P73: 44.72518536 | Q73: 1.124814642 | R73: 0 | S73: 0 | T73: 0 | U73: 0 | V73: 0 | W73: =MIN(H73*parameters!C$22,ROUND(O73+S73-U73+V73,0)) -> 10670037 | X73: 44.72518536 | Z73: -268654 | AA73: 268654 | AB73: 0 | AC73: -1.124814642 | AE73: -0.02455997706 | AF73: -1.124814642 | AG73: 0 | AI73: 0.0393
A74: 65 | B74: Cohasset | C74: 3075090800 | D74: 10510179.37 | E74: 966615000 | F74: 14321550.18 | G74: 24831730 | H74: 15729096.99 | I74: =ROUND(H74*maxloc,0) -> 12976505 | J74: 12976505 | K74: 82.5 | L74: 1.578713007 | M74: 12547509 | N74: 0.0443 | O74: 13103364 | P74: 83.30652429 | Q74: 0 | R74: 0 | S74: 0 | T74: 126859 | U74: =MAX(T74*(U$5),0) -> 126859 | V74: 0 | W74: =MIN(H74*parameters!C$22,ROUND(O74+S74-U74+V74,0)) -> 12976505 | X74: 82.49999992 | Z74: 0 | AA74: 0 | AB74: 0 | AC74: -8.130284357e-08 | AE74: =(O74-J74)/J74 -> 0.009776052951 | AF74: 0.8065242864 | AG74: =IF(AE74<$AG$5, $AG$6*(M74), IF(AND(AE74<$AG$4, AE74>$AG$5), $AG$7*(M74), 0)) -> 0 | AI74: 0.0443
A75: 66 | B75: Colrain | C75: 179350200 | D75: =D$5*C75 -> 612990.9307 | E75: 41772000 | F75: 618901.8316 | G75: =ROUND(D75+F75,0) -> 1231893 | H75: =(SUMIF(town1755,A75,found1755)/2) -> 2226515.33 | I75: 1836875 | J75: =MIN(G75,I75) -> 1231893 | K75: =IF(H75>0, ROUND((J75*100/H75), 2), 0) -> 55.33 | L75: =G75/H75 -> 0.5532829634 | M75: 1275643 | N75: =IF($N$5=1,AI75,IF($N$5=2,AJ75,IF($N$5=3,AK75,IF($N$5=4,AL75,IF($N$5=5,AM75,IF($N$5=6,AN75,IF($N$5=7,AO75,0))))))) -> 0.0362 | O75: =ROUND(M75*(1+N75),0) -> 1321821 | P75: =O75*100/H75 -> 59.36725348 | Q75: =IF(K75>P75,K75-P75,0) -> 0 | R75: =IF(AND(Q75>$S$4,Q75<=$S$5),$R$4,IF(Q75>$S$5,$R$5,0)) -> 0 | S75: =ROUND(R75*M75,0) -> 0 | T75: =MAX(O75-J75,0) -> 89928 | U75: 89928 | V75: =IF(AND(L75>1.75,K75=82.5),MAX(J75-(O75+S75-U75),0),0) -> 0 | W75: =MIN(H75*parameters!C$22,ROUND(O75+S75-U75+V75,0)) -> 1231893 | X75: =W75*100/H75 -> 55.32829634 | Z75: =IF(P75<K75, O75-J75, 0) -> 0 | AA75: =MAX(J75-(O75+S75+V75),0) -> 0 | AB75: =IF(P75>K75, W75-J75,0) -> 0 | AC75: =X75-K75 -> -0.001703659838 | AE75: 0.07299984658 | AF75: =P75-K75 -> 4.037253484 | AG75: 0 | AI75: 0.0362
A76: 67 | B76: Concord | C76: 6572447900 | D76: 22463598.9 | E76: 2291122000 | F76: =E76*F$5 -> 33945695.73 | G76: 56409295 | H76: 32295189.8 | I76: 26643532 | J76: 26643532 | K76: 82.5 | L76: 1.746677921 | M76: 25604289 | N76: 0.0482 | O76: 26838416 | P76: 83.10344718 | Q76: 0 | R76: 0 | S76: 0 | T76: 194884 | U76: 194884 | V76: 0 | W76: =MIN(H76*parameters!C$22,ROUND(O76+S76-U76+V76,0)) -> 26643532 | X76: 82.50000127 | Z76: 0 | AA76: 0 | AB76: 0 | AC76: 1.274145205e-06 | AE76: 0.007314495691 | AF76: 0.603447178 | AG76: 0 | AI76: 0.0482
A77: 68 | B77: Conway | C77: 270902400 | D77: 925902.0302 | E77: 68131000 | F77: 1009441.748 | G77: 1935344 | H77: 2310966.824 | I77: 1906548 | J77: 1906548 | K77: 82.5 | L77: 0.8374607458 | M77: 1874971 | N77: 0.0442 | O77: 1957845 | P77: 84.71973633 | Q77: 0 | R77: 0 | S77: 0 | T77: 51297 | U77: 51297 | V77: 0 | W77: =MIN(H77*parameters!C$22,ROUND(O77+S77-U77+V77,0)) -> 1906548 | X77: 82.50001602 | Z77: 0 | AA77: 0 | AB77: 0 | AC77: 1.601951153e-05 | AE77: 0.02690569553 | AF77: 2.219736332 | AG77: 0 | AI77: 0.0442
A78: 69 | B78: Cummington | C78: 130242300 | D78: 445147.8097 | E78: 23201000 | F78: 343750.3925 | G78: 788898 | H78: 871235.2344 | I78: 718769 | J78: 718769 | K78: 82.5 | L78: 0.9054936817 | M78: 706211 | N78: 0.0357 | O78: 731423 | P78: 83.95241275 | Q78: 0 | R78: 0 | S78: 0 | T78: 12654 | U78: 12654 | V78: 0 | W78: =MIN(H78*parameters!C$22,ROUND(O78+S78-U78+V78,0)) -> 718769 | X78: 82.49999215 | Z78: 0 | AA78: 0 | AB78: 0 | AC78: -7.845875587e-06 | AE78: 0.01760509983 | AF78: 1.452412752 | AG78: 0 | AI78: 0.0357
A79: 70 | B79: Dalton | C79: 616299000 | D79: 2106413.584 | E79: 209679000 | F79: 3106643.616 | G79: 5213057 | H79: 10333916.71 | I79: 8525481 | J79: 5213057 | K79: 50.45 | L79: 0.5044609071 | M79: 5141209 | N79: 0.0316 | O79: 5303671 | P79: 51.32295089 | Q79: 0 | R79: 0 | S79: 0 | T79: 90614 | U79: 90614 | V79: 0 | W79: =MIN(H79*parameters!C$22,ROUND(O79+S79-U79+V79,0)) -> 5213057 | X79: 50.44609071 | Z79: 0 | AA79: 0 | AB79: 0 | AC79: -0.003909287179 | AE79: 0.01738212339 | AF79: 0.872950886 | AG79: 0 | AI79: 0.0316
A80: 71 | B80: Danvers | C80: 5183902300 | D80: 17717767.23 | E80: 1159162000 | F80: 17174362.85 | G80: 34892130 | H80: 39597114.94 | I80: 32667620 | J80: 32667620 | K80: 82.5 | L80: 0.8811785921 | M80: 30986688 | N80: 0.0348 | O80: 32065025 | P80: 80.97818501 | Q80: 1.521814986 | R80: 0 | S80: 0 | T80: 0 | U80: 0 | V80: 0 | W80: =MIN(H80*parameters!C$22,ROUND(O80+S80-U80+V80,0)) -> 32065025 | X80: 80.97818501 | Z80: -602595 | AA80: 602595 | AB80: 0 | AC80: -1.521814986 | AE80: -0.01844624739 | AF80: -1.521814986 | AG80: 0 | AI80: 0.0348
A81: 72 | B81: Dartmouth | C81: 5885151300 | D81: 20114526.62 | E81: 1186773000 | F81: 17583452.63 | G81: 37697979 | H81: 44663795.48 | I81: 36847631 | J81: 36847631 | K81: 82.5 | L81: 0.8440388596 | M81: 35807659 | N81: 0.0367 | O81: 37121800 | P81: 83.11385005 | Q81: 0 | R81: 0 | S81: 0 | T81: 274169 | U81: 274169 | V81: 0 | W81: =MIN(H81*parameters!C$22,ROUND(O81+S81-U81+V81,0)) -> 36847631 | X81: 82.49999939 | Z81: 0 | AA81: 0 | AB81: 0 | AC81: -6.057092463e-07 | AE81: 0.007440614025 | AF81: 0.6138500468 | AG81: 0 | AI81: 0.0367
A82: 73 | B82: Dedham | C82: 5319862700 | D82: 18182458.61 | E82: 1400955000 | F82: 20756813.55 | G82: 38939272 | H82: 32155580.11 | I82: 26528354 | J82: 26528354 | K82: 82.5 | L82: 1.210964687 | M82: 24653780 | N82: 0.0371 | O82: 25568435 | P82: 79.51476824 | Q82: 2.985231763 | R82: 0.01 | S82: 246538 | T82: 0 | U82: 0 | V82: 0 | W82: =MIN(H82*parameters!C$22,ROUND(O82+S82-U82+V82,0)) -> 25814973 | X82: 80.28147187 | Z82: -959919 | AA82: 713381 | AB82: 0 | AC82: -2.218528133 | AE82: -0.03618464229 | AF82: -2.985231763 | AG82: 0 | AI82: 0.0371
A83: 74 | B83: Deerfield | C83: 711485200 | D83: 2431745.127 | E83: 202027000 | F83: 2993270.141 | G83: 5425015 | H83: 6640138.105 | I83: 5478114 | J83: 5425015 | K83: 81.7 | L83: 0.8170033385 | M83: 5167067 | N83: 0.035 | O83: 5347914 | P83: 80.53919836 | Q83: 1.160801639 | R83: 0 | S83: 0 | T83: 0 | U83: 0 | V83: 0 | W83: =MIN(H83*parameters!C$22,ROUND(O83+S83-U83+V83,0)) -> 5347914 | X83: 80.53919836 | Z83: -77101 | AA83: 77101 | AB83: 0 | AC83: -1.160801639 | AE83: -0.0142121266 | AF83: -1.160801639 | AG83: 0 | AI83: 0.035
A84: 75 | B84: Dennis | C84: 7229652400 | D84: 24709821.08 | E84: 469358000 | F84: 6954096.664 | G84: 31663918 | H84: 13661010.93 | I84: 11270334 | J84: 11270334 | K84: 82.5 | L84: 2.317831247 | M84: 11282312 | N84: 0.0363 | O84: 11691860 | P84: 85.58561337 | Q84: 0 | R84: 0 | S84: 0 | T84: 421526 | U84: 421526 | V84: 0 | W84: =MIN(H84*parameters!C$22,ROUND(O84+S84-U84+V84,0)) -> 11270334 | X84: 82.49999986 | Z84: 0 | AA84: 0 | AB84: 0 | AC84: -1.436588946e-07 | AE84: 0.03740137604 | AF84: 3.085613374 | AG84: 0 | AI84: 0.0363
A85: 76 | B85: Dighton | C85: 1019183000 | D85: 3483408.079 | E85: 259884000 | F85: 3850490.367 | G85: 7333898 | H85: 14988289.17 | I85: 12365339 | J85: 7333898 | K85: 48.93 | L85: 0.4893085472 | M85: 6820486 | N85: 0.0534 | O85: 7184700 | P85: 47.93542423 | Q85: 0.9945757686 | R85: 0 | S85: 0 | T85: 0 | U85: 0 | V85: 0 | W85: =MIN(H85*parameters!C$22,ROUND(O85+S85-U85+V85,0)) -> 7184700 | X85: 47.93542423 | Z85: -149198 | AA85: 149198 | AB85: 0 | AC85: -0.9945757686 | AE85: -0.02034361536 | AF85: -0.9945757686 | AG85: 0 | AI85: 0.0534
A86: 77 | B86: Douglas | C86: 1022069000 | D86: 3493271.976 | E86: 323988000 | F86: 4800267.323 | G86: 8293539 | H86: 14798883.91 | I86: 12209079 | J86: 8293539 | K86: 56.04 | L86: 0.5604165186 | M86: 7819674 | N86: 0.0378 | O86: 8115258 | P86: 54.83695966 | Q86: 1.20304034 | R86: 0 | S86: 0 | T86: 0 | U86: 0 | V86: 0 | W86: =MIN(H86*parameters!C$22,ROUND(O86+S86-U86+V86,0)) -> 8115258 | X86: 54.83695966 | Z86: -178281 | AA86: 178281 | AB86: 0 | AC86: -1.20304034 | AE86: -0.02149637206 | AF86: -1.20304034 | AG86: 0 | AI86: 0.0378
A87: 78 | B87: Dover | C87: 2646446400 | D87: 9045139.854 | E87: 1369067000 | F87: 20284354.92 | G87: 29329495 | H87: 12237414.92 | I87: 10095867 | J87: 10095867 | K87: 82.5 | L87: 2.396706755 | M87: 9584669 | N87: 0.0358 | O87: 9927800 | P87: 81.12661103 | Q87: 1.373388966 | R87: 0 | S87: 0 | T87: 0 | U87: 0 | V87: 168067 | W87: =MIN(H87*parameters!C$22,ROUND(O87+S87-U87+V87,0)) -> 10095867 | X87: 82.4999975 | Z87: -168067 | AA87: 0 | AB87: 0 | AC87: -2.50231723e-06 | AE87: -0.01664710916 | AF87: -1.373388966 | AG87: 0 | AI87: 0.0358
A88: 79 | B88: Dracut | C88: 3647155100 | D88: 12465405.67 | E88: 1061254000 | F88: 15723739.45 | G88: 28189145 | H88: 49965229.28 | I88: 41221314 | J88: 28189145 | K88: 56.42 | L88: 0.5641752356 | M88: 26453657 | N88: 0.0408 | O88: 27532966 | P88: 55.10425229 | Q88: 1.315747705 | R88: 0 | S88: 0 | T88: 0 | U88: 0 | V88: 0 | W88: =MIN(H88*parameters!C$22,ROUND(O88+S88-U88+V88,0)) -> 27532966 | X88: 55.10425229 | Z88: -656179 | AA88: 656179 | AB88: 0 | AC88: -1.315747705 | AE88: -0.02327771914 | AF88: -1.315747705 | AG88: 0 | AI88: 0.0408
A89: 80 | B89: Dudley | C89: 1016192300 | D89: 3473186.335 | E89: 316207000 | F89: 4684982.559 | G89: 8158169 | H89: 20948767.05 | I89: 17282733 | J89: 8158169 | K89: 38.94 | L89: 0.389434327 | M89: 6829251 | N89: 0.0316 | O89: 7045055 | P89: 33.62992668 | Q89: 5.310073324 | R89: 0.01 | S89: 68293 | T89: 0 | U89: 0 | V89: 0 | W89: =MIN(H89*parameters!C$22,ROUND(O89+S89-U89+V89,0)) -> 7113348 | X89: 33.95592677 | Z89: -1113114 | AA89: 1044821 | AB89: 0 | AC89: -4.984073232 | AE89: -0.1364416452 | AF89: -5.310073324 | AG89: 136585.02 | AI89: 0.0316
A90: 81 | B90: Dunstable | C90: 551243500 | D90: 1884064.061 | E90: 187583000 | F90: 2779265.112 | G90: 4663329 | H90: 5739338.703 | I90: 4734954 | J90: 4663329 | K90: 81.25 | L90: 0.8125202643 | M90: 4414049 | N90: 0.0461 | O90: 4617537 | P90: 80.45416447 | Q90: 0.7958355295 | R90: 0 | S90: 0 | T90: 0 | U90: 0 | V90: 0 | W90: =MIN(H90*parameters!C$22,ROUND(O90+S90-U90+V90,0)) -> 4617537 | X90: 80.45416447 | Z90: -45792 | AA90: 45792 | AB90: 0 | AC90: -0.7958355295 | AE90: -0.009819594543 | AF90: -0.7958355295 | AG90: 0 | AI90: 0.0461
A91: 82 | B91: Duxbury | C91: 4265308000 | D91: 14578155.59 | E91: 1441663000 | F91: 21359950.95 | G91: 35938107 | H91: 30386725.33 | I91: 25069048 | J91: 25069048 | K91: 82.5 | L91: 1.182691014 | M91: 24763550 | N91: 0.0386 | O91: 25719423 | P91: 84.64032475 | Q91: 0 | R91: 0 | S91: 0 | T91: 650375 | U91: 650375 | V91: 0 | W91: =MIN(H91*parameters!C$22,ROUND(O91+S91-U91+V91,0)) -> 25069048 | X91: 82.49999869 | Z91: 0 | AA91: 0 | AB91: 0 | AC91: -1.30935075e-06 | AE91: 0.02594334655 | AF91: 2.140324747 | AG91: 0 | AI91: 0.0386
A92: 83 | B92: East Bridgewater | C92: 1751566500 | D92: 5986580.327 | E92: 478509000 | F92: 7089679.607 | G92: 13076260 | H92: 24353298.56 | I92: 20091471 | J92: 13076260 | K92: 53.69 | L92: 0.5369399946 | M92: 12383869 | N92: 0.042 | O92: 12903991 | P92: 52.98662506 | Q92: 0.7033749372 | R92: 0 | S92: 0 | T92: 0 | U92: 0 | V92: 0 | W92: =MIN(H92*parameters!C$22,ROUND(O92+S92-U92+V92,0)) -> 12903991 | X92: 52.98662506 | Z92: -172269 | AA92: 172269 | AB92: 0 | AC92: -0.7033749372 | AE92: -0.01317417977 | AF92: -0.7033749372 | AG92: 0 | AI92: 0.042
A93: 84 | B93: East Brookfield | C93: 253517600 | D93: 866483.5031 | E93: 67904000 | F93: 1006078.473 | G93: 1872562 | H93: 3487119.583 | I93: 2876874 | J93: 1872562 | K93: 53.7 | L93: 0.5369939159 | M93: 1673869 | N93: 0.0381 | O93: 1737643 | P93: 49.83032439 | Q93: 3.869675611 | R93: 0.01 | S93: 16739 | T93: 0 | U93: 0 | V93: 0 | W93: =MIN(H93*parameters!C$22,ROUND(O93+S93-U93+V93,0)) -> 1754382 | X93: 50.31034808 | Z93: -134919 | AA93: 118180 | AB93: 0 | AC93: -3.389651924 | AE93: -0.07205048484 | AF93: -3.869675611 | AG93: 16738.69 | AI93: 0.0381
A94: 85 | B94: Eastham | C94: 2976889500 | D94: 10174542.68 | E94: 166437000 | F94: 2465961.988 | G94: 12640505 | H94: 5028133.677 | I94: 4148210 | J94: 4148210 | K94: 82.5 | L94: 2.513955637 | M94: 3957585 | N94: 0.0359 | O94: 4099662 | P94: 81.53446713 | Q94: 0.9655328723 | R94: 0 | S94: 0 | T94: 0 | U94: 0 | V94: 48548 | W94: =MIN(H94*parameters!C$22,ROUND(O94+S94-U94+V94,0)) -> 4148210 | X94: 82.49999436 | Z94: -48548 | AA94: 0 | AB94: 0 | AC94: -5.638544067e-06 | AE94: -0.01170336121 | AF94: -0.9655328723 | AG94: 0 | AI94: 0.0359
A95: 86 | B95: Easthampton | C95: 1554415700 | D95: 5312749.73 | E95: 463815000 | F95: 6871970.531 | G95: 12184720 | H95: 19550631.06 | I95: 16129271 | J95: 12184720 | K95: 62.32 | L95: 0.6232392175 | M95: 12132351 | N95: 0.0383 | O95: 12597020 | P95: 64.43280508 | Q95: 0 | R95: 0 | S95: 0 | T95: 412300 | U95: 412300 | V95: 0 | W95: =MIN(H95*parameters!C$22,ROUND(O95+S95-U95+V95,0)) -> 12184720 | X95: 62.32392175 | Z95: 0 | AA95: 0 | AB95: 0 | AC95: 0.003921746089 | AE95: 0.033837462 | AF95: 2.11280508 | AG95: 0 | AI95: 0.0383
A96: 87 | B96: East Longmeadow | C96: 1986089000 | D96: 6788141.55 | E96: 666532000 | F96: 9875463.842 | G96: 16663605 | H96: 28745625.97 | I96: 23715141 | J96: 16663605 | K96: 57.97 | L96: 0.5796918465 | M96: 16509582 | N96: 0.0417 | O96: 17198032 | P96: 59.82834403 | Q96: 0 | R96: 0 | S96: 0 | T96: 534427 | U96: 534427 | V96: 0 | W96: =MIN(H96*parameters!C$22,ROUND(O96+S96-U96+V96,0)) -> 16663605 | X96: 57.96918465 | Z96: 0 | AA96: 0 | AB96: 0 | AC96: -0.000815345259 | AE96: 0.03207151154 | AF96: 1.858344029 | AG96: 0 | AI96: 0.0417
A97: 88 | B97: Easton | C97: 3609247100 | D97: 12335842.05 | E97: 1157143000 | F97: 17144448.96 | G97: 29480291 | H97: 38798306.4 | I97: 32008603 | J97: 29480291 | K97: 75.98 | L97: 0.7598344808 | M97: 28750763 | N97: 0.0443 | O97: 30024422 | P97: 77.38590878 | Q97: 0 | R97: 0 | S97: 0 | T97: 544131 | U97: 544131 | V97: 0 | W97: =MIN(H97*parameters!C$22,ROUND(O97+S97-U97+V97,0)) -> 29480291 | X97: 75.98344808 | Z97: 0 | AA97: 0 | AB97: 0 | AC97: 0.003448083208 | AE97: 0.0184574501 | AF97: 1.405908784 | AG97: 0 | AI97: 0.0443
A98: 89 | B98: Edgartown | C98: 8635274400 | D98: 29514017.22 | E98: 225215000 | F98: 3336827.923 | G98: 32850845 | H98: 7359159.301 | I98: 6071306 | J98: 6071306 | K98: 82.5 | L98: 4.463939923 | M98: 5440959 | N98: 0.0438 | O98: 5679273 | P98: 77.17285043 | Q98: 5.327149571 | R98: 0.01 | S98: 54410 | T98: 0 | U98: 0 | V98: 337623 | W98: =MIN(H98*parameters!C$22,ROUND(O98+S98-U98+V98,0)) -> 6071306 | X98: 82.49999425 | Z98: -392033 | AA98: 0 | AB98: 0 | AC98: -5.750044522e-06 | AE98: -0.06457144476 | AF98: -5.327149571 | AG98: 54409.59 | AI98: 0.0438
A99: 90 | B99: Egremont | C99: 447001500 | D99: 1527781.21 | E99: 29606000 | F99: 438648.0807 | G99: 1966429 | H99: 968504.2026 | I99: 799016 | J99: 799016 | K99: 82.5 | L99: 2.030377354 | M99: 682579 | N99: 0.0312 | O99: 703875 | P99: 72.67650446 | Q99: 9.82349554 | R99: 0.02 | S99: 13652 | T99: 0 | U99: 0 | V99: 81489 | W99: =MIN(H99*parameters!C$22,ROUND(O99+S99-U99+V99,0)) -> 799016 | X99: 82.50000339 | Z99: -95141 | AA99: 0 | AB99: 0 | AC99: 3.392229161e-06 | AE99: -0.1190727094 | AF99: -9.82349554 | AG99: 13651.58 | AI99: 0.0312
A100: 91 | B100: Erving | C100: 895171300 | D100: 3059555.486 | E100: 35067000 | F100: 519559.2868 | G100: 3579115 | H100: 2806498.204 | I100: 2315361 | J100: 2315361 | K100: 82.5 | L100: 1.275295668 | M100: 2315909 | N100: 0.0301 | O100: 2385618 | P100: 85.00336815 | Q100: 0 | R100: 0 | S100: 0 | T100: 70257 | U100: 70257 | V100: 0 | W100: =MIN(H100*parameters!C$22,ROUND(O100+S100-U100+V100,0)) -> 2315361 | X100: 82.49999936 | Z100: 0 | AA100: 0 | AB100: 0 | AC100: -6.387465845e-07 | AE100: 0.0303438643 | AF100: 2.503368147 | AG100: 0 | AI100: 0.0301
A101: 92 | B101: Essex | C101: 867344300 | D101: 2964447.152 | E101: 192525000 | F101: 2852486.717 | G101: 5816934 | H101: 5796329.022 | I101: 4781971 | J101: 4781971 | K101: 82.5 | L101: 1.003554832 | M101: 4513958 | N101: 0.0337 | O101: 4666078 | P101: 80.50057169 | Q101: 1.999428306 | R101: 0 | S101: 0 | T101: 0 | U101: 0 | V101: 0 | W101: =MIN(H101*parameters!C$22,ROUND(O101+S101-U101+V101,0)) -> 4666078 | X101: 80.50057169 | Z101: -115893 | AA101: 115893 | AB101: 0 | AC101: -1.999428306 | AE101: -0.02423540419 | AF101: -1.999428306 | AG101: 0 | AI101: 0.0337
A102: 93 | B102: Everett | C102: 5767100400 | D102: 19711047.11 | E102: 943864000 | F102: 13984467.07 | G102: 33695514 | H102: 104339432.5 | I102: 86080032 | J102: 33695514 | K102: 32.29 | L102: 0.3229413193 | M102: 28814865 | N102: 0.0525 | O102: 30327645 | P102: 29.06633117 | Q102: 3.223668834 | R102: 0.01 | S102: 288149 | T102: 0 | U102: 0 | V102: 0 | W102: =MIN(H102*parameters!C$22,ROUND(O102+S102-U102+V102,0)) -> 30615794 | X102: 29.34249617 | Z102: -3367869 | AA102: 3079720 | AB102: 0 | AC102: -2.947503828 | AE102: -0.0999500705 | AF102: -3.223668834 | AG102: 288148.65 | AI102: 0.0525
A103: 94 | B103: Fairhaven | C103: 2181956700 | D103: 7457586.712 | E103: 459024000 | F103: 6800986.171 | G103: 14258573 | H103: 23418987.09 | I103: 19320664 | J103: 14258573 | K103: 60.88 | L103: 0.6088466997 | M103: 13734487 | N103: 0.0382 | O103: 14259144 | P103: 60.88710817 | Q103: 0 | R103: 0 | S103: 0 | T103: 571 | U103: 571 | V103: 0 | W103: =MIN(H103*parameters!C$22,ROUND(O103+S103-U103+V103,0)) -> 14258573 | X103: 60.88466997 | Z103: 0 | AA103: 0 | AB103: 0 | AC103: 0.004669974635 | AE103: 4.004608315e-05 | AF103: 0.007108167192 | AG103: 0 | AI103: 0.0382
A104: 95 | B104: Fall River | C104: 5571429500 | D104: 19042274.58 | E104: 1527800000 | F104: 22636172.99 | G104: 41678448 | H104: 178545434.8 | I104: 147299984 | J104: 41678448 | K104: 23.34 | L104: 0.2334332886 | M104: 33343146 | N104: 0.0383 | O104: 34620188 | P104: 19.39012781 | Q104: 3.949872189 | R104: 0.01 | S104: 333431 | T104: 0 | U104: 0 | V104: 0 | W104: =MIN(H104*parameters!C$22,ROUND(O104+S104-U104+V104,0)) -> 34953619 | X104: 19.57687635 | Z104: -7058260 | AA104: 6724829 | AB104: 0 | AC104: -3.763123645 | AE104: -0.1693503558 | AF104: -3.949872189 | AG104: 666862.92 | AI104: 0.0383
A105: 96 | B105: Falmouth | C105: 12342275400 | D105: 42183966.81 | E105: 1219065000 | F105: 18061897 | G105: 60245864 | H105: 40857538.77 | I105: 33707469 | J105: 33707469 | K105: 82.5 | L105: 1.47453483 | M105: 32816183 | N105: 0.0332 | O105: 33905680 | P105: 82.98512593 | Q105: 0 | R105: 0 | S105: 0 | T105: 198211 | U105: 198211 | V105: 0 | W105: =MIN(H105*parameters!C$22,ROUND(O105+S105-U105+V105,0)) -> 33707469 | X105: 82.49999881 | Z105: 0 | AA105: 0 | AB105: 0 | AC105: -1.188268541e-06 | AE105: 0.005880328778 | AF105: 0.4851259289 | AG105: 0 | AI105: 0.0332
A106: 97 | B106: Fitchburg | C106: 2522862600 | D106: 8622749.755 | E106: 785408000 | F106: 11636753.08 | G106: 20259503 | H106: 80501459.52 | I106: 66413704 | J106: 20259503 | K106: 25.17 | L106: 0.2516662818 | M106: 19343697 | N106: 0.0463 | O106: 20239310 | P106: 25.14154417 | Q106: 0.02845583345 | R106: 0 | S106: 0 | T106: 0 | U106: 0 | V106: 0 | W106: =MIN(H106*parameters!C$22,ROUND(O106+S106-U106+V106,0)) -> 20239310 | X106: 25.14154417 | Z106: -20193 | AA106: 20193 | AB106: 0 | AC106: -0.02845583345 | AE106: -0.0009967174417 | AF106: -0.02845583345 | AG106: 0 | AI106: 0.0463
A107: 98 | B107: Florida | C107: 123293200 | D107: 421396.8728 | E107: 13603000 | F107: 201544.614 | G107: 622941 | H107: 1044632.94 | I107: 861822 | J107: 622941 | K107: 59.63 | L107: 0.5963252509 | M107: 629811 | N107: 0.0524 | O107: 662813 | P107: 63.44936816 | Q107: 0 | R107: 0 | S107: 0 | T107: 39872 | U107: 39872 | V107: 0 | W107: =MIN(H107*parameters!C$22,ROUND(O107+S107-U107+V107,0)) -> 622941 | X107: 59.63252509 | Z107: 0 | AA107: 0 | AB107: 0 | AC107: 0.002525086612 | AE107: 0.06400606157 | AF107: 3.819368159 | AG107: 0 | AI107: 0.0524
A108: 99 | B108: Foxborough | C108: 3309738100 | D108: 11312167.14 | E108: 913977000 | F108: 13541655.64 | G108: 24853823 | H108: 29648705.86 | I108: 24460182 | J108: 24460182 | K108: 82.5 | L108: 0.8382768245 | M108: 23179566 | N108: 0.0541 | O108: 24433581 | P108: 82.41027826 | Q108: 0.08972174498 | R108: 0 | S108: 0 | T108: 0 | U108: 0 | V108: 0 | W108: =MIN(H108*parameters!C$22,ROUND(O108+S108-U108+V108,0)) -> 24433581 | X108: 82.41027826 | Z108: -26601 | AA108: 26601 | AB108: 0 | AC108: -0.08972174498 | AE108: -0.00108752257 | AF108: -0.08972174498 | AG108: 0 | AI108: 0.0541
A109: 100 | B109: Framingham | C109: 9773587600 | D109: 33404593.69 | E109: 2490382000 | F109: 36897969.48 | G109: 70302563 | H109: 123218842.3 | I109: 101655545 | J109: 70302563 | K109: 57.06 | L109: 0.5705504263 | M109: 65981988 | N109: 0.0423 | O109: 68773026 | P109: 55.81372517 | Q109: 1.246274827 | R109: 0 | S109: 0 | T109: 0 | U109: 0 | V109: 0 | W109: =MIN(H109*parameters!C$22,ROUND(O109+S109-U109+V109,0)) -> 68773026 | X109: 55.81372517 | Z109: -1529537 | AA109: 1529537 | AB109: 0 | AC109: -1.246274827 | AE109: -0.02175648987 | AF109: -1.246274827 | AG109: 0 | AI109: 0.0423
A110: 101 | B110: Franklin | C110: 5401593400 | D110: 18461801.36 | E110: 1619056000 | F110: 23988239.1 | G110: 42450040 | H110: 63284068.89 | I110: 52209357 | J110: 42450040 | K110: 67.08 | L110: 0.6707855665 | M110: 40734174 | N110: 0.0454 | O110: 42583505 | P110: 67.28945491 | Q110: 0 | R110: 0 | S110: 0 | T110: 133465 | U110: 133465 | V110: 0 | W110: =MIN(H110*parameters!C$22,ROUND(O110+S110-U110+V110,0)) -> 42450040 | X110: 67.07855665 | Z110: 0 | AA110: 0 | AB110: 0 | AC110: -0.001443350363 | AE110: 0.003144048863 | AF110: 0.2094549094 | AG110: 0 | AI110: 0.0454
A111: 102 | B111: Freetown | C111: 1416388700 | D111: 4840995.033 | E111: 329541000 | F111: 4882541.618 | G111: 9723537 | H111: 14317036.64 | I111: 11811555 | J111: 9723537 | K111: 67.92 | L111: 0.6791584908 | M111: 9164353 | N111: 0.0521 | O111: 9641816 | P111: 67.34505359 | Q111: 0.5749464131 | R111: 0 | S111: 0 | T111: 0 | U111: 0 | V111: 0 | W111: =MIN(H111*parameters!C$22,ROUND(O111+S111-U111+V111,0)) -> 9641816 | X111: 67.34505359 | Z111: -81721 | AA111: 81721 | AB111: 0 | AC111: -0.5749464131 | AE111: -0.008404452001 | AF111: -0.5749464131 | AG111: 0 | AI111: 0.0521
A112: 103 | B112: Gardner | C112: 1296897500 | D112: 4432592.802 | E112: 417473000 | F112: 6185358.717 | G112: 10617952 | H112: 33189210.59 | I112: 27381099 | J112: 10617952 | K112: 31.99 | L112: 0.3199218003 | M112: 10004773 | N112: 0.0439 | O112: 10443983 | P112: 31.46800667 | Q112: 0.5219933328 | R112: 0 | S112: 0 | T112: 0 | U112: 0 | V112: 0 | W112: =MIN(H112*parameters!C$22,ROUND(O112+S112-U112+V112,0)) -> 10443983 | X112: 31.46800667 | Z112: -173969 | AA112: 173969 | AB112: 0 | AC112: -0.5219933328 | AE112: -0.0163844214 | AF112: -0.5219933328 | AG112: 0 | AI112: 0.0439
A113: 104 | B113: Aquinnah | C113: 793211500 | D113: 2711072.837 | E113: 5883000 | F113: 87163.63773 | G113: 2798236 | H113: 739103.3721 | I113: 609760 | J113: 609760 | K113: 82.5 | L113: 3.785987327 | M113: 422151 | N113: 0.0314 | O113: 435407 | P113: 58.91016283 | Q113: 23.58983717 | R113: 0.02 | S113: 8443 | T113: 0 | U113: 0 | V113: 165910 | W113: =MIN(H113*parameters!C$22,ROUND(O113+S113-U113+V113,0)) -> 609760 | X113: 82.49996184 | Z113: -174353 | AA113: 0 | AB113: 0 | AC113: -3.815573756e-05 | AE113: -0.28593709 | AF113: -23.58983717 | AG113: 8443.02 | AI113: 0.0314
A114: 105 | B114: Georgetown | C114: 1323463100 | D114: 4523389.867 | E114: 427856000 | F114: 6339195.204 | G114: 10862585 | H114: 13350586.86 | I114: 11014234 | J114: 10862585 | K114: 81.36 | L114: 0.8136410117 | M114: 10252722 | N114: 0.0478 | O114: 10742802 | P114: 80.46688967 | Q114: 0.8931103269 | R114: 0 | S114: 0 | T114: 0 | U114: 0 | V114: 0 | W114: =MIN(H114*parameters!C$22,ROUND(O114+S114-U114+V114,0)) -> 10742802 | X114: 80.46688967 | Z114: -119783 | AA114: 119783 | AB114: 0 | AC114: -0.8931103269 | AE114: -0.01102711739 | AF114: -0.8931103269 | AG114: 0 | AI114: 0.0478
A115: 106 | B115: Gill | C115: 160146100 | D115: 547354.3207 | E115: 37780000 | F115: 559755.6066 | G115: 1107110 | H115: 1738858.536 | I115: 1434558 | J115: 1107110 | K115: 63.67 | L115: 0.6366877908 | M115: 1122301 | N115: 0.0404 | O115: 1167642 | P115: 67.14991332 | Q115: 0 | R115: 0 | S115: 0 | T115: 60532 | U115: 60532 | V115: 0 | W115: =MIN(H115*parameters!C$22,ROUND(O115+S115-U115+V115,0)) -> 1107110 | X115: 63.66877908 | Z115: 0 | AA115: 0 | AB115: 0 | AC115: -0.001220924884 | AE115: 0.05467568715 | AF115: 3.479913321 | AG115: 0 | AI115: 0.0404
A116: 107 | B116: Gloucester | C116: 6746082000 | D116: 23057053.09 | E116: 1095719000 | F116: 16234379.39 | G116: 39291432 | H116: 39141438.76 | I116: 32291687 | J116: 32291687 | K116: 82.5 | L116: 1.003832083 | M116: 31364563 | N116: 0.0373 | O116: 32534461 | P116: 83.12024809 | Q116: 0 | R116: 0 | S116: 0 | T116: 242774 | U116: 242774 | V116: 0 | W116: =MIN(H116*parameters!C$22,ROUND(O116+S116-U116+V116,0)) -> 32291687 | X116: 82.50000007 | Z116: 0 | AA116: 0 | AB116: 0 | AC116: 6.658530083e-08 | AE116: 0.007518157847 | AF116: 0.6202480894 | AG116: 0 | AI116: 0.0373
A117: 108 | B117: Goshen | C117: 154513800 | D117: 528104.0003 | E117: 13716000 | F117: 203218.8433 | G117: 731323 | H117: 1207319.318 | I117: 996038 | J117: 731323 | K117: 60.57 | L117: 0.6057411564 | M117: 747330 | N117: 0.0406 | O117: 777672 | P117: 64.41311659 | Q117: 0 | R117: 0 | S117: 0 | T117: 46349 | U117: 46349 | V117: 0 | W117: =MIN(H117*parameters!C$22,ROUND(O117+S117-U117+V117,0)) -> 731323 | X117: 60.57411564 | Z117: 0 | AA117: 0 | AB117: 0 | AC117: 0.004115644255 | AE117: 0.063376921 | AF117: 3.843116586 | AG117: 0 | AI117: 0.0406
A118: 109 | B118: Gosnold | C118: 232178900 | D118: 793551.1641 | E118: 2627000 | F118: 38922.12754 | G118: 832473 | H118: 27965.55397 | I118: 23072 | J118: 23072 | K118: 82.5 | L118: 29.76779937 | M118: 18574 | N118: 0.0267 | O118: 19070 | P118: 68.19103251 | Q118: 14.30896749 | R118: 0.02 | S118: 371 | T118: 0 | U118: 0 | V118: 3631 | W118: =MIN(H118*parameters!C$22,ROUND(O118+S118-U118+V118,0)) -> 23072 | X118: 82.5014946 | Z118: -4002 | AA118: 0 | AB118: 0 | AC118: 0.001494600878 | AE118: -0.1734570042 | AF118: -14.30896749 | AG118: 371.48 | AI118: 0.0267
A119: 110 | B119: Grafton | C119: 2596289300 | D119: 8873710.731 | E119: 927942000 | F119: 13748563.71 | G119: 22622274 | H119: 33037553.08 | I119: 27255981 | J119: 22622274 | K119: 68.47 | L119: 0.6847442348 | M119: 21092020 | N119: 0.0468 | O119: 22079127 | P119: 66.83039434 | Q119: 1.639605661 | R119: 0 | S119: 0 | T119: 0 | U119: 0 | V119: 0 | W119: =MIN(H119*parameters!C$22,ROUND(O119+S119-U119+V119,0)) -> 22079127 | X119: 66.83039434 | Z119: -543147 | AA119: 543147 | AB119: 0 | AC119: -1.639605661 | AE119: -0.02400939004 | AF119: -1.639605661 | AG119: 0 | AI119: 0.0468
A120: 111 | B120: Granby | C120: 650048400 | D120: 2221763.754 | E120: 201537000 | F120: 2986010.209 | G120: 5207774 | H120: 8159421.94 | I120: 6731523 | J120: 5207774 | K120: 63.83 | L120: 0.6382528123 | M120: 5006159 | N120: 0.049 | O120: 5251461 | P120: 64.36069907 | Q120: 0 | R120: 0 | S120: 0 | T120: 43687 | U120: 43687 | V120: 0 | W120: =MIN(H120*parameters!C$22,ROUND(O120+S120-U120+V120,0)) -> 5207774 | X120: 63.82528123 | Z120: 0 | AA120: 0 | AB120: 0 | AC120: -0.004718766227 | AE120: 0.008388804891 | AF120: 0.5306990651 | AG120: 0 | AI120: 0.049
A121: 112 | B121: Granville | C121: 203242200 | D121: 694650.0496 | E121: 53526000 | F121: 793051.3128 | G121: 1487701 | H121: 1947495.119 | I121: 1606683 | J121: 1487701 | K121: 76.39 | L121: 0.763904867 | M121: 1493226 | N121: 0.0339 | O121: 1543846 | P121: 79.27342075 | Q121: 0 | R121: 0 | S121: 0 | T121: 56145 | U121: 56145 | V121: 0 | W121: =MIN(H121*parameters!C$22,ROUND(O121+S121-U121+V121,0)) -> 1487701 | X121: 76.3904867 | Z121: 0 | AA121: 0 | AB121: 0 | AC121: 0.000486697472 | AE121: 0.03773943823 | AF121: 2.883420752 | AG121: 0 | AI121: 0.0339
A122: 113 | B122: Great Barrington | C122: 1480946600 | D122: 5061643.838 | E122: 275383000 | F122: 4080126.474 | G122: 9141770 | H122: 8797665.561 | I122: 7258074 | J122: 7258074 | K122: 82.5 | L122: 1.039113153 | M122: 7192554 | N122: 0.0446 | O122: 7513342 | P122: 85.40154145 | Q122: 0 | R122: 0 | S122: 0 | T122: 255268 | U122: 255268 | V122: 0 | W122: =MIN(H122*parameters!C$22,ROUND(O122+S122-U122+V122,0)) -> 7258074 | X122: 82.49999901 | Z122: 0 | AA122: 0 | AB122: 0 | AC122: -9.93736478e-07 | AE122: 0.03517021182 | AF122: 2.901541447 | AG122: 0 | AI122: 0.0446
A123: 114 | B123: Greenfield | C123: 1502607800 | D123: 5135678.431 | E123: 379146000 | F123: 5617498.655 | G123: 10753177 | H123: 25067980.77 | I123: 20681084 | J123: 10753177 | K123: 42.9 | L123: 0.428960637 | M123: 10684488 | N123: 0.0407 | O123: 11119347 | P123: 44.35677169 | Q123: 0 | R123: 0 | S123: 0 | T123: 366170 | U123: 366170 | V123: 0 | W123: =MIN(H123*parameters!C$22,ROUND(O123+S123-U123+V123,0)) -> 10753177 | X123: 42.8960637 | Z123: 0 | AA123: 0 | AB123: 0 | AC123: -0.003936304244 | AE123: 0.03405226195 | AF123: 1.456771693 | AG123: 0 | AI123: 0.0407
A124: 115 | B124: Groton | C124: 1781386100 | D124: 6088499.056 | E124: 785661000 | F124: 11640501.58 | G124: 17729001 | H124: 19243767.26 | I124: 15876108 | J124: 15876108 | K124: 82.5 | L124: 0.9212853573 | M124: 15110219 | N124: 0.0439 | O124: 15773558 | P124: 81.96710022 | Q124: 0.532899781 | R124: 0 | S124: 0 | T124: 0 | U124: 0 | V124: 0 | W124: =MIN(H124*parameters!C$22,ROUND(O124+S124-U124+V124,0)) -> 15773558 | X124: 81.96710022 | Z124: -102550 | AA124: 102550 | AB124: 0 | AC124: -0.532899781 | AE124: -0.006459391685 | AF124: -0.532899781 | AG124: 0 | AI124: 0.0439
A125: 116 | B125: Groveland | C125: 976713800 | D125: 3338254.997 | E125: 262508000 | F125: 3889368.046 | G125: 7227623 | H125: 9378055.313 | I125: 7736896 | J125: 7227623 | K125: 77.07 | L125: 0.7706952837 | M125: 6934738 | N125: 0.0492 | O125: 7275927 | P125: 77.58460317 | Q125: 0 | R125: 0 | S125: 0 | T125: 48304 | U125: 48304 | V125: 0 | W125: =MIN(H125*parameters!C$22,ROUND(O125+S125-U125+V125,0)) -> 7227623 | X125: 77.06952837 | Z125: 0 | AA125: 0 | AB125: 0 | AC125: -0.0004716317748 | AE125: 0.006683248421 | AF125: 0.514603172 | AG125: 0 | AI125: 0.0492
A126: 117 | B126: Hadley | C126: 1040640500 | D126: 3556746.458 | E126: 176458000 | F126: 2614435.014 | G126: 6171181 | H126: 6223985.173 | I126: 5134788 | J126: 5134788 | K126: 82.5 | L126: 0.9915160189 | M126: 4858225 | N126: 0.0126 | O126: 4919439 | P126: 79.04001798 | Q126: 3.459982015 | R126: 0.01 | S126: 48582 | T126: 0 | U126: 0 | V126: 0 | W126: =MIN(H126*parameters!C$22,ROUND(O126+S126-U126+V126,0)) -> 4968021 | X126: 79.82057897 | Z126: -215349 | AA126: 166767 | AB126: 0 | AC126: -2.67942103 | AE126: -0.0419392193 | AF126: -3.459982015 | AG126: 0 | AI126: 0.0126
A127: 118 | B127: Halifax | C127: 953128900 | D127: 3257645.497 | E127: 278929000 | F127: 4132664.679 | G127: 7390310 | H127: 13046572.74 | I127: 10763423 | J127: 7390310 | K127: 56.65 | L127: 0.5664560455 | M127: 6769352 | N127: 0.0411 | O127: 7047572 | P127: 54.0185698 | Q127: 2.631430203 | R127: 0.01 | S127: 67694 | T127: 0 | U127: 0 | V127: 0 | W127: =MIN(H127*parameters!C$22,ROUND(O127+S127-U127+V127,0)) -> 7115266 | X127: 54.53743403 | Z127: -342738 | AA127: 275044 | AB127: 0 | AC127: -2.112565966 | AE127: -0.04637667432 | AF127: -2.631430203 | AG127: 0 | AI127: 0.0411
A128: 119 | B128: Hamilton | C128: 1613578500 | D128: 5514958.926 | E128: 603914000 | F128: 8947703.742 | G128: 14462663 | H128: 11541799.69 | I128: 9521985 | J128: 9521985 | K128: 82.5 | L128: 1.253068272 | M128: 9460026 | N128: 0.0333 | O128: 9775045 | P128: 84.69255454 | Q128: 0 | R128: 0 | S128: 0 | T128: 253060 | U128: 253060 | V128: 0 | W128: =MIN(H128*parameters!C$22,ROUND(O128+S128-U128+V128,0)) -> 9521985 | X128: 82.50000219 | Z128: 0 | AA128: 0 | AB128: 0 | AC128: 2.194145935e-06 | AE128: 0.02657639137 | AF128: 2.192554541 | AG128: 0 | AI128: 0.0333
A129: 120 | B129: Hampden | C129: 638652000 | D129: 2182812.642 | E129: 211163000 | F129: 3128630.84 | G129: 5311443 | H129: 6608562.961 | I129: 5452064 | J129: 5311443 | K129: 80.37 | L129: 0.8037213281 | M129: 5137990 | N129: 0.0556 | O129: 5423662 | P129: 82.07021756 | Q129: 0 | R129: 0 | S129: 0 | T129: 112219 | U129: 112219 | V129: 0 | W129: =MIN(H129*parameters!C$22,ROUND(O129+S129-U129+V129,0)) -> 5311443 | X129: 80.37213281 | Z129: 0 | AA129: 0 | AB129: 0 | AC129: 0.00213280941 | AE129: 0.02112778015 | AF129: 1.700217562 | AG129: 0 | AI129: 0.0556
A130: 121 | B130: Hancock | C130: 327036000 | D130: 1117757.895 | E130: 8772000 | F130: 129967.6067 | G130: 1247726 | H130: 773171.8771 | I130: 637867 | J130: 637867 | K130: 82.5 | L130: 1.613775717 | M130: 571860 | N130: 0.0452 | O130: 597708 | P130: 77.3059675 | Q130: 5.194032503 | R130: 0.01 | S130: 5719 | T130: 0 | U130: 0 | V130: 0 | W130: =MIN(H130*parameters!C$22,ROUND(O130+S130-U130+V130,0)) -> 603427 | X130: 78.04564779 | Z130: -40159 | AA130: 34440 | AB130: 0 | AC130: -4.45435221 | AE130: -0.06295826559 | AF130: -5.194032503 | AG130: 5718.6 | AI130: 0.0452
A131: 122 | B131: Hanover | C131: 2802906000 | D131: 9579894.294 | E131: 782342000 | F131: 11591326.65 | G131: 21171221 | H131: 27344792.54 | I131: 22559454 | J131: 21171221 | K131: 77.42 | L131: 0.7742322772 | M131: 20291664 | N131: 0.0381 | O131: 21064776 | P131: 77.03395799 | Q131: 0.3860420078 | R131: 0 | S131: 0 | T131: 0 | U131: 0 | V131: 0 | W131: =MIN(H131*parameters!C$22,ROUND(O131+S131-U131+V131,0)) -> 21064776 | X131: 77.03395799 | Z131: -106445 | AA131: 106445 | AB131: 0 | AC131: -0.3860420078 | AE131: -0.005027815826 | AF131: -0.3860420078 | AG131: 0 | AI131: 0.0381
A132: 123 | B132: Hanson | C132: 1373623000 | D132: 4694828.56 | E132: 371451000 | F132: 5503488.084 | G132: 10198317 | H132: 17409648.42 | I132: 14362960 | J132: 10198317 | K132: 58.58 | L132: 0.5857853504 | M132: 9101384 | N132: 0.0516 | O132: 9571015 | P132: 54.97534912 | Q132: 3.604650877 | R132: 0.01 | S132: 91014 | T132: 0 | U132: 0 | V132: 0 | W132: =MIN(H132*parameters!C$22,ROUND(O132+S132-U132+V132,0)) -> 9662029 | X132: 55.4981282 | Z132: -627302 | AA132: 536288 | AB132: 0 | AC132: -3.081871796 | AE132: -0.06151034529 | AF132: -3.604650877 | AG132: 91013.84 | AI132: 0.0516
A133: 124 | B133: Hardwick | C133: 247900500 | D133: 847285.1339 | E133: 58000000 | F133: 859338.9407 | G133: 1706624 | H133: 3899907.245 | I133: 3217423 | J133: 1706624 | K133: 43.76 | L133: 0.4376063052 | M133: 1570304 | N133: 0.0333 | O133: 1622595 | P133: 41.60598953 | Q133: 2.154010471 | R133: 0 | S133: 0 | T133: 0 | U133: 0 | V133: 0 | W133: =MIN(H133*parameters!C$22,ROUND(O133+S133-U133+V133,0)) -> 1622595 | X133: 41.60598953 | Z133: -84029 | AA133: 84029 | AB133: 0 | AC133: -2.154010471 | AE133: -0.04923697311 | AF133: -2.154010471 | AG133: 0 | AI133: 0.0333
A134: 125 | B134: Harvard | C134: 1289986700 | D134: 4408972.768 | E134: 457708000 | F134: 6781488.067 | G134: 11190461 | H134: 9523964.865 | I134: 7857271 | J134: 7857271 | K134: 82.5 | L134: 1.17497924 | M134: 7656970 | N134: 0.0423 | O134: 7980860 | P134: 83.79766319 | Q134: 0 | R134: 0 | S134: 0 | T134: 123589 | U134: 123589 | V134: 0 | W134: =MIN(H134*parameters!C$22,ROUND(O134+S134-U134+V134,0)) -> 7857271 | X134: 82.49999986 | Z134: 0 | AA134: 0 | AB134: 0 | AC134: -1.443934963e-07 | AE134: 0.01572925256 | AF134: 1.29766319 | AG134: 0 | AI134: 0.0423
A135: 126 | B135: Harwich | C135: 5697974900 | D135: 19474786.96 | E135: 438184000 | F135: 6492216.8 | G135: 25967004 | H135: 16796147.87 | I135: 13856822 | J135: 13856822 | K135: 82.5 | L135: 1.54600949 | M135: 13269997 | N135: 0.0413 | O135: 13818048 | P135: 82.26914947 | Q135: 0.230850526 | R135: 0 | S135: 0 | T135: 0 | U135: 0 | V135: 0 | W135: =MIN(H135*parameters!C$22,ROUND(O135+S135-U135+V135,0)) -> 13818048 | X135: 82.26914947 | Z135: -38774 | AA135: 38774 | AB135: 0 | AC135: -0.230850526 | AE135: -0.002798188502 | AF135: -0.230850526 | AG135: 0 | AI135: 0.0413
A136: 127 | B136: Hatfield | C136: 563178100 | D136: 1924854.657 | E136: 110596000 | F136: 1638611.198 | G136: 3563466 | H136: 3779440.848 | I136: 3118039 | J136: 3118039 | K136: 82.5 | L136: 0.9428553438 | M136: 2934546 | N136: 0.0405 | O136: 3053395 | P136: 80.78959621 | Q136: 1.710403789 | R136: 0 | S136: 0 | T136: 0 | U136: 0 | V136: 0 | W136: =MIN(H136*parameters!C$22,ROUND(O136+S136-U136+V136,0)) -> 3053395 | X136: 80.78959621 | Z136: -64644 | AA136: 64644 | AB136: 0 | AC136: -1.710403789 | AE136: -0.02073226153 | AF136: -1.710403789 | AG136: 0 | AI136: 0.0405
A137: 128 | B137: Haverhill | C137: 6609657600 | D137: 22590775.83 | E137: 1787098000 | F137: 26477981.07 | G137: 49068757 | H137: 114336082.6 | I137: 94327268 | J137: 49068757 | K137: 42.92 | L137: 0.429162482 | M137: 46388394 | N137: 0.0386 | O137: 48178986 | P137: 42.13804154 | Q137: 0.7819584561 | R137: 0 | S137: 0 | T137: 0 | U137: 0 | V137: 0 | W137: =MIN(H137*parameters!C$22,ROUND(O137+S137-U137+V137,0)) -> 48178986 | X137: 42.13804154 | Z137: -889771 | AA137: 889771 | AB137: 0 | AC137: -0.7819584561 | AE137: -0.01813314733 | AF137: -0.7819584561 | AG137: 0 | AI137: 0.0386
A138: 129 | B138: Hawley | C138: 49044100 | D138: 167625.0626 | E138: 5820000 | F138: 86230.21784 | G138: 253855 | H138: 387674.1505 | I138: =ROUND(H138*maxloc,0) -> 319831 | J138: 253855 | K138: 65.48 | L138: 0.6548153898 | M138: 267148 | N138: 0.0223 | O138: 273105 | P138: 70.44704931 | Q138: 0 | R138: 0 | S138: 0 | T138: 19250 | U138: =MAX(T138*(U$5),0) -> 19250 | V138: 0 | W138: =MIN(H138*parameters!C$22,ROUND(O138+S138-U138+V138,0)) -> 253855 | X138: 65.48153898 | Z138: 0 | AA138: 0 | AB138: 0 | AC138: 0.001538982601 | AE138: =(O138-J138)/J138 -> 0.07583069075 | AF138: 4.967049315 | AG138: =IF(AE138<$AG$5, $AG$6*(M138), IF(AND(AE138<$AG$4, AE138>$AG$5), $AG$7*(M138), 0)) -> 0 | AI138: 0.0223
A139: 130 | B139: Heath | C139: 93228900 | D139: =D$5*C139 -> 318641.7979 | E139: 9002000 | F139: 133375.3301 | G139: =ROUND(D139+F139,0) -> 452017 | H139: =(SUMIF(town1755,A139,found1755)/2) -> 1125023.291 | I139: 928144 | J139: =MIN(G139,I139) -> 452017 | K139: =IF(H139>0, ROUND((J139*100/H139), 2), 0) -> 40.18 | L139: =G139/H139 -> 0.4017845707 | M139: 482453 | N139: =IF($N$5=1,AI139,IF($N$5=2,AJ139,IF($N$5=3,AK139,IF($N$5=4,AL139,IF($N$5=5,AM139,IF($N$5=6,AN139,IF($N$5=7,AO139,0))))))) -> 0.0337 | O139: =ROUND(M139*(1+N139),0) -> 498712 | P139: =O139*100/H139 -> 44.32903781 | Q139: =IF(K139>P139,K139-P139,0) -> 0 | R139: =IF(AND(Q139>$S$4,Q139<=$S$5),$R$4,IF(Q139>$S$5,$R$5,0)) -> 0 | S139: =ROUND(R139*M139,0) -> 0 | T139: =MAX(O139-J139,0) -> 46695 | U139: 46695 | V139: =IF(AND(L139>1.75,K139=82.5),MAX(J139-(O139+S139-U139),0),0) -> 0 | W139: =MIN(H139*parameters!C$22,ROUND(O139+S139-U139+V139,0)) -> 452017 | X139: =W139*100/H139 -> 40.17845707 | Z139: =IF(P139<K139, O139-J139, 0) -> 0 | AA139: =MAX(J139-(O139+S139+V139),0) -> 0 | AB139: =IF(P139>K139, W139-J139,0) -> 0 | AC139: =X139-K139 -> -0.001542929216 | AE139: 0.1033036368 | AF139: =P139-K139 -> 4.149037808 | AG139: 0 | AI139: 0.0337
A140: 131 | B140: Hingham | C140: 7407974100 | D140: 25319296.76 | E140: 2453158000 | F140: =E140*F$5 -> 36346451.67 | G140: 61665748 | H140: 43906453.98 | I140: 36222825 | J140: 36222825 | K140: 82.5 | L140: 1.404480262 | M140: 35322376 | N140: 0.0363 | O140: 36604578 | P140: 83.36947005 | Q140: 0 | R140: 0 | S140: 0 | T140: 381753 | U140: 381753 | V140: 0 | W140: =MIN(H140*parameters!C$22,ROUND(O140+S140-U140+V140,0)) -> 36222825 | X140: 82.50000106 | Z140: 0 | AA140: 0 | AB140: 0 | AC140: 1.0640087e-06 | AE140: 0.01053901787 | AF140: 0.8694700495 | AG140: 0 | AI140: 0.0363
A141: 132 | B141: Hinsdale | C141: 316994600 | D141: 1083437.96 | E141: 62930000 | F141: 932382.7507 | G141: 2015821 | H141: 2198940.582 | I141: 1814126 | J141: 1814126 | K141: 82.5 | L141: 0.9167237242 | M141: 1841990 | N141: 0.0341 | O141: 1904802 | P141: 86.623623 | Q141: 0 | R141: 0 | S141: 0 | T141: 90676 | U141: 90676 | V141: 0 | W141: =MIN(H141*parameters!C$22,ROUND(O141+S141-U141+V141,0)) -> 1814126 | X141: 82.50000089 | Z141: 0 | AA141: 0 | AB141: 0 | AC141: 8.876714332e-07 | AE141: 0.04998329774 | AF141: 4.123622996 | AG141: 0 | AI141: 0.0341
A142: 133 | B142: Holbrook | C142: 1276774300 | D142: 4363814.852 | E142: 328909000 | F142: 4873177.787 | G142: 9236993 | H142: 17423132.66 | I142: 14374084 | J142: 9236993 | K142: 53.02 | L142: 0.5301568426 | M142: 8763286 | N142: 0.0374 | O142: 9091033 | P142: 52.17794743 | Q142: 0.8420525717 | R142: 0 | S142: 0 | T142: 0 | U142: 0 | V142: 0 | W142: =MIN(H142*parameters!C$22,ROUND(O142+S142-U142+V142,0)) -> 9091033 | X142: 52.17794743 | Z142: -145960 | AA142: 145960 | AB142: 0 | AC142: -0.8420525717 | AE142: -0.01580167918 | AF142: -0.8420525717 | AG142: 0 | AI142: 0.0374
A143: 134 | B143: Holden | C143: 2377246900 | D143: 8125058.069 | E143: 806332000 | F143: 11946767.01 | G143: 20071825 | H143: 34177498.18 | I143: 28196436 | J143: 20071825 | K143: 58.73 | L143: 0.5872818688 | M143: 19112967 | N143: 0.0473 | O143: 20017010 | P143: 58.56780357 | Q143: 0.162196426 | R143: 0 | S143: 0 | T143: 0 | U143: 0 | V143: 0 | W143: =MIN(H143*parameters!C$22,ROUND(O143+S143-U143+V143,0)) -> 20017010 | X143: 58.56780357 | Z143: -54815 | AA143: 54815 | AB143: 0 | AC143: -0.162196426 | AE143: -0.002730942503 | AF143: -0.162196426 | AG143: 0 | AI143: 0.0473
A144: 135 | B144: Holland | C144: 332392700 | D144: 1136066.258 | E144: 77571000 | F144: 1149306.568 | G144: 2285373 | H144: 4116827.54 | I144: 3396383 | J144: 2285373 | K144: 55.51 | L144: 0.5551296424 | M144: 2285164 | N144: 0.0314 | O144: 2356918 | P144: 57.25083155 | Q144: 0 | R144: 0 | S144: 0 | T144: 71545 | U144: 71545 | V144: 0 | W144: =MIN(H144*parameters!C$22,ROUND(O144+S144-U144+V144,0)) -> 2285373 | X144: 55.51296424 | Z144: 0 | AA144: 0 | AB144: 0 | AC144: 0.002964240546 | AE144: 0.03130561182 | AF144: 1.74083155 | AG144: 0 | AI144: 0.0314
A145: 136 | B145: Holliston | C145: 2669635100 | D145: 9124395.203 | E145: 792863000 | F145: 11747207.77 | G145: 20871603 | H145: 29085978.45 | I145: 23995932 | J145: 20871603 | K145: 71.76 | L145: 0.7175829768 | M145: 20149057 | N145: 0.0481 | O145: 21118227 | P145: 72.60621139 | Q145: 0 | R145: 0 | S145: 0 | T145: 246624 | U145: 246624 | V145: 0 | W145: =MIN(H145*parameters!C$22,ROUND(O145+S145-U145+V145,0)) -> 20871603 | X145: 71.75829768 | Z145: 0 | AA145: 0 | AB145: 0 | AC145: -0.001702322427 | AE145: 0.01181624622 | AF145: 0.8462113911 | AG145: 0 | AI145: 0.0481
A146: 137 | B146: Holyoke | C146: 2142470000 | D146: 7322627.347 | E146: 668260000 | F146: 9901066.216 | G146: 17223694 | H146: 86569080.8 | I146: 71419492 | J146: 17223694 | K146: 19.9 | L146: 0.1989589567 | M146: 10886435 | N146: 0.0073 | O146: 10965906 | P146: 12.66723165 | Q146: 7.232768353 | R146: 0.01 | S146: 108864 | T146: 0 | U146: 0 | V146: 0 | W146: =MIN(H146*parameters!C$22,ROUND(O146+S146-U146+V146,0)) -> 11074770 | X146: 12.79298555 | Z146: -6257788 | AA146: 6148924 | AB146: 0 | AC146: -7.107014447 | AE146: -0.3633243833 | AF146: -7.232768353 | AG146: 217728.7 | AI146: 0.0073
A147: 138 | B147: Hopedale | C147: 776426200 | D147: 2653703.308 | E147: 241418000 | F147: 3576894.627 | G147: 6230598 | H147: 10686780.28 | I147: 8816594 | J147: 6230598 | K147: 58.3 | L147: 0.5830191915 | M147: 5982227 | N147: 0.0413 | O147: 6229293 | P147: 58.2897078 | Q147: 0.01029219604 | R147: 0 | S147: 0 | T147: 0 | U147: 0 | V147: 0 | W147: =MIN(H147*parameters!C$22,ROUND(O147+S147-U147+V147,0)) -> 6229293 | X147: 58.2897078 | Z147: -1305 | AA147: 1305 | AB147: 0 | AC147: -0.01029219604 | AE147: -0.0002094502004 | AF147: -0.01029219604 | AG147: 0 | AI147: 0.0413
A148: 139 | B148: Hopkinton | C148: 3865959600 | D148: 13213245.22 | E148: 1403283000 | F148: 20791305.63 | G148: 34004551 | H148: 39712223.18 | I148: 32762584 | J148: 32762584 | K148: 82.5 | L148: 0.8562741714 | M148: 30716179 | N148: 0.0655 | O148: 32728089 | P148: 82.41313726 | Q148: 0.08686273831 | R148: 0 | S148: 0 | T148: 0 | U148: 0 | V148: 0 | W148: =MIN(H148*parameters!C$22,ROUND(O148+S148-U148+V148,0)) -> 32728089 | X148: 82.41313726 | Z148: -34495 | AA148: 34495 | AB148: 0 | AC148: -0.08686273831 | AE148: -0.00105287788 | AF148: -0.08686273831 | AG148: 0 | AI148: 0.0655
A149: 140 | B149: Hubbardston | C149: 467728400 | D149: 1598622.512 | E149: 157905000 | F149: 2339550.266 | G149: 3938173 | H149: 6716151.76 | I149: 5540825 | J149: 3938173 | K149: 58.64 | L149: 0.5863734383 | M149: 3666689 | N149: 0.042 | O149: 3820690 | P149: 56.88808318 | Q149: 1.751916817 | R149: 0 | S149: 0 | T149: 0 | U149: 0 | V149: 0 | W149: =MIN(H149*parameters!C$22,ROUND(O149+S149-U149+V149,0)) -> 3820690 | X149: 56.88808318 | Z149: -117483 | AA149: 117483 | AB149: 0 | AC149: -1.751916817 | AE149: -0.0298318535 | AF149: -1.751916817 | AG149: 0 | AI149: 0.042
A150: 141 | B150: Hudson | C150: 2755165600 | D150: 9416725.074 | E150: 735853000 | F150: 10902536.85 | G150: 20319262 | H150: 33696938.42 | I150: 27799974 | J150: 20319262 | K150: 60.3 | L150: 0.6030002413 | M150: 19481831 | N150: 0.0436 | O150: 20331239 | P150: 60.33556742 | Q150: 0 | R150: 0 | S150: 0 | T150: 11977 | U150: 11977 | V150: 0 | W150: =MIN(H150*parameters!C$22,ROUND(O150+S150-U150+V150,0)) -> 20319262 | X150: 60.30002413 | Z150: 0 | AA150: 0 | AB150: 0 | AC150: 2.41277498e-05 | AE150: 0.0005894406992 | AF150: 0.03556741613 | AG150: 0 | AI150: 0.0436
A151: 142 | B151: Hull | C151: 2266165500 | D151: 7745399.219 | E151: 405857000 | F151: 6013253.87 | G151: 13758653 | H151: 10604718.74 | I151: 8748893 | J151: 8748893 | K151: 82.5 | L151: 1.297408572 | M151: 8417036 | N151: 0.0386 | O151: 8741934 | P151: 82.43437864 | Q151: 0.06562136296 | R151: 0 | S151: 0 | T151: 0 | U151: 0 | V151: 0 | W151: =MIN(H151*parameters!C$22,ROUND(O151+S151-U151+V151,0)) -> 8741934 | X151: 82.43437864 | Z151: -6959 | AA151: 6959 | AB151: 0 | AC151: -0.06562136296 | AE151: -0.0007954149171 | AF151: -0.06562136296 | AG151: 0 | AI151: 0.0386
A152: 143 | B152: Huntington | C152: 192215800 | D152: 656963.5391 | E152: 65518000 | F152: 970727.0469 | G152: 1627691 | H152: 3418678.742 | I152: 2820410 | J152: 1627691 | K152: 47.61 | L152: 0.4761169806 | M152: 1638755 | N152: 0.0355 | O152: 1696931 | P152: 49.63704192 | Q152: 0 | R152: 0 | S152: 0 | T152: 69240 | U152: 69240 | V152: 0 | W152: =MIN(H152*parameters!C$22,ROUND(O152+S152-U152+V152,0)) -> 1627691 | X152: 47.61169806 | Z152: 0 | AA152: 0 | AB152: 0 | AC152: 0.001698055015 | AE152: 0.04253878654 | AF152: 2.027041915 | AG152: 0 | AI152: 0.0355
A153: 144 | B153: Ipswich | C153: 2987460300 | D153: 10210672.02 | E153: 691350000 | F153: 10243172.01 | G153: 20453844 | H153: 18780079.99 | I153: 15493566 | J153: 15493566 | K153: 82.5 | L153: 1.089124435 | M153: 15059177 | N153: 0.0371 | O153: 15617872 | P153: 83.16190351 | Q153: 0 | R153: 0 | S153: 0 | T153: 124306 | U153: 124306 | V153: 0 | W153: =MIN(H153*parameters!C$22,ROUND(O153+S153-U153+V153,0)) -> 15493566 | X153: 82.50000005 | Z153: 0 | AA153: 0 | AB153: 0 | AC153: 4.759927208e-08 | AE153: 0.008023072287 | AF153: 0.6619035117 | AG153: 0 | AI153: 0.0371
A154: 145 | B154: Kingston | C154: 2120211600 | D154: 7246551.618 | E154: 553599000 | F154: 8202227.211 | G154: 15448779 | H154: 23124994.86 | I154: 19078121 | J154: 15448779 | K154: 66.81 | L154: 0.6680554567 | M154: 14136696 | N154: 0.047 | O154: 14801121 | P154: 64.0048618 | Q154: 2.805138201 | R154: 0.01 | S154: 141367 | T154: 0 | U154: 0 | V154: 0 | W154: =MIN(H154*parameters!C$22,ROUND(O154+S154-U154+V154,0)) -> 14942488 | X154: 64.61617869 | Z154: -647658 | AA154: 506291 | AB154: 0 | AC154: -2.193821308 | AE154: -0.04192292478 | AF154: -2.805138201 | AG154: 0 | AI154: 0.047
A155: 146 | B155: Lakeville | C155: 1774669700 | D155: 6065543.451 | E155: 445087000 | F155: 6594492.95 | G155: 12660036 | H155: 19093465.83 | I155: 15752109 | J155: 12660036 | K155: 66.31 | L155: 0.6630559434 | M155: 11759187 | N155: 0.0493 | O155: 12338915 | P155: 64.6237572 | Q155: 1.686242798 | R155: 0 | S155: 0 | T155: 0 | U155: 0 | V155: 0 | W155: =MIN(H155*parameters!C$22,ROUND(O155+S155-U155+V155,0)) -> 12338915 | X155: 64.6237572 | Z155: -321121 | AA155: 321121 | AB155: 0 | AC155: -1.686242798 | AE155: -0.02536493577 | AF155: -1.686242798 | AG155: 0 | AI155: 0.0493
A156: 147 | B156: Lancaster | C156: 954886800 | D156: 3263653.725 | E156: 288244000 | F156: 4270677.476 | G156: 7534331 | H156: 10885212.38 | I156: 8980300 | J156: 7534331 | K156: 69.22 | L156: 0.6921620576 | M156: 7194901 | N156: 0.0419 | O156: 7496367 | P156: 68.86743902 | Q156: 0.3525609763 | R156: 0 | S156: 0 | T156: 0 | U156: 0 | V156: 0 | W156: =MIN(H156*parameters!C$22,ROUND(O156+S156-U156+V156,0)) -> 7496367 | X156: 68.86743902 | Z156: -37964 | AA156: 37964 | AB156: 0 | AC156: -0.3525609763 | AE156: -0.00503880172 | AF156: -0.3525609763 | AG156: 0 | AI156: 0.0419
A157: 148 | B157: Lanesborough | C157: 402579400 | D157: 1375953.42 | E157: 78164000 | F157: 1158092.568 | G157: 2534046 | H157: 4389709.375 | I157: 3621510 | J157: 2534046 | K157: 57.73 | L157: 0.5772696513 | M157: 2590120 | N157: 0.0474 | O157: 2712892 | P157: 61.80117562 | Q157: 0 | R157: 0 | S157: 0 | T157: 178846 | U157: 178846 | V157: 0 | W157: =MIN(H157*parameters!C$22,ROUND(O157+S157-U157+V157,0)) -> 2534046 | X157: 57.72696513 | Z157: 0 | AA157: 0 | AB157: 0 | AC157: -0.003034871167 | AE157: 0.07057725077 | AF157: 4.071175623 | AG157: 0 | AI157: 0.0474
A158: 149 | B158: Lawrence | C158: 4238762700 | D158: 14487427.91 | E158: 1241902000 | F158: 18400254.3 | G158: 32887682 | H158: 233575177.1 | I158: 192699521 | J158: 32887682 | K158: 14.08 | L158: 0.1408012718 | M158: 11289169 | N158: 0.059 | O158: 11955230 | P158: 5.118364951 | Q158: 8.961635049 | R158: 0.02 | S158: 225783 | T158: 0 | U158: 0 | V158: 0 | W158: =MIN(H158*parameters!C$22,ROUND(O158+S158-U158+V158,0)) -> 12181013 | X158: 5.215028904 | Z158: -20932452 | AA158: 20706669 | AB158: 0 | AC158: -8.864971096 | AE158: -0.6364830455 | AF158: -8.961635049 | AG158: 225783.38 | AI158: 0.059
A159: 150 | B159: Lee | C159: 973498900 | D159: 3327266.971 | E159: 166520000 | F159: 2467191.731 | G159: 5794459 | H159: 7251457.667 | I159: 5982453 | J159: 5794459 | K159: 79.91 | L159: 0.7990750641 | M159: 5777761 | N159: 0.0332 | O159: 5969583 | P159: 82.3225243 | Q159: 0 | R159: 0 | S159: 0 | T159: 175124 | U159: 175124 | V159: 0 | W159: =MIN(H159*parameters!C$22,ROUND(O159+S159-U159+V159,0)) -> 5794459 | X159: 79.90750641 | Z159: 0 | AA159: 0 | AB159: 0 | AC159: -0.002493591591 | AE159: 0.03022266617 | AF159: 2.412524299 | AG159: 0 | AI159: 0.0332
A160: 151 | B160: Leicester | C160: 985402100 | D160: 3367950.247 | E160: 331359000 | F160: 4909477.449 | G160: 8277428 | H160: 17600692.74 | I160: 14520572 | J160: 8277428 | K160: 47.03 | L160: 0.4702898985 | M160: 8057611 | N160: 0.044 | O160: 8412146 | P160: 47.7944029 | Q160: 0 | R160: 0 | S160: 0 | T160: 134718 | U160: 134718 | V160: 0 | W160: =MIN(H160*parameters!C$22,ROUND(O160+S160-U160+V160,0)) -> 8277428 | X160: 47.02898985 | Z160: 0 | AA160: 0 | AB160: 0 | AC160: -0.001010152461 | AE160: 0.01627534543 | AF160: 0.7644029027 | AG160: 0 | AI160: 0.044
A161: 152 | B161: Lenox | C161: 1265446400 | D161: 4325097.861 | E161: 226629000 | F161: 3357778.014 | G161: 7682876 | H161: 5459047.93 | I161: 4503715 | J161: 4503715 | K161: 82.5 | L161: 1.407365551 | M161: 4424183 | N161: 0.0455 | O161: 4625483 | P161: 84.73058049 | Q161: 0 | R161: 0 | S161: 0 | T161: 121768 | U161: 121768 | V161: 0 | W161: =MIN(H161*parameters!C$22,ROUND(O161+S161-U161+V161,0)) -> 4503715 | X161: 82.50000839 | Z161: 0 | AA161: 0 | AB161: 0 | AC161: 8.386477134e-06 | AE161: 0.02703723482 | AF161: 2.230580486 | AG161: 0 | AI161: 0.0455
A162: 153 | B162: Leominster | C162: 3785321000 | D162: 12937635.1 | E162: 1170639000 | F162: 17344408.25 | G162: 30282043 | H162: 76211036.09 | I162: 62874105 | J162: 30282043 | K162: 39.73 | L162: 0.3973445914 | M162: 28957291 | N162: 0.0404 | O162: 30127166 | P162: 39.53123792 | Q162: 0.1987620786 | R162: 0 | S162: 0 | T162: 0 | U162: 0 | V162: 0 | W162: =MIN(H162*parameters!C$22,ROUND(O162+S162-U162+V162,0)) -> 30127166 | X162: 39.53123792 | Z162: -154877 | AA162: 154877 | AB162: 0 | AC162: -0.1987620786 | AE162: -0.005114483194 | AF162: -0.1987620786 | AG162: 0 | AI162: 0.0404
A163: 154 | B163: Leverett | C163: 273488400 | D163: 934740.5737 | E163: 74600000 | F163: 1105287.672 | G163: 2040028 | H163: 2408396.774 | I163: 1986927 | J163: 1986927 | K163: 82.5 | L163: 0.8470481366 | M163: 1736008 | N163: 0.0382 | O163: 1802324 | P163: 74.83501137 | Q163: 7.664988629 | R163: 0.02 | S163: 34720 | T163: 0 | U163: 0 | V163: 0 | W163: =MIN(H163*parameters!C$22,ROUND(O163+S163-U163+V163,0)) -> 1837044 | X163: 76.27663429 | Z163: -184603 | AA163: 149883 | AB163: 0 | AC163: -6.223365705 | AE163: -0.09290879836 | AF163: -7.664988629 | AG163: 17360.08 | AI163: 0.0382
A164: 155 | B164: Lexington | C164: 12008478900 | D164: 41043102.58 | E164: 3541165000 | F164: 52466568.62 | G164: 93509671 | H164: 80715895.63 | I164: 66590614 | J164: 66590614 | K164: 82.5 | L164: 1.15850379 | M164: 63645654 | N164: 0.051 | O164: 66891582 | P164: 82.8728734 | Q164: 0 | R164: 0 | S164: 0 | T164: 300968 | U164: 300968 | V164: 0 | W164: =MIN(H164*parameters!C$22,ROUND(O164+S164-U164+V164,0)) -> 66590614 | X164: 82.50000013 | Z164: 0 | AA164: 0 | AB164: 0 | AC164: 1.323647325e-07 | AE164: 0.004519676001 | AF164: 0.3728734031 | AG164: 0 | AI164: 0.051
A165: 156 | B165: Leyden | C165: 92167800 | D165: 315015.1241 | E165: 25146000 | F165: 372567.8794 | G165: 687583 | H165: 695678.3999 | I165: 573935 | J165: 573935 | K165: 82.5 | L165: 0.9883633014 | M165: 570252 | N165: 0.0341 | O165: 589698 | P165: 84.76589184 | Q165: 0 | R165: 0 | S165: 0 | T165: 15763 | U165: 15763 | V165: 0 | W165: =MIN(H165*parameters!C$22,ROUND(O165+S165-U165+V165,0)) -> 573935 | X165: 82.50004602 | Z165: 0 | AA165: 0 | AB165: 0 | AC165: 4.60160387e-05 | AE165: 0.0274647826 | AF165: 2.265891844 | AG165: 0 | AI165: 0.0341
A166: 157 | B166: Lincoln | C166: 2292229800 | D166: 7834482.919 | E166: 950308000 | F166: 14079942.59 | G166: 21914426 | H166: 8756299.97 | I166: 7223947 | J166: 7223947 | K166: 82.5 | L166: 2.50270389 | M166: 6942981 | N166: 0.0322 | O166: 7166545 | P166: 81.84444371 | Q166: 0.6555562932 | R166: 0 | S166: 0 | T166: 0 | U166: 0 | V166: 57402 | W166: =MIN(H166*parameters!C$22,ROUND(O166+S166-U166+V166,0)) -> 7223947 | X166: 82.49999457 | Z166: -57402 | AA166: 0 | AB166: 0 | AC166: -5.430470651e-06 | AE166: -0.007946071587 | AF166: -0.6555562932 | AG166: 0 | AI166: 0.0322
A167: 158 | B167: Littleton | C167: 1969238900 | D167: 6730550.543 | E167: 491226000 | F167: 7278097.077 | G167: 14008648 | H167: 17094166.46 | I167: 14102687 | J167: 14008648 | K167: 81.95 | L167: 0.8194987475 | M167: 12968265 | N167: 0.0679 | O167: 13848810 | P167: 81.01483062 | Q167: 0.9351693773 | R167: 0 | S167: 0 | T167: 0 | U167: 0 | V167: 0 | W167: =MIN(H167*parameters!C$22,ROUND(O167+S167-U167+V167,0)) -> 13848810 | X167: 81.01483062 | Z167: -159838 | AA167: 159838 | AB167: 0 | AC167: -0.9351693773 | AE167: -0.01140995191 | AF167: -0.9351693773 | AG167: 0 | AI167: 0.0679
A168: 159 | B168: Longmeadow | C168: 2157229000 | D168: 7373071.301 | E168: 1139259000 | F168: 16879476.25 | G168: 24252548 | H168: 29086937.71 | I168: 23996724 | J168: 23996724 | K168: 82.5 | L168: 0.8337951641 | M168: 22667571 | N168: 0.0352 | O168: 23465469 | P168: 80.67356294 | Q168: 1.826437055 | R168: 0 | S168: 0 | T168: 0 | U168: 0 | V168: 0 | W168: =MIN(H168*parameters!C$22,ROUND(O168+S168-U168+V168,0)) -> 23465469 | X168: 80.67356294 | Z168: -531255 | AA168: 531255 | AB168: 0 | AC168: -1.826437055 | AE168: -0.02213864693 | AF168: -1.826437055 | AG168: 0 | AI168: 0.0352
A169: 160 | B169: Lowell | C169: 8192976800 | D169: 28002313.2 | E169: 2374391000 | F169: 35179424.94 | G169: 63181738 | H169: 240105149 | I169: 198086748 | J169: 63181738 | K169: 26.31 | L169: 0.2631419537 | M169: 54568899 | N169: 0.0385 | O169: 56669802 | P169: 23.60207694 | Q169: 2.707923063 | R169: 0.01 | S169: 545689 | T169: 0 | U169: 0 | V169: 0 | W169: =MIN(H169*parameters!C$22,ROUND(O169+S169-U169+V169,0)) -> 57215491 | X169: 23.82934778 | Z169: -6511936 | AA169: 5966247 | AB169: 0 | AC169: -2.480652218 | AE169: =(O169-J169)/J169 -> -0.1030667437 | AF169: -2.707923063 | AG169: 1091377.98 | AI169: 0.0385
A170: 161 | B170: Ludlow | C170: 2154384900 | D170: 7363350.612 | E170: 583946000 | F170: 8651854.088 | G170: 16015205 | H170: 28793390.6 | I170: 23754547 | J170: 16015205 | K170: 55.62 | L170: 0.5562111535 | M170: 15760434 | N170: 0.0434 | O170: 16444437 | P170: 57.11184635 | Q170: 0 | R170: 0 | S170: 0 | T170: 429232 | U170: 429232 | V170: 0 | W170: =MIN(H170*parameters!C$22,ROUND(O170+S170-U170+V170,0)) -> 16015205 | X170: 55.62111535 | Z170: 0 | AA170: 0 | AB170: 0 | AC170: 0.001115350484 | AE170: =(O170-J170)/J170 -> 0.02680153017 | AF170: =P170-K170 -> 1.491846352 | AG170: 0 | AI170: 0.0434
A171: 162 | B171: Lunenburg | C171: 1405368400 | D171: 4803329.372 | E171: 415497000 | F171: 6156081.929 | G171: 10959411 | H171: 19168478.55 | I171: 15813995 | J171: 10959411 | K171: 57.17 | L171: 0.5717413081 | M171: 10427328 | N171: 0.0443 | O171: 10889259 | P171: 56.80815497 | Q171: 0.3618450273 | R171: 0 | S171: 0 | T171: 0 | U171: 0 | V171: 0 | W171: =MIN(H171*parameters!C$22,ROUND(O171+S171-U171+V171,0)) -> 10889259 | X171: 56.80815497 | Z171: -70152 | AA171: 70152 | AB171: 0 | AC171: -0.3618450273 | AE171: -0.006401073926 | AF171: -0.3618450273 | AG171: 0 | AI171: 0.0443
A172: 163 | B172: Lynn | C172: 7895464600 | D172: 26985463.04 | E172: 1944277000 | F172: 28806774.79 | G172: 55792238 | H172: 234957439.6 | I172: 193839888 | J172: 55792238 | K172: 23.75 | L172: 0.2374567841 | M172: 50739190 | N172: 0.0281 | O172: 52164961 | P172: 22.20187669 | Q172: 1.548123312 | R172: 0 | S172: 0 | T172: 0 | U172: 0 | V172: 0 | W172: =MIN(H172*parameters!C$22,ROUND(O172+S172-U172+V172,0)) -> 52164961 | X172: 22.20187669 | Z172: -3627277 | AA172: 3627277 | AB172: 0 | AC172: -1.548123312 | AE172: -0.06501400786 | AF172: -1.548123312 | AG172: 507391.9 | AI172: 0.0281
A173: 164 | B173: Lynnfield | C173: 3324301800 | D173: 11361943.58 | E173: 958736000 | F173: 14204813.43 | G173: 25566757 | H173: 23466290.69 | I173: 19359690 | J173: 19359690 | K173: 82.5 | L173: 1.089509942 | M173: 18518182 | N173: 0.0353 | O173: 19171874 | P173: 81.69963567 | Q173: 0.800364333 | R173: 0 | S173: 0 | T173: 0 | U173: 0 | V173: 0 | W173: =MIN(H173*parameters!C$22,ROUND(O173+S173-U173+V173,0)) -> 19171874 | X173: 81.69963567 | Z173: -187816 | AA173: 187816 | AB173: 0 | AC173: -0.800364333 | AE173: -0.009701395012 | AF173: -0.800364333 | AG173: 0 | AI173: 0.0353
A174: 165 | B174: Malden | C174: 7590689100 | D174: 25943788.05 | E174: 1612935000 | F174: 23897549.21 | G174: 49841337 | H174: 96324750.32 | I174: 79467919 | J174: 49841337 | K174: 51.74 | L174: 0.5174302226 | M174: 42468410 | N174: 0.0498 | O174: 44583337 | P174: 46.28440443 | Q174: 5.455595573 | R174: 0.01 | S174: 424684 | T174: 0 | U174: 0 | V174: 0 | W174: =MIN(H174*parameters!C$22,ROUND(O174+S174-U174+V174,0)) -> 45008021 | X174: 46.72529215 | Z174: -5258000 | AA174: 4833316 | AB174: 0 | AC174: -5.014707848 | AE174: -0.1054947623 | AF174: -5.455595573 | AG174: 849368.2 | AI174: 0.0498
A175: 166 | B175: Manchester | C175: 2526294800 | D175: 8634480.478 | E175: 702892000 | F175: 10414180.46 | G175: 19048661 | H175: 8984150.382 | I175: 7411924 | J175: 7411924 | K175: 82.5 | L175: 2.120251798 | M175: 6925007 | N175: 0.0328 | O175: 7152147 | P175: 79.60849603 | Q175: 2.891503974 | R175: 0.01 | S175: 69250 | T175: 0 | U175: 0 | V175: 190527 | W175: =MIN(H175*parameters!C$22,ROUND(O175+S175-U175+V175,0)) -> 7411924 | X175: 82.49999927 | Z175: -259777 | AA175: 0 | AB175: 0 | AC175: -7.272184064e-07 | AE175: -0.03504852451 | AF175: -2.891503974 | AG175: 0 | AI175: 0.0328
A176: 167 | B176: Mansfield | C176: 3826144000 | D176: 13077161.73 | E176: 1100621000 | F176: 16307008.35 | G176: 29384170 | H176: 43886513.78 | I176: 36206374 | J176: 29384170 | K176: 66.95 | L176: 0.6695489677 | M176: 28700016 | N176: 0.0405 | O176: 29862367 | P176: 68.04451852 | Q176: 0 | R176: 0 | S176: 0 | T176: 478197 | U176: 478197 | V176: 0 | W176: =MIN(H176*parameters!C$22,ROUND(O176+S176-U176+V176,0)) -> 29384170 | X176: 66.95489677 | Z176: 0 | AA176: 0 | AB176: 0 | AC176: 0.004896772026 | AE176: 0.01627396656 | AF176: 1.094518523 | AG176: 0 | AI176: 0.0405
A177: 168 | B177: Marblehead | C177: 6182649400 | D177: 21131328.6 | E177: 1684798000 | F177: 24962284.98 | G177: 46093614 | H177: 33136518.09 | I177: 27337627 | J177: 27337627 | K177: 82.5 | L177: 1.391021648 | M177: 26376431 | N177: 0.0308 | O177: 27188825 | P177: 82.05094128 | Q177: 0.4490587189 | R177: 0 | S177: 0 | T177: 0 | U177: 0 | V177: 0 | W177: =MIN(H177*parameters!C$22,ROUND(O177+S177-U177+V177,0)) -> 27188825 | X177: 82.05094128 | Z177: -148802 | AA177: 148802 | AB177: 0 | AC177: -0.4490587189 | AE177: -0.005443120575 | AF177: -0.4490587189 | AG177: 0 | AI177: 0.0308
A178: 169 | B178: Marion | C178: 1693499100 | D178: 5788115.037 | E178: 279647000 | F178: 4143302.703 | G178: 9931418 | H178: 8380398.822 | I178: 6913829 | J178: 6913829 | K178: 82.5 | L178: 1.185077013 | M178: 6719010 | N178: 0.0279 | O178: 6906470 | P178: 82.41218762 | Q178: 0.08781238396 | R178: 0 | S178: 0 | T178: 0 | U178: 0 | V178: 0 | W178: =MIN(H178*parameters!C$22,ROUND(O178+S178-U178+V178,0)) -> 6906470 | X178: 82.41218762 | Z178: -7359 | AA178: 7359 | AB178: 0 | AC178: -0.08781238396 | AE178: -0.001064388489 | AF178: -0.08781238396 | AG178: 0 | AI178: 0.0279
A179: 170 | B179: Marlborough | C179: 5880360000 | D179: 20098150.71 | E179: 1424311000 | F179: 21102860.45 | G179: 41201011 | H179: 71171454.81 | I179: 58716450 | J179: 41201011 | K179: 57.89 | L179: 0.5788979741 | M179: 37698705 | N179: 0.0478 | O179: 39500703 | P179: 55.50076657 | Q179: 2.389233426 | R179: 0 | S179: 0 | T179: 0 | U179: 0 | V179: 0 | W179: =MIN(H179*parameters!C$22,ROUND(O179+S179-U179+V179,0)) -> 39500703 | X179: 55.50076657 | Z179: -1700308 | AA179: 1700308 | AB179: 0 | AC179: -2.389233426 | AE179: -0.04126859897 | AF179: -2.389233426 | AG179: 0 | AI179: 0.0478
A180: 171 | B180: Marshfield | C180: 5107817200 | D180: 17457720.25 | E180: 1199390000 | F180: 17770388.48 | G180: 35228109 | H180: 43475047.02 | I180: 35866914 | J180: 35228109 | K180: 81.03 | L180: 0.8103064036 | M180: 34492037 | N180: 0.0385 | O180: 35819980 | P180: 82.39204429 | Q180: 0 | R180: 0 | S180: 0 | T180: 591871 | U180: 591871 | V180: 0 | W180: =MIN(H180*parameters!C$22,ROUND(O180+S180-U180+V180,0)) -> 35228109 | X180: 81.03064036 | Z180: 0 | AA180: 0 | AB180: 0 | AC180: 0.000640361692 | AE180: 0.01680110051 | AF180: 1.362044295 | AG180: 0 | AI180: 0.0385
A181: 172 | B181: Mashpee | C181: 5605682100 | D181: 19159344.61 | E181: 535123000 | F181: 7928483.31 | G181: 27087828 | H181: 19307340.74 | I181: 15928556 | J181: 15928556 | K181: 82.5 | L181: 1.402980781 | M181: 15106290 | N181: 0.0485 | O181: 15838945 | P181: 82.03587025 | Q181: 0.4641297498 | R181: 0 | S181: 0 | T181: 0 | U181: 0 | V181: 0 | W181: =MIN(H181*parameters!C$22,ROUND(O181+S181-U181+V181,0)) -> 15838945 | X181: 82.03587025 | Z181: -89611 | AA181: 89611 | AB181: 0 | AC181: -0.4641297498 | AE181: -0.00562580814 | AF181: -0.4641297498 | AG181: 0 | AI181: 0.0485
A182: 173 | B182: Mattapoisett | C182: 1829130600 | D182: 6251682.289 | E182: 348114000 | F182: 5157722.69 | G182: 11409405 | H182: 9342082.307 | I182: 7707218 | J182: 7707218 | K182: 82.5 | L182: 1.221291424 | M182: 7473095 | N182: 0.0477 | O182: 7829562 | P182: 83.809602 | Q182: 0 | R182: 0 | S182: 0 | T182: 122344 | U182: 122344 | V182: 0 | W182: =MIN(H182*parameters!C$22,ROUND(O182+S182-U182+V182,0)) -> 7707218 | X182: 82.50000103 | Z182: 0 | AA182: 0 | AB182: 0 | AC182: 1.034005706e-06 | AE182: 0.01587395089 | AF182: 1.309601999 | AG182: 0 | AI182: 0.0477
A183: 174 | B183: Maynard | C183: 1386638200 | D183: 4739312.478 | E183: 406214000 | F183: 6018543.249 | G183: 10757856 | H183: 16606252.71 | I183: 13700158 | J183: 10757856 | K183: 64.78 | L183: 0.6478196008 | M183: 10570689 | N183: 0.0385 | O183: 10977661 | P183: 66.10558802 | Q183: 0 | R183: 0 | S183: 0 | T183: 219805 | U183: 219805 | V183: 0 | W183: =MIN(H183*parameters!C$22,ROUND(O183+S183-U183+V183,0)) -> 10757856 | X183: 64.78196008 | Z183: 0 | AA183: 0 | AB183: 0 | AC183: 0.001960080113 | AE183: 0.0204320452 | AF183: 1.325588016 | AG183: 0 | AI183: 0.0385
A184: 175 | B184: Medfield | C184: 2801486200 | D184: 9575041.64 | E184: 1208641000 | F184: 17907453.05 | G184: 27482495 | H184: 26243513.82 | I184: 21650899 | J184: 21650899 | K184: 82.5 | L184: 1.047210949 | M184: 20705663 | N184: 0.0331 | O184: 21391020 | P184: 81.50974047 | Q184: 0.9902595341 | R184: 0 | S184: 0 | T184: 0 | U184: 0 | V184: 0 | W184: =MIN(H184*parameters!C$22,ROUND(O184+S184-U184+V184,0)) -> 21391020 | X184: 81.50974047 | Z184: -259879 | AA184: 259879 | AB184: 0 | AC184: -0.9902595341 | AE184: -0.01200315054 | AF184: -0.9902595341 | AG184: 0 | AI184: 0.0331
A185: 176 | B185: Medford | C185: 10557928900 | D185: 36085349.57 | E185: 2150361000 | F185: 31860154.21 | G185: 67945504 | H185: 57942326.34 | I185: 47802419 | J185: 47802419 | K185: 82.5 | L185: 1.172640249 | M185: 45796187 | N185: 0.0498 | O185: 48076837 | P185: 82.97360503 | Q185: 0 | R185: 0 | S185: 0 | T185: 274418 | U185: 274418 | V185: 0 | W185: =MIN(H185*parameters!C$22,ROUND(O185+S185-U185+V185,0)) -> 47802419 | X185: 82.49999961 | Z185: 0 | AA185: 0 | AB185: 0 | AC185: -3.912892339e-07 | AE185: 0.005740671827 | AF185: 0.4736050322 | AG185: 0 | AI185: 0.0498
A186: 177 | B186: Medway | C186: 2081768600 | D186: 7115159.457 | E186: 669674000 | F186: 9922016.307 | G186: 17037176 | H186: 24700506.43 | I186: 20377918 | J186: 17037176 | K186: 68.98 | L186: 0.6897500683 | M186: 16302656 | N186: 0.0438 | O186: 17016712 | P186: 68.89215833 | Q186: 0.08784166904 | R186: 0 | S186: 0 | T186: 0 | U186: 0 | V186: 0 | W186: =MIN(H186*parameters!C$22,ROUND(O186+S186-U186+V186,0)) -> 17016712 | X186: 68.89215833 | Z186: -20464 | AA186: 20464 | AB186: 0 | AC186: -0.08784166904 | AE186: -0.001201138029 | AF186: -0.08784166904 | AG186: 0 | AI186: 0.0438
A187: 178 | B187: Melrose | C187: 5244113700 | D187: 17923560.37 | E187: 1377947000 | F187: 20415922.68 | G187: 38339483 | H187: 42633438.46 | I187: 35172587 | J187: 35172587 | K187: 82.5 | L187: 0.899281981 | M187: 32932239 | N187: 0.0311 | O187: 33956432 | P187: 79.64741579 | Q187: 2.852584209 | R187: 0.01 | S187: 329322 | T187: 0 | U187: 0 | V187: 0 | W187: =MIN(H187*parameters!C$22,ROUND(O187+S187-U187+V187,0)) -> 34285754 | X187: 80.4198658 | Z187: -1216155 | AA187: 886833 | AB187: 0 | AC187: -2.080134198 | AE187: -0.03457678561 | AF187: -2.852584209 | AG187: 0 | AI187: 0.0311
A188: 179 | B188: Mendon | C188: 989637700 | D188: 3382426.865 | E188: 344813000 | F188: 5108814.451 | G188: 8491241 | H188: 11376844.98 | I188: 9385897 | J188: 8491241 | K188: 74.64 | L188: 0.7463616681 | M188: 7769381 | N188: 0.0527 | O188: 8178827 | P188: 71.89011551 | Q188: 2.74988449 | R188: 0.01 | S188: 77694 | T188: 0 | U188: 0 | V188: 0 | W188: =MIN(H188*parameters!C$22,ROUND(O188+S188-U188+V188,0)) -> 8256521 | X188: 72.57302892 | Z188: -312414 | AA188: 234720 | AB188: 0 | AC188: -2.06697108 | AE188: -0.03679250183 | AF188: -2.74988449 | AG188: 0 | AI188: 0.0527
A189: 180 | B189: Merrimac | C189: 847714200 | D189: 2897354.541 | E189: 249463000 | F189: 3696090.865 | G189: 6593445 | H189: 10035667.26 | I189: 8279425 | J189: 6593445 | K189: 65.7 | L189: 0.6570011567 | M189: 6042534 | N189: 0.0462 | O189: 6321699 | P189: 62.99231366 | Q189: 2.707686339 | R189: 0.01 | S189: 60425 | T189: 0 | U189: 0 | V189: 0 | W189: =MIN(H189*parameters!C$22,ROUND(O189+S189-U189+V189,0)) -> 6382124 | X189: 63.59441613 | Z189: -271746 | AA189: 211321 | AB189: 0 | AC189: -2.105583874 | AE189: -0.04121456993 | AF189: -2.707686339 | AG189: 0 | AI189: 0.0462
A190: 181 | B190: Methuen | C190: 5783276300 | D190: 19766333.81 | E190: 1476667000 | F190: 21878576.82 | G190: 41644911 | H190: 90857807.95 | I190: 74957692 | J190: 41644911 | K190: 45.84 | L190: 0.4583525834 | M190: 39600184 | N190: 0.0424 | O190: 41279232 | P190: 45.4327844 | Q190: 0.4072155976 | R190: 0 | S190: 0 | T190: 0 | U190: 0 | V190: 0 | W190: =MIN(H190*parameters!C$22,ROUND(O190+S190-U190+V190,0)) -> 41279232 | X190: 45.4327844 | Z190: -365679 | AA190: 365679 | AB190: 0 | AC190: -0.4072155976 | AE190: -0.008780880814 | AF190: -0.4072155976 | AG190: 0 | AI190: 0.0424
A191: 182 | B191: Middleborough | C191: 2710745900 | D191: 9264905.487 | E191: 704320000 | F191: 10435337.98 | G191: 19700243 | H191: 38664268.79 | I191: 31898022 | J191: 19700243 | K191: 50.95 | L191: 0.5095206406 | M191: 18572073 | N191: 0.0439 | O191: 19387387 | P191: 50.14290353 | Q191: 0.8070964656 | R191: 0 | S191: 0 | T191: 0 | U191: 0 | V191: 0 | W191: =MIN(H191*parameters!C$22,ROUND(O191+S191-U191+V191,0)) -> 19387387 | X191: 50.14290353 | Z191: -312856 | AA191: 312856 | AB191: 0 | AC191: -0.8070964656 | AE191: -0.01588081934 | AF191: -0.8070964656 | AG191: 0 | AI191: 0.0439
A192: 183 | B192: Middlefield | C192: 73417000 | D192: 250927.8225 | E192: 10112000 | F192: 149821.2995 | G192: 400749 | H192: 483055.9283 | I192: 398521 | J192: 398521 | K192: 82.5 | L192: 0.8296120108 | M192: 373165 | N192: 0.0292 | O192: 384061 | P192: 79.50652864 | Q192: 2.993471355 | R192: 0.01 | S192: 3732 | T192: 0 | U192: 0 | V192: 0 | W192: =MIN(H192*parameters!C$22,ROUND(O192+S192-U192+V192,0)) -> 387793 | X192: 80.27910999 | Z192: -14460 | AA192: 10728 | AB192: 0 | AC192: -2.220890008 | AE192: -0.03628416068 | AF192: -2.993471355 | AG192: 0 | AI192: 0.0292
A193: 184 | B193: Middleton | C193: 2128852700 | D193: 7276085.546 | E193: 507988000 | F193: 7526446.031 | G193: 14802532 | H193: 14500106.08 | I193: 11962588 | J193: 11962588 | K193: 82.5 | L193: 1.020856808 | M193: 11387900 | N193: 0.0503 | O193: 11960711 | P193: 82.48705863 | Q193: 0.01294137434 | R193: 0 | S193: 0 | T193: 0 | U193: 0 | V193: 0 | W193: =MIN(H193*parameters!C$22,ROUND(O193+S193-U193+V193,0)) -> 11960711 | X193: 82.48705863 | Z193: -1877 | AA193: 1877 | AB193: 0 | AC193: -0.01294137434 | AE193: -0.0001569058468 | AF193: -0.01294137434 | AG193: 0 | AI193: 0.0503
A194: 185 | B194: Milford | C194: 3414149500 | D194: 11669028.97 | E194: 973555000 | F194: 14424374.52 | G194: 26093403 | H194: 54189607.34 | I194: 44706426 | J194: 26093403 | K194: 48.15 | L194: 0.4815204295 | M194: 25256225 | N194: 0.0311 | O194: 26041694 | P194: 48.05662059 | Q194: 0.09337940533 | R194: 0 | S194: 0 | T194: 0 | U194: 0 | V194: 0 | W194: =MIN(H194*parameters!C$22,ROUND(O194+S194-U194+V194,0)) -> 26041694 | X194: 48.05662059 | Z194: -51709 | AA194: 51709 | AB194: 0 | AC194: -0.09337940533 | AE194: -0.001981688628 | AF194: -0.09337940533 | AG194: 0 | AI194: 0.0311
A195: 186 | B195: Millbury | C195: 1670266000 | D195: 5708707.935 | E195: 436734000 | F195: 6470733.327 | G195: 12179441 | H195: 20388618.23 | I195: 16820610 | J195: 12179441 | K195: 59.74 | L195: 0.5973647091 | M195: 11778558 | N195: 0.0444 | O195: 12301526 | P195: 60.33526088 | Q195: 0 | R195: 0 | S195: 0 | T195: 122085 | U195: 122085 | V195: 0 | W195: =MIN(H195*parameters!C$22,ROUND(O195+S195-U195+V195,0)) -> 12179441 | X195: 59.73647091 | Z195: 0 | AA195: 0 | AB195: 0 | AC195: -0.003529089843 | AE195: 0.01002385906 | AF195: 0.5952608752 | AG195: 0 | AI195: 0.0444
A196: 187 | B196: Millis | C196: 1247044700 | D196: 4262203.729 | E196: 344341000 | F196: 5101821.21 | G196: 9364025 | H196: 13380521.36 | I196: 11038930 | J196: 9364025 | K196: 69.98 | L196: 0.6998251226 | M196: 9071434 | N196: 0.0516 | O196: 9539520 | P196: 71.29408297 | Q196: 0 | R196: 0 | S196: 0 | T196: 175495 | U196: 175495 | V196: 0 | W196: =MIN(H196*parameters!C$22,ROUND(O196+S196-U196+V196,0)) -> 9364025 | X196: 69.98251226 | Z196: 0 | AA196: 0 | AB196: 0 | AC196: 0.00251225602 | AE196: 0.01874140661 | AF196: 1.314082974 | AG196: 0 | AI196: 0.0516
A197: 188 | B197: Millville | C197: 315022800 | D197: 1076698.656 | E197: 98619000 | F197: 1461157.707 | G197: 2537856 | H197: 5896576.604 | I197: 4864676 | J197: 2537856 | K197: 43.04 | L197: 0.4303948156 | M197: 2425421 | N197: 0.028 | O197: 2493333 | P197: 42.28441632 | Q197: 0.7555836785 | R197: 0 | S197: 0 | T197: 0 | U197: 0 | V197: 0 | W197: =MIN(H197*parameters!C$22,ROUND(O197+S197-U197+V197,0)) -> 2493333 | X197: 42.28441632 | Z197: -44523 | AA197: 44523 | AB197: 0 | AC197: -0.7555836785 | AE197: -0.01754354857 | AF197: -0.7555836785 | AG197: 0 | AI197: 0.028
A198: 189 | B198: Milton | C198: 6039459500 | D198: 20641927.91 | E198: 1887787000 | F198: 27969808.29 | G198: 48611736 | H198: 45197819.31 | I198: 37288201 | J198: 37288201 | K198: 82.5 | L198: 1.075532774 | M198: 34302859 | N198: 0.0415 | O198: 35726428 | P198: 79.04458344 | Q198: 3.455416562 | R198: 0.01 | S198: 343029 | T198: 0 | U198: 0 | V198: 0 | W198: =MIN(H198*parameters!C$22,ROUND(O198+S198-U198+V198,0)) -> 36069457 | X198: 79.80353377 | Z198: -1561773 | AA198: 1218744 | AB198: 0 | AC198: -2.69646623 | AE198: -0.0418838388 | AF198: -3.455416562 | AG198: 0 | AI198: 0.0415
A199: 190 | B199: Monroe | C199: 24977400 | D199: 85368.84638 | E199: 1023000 | F199: 15156.96097 | G199: 100526 | H199: 136260.3925 | I199: 112415 | J199: 100526 | K199: 73.77 | L199: 0.7377492327 | M199: 100296 | N199: 0.003 | O199: 100597 | P199: 73.82702939 | Q199: 0 | R199: 0 | S199: 0 | T199: 71 | U199: 71 | V199: 0 | W199: =MIN(H199*parameters!C$22,ROUND(O199+S199-U199+V199,0)) -> 100526 | X199: 73.77492327 | Z199: 0 | AA199: 0 | AB199: 0 | AC199: 0.004923272233 | AE199: 0.0007062849412 | AF199: 0.05702938958 | AG199: 0 | AI199: 0.003
A200: 191 | B200: Monson | C200: 814480800 | D200: 2783767.978 | E200: 248375000 | F200: 3679970.852 | G200: 6463739 | H200: 11690356.89 | I200: 9644544 | J200: 6463739 | K200: 55.29 | L200: 0.5529120337 | M200: 6346707 | N200: 0.0408 | O200: 6605653 | P200: 56.50514407 | Q200: 0 | R200: 0 | S200: 0 | T200: 141914 | U200: 141914 | V200: 0 | W200: =MIN(H200*parameters!C$22,ROUND(O200+S200-U200+V200,0)) -> 6463739 | X200: 55.29120337 | Z200: 0 | AA200: 0 | AB200: 0 | AC200: 0.001203368772 | AE200: 0.02195540383 | AF200: 1.215144067 | AG200: 0 | AI200: 0.0408
... 164 more rows

Sheet Aid436
D1: disthist | E1: c70fy19 | G1: disthist
D2: 47 | G2: 49
